Workbook

Sheet Instruktioner
A1: Kortfattad användarhandledning ENVA 2020:1
B2: Den integrerade ÅVS-mallen för SEB används vid behov och behöver ej granskas nationellt. ENVA och tillhörande AKK granskas nationellt genom SEB-IT, se instruktion nedan.
A3: 1. | B3: Välj relevant Åtgärdsflik för den åtgärd som ska analyseras (grönmarkerade). Åtgärdsflikarna är de enda flikarna som användaren behöver använda. Fliken Instruktioner (denna flik) kan användas som hjälp vid sammanvägning av trafikuppräkningstalen. Beskriv åtgärden i fliken Beskrivning av åtgärd, anpassa fliken vid flera beräknade alternativ i samma ENVA så att det går att urskilja alternativen. | O3: Observera
A4: 2. | B4: Under rubrikerna Indata och Generella kalkylparametrar anges åtgärdsspecifika parametrar. Fält som är gråmarkeradeska inte att ändras. Notera att vilka indataparmetrar som går att ändra skiljer sig mellan åtgärdsflikarna beroende på vilka parametrar som är relevanta för åtgärdstypen. Som hjälp för att ange indata kan NVDB användas. | O4: *Trafiktillväxt kan anges mellan 1-1,4732 för 2017-2040 och mellan 1-1,676 för 2017-2065. Hjälp för beräkning av sammanvägda trafikuppräkningstal finns i tabell nedan. *Kalkylperiod kan anges till max 60 år. *ÅDT kan väljas i listan eller skrivas med fritext för värden mellan 2000-6000 för hastighetssänkning, mittseparering samt ATK.
A5: 3. | B5: Användaren anger investeringskostnad under rubriken Kostnad. Kostnad ska anges i prisnivå 2017. | O5: *För viltstängsel kan ÅDT anges från 0 men efter 2000 påverkar ÅDT inte olycksfrekvensen såsom effektmodellen är konstruerad. *Radera graf innan ny graf skapas. *Fält som är gråmarkerade ska inte ändras.
A6: 4. | B6: Klicka på knappen Beräkna när all indata angetts (behöver endast göras om beräkningsalternativen i Excel är inställt på manuell). Resultaten visas då under rubriken Resultat. | O6: * Luftemissioner och bränsleförbrukning beräknas numera med den Europeiska modellen HBEFA i Trafikverkets CBA-verktyg Samkalk och EVA. Effektberäkningarna i ENVA är emellertid baserade på den tidigare effektmodellen VETO. Därför utgår emissionseffekter från ENVA 2020.
A7: 5. | B7: När resultaten beräknats kan en graf beräknas genom knappen Skapa diagram som visar NNK/NNV i förhållande till ÅDT. I grafen visas hur NNV och NNK förändras då ÅDT ändras (allt annat lika). Det går inte att beräkna någon graf för viltstängsel då ÅDT över 2000 inte påverkar resultaten. | O7: Sammanvägning av trafikuppräkningstal
P8: Personbil | R8: Lastbil | T8: Sammanvägt*
P9: 2017-2040 | Q9: 2017-2065 | R9: 2017-2040 | S9: 2017-2065 | T9: 2017-2040 | U9: 2017-2065
A10: 6. | B10: Alternativ kan jämföras genom att använda knappen Kopiera resultat. | O10: Trafikuppräkningstal | T10: =P10*0.92+R10*0.08 -> 0 | U10: =Q10*0.92+S10*0.08 -> 0
O11: *Sammanvägning beräknas med 8% lastbilsandel
O12: Fyll i de trafikuppräkningstal som är aktuella för den specifika åtgärden i de ljusblåfälten.
A16: Hantering i SEB-IT
A17: 1. | B17: Skapa en SEB i SEB-IT och fyll i följande fält: Titel, Objektnummer, Kontaktperson, Skede, SEB-typ (välj alternativet: Endast kostnadsberäkning och samhällskonomisk analys), Sammanhang vid publicering, Trafikverksregion (ligger under 1. Åtgärdsbeskrivning, Sammanfattning), Kalkylverktyg (ligger under 2. Samhällsekonomisk analys, Kalkylverktyg). Se bild nedan.
A18: 2. | B18: Gör en PDF av följande flikar i ENVA:s Excelark: ”Beskrivning av åtgärd” + den/de aktuella åtgärds-flikarna*
A19: 3. | B19: Spara den framtagna PDF:en från steg 2 tillsammans med ENVA:s Excelfil som bilagor i kategorin SEA. Döp dem till ”ENVA Objektnamn”. Bifoga även AKKer som bilagor. Se bild nedan.
B20: * Samtliga alternativ kopplat till en åtgärd/ÅVS kan levereras i samma SEB i SEB-IT (förutsatt att ENVA använts för samtliga alternativ). Bilagor i form av AKK bifogas för varje alternativ.
B22: Steg 1
B44: Steg 3
B88: Steg 4

Sheet Beskrivning av åtgärd
A1: Enkel SEB - Beskrivning av åtgärd
A3: Upprättare
A4: Datum
A5: Åtgärdsnamn
A6: Beskrivning av åtgärd
A7: Län

Sheet Hastighetssänkning
A1: Samhällsekonomisk analys - Hastighetssänkning ENVA 2020:1
A3: INDATA | BY3: Alternativ 2 | CX3: Alternativ 3 | DW3: Alternativ 4 | EV3: Alternativ 5
A4: Åtgärd | X4: Hastighetssänkning 90 till 70
A6: BASVÄGNÄT
A7: Vägtyp | X7: 2 körfält
A8: Vägbredd | X8: 10,1-11,5 m
A9: Hastighet
A10: ATK
A12: UTREDNINGSVÄGNÄT
A13: Vägtyp
A14: Vägbredd
A15: Trafikavskiljare
A16: Hastighet
A17: ATK
A19: GENERELLA KALKYLPARAMETRAR | BY19: Alternativ 2 | CX19: Alternativ 3 | DW19: Alternativ 4 | EV19: Alternativ 5
A20: Län
A21: Väglängd (i km) | X21: 1
A22: ÅDT (2017) | X22: 3500
A23: Trafiktillväxt 2017-2040 | X23: 1
A24: Trafiktillväxt 2017-2065 | X24: 1
A25: Kalkylperiod | X25: 40
X26: Kostnad | BY26: Kostnad | CX26: Kostnad | DW26: Kostnad | EV26: Kostnad
A27: Investeringskostnad i mkr (2017)
A29: RESULTAT | BY29: Alternativ 2 | CX29: Alternativ 3 | DW29: Alternativ 4 | EV29: Alternativ 5
X30: NUVÄRDE i miljoner SEK | AC30: Exempel på effekter 2025 | BY30: NUVÄRDE i miljoner SEK | CD30: Exempel på effekter 2025 | CX30: NUVÄRDE i miljoner SEK | DC30: Exempel på effekter 2025 | DW30: NUVÄRDE i miljoner SEK | EB30: Exempel på effekter 2025 | EV30: NUVÄRDE i miljoner SEK | FA30: Exempel på effekter 2025
A31: Restid | X31: ='Beräkning-hastighetssänkn.'!G158*$X$21 -> -3.536041539 | AC31: =+CONCATENATE("Restid personbil: ",ROUND('Beräkning-hastighetssänkn.'!G26,4)," ktim") -> Restid personbil: 0,5304 ktim
A32: Fordonskostnader | X32: ='Beräkning-hastighetssänkn.'!J158*X21 -> 0.1546691118 | AC32: =+CONCATENATE("Fordonskostnad personbil: ",ROUND('Beräkning-hastighetssänkn.'!J26,4)," Mkr") -> Fordonskostnad personbil: -0,0006 Mkr
A33: Luftföroreningar | X33: Redovisas inte pga ej gällande beräkningar | AC33: -
A34: Godskostnad | X34: ='Beräkning-hastighetssänkn.'!Y158*X21 -> -0.006775763174 | AC34: =+CONCATENATE("Godskostnad: ",ROUND('Beräkning-hastighetssänkn.'!Y26,4)," Mkr") -> Godskostnad: 0,0003 Mkr
A35: Drift och underhåll | X35: ='Beräkning-hastighetssänkn.'!Z158*X21 -> 0 | AC35: =+CONCATENATE("DoU-kostnad: ",ROUND('Beräkning-hastighetssänkn.'!Y26,4)," Mkr") -> DoU-kostnad: 0,0003 Mkr
A36: Trafiksäkerhet | X36: ='Beräkning-hastighetssänkn.'!AA158*X21 -> 3.459019886 | AC36: =+CONCATENATE("Döda: ",ROUND('Beräkning-hastighetssänkn.'!P26,4)," D") -> Döda: -0,0008 D
AC37: =+CONCATENATE("Döda och svårt skadade: ",ROUND('Beräkning-hastighetssänkn.'!P26+'Beräkning-hastighetssänkn.'!Q26,4)," DSS/km") -> Döda och svårt skadade: -0,0047 DSS/km
A38: Samhällsekonomisk investeringskostnad | X38: ='Indata+ber. investeringskostnad'!L19 -> 0
A40: Nettonuvärde | X40: =SUM(X31:AB36)-X38 -> 0.07087169522 | BA40: =X40 -> 0.07087169522
A41: Nettonuvärdeskvot | X41: =IF((X40/(X38-X35))>0,X40/(X38-X35),"Negativ=ej lönsam") ->  | BA41: =X40/(X38-X35) -> 
A43: NNK 30% högre investeringskostnad | X43: =IF(((SUM(X31:AB36)-(X38*1.3))/((X38*1.3)-X35))>0,(SUM(X31:AB36)-(X38*1.3))/((X38*1.3)-X35),"Negativ=ej lönsam") -> 
A46: Effekter som inte ingår i beräkningen av nettonuvärde men som ingår i den sammanvägda bedömningen | X46: Alternativ 1 | BY46: Alternativ 2 | CX46: Alternativ 3 | DW46: Alternativ 4 | EV46: Alternativ 5 | FV46: Beskrivningen av effekter i ord görs lämpligen med ord som:
X47: Bedömning | AC47: Kort beskrivning | BY47: Bedömning | CD47: Kort beskrivning | CX47: Bedömning | DC47: Kort beskrivning | DW47: Bedömning | EB47: Kort beskrivning | EV47: Bedömning | FA47: Kort beskrivning | FV47: · Obetydligt/lågt, Stort samt Mycket stort positivt bidrag till måluppfyllelse alternativt Obetydligt/lågt, Stort, Mycket stort negativt bidrag till måluppfyllelse. Om man använder en skaka med olika valörer (Obetydligt/lågt, Stort, Mycket stort) är det viktigt att ange vad bedömningen är relaterad till, se* i tabellen nedan.
A48: Resenärer | X48: Ej bedömt | BY48: Ej bedömt | CX48: Ej bedömt | DW48: Ej bedömt | EV48: Ej bedömt
A49: Godstransporter | X49: Ej bedömt | BY49: Ej bedömt | CX49: Ej bedömt | DW49: Ej bedömt | EV49: Ej bedömt
A50: Persontransportföretag | X50: Ej bedömt | BY50: Ej bedömt | CX50: Ej bedömt | DW50: Ej bedömt | EV50: Ej bedömt
A51: Trafiksäkerhet | X51: Ej bedömt | BY51: Ej bedömt | CX51: Ej bedömt | DW51: Ej bedömt | EV51: Ej bedömt
A52: Klimat | X52: Ej bedömt | BY52: Ej bedömt | CX52: Ej bedömt | DW52: Ej bedömt | EV52: Ej bedömt
A53: Hälsa | X53: Ej bedömt | BY53: Ej bedömt | CX53: Ej bedömt | DW53: Ej bedömt | EV53: Ej bedömt
A54: Landskap | X54: Ej bedömt | BY54: Ej bedömt | CX54: Ej bedömt | DW54: Ej bedömt | EV54: Ej bedömt
A55: Drift och underhåll | X55: Ej bedömt | BY55: Ej bedömt | CX55: Ej bedömt | DW55: Ej bedömt | EV55: Ej bedömt
A56: Övrigt | X56: Ej bedömt | BY56: Ej bedömt | CX56: Ej bedömt | DW56: Ej bedömt | EV56: Ej bedömt
A57: Sammanvägd bedömning av ej beräknade effekter | X57: Ej bedömt | BY57: Ej bedömt | CX57: Ej bedömt | DW57: Ej bedömt | EV57: Ej bedömt
A58: Sammanvägd samhällsekonomisk lönsamhet (både prissatta och ej beräknade) | X58: Ej bedömt | BY58: Ej bedömt | CX58: Ej bedömt | DW58: Ej bedömt | EV58: Ej bedömt
FV59: · Konkret effekt (förändring av kvalitet) kopplat till vilken funktion som avses, t ex ”Genare väg till och från station och centrum” eller ”Minskat behov av avstängning vid underhåll av plattform”.
A60: Transportpolitisk målanalys - Hastighetssänkning
O61: Bedömd måluppfyllelse relativt: | AP61: *Relativt de andra paketen/de andra åtgärderna
O62: ÅVS mål | Z62: Alternativ 1 | BY62: Alternativ 2 | CX62: Alternativ 3 | DW62: Alternativ 4 | EV62: Alternativ 5 | FV62: · Utöver beskrivningen i ord kan även färgmarkeringar användas.
A63: Bidrag till funktionsmålet | B63: Medborgarnas resor
B64: Näringslivets transporter | FV64: Fler rader och kan läggas till.
B65: Tillgänglighet regionalt/länder
B66: Jämställdhet
B67: Funktionshindrade
B68: Barn och unga
B69: Kollektivtrafik, gång och cykel
A70: Bidrag till hänsyns målet | B70: Klimat
B71: Hälsa
B72: Landskap
B73: Trafiksäkerhet
A74: Bidrag till en samhällsekonomiskt effektiv och långsiktigt hållbar transportförsörjning
A75: Fördelningsaspekter
A76: Målkonflikter
O78: Regionala mål
Z79: Alternativ 1 | BY79: Alternativ 2 | CX79: Alternativ 3 | DW79: Alternativ 4 | EV79: Alternativ 5
A80: Mål A etc | FV80: Beskriv effekterna i ord
A82: Sammanvägt regionala mål
A83: Målkonflikter
O85: Lokala mål
Z86: Alternativ 1 | BY86: Alternativ 2 | CX86: Alternativ 3 | DW86: Alternativ 4 | EV86: Alternativ 5
A87: Mål A etc | FV87: Beskriv effekterna i ord
A89: Sammanvägt regionala mål
A90: Målkonflikter
A92: Slutligt bedömd sammanvägd lönsamhet
A94: Slutligt bedömd sammanvägd lönsamhet | Z94: Ej bedömt | AV94: Motivera bedömning
A95: Kvalitetsbedömning av Samhällskonomisk analys

Sheet Mittseparering
A1: Samhällsekonomisk analys - Mittseparering ENVA 2020:1
A3: INDATA
A4: Åtgärd | X4: Mittseparering
A6: INDATA BASVÄGNÄT | BZ6: Alternativ 2 | CY6: Alternativ 3 | DX6: Alternativ 4 | EW6: Alternativ 5
A7: Vägtyp | X7: 2 körfält
A8: Vägbredd | X8: 10,1-11,5 m
A9: Hastighet | X9: 80
A10: ATK | X10: Nej
A12: INDATA UTREDNINGSVÄGNÄT | BZ12: Alternativ 2 | CY12: Alternativ 3 | DX12: Alternativ 4 | EW12: Alternativ 5
A13: Vägtyp | X13: MLV 40% omkörning
A14: Vägbredd | X14: =IF(OR(X13=Beräkningsförutsättningar!S32,X13=Beräkningsförutsättningar!S33),Beräkningsförutsättningar!S47,Beräkningsförutsättningar!S48) -> 13 m
A15: Trafikavskiljare | X15: Räcke
A16: Hastighet | X16: 110
A17: ATK | X17: Tas bort vid ombyggnad till MLV
A19: GENERELLA KALKYLPARAMETRAR | BZ19: Alternativ 2 | CY19: Alternativ 3 | DX19: Alternativ 4 | EW19: Alternativ 5
A20: Län
A21: Väglängd (i km) | X21: 1
A22: ÅDT (2017) | X22: 2000
A23: Trafiktillväxt 2017-2040 | X23: 1
A24: Trafiktillväxt 2017-2065 | X24: 1
A25: Kalkylperiod | X25: 40
X26: Kostnad | BZ26: Kostnad | CY26: Kostnad | DX26: Kostnad | EW26: Kostnad
A27: Investeringskostnad i mkr (2017)
A29: RESULTAT | BZ29: Alternativ 2 | CY29: Alternativ 3 | DX29: Alternativ 4 | EW29: Alternativ 5
X30: NUVÄRDE i miljoner SEK | AI30: Exempel på effekter 2020 | BZ30: NUVÄRDE i miljoner SEK | CK30: Exempel på effekter 2025 | CY30: NUVÄRDE i miljoner SEK | DJ30: Exempel på effekter 2025 | DX30: NUVÄRDE i miljoner SEK | EI30: Exempel på effekter 2025 | EW30: NUVÄRDE i miljoner SEK | FH30: Exempel på effekter 2025
A31: Restid | X31: ='Beräkning mittsep.'!G158*X21 -> 12.35461671 | AI31: =+CONCATENATE("Restid personbil: ",ROUND('Beräkning mittsep.'!G26,4)," ktim") -> Restid personbil: -1,8145 ktim
A32: Fordonskostnader | X32: ='Beräkning mittsep.'!J158*X21 -> -0.824847973 | AI32: =+CONCATENATE("Fordonskostnad personbil: ",ROUND('Beräkning mittsep.'!J26,4)," Mkr") -> Fordonskostnad personbil: 0,0032 Mkr
A33: Luftföroreningar | X33: Redovisas inte pga ej gällande beräkningar | AI33: -
A34: Godskostnad | X34: ='Beräkning mittsep.'!Y158*X21 -> 0.02241796809 | AI34: =+CONCATENATE("Godskostnad: ",ROUND('Beräkning mittsep.'!Y26,4)," Mkr") -> Godskostnad: -0,001 Mkr
A35: Drift och underhåll | X35: ='Beräkning mittsep.'!Z158*X21 -> -1.183284254 | AI35: =+CONCATENATE("DoU-kostnad: ",ROUND('Beräkning mittsep.'!Z26,4)," Mkr") -> DoU-kostnad: 0,0535 Mkr
A36: Trafiksäkerhet | X36: ='Beräkning mittsep.'!AA158*X21 -> 7.229054959 | AI36: =+CONCATENATE("Döda: ",ROUND('Beräkning mittsep.'!P26,4)," D") -> Döda: -0,0013 D
AI37: =+CONCATENATE("Döda och svårt skadade: ",ROUND('Beräkning mittsep.'!P26+'Beräkning mittsep.'!Q26,4)," DSS/km") -> Döda och svårt skadade: -0,0182 DSS/km
A38: Samhällsekonomisk investeringskostnad | X38: =IF(OR(X27='Indata+ber. investeringskostnad'!E24,Mittseparering!AI27='Indata+ber. investeringskostnad'!E24),'Indata+ber. investeringskostnad'!L24,'Indata+ber. investeringskostnad'!#REF!) -> 0
A40: Nettonuvärde | X40: =SUM(X31:AH36)-X38 -> 17.59795741 | BA40: =X40 -> 17.59795741
A41: Nettonuvärdeskvot | X41: =IF((X40/(X38-X35))>0,X40/(X38-X35),"Negativ=ej lönsam") -> 14.87213014 | BA41: =X40/(X38-X35) -> 14.87213014
A43: NNK 30% högre investeringskostnad | X43: =IF(((SUM(X31:AH36)-(X38*1.3))/((X38*1.3)-X35))>0,(SUM(X31:AH36)-(X38*1.3))/((X38*1.3)-X35),"Negativ=ej lönsam") -> 14.87213014
A47: Effekter som inte ingår i beräkningen av nettonuvärde men som ingår i den sammanvägda bedömningen | X47: Alternativ 1 | BZ47: Alternativ 2 | CY47: Alternativ 3 | DX47: Alternativ 4 | EW47: Alternativ 5 | FV47: Beskrivningen av effekter i ord görs lämpligen med ord som:
X48: Bedömning | AI48: Kort beskrivning | BZ48: Bedömning | CK48: Kort beskrivning | CY48: Bedömning | DJ48: Kort beskrivning | DX48: Bedömning | EI48: Kort beskrivning | EW48: Bedömning | FH48: Kort beskrivning | FV48: · Obetydligt/lågt, Stort samt Mycket stort positivt bidrag till måluppfyllelse alternativt Obetydligt/lågt, Stort, Mycket stort negativt bidrag till måluppfyllelse. Om man använder en skaka med olika valörer (Obetydligt/lågt, Stort, Mycket stort) är det viktigt att ange vad bedömningen är relaterad till, se* i tabellen nedan.
A49: Resenärer | X49: Ej bedömt | BZ49: Ej bedömt | CY49: Ej bedömt | DX49: Ej bedömt | EW49: Ej bedömt
A50: Godstransporter | X50: Ej bedömt | BZ50: Ej bedömt | CY50: Ej bedömt | DX50: Ej bedömt | EW50: Ej bedömt
A51: Persontransportföretag | X51: Ej bedömt | BZ51: Ej bedömt | CY51: Ej bedömt | DX51: Ej bedömt | EW51: Ej bedömt
A52: Trafiksäkerhet | X52: Ej bedömt | BZ52: Ej bedömt | CY52: Ej bedömt | DX52: Ej bedömt | EW52: Ej bedömt
A53: Klimat | X53: Ej bedömt | BZ53: Ej bedömt | CY53: Ej bedömt | DX53: Ej bedömt | EW53: Ej bedömt
A54: Hälsa | X54: Ej bedömt | BZ54: Ej bedömt | CY54: Ej bedömt | DX54: Ej bedömt | EW54: Ej bedömt
A55: Landskap | X55: Ej bedömt | BZ55: Ej bedömt | CY55: Ej bedömt | DX55: Ej bedömt | EW55: Ej bedömt
A56: Drift och underhåll | X56: Ej bedömt | BZ56: Ej bedömt | CY56: Ej bedömt | DX56: Ej bedömt | EW56: Ej bedömt
A57: Övrigt | X57: Ej bedömt | BZ57: Ej bedömt | CY57: Ej bedömt | DX57: Ej bedömt | EW57: Ej bedömt
A58: Sammanvägd bedömning av ej beräknade effekter | X58: Ej bedömt | BZ58: Ej bedömt | CY58: Ej bedömt | DX58: Ej bedömt | EW58: Ej bedömt | FU58: · Obetydligt/lågt, Stort samt Mycket stort positivt bidrag till måluppfyllelse alternativt Obetydligt/lågt, Stort, Mycket stort negativt bidrag till måluppfyllelse. Om man använder en skaka med olika valörer (Obetydligt/lågt, Stort, Mycket stort) är det viktigt att ange vad bedömningen är relaterad till, se* i tabellen nedan.
A59: Sammanvägd samhällsekonomisk lönsamhet (både prissatta och ej beräknade) | X59: Ej bedömt | BZ59: Ej bedömt | CY59: Ej bedömt | DX59: Ej bedömt | EW59: Ej bedömt
FV60: · Konkret effekt (förändring av kvalitet) kopplat till vilken funktion som avses, t ex ”Genare väg till och från station och centrum” eller ”Minskat behov av avstängning vid underhåll av plattform”.
A61: Transportpolitisk målanalys - Hastighetssänkning | FU61: · Konkret effekt (förändring av kvalitet) kopplat till vilken funktion som avses, t ex ”Genare väg till och från station och centrum” eller ”Minskat behov av avstängning vid underhåll av plattform”.
O62: Bedömd måluppfyllelse relativt: | AT62: *Relativt de andra paketen/de andra åtgärderna/annat
O63: ÅVS mål | Z63: Alternativ 1 | BZ63: Alternativ 2 | CY63: Alternativ 3 | DX63: Alternativ 4 | EW63: Alternativ 5
A64: Bidrag till funktionsmålet | B64: Medborgarnas resor | FV64: · Utöver beskrivningen i ord kan även färgmarkeringar användas.
B65: Näringslivets transporter | FV65: Fler rader och kan läggas till.
B66: Tillgänglighet regionalt/länder
B67: Jämställdhet
B68: Funktionshindrade
B69: Barn och unga
B70: Kollektivtrafik, gång och cykel
A71: Bidrag till hänsyns målet | B71: Klimat
B72: Hälsa
B73: Landskap
B74: Trafiksäkerhet
A75: Bidrag till en samhällsekonomiskt effektiv och långsiktigt hållbar transportförsörjning
A76: Fördelningsaspekter
A77: Målkonflikter
O79: Regionala mål
Z80: Alternativ 1 | BZ80: Alternativ 2 | CY80: Alternativ 3 | DX80: Alternativ 4 | EW80: Alternativ 5
A81: Mål A etc | FV81: Beskriv effekterna i ord
A83: Sammanvägt regionala mål
A84: Målkonflikter
O86: Lokala mål
Z87: Alternativ 1 | BZ87: Alternativ 2 | CY87: Alternativ 3 | DX87: Alternativ 4 | EW87: Alternativ 5
A88: Mål A etc | FV88: Beskriv effekterna i ord
A90: Sammanvägt regionala mål
A91: Målkonflikter
A93: Slutligt bedömd sammanvägd lönsamhet
A95: Slutligt bedömd sammanvägd lönsamhet | Z95: Ej bedömt | AV95: Motivera bedömning
A96: Kvalitetsbedömning av Samhällskonomisk analys

Sheet ATK
A1: Samhällsekonomisk analys - ATK ENVA 2020:1
A3: INDATA | BZ3: Alternativ 2 | CY3: Alternativ 3 | DX3: Alternativ 4 | EW3: Alternativ 5
A4: Åtgärd | X4: ATK
A6: BASVÄGNÄT
A7: Vägtyp | X7: 2 körfält
A8: Vägbredd | X8: >11,5 m
A9: Hastighet | X9: 70
A10: ATK | X10: 6,7-7,9 m
A12: UTREDNINGSVÄGNÄT | BZ12: ALTERNATIV 2 | CY12: ALTERNATIV 3 | DX12: ALTERNATIV 4 | EW12: ALTERNATIV 5
A13: Vägtyp
A14: Vägbredd | X14: 10,1-11,5 m
A15: Trafikavskiljare
A16: Hastighet
A17: ATK
A19: GENERELLA KALKYLPARAMETRAR | BZ19: Alternativ 2 | CY19: Alternativ 3 | DX19: Alternativ 4 | EW19: Alternativ 5
A20: Län
A21: Väglängd (i km) | X21: 5
A22: ÅDT (2017) | X22: 6000
A23: Trafiktillväxt 2017-2040 | X23: 1.2
A24: Trafiktillväxt 2017-2065 | X24: 1
A25: Kalkylperiod | X25: 10
X26: Kostnad | BZ26: Kostnad | CY26: Kostnad | DX26: Kostnad | EW26: Kostnad
A27: Investeringskostnad i mkr (2017) | X27: 1
A29: RESULTAT | BZ29: Alternativ 2 | CY29: Alternativ 3 | DX29: Alternativ 4 | EW29: Alternativ 5
X30: NUVÄRDE i miljoner SEK | AC30: Exempel på effekter 2025 | BZ30: NUVÄRDE i miljoner SEK | CE30: Exempel på effekter 2025 | CY30: NUVÄRDE i miljoner SEK | DD30: Exempel på effekter 2025 | DX30: NUVÄRDE i miljoner SEK | EC30: Exempel på effekter 2025 | EW30: NUVÄRDE i miljoner SEK | FB30: Exempel på effekter 2025
A31: Restid | X31: ='Beräkning-ATK'!G158*$X$21 -> -17.42231686 | AC31: =+CONCATENATE("Restid personbil: ",ROUND('Beräkning-ATK'!G26,4)," ktim") -> Restid personbil: 1,4788 ktim
A32: Fordonskostnader | X32: ='Beräkning-ATK'!J158*X21 -> -0.06307589834 | AC32: =+CONCATENATE("Fordonskostnad personbil: ",ROUND('Beräkning-ATK'!J26,4)," Mkr") -> Fordonskostnad personbil: 0,0003 Mkr
A33: Luftföroreningar | X33: Redovisas inte pga ej gällande beräkningar | AC33: -
A34: Godskostnad | X34: ='Beräkning-ATK'!Y158*X21 -> -0.09473307832 | AC34: =+CONCATENATE("Godskostnad: ",ROUND('Beräkning-ATK'!Y26,4)," Mkr") -> Godskostnad: 0,0021 Mkr
A35: Drift och underhåll | X35: ='Beräkning-ATK'!Z158*X21 -> 0 | AC35: =+CONCATENATE("DoU-kostnad: ",ROUND('Beräkning-ATK'!Z26,4)," Mkr") -> DoU-kostnad: 0 Mkr
A36: Trafiksäkerhet | X36: ='Beräkning-ATK'!AA158*X21 -> 16.91675615 | AC36: =+CONCATENATE("Döda: ",ROUND('Beräkning-ATK'!P26,4)," D") -> Döda: -0,0005 D
AC37: =+CONCATENATE("Döda och svårt skadade: ",ROUND('Beräkning-ATK'!P26+'Beräkning-ATK'!Q26,4)," DSS/km") -> Döda och svårt skadade: -0,0139 DSS/km
A38: Samhällsekonomisk investeringskostnad | X38: ='Indata+ber. investeringskostnad'!L28 -> 1.3455
A40: Nettonuvärde | X40: =SUM(X31:AU36)-X38 -> -2.008869682 | BA40: =X40 -> -2.008869682
A41: Nettonuvärdeskvot | X41: =IF((X40/(X38-X35))>0,X40/(X38-X35),"Negativ=ej lönsam") -> Negativ=ej lönsam | BA41: =X40/(X38-X35) -> -1.493028377
A43: NNK 30% högre investeringskostnad | X43: =IF(((SUM(X31:AB36)-(X38*1.3))/((X38*1.3)-X35))>0,(SUM(X31:AB36)-(X38*1.3))/((X38*1.3)-X35),"Negativ=ej lönsam") -> Negativ=ej lönsam
A46: Effekter som inte ingår i beräkningen av nettonuvärde men som ingår i den sammanvägda bedömningen | X46: Alternativ 1 | BZ46: Alternativ 2 | CY46: Alternativ 3 | DX46: Alternativ 4 | EW46: Alternativ 5 | FU46: Beskrivningen av effekter i ord görs lämpligen med ord som:
X47: Bedömning | AC47: Kort beskrivning | BZ47: Bedömning | CE47: Kort beskrivning | CY47: Bedömning | DD47: Kort beskrivning | DX47: Bedömning | EC47: Kort beskrivning | EW47: Bedömning | FB47: Kort beskrivning | FU47: · Obetydligt/lågt, Stort samt Mycket stort positivt bidrag till måluppfyllelse alternativt Obetydligt/lågt, Stort, Mycket stort negativt bidrag till måluppfyllelse. Om man använder en skaka med olika valörer (Obetydligt/lågt, Stort, Mycket stort) är det viktigt att ange vad bedömningen är relaterad till, se* i tabellen nedan.
A48: Resenärer | X48: Ej bedömt | BZ48: Ej bedömt | CY48: Ej bedömt | DX48: Ej bedömt | EW48: Ej bedömt
A49: Godstransporter | X49: Ej bedömt | BZ49: Ej bedömt | CY49: Ej bedömt | DX49: Ej bedömt | EW49: Ej bedömt
A50: Persontransportföretag | X50: Ej bedömt | BZ50: Ej bedömt | CY50: Ej bedömt | DX50: Ej bedömt | EW50: Ej bedömt
A51: Trafiksäkerhet | X51: Ej bedömt | BZ51: Ej bedömt | CY51: Ej bedömt | DX51: Ej bedömt | EW51: Ej bedömt
A52: Klimat | X52: Ej bedömt | BZ52: Ej bedömt | CY52: Ej bedömt | DX52: Ej bedömt | EW52: Ej bedömt
A53: Hälsa | X53: Ej bedömt | BZ53: Ej bedömt | CY53: Ej bedömt | DX53: Ej bedömt | EW53: Ej bedömt
A54: Landskap | X54: Ej bedömt | BZ54: Ej bedömt | CY54: Ej bedömt | DX54: Ej bedömt | EW54: Ej bedömt
A55: Drift och underhåll | X55: Ej bedömt | BZ55: Ej bedömt | CY55: Ej bedömt | DX55: Ej bedömt | EW55: Ej bedömt
A56: Övrigt | X56: Ej bedömt | BZ56: Ej bedömt | CY56: Ej bedömt | DX56: Ej bedömt | EW56: Ej bedömt
A57: Sammanvägd bedömning av ej beräknade effekter | X57: Ej bedömt | BZ57: Ej bedömt | CY57: Ej bedömt | DX57: Ej bedömt | EW57: Ej bedömt
A58: Sammanvägd samhällsekonomisk lönsamhet (både prissatta och ej beräknade) | X58: Ej bedömt | BZ58: Ej bedömt | CY58: Ej bedömt | DX58: Ej bedömt | EW58: Ej bedömt
FU59: · Konkret effekt (förändring av kvalitet) kopplat till vilken funktion som avses, t ex ”Genare väg till och från station och centrum” eller ”Minskat behov av avstängning vid underhåll av plattform”.
A60: Transportpolitisk målanalys - Hastighetssänkning
O61: Bedömd måluppfyllelse relativt: | AO61: *Relativt de andra paketen/de andra åtgärderna/annat
O62: ÅVS mål | Z62: Alternativ 1 | BZ62: Alternativ 2 | CY62: Alternativ 3 | DX62: Alternativ 4 | EW62: Alternativ 5
A63: Bidrag till funktionsmålet | B63: Medborgarnas resor | FU63: · Utöver beskrivningen i ord kan även färgmarkeringar användas.
B64: Näringslivets transporter | FU64: Fler rader och kan läggas till.
B65: Tillgänglighet regionalt/länder
B66: Jämställdhet
B67: Funktionshindrade
B68: Barn och unga
B69: Kollektivtrafik, gång och cykel
A70: Bidrag till hänsyns målet | B70: Klimat
B71: Hälsa
B72: Landskap
B73: Trafiksäkerhet
A74: Bidrag till en samhällsekonomiskt effektiv och långsiktigt hållbar transportförsörjning
A75: Fördelningsaspekter
A76: Målkonflikter
O78: Regionala mål
Z79: Alternativ 1 | BZ79: Alternativ 2 | CY79: Alternativ 3 | DX79: Alternativ 4 | EW79: Alternativ 5
A80: Mål A etc | FU80: Beskriv effekterna i ord
A82: Sammanvägt regionala mål
A83: Målkonflikter
O85: Lokala mål
Z86: Alternativ 1 | BZ86: Alternativ 2 | CY86: Alternativ 3 | DX86: Alternativ 4 | EW86: Alternativ 5
A87: Mål A etc | FU87: Beskriv effekterna i ord
A89: Sammanvägt regionala mål
A90: Målkonflikter
A92: Slutligt bedömd sammanvägd lönsamhet
A94: Slutligt bedömd sammanvägd lönsamhet | Z94: Ej bedömt | AV94: Motivera bedömning
A95: Kvalitetsbedömning av Samhällskonomisk analys

Sheet Viltstängsel
A1: Viltstängsel ENVA 2020:1
A3: INDATA | AW3: Alternativ 2 | BV3: Alternativ 3 | CU3: Alternativ 4 | DT3: Alternativ 5
A4: Åtgärd | X4: Viltstängsel
A6: BASVÄGNÄT | AW6: ALTERNATIV 2 | BV6: ALTERNATIV 2 | CU6: ALTERNATIV 2 | DT6: ALTERNATIV 2
A7: Vägtyp | X7: 2 körfält
A8: Vägbredd | X8: >11,5 m
A9: Hastighet | X9: 100
A10: ATK
A12: UTREDNINGSVÄGNÄT
A13: Vägtyp
A14: Vägbredd
A15: Trafikavskiljare
A16: Hastighet
A17: ATK
A19: GENERELLA KALKYLPARAMETRAR
A20: Län | X20: Västernorrland
A21: Väglängd (i km) | X21: 1
A22: ÅDT (2017) | X22: 1999
A23: Trafiktillväxt till 2014-2040 | X23: 1
A24: Trafiktillväxt till 2014-2060 | X24: =X23 -> 1
A25: Kalkylperiod | X25: 15
X26: Kostnad | AW26: Kostnad | BV26: Kostnad | CU26: Kostnad | DT26: Kostnad
A27: Investeringskostnad i mkr (2017)
A29: RESULTAT | AW29: Alternativ 2 | BV29: Alternativ 3 | CU29: Alternativ 4 | DT29: Alternativ 5
X30: NUVÄRDE i miljoner SEK | AC30: Exempel på effekter 2020 | AW30: NUVÄRDE i miljoner SEK | BB30: Exempel på effekter 2025 | BV30: NUVÄRDE i miljoner SEK | CA30: Exempel på effekter 2025 | CU30: NUVÄRDE i miljoner SEK | CZ30: Exempel på effekter 2025 | DT30: NUVÄRDE i miljoner SEK | DY30: Exempel på effekter 2025
A31: Restid | X31: ='Beräkning-vilt'!R158*$X$21 -> 0
A32: Fordonskostnader | X32: ='Beräkning-vilt'!U158*X21 -> 0
A33: Luftföroreningar | X33: ='Beräkning-vilt'!AE158*X21 -> 0
A34: Godskostnad | X34: ='Beräkning-vilt'!AJ158*X21 -> 0
A35: Drift och underhåll | X35: ='Beräkning-vilt'!AK158*X21 -> 0
A36: Trafiksäkerhet | X36: ='Beräkning-vilt'!AL158 -> 1.142187458 | AC36: =+CONCATENATE("Döda: ",ROUND('Beräkning-vilt'!AA26,4)," D") -> Döda: -0,0001 D
AC37: =+CONCATENATE("Döda och svårt skadade: ",ROUND('Beräkning-vilt'!AA26+'Beräkning-vilt'!AB26,4)," DSS/km") -> Döda och svårt skadade: -0,0014 DSS/km
A38: Samhällsekonomisk investeringskostnad | X38: ='Indata+ber. investeringskostnad'!L32 -> 0
A40: Nettonuvärde | X40: =SUM(X31:AU36)-X38 -> 1.142187458
A41: Nettonuvärdeskvot | X41: =IF((X40/(X38-X35))>0,X40/(X38-X35),"Negativ=ej lönsam") -> 
A43: NNK 30% högre investeringskostnad | X43: =IF((X36-(X38*1.3))/((X38*1.3)-X35)>0,(X36-(X38*1.3))/((X38*1.3)-X35),"Negativ=ej lönsam") -> 
A49: Effekter som inte ingår i beräkningen av nettonuvärde men som ingår i den sammanvägda bedömningen | X49: Alternativ 1 | AW49: Alternativ 2 | BV49: Alternativ 3 | CU49: Alternativ 4 | DT49: Alternativ 5 | ER49: Beskrivningen av effekter i ord görs lämpligen med ord som:
X50: Bedömning | AC50: Kort beskrivning | AW50: Bedömning | BB50: Kort beskrivning | BV50: Bedömning | CA50: Kort beskrivning | CU50: Bedömning | CZ50: Kort beskrivning | DT50: Bedömning | DY50: Kort beskrivning | ER50: · Obetydligt/lågt, Stort samt Mycket stort positivt bidrag till måluppfyllelse alternativt Obetydligt/lågt, Stort, Mycket stort negativt bidrag till måluppfyllelse. Om man använder en skaka med olika valörer (Obetydligt/lågt, Stort, Mycket stort) är det viktigt att ange vad bedömningen är relaterad till, se* i tabellen nedan.
A51: Resenärer | X51: Ej bedömt | AW51: Ej bedömt | BV51: Ej bedömt | CU51: Ej bedömt | DT51: Ej bedömt
A52: Godstransporter | X52: Ej bedömt | AW52: Ej bedömt | BV52: Ej bedömt | CU52: Ej bedömt | DT52: Ej bedömt
A53: Persontransportföretag | X53: Ej bedömt | AW53: Ej bedömt | BV53: Ej bedömt | CU53: Ej bedömt | DT53: Ej bedömt
A54: Trafiksäkerhet | X54: Ej bedömt | AW54: Ej bedömt | BV54: Ej bedömt | CU54: Ej bedömt | DT54: Ej bedömt
A55: Klimat | X55: Ej bedömt | AW55: Ej bedömt | BV55: Ej bedömt | CU55: Ej bedömt | DT55: Ej bedömt
A56: Hälsa | X56: Ej bedömt | AW56: Ej bedömt | BV56: Ej bedömt | CU56: Ej bedömt | DT56: Ej bedömt
A57: Landskap | X57: Ej bedömt | AW57: Ej bedömt | BV57: Ej bedömt | CU57: Ej bedömt | DT57: Ej bedömt
A58: Drift och underhåll | X58: Ej bedömt | AW58: Ej bedömt | BV58: Ej bedömt | CU58: Ej bedömt | DT58: Ej bedömt
A59: Övrigt | X59: Ej bedömt | AW59: Ej bedömt | BV59: Ej bedömt | CU59: Ej bedömt | DT59: Ej bedömt
A60: Sammanvägd bedömning av ej beräknade effekter | X60: Ej bedömt | AW60: Ej bedömt | BV60: Ej bedömt | CU60: Ej bedömt | DT60: Ej bedömt
A61: Sammanvägd samhällsekonomisk lönsamhet (både prissatta och ej beräknade) | X61: Ej bedömt | AW61: Ej bedömt | BV61: Ej bedömt | CU61: Ej bedömt | DT61: Ej bedömt
ER62: · Konkret effekt (förändring av kvalitet) kopplat till vilken funktion som avses, t ex ”Genare väg till och från station och centrum” eller ”Minskat behov av avstängning vid underhåll av plattform”.
A63: Transportpolitisk målanalys - Hastighetssänkning
O64: Bedömd måluppfyllelse relativt: | AP64: *Relativt de andra paketen/de andra åtgärderna/annat
O65: ÅVS mål | Z65: Alternativ 1 | AW65: Alternativ 2 | BV65: Alternativ 3 | CU65: Alternativ 4 | DT65: Alternativ 5
A66: Bidrag till funktionsmålet | B66: Medborgarnas resor | ER66: · Utöver beskrivningen i ord kan även färgmarkeringar användas.
B67: Näringslivets transporter | ER67: Fler rader och kan läggas till.
B68: Tillgänglighet regionalt/länder
B69: Jämställdhet
B70: Funktionshindrade
B71: Barn och unga
B72: Kollektivtrafik, gång och cykel
A73: Bidrag till hänsyns målet | B73: Klimat
B74: Hälsa
B75: Landskap
B76: Trafiksäkerhet
A77: Bidrag till en samhällsekonomiskt effektiv och långsiktigt hållbar transportförsörjning
A78: Fördelningsaspekter
A79: Målkonflikter
O81: Regionala mål
Z82: Alternativ 1 | AW82: Alternativ 2 | BV82: Alternativ 3 | CU82: Alternativ 4 | DT82: Alternativ 5
A83: Mål A etc | ER83: Beskriv effekterna i ord
A85: Sammanvägt regionala mål
A86: Målkonflikter
O88: Lokala mål
Z89: Alternativ 1 | AW89: Alternativ 2 | BV89: Alternativ 3 | CU89: Alternativ 4 | DT89: Alternativ 5
A90: Mål A etc | ER90: Beskriv effekterna i ord
A92: Sammanvägt regionala mål
A93: Målkonflikter
A95: Slutligt bedömd sammanvägd lönsamhet
A97: Slutligt bedömd sammanvägd lönsamhet | Z97: Ej bedömt | AV97: Motivera bedömning
A98: Kvalitetsbedömning av Samhällskonomisk analys

Sheet Indata bas (hidden)
L4: Effekter bas
L5: =COLUMN() -> 12 | M5: =COLUMN() -> 13 | N5: =COLUMN() -> 14 | O5: =COLUMN() -> 15 | P5: =COLUMN() -> 16 | Q5: =COLUMN() -> 17 | R5: =COLUMN() -> 18 | S5: =COLUMN() -> 19 | T5: =COLUMN() -> 20 | U5: =COLUMN() -> 21 | V5: =COLUMN() -> 22 | W5: =COLUMN() -> 23 | X5: =COLUMN() -> 24 | Y5: =COLUMN() -> 25 | Z5: =COLUMN() -> 26 | AA5: =COLUMN() -> 27 | AB5: =COLUMN() -> 28 | AC5: =COLUMN() -> 29 | AD5: =COLUMN() -> 30 | AE5: =COLUMN() -> 31 | AF5: =COLUMN() -> 32 | AG5: =COLUMN() -> 33 | AH5: =COLUMN() -> 34 | AI5: =COLUMN() -> 35 | AJ5: =COLUMN() -> 36 | AK5: =COLUMN() -> 37 | AL5: =COLUMN() -> 38
L6: Trafikarbete (Mfkm/år) | O6: Restid ktim/år | R6: Fordonskostnader Mkr/år | U6: Bränsleförbrukning | X6: Antal dödade och skadade | AI6: Från sjukvårdsrapporter (uppräknat för bortfall)
B7: Åtgärd | C7: Vägtyp | D7: Vägbredd | E7: Hastighet | F7: ATK | G7: ÅDT | H7: Traf.tillv. | I7: År | L7: P-bil | M7: L-bil | N7: Totalt | O7: P-bil | P7: L-bil | Q7: Totalt | R7: P-bil | S7: L-bil | T7: Totalt | U7: m3 | V7: Bensin | W7: Diesel | X7: Dödade | Y7: Svårt | Z7: Lindrigt | AA7: Totalt sk | AB7: Kväveoxid (kg) | AC7: Kolväten (kg) | AD7: Koldioxid (kg) | AE7: Svaveldioxid (kg) | AF7: Partiklar (kg) | AG7: Godskostnader (mkr) | AH7: D&U-kostnader (mkr) | AI7: MAS | AJ7: AS | AK7: EAS | AL7: EO
A8: =CONCATENATE(B8,C8,D8,E8,F8,G8,H8,I8) -> Hastighetssänkning 90 till 702 körfält10,1-11,5 m3000Ingen2014 | B8: Hastighetssänkning 90 till 70 | C8: 2 körfält | D8: 10,1-11,5 m | G8: 3000 | H8: Ingen | I8: 2014 | L8: 1.0074 | M8: 0.0876 | N8: =SUM(L8:M8) -> 1.095 | O8: 11.38705026 | P8: 1.077973974 | Q8: =SUM(O8:P8) -> 12.46502423 | R8: 0.9960802889 | S8: 0.4931652569 | T8: =SUM(R8:S8) -> 1.489245546 | U8: 75.25590549 | V8: 31.67520539 | W8: 43.5807001 | X8: 0.006325506155 | Y8: 0.04408741511 | Z8: 0.2327628465 | AA8: =SUM(Y8:Z8) -> 0.2768502616 | AB8: 1308.902602 | AC8: 104.9893683 | AD8: 175338.5971 | AE8: 0.8084191856 | AF8: 32.44414277 | AG8: 0.0224547652 | AH8: 0.1954224936 | AI8: 0.007533425973 | AJ8: 0.03283909557 | AK8: 0.2364777401 | AL8: 3.119112585
A9: Hastighetssänkning 90 till 702 körfält10,1-11,5 m3000Ingen2040 | B9: Hastighetssänkning 90 till 70 | C9: 2 körfält | D9: 10,1-11,5 m | G9: 3000 | H9: Ingen | I9: 2040 | L9: 1.0074 | M9: 0.0876 | N9: 1.095 | O9: 11.38705026 | P9: 1.077973974 | Q9: 12.46502423 | R9: 0.996199354 | S9: 0.493206502 | T9: 1.489405856 | U9: 44.66607473 | V9: 16.66706607 | W9: 27.99900866 | X9: 0.003740875465 | Y9: 0.03394921182 | Z9: 0.2327628465 | AA9: 0.2667120583 | AB9: 170.497736 | AC9: 11.94983826 | AD9: 104605.0772 | AE9: 0.4724601256 | AF9: 2.731543682 | AG9: 0.0224547652 | AH9: 0.1954224936 | AI9: 0.006668133219 | AJ9: 0.03049370544 | AK9: 0.2295502197 | AL9: 3.285426917
A10: Hastighetssänkning 90 till 702 körfält10,1-11,5 m3000Ingen2060 | B10: Hastighetssänkning 90 till 70 | C10: 2 körfält | D10: 10,1-11,5 m | G10: 3000 | H10: Ingen | I10: 2060 | L10: 1.0074 | M10: 0.0876 | N10: 1.095 | O10: 11.38705026 | P10: 1.077973974 | Q10: 12.46502423 | R10: 0.996199354 | S10: 0.493206502 | T10: 1.489405856 | U10: 44.66607473 | V10: 16.66706607 | W10: 27.99900866 | X10: 0.002497438282 | Y10: 0.02776729587 | Z10: 0.2327628465 | AA10: 0.2605301424 | AB10: 170.497736 | AC10: 11.94983826 | AD10: 104605.0772 | AE10: 0.4724601256 | AF10: 2.731543682 | AG10: 0.0224547652 | AH10: 0.1954224936 | AI10: 0.006140508459 | AJ10: 0.02906356992 | AK10: 0.225326064 | AL10: 3.419371137
A11: =CONCATENATE(B11,C11,D11,E11,F11,G11,H11,I11) -> Hastighetssänkning 90 till 702 körfält8-10 m3000Ingen2014 | B11: Hastighetssänkning 90 till 70 | C11: 2 körfält | D11: 8-10 m | G11: 3000 | H11: Ingen | I11: 2014 | L11: 1.0074 | M11: 0.0876 | N11: 1.095 | O11: 11.27356853 | P11: 1.05889167 | Q11: 12.3324602 | R11: 0.9962169911 | S11: 0.4930852763 | T11: 1.489302267 | U11: 75.88878261 | V11: 31.88051935 | W11: 44.00826327 | X11: 0.005904175664 | Y11: 0.0527124373 | Z11: 0.234387138 | AA11: 0.2870995753 | AB11: 1458.595532 | AC11: 116.0512824 | AD11: 176822.7841 | AE11: 0.814957084 | AF11: 30.05181611 | AG11: 0.02205012033 | AH11: 0.1954224936 | AI11: 0.008373011554 | AJ11: 0.03525983281 | AK11: 0.2434667309 | AL11: 3.193085695
A12: Hastighetssänkning 90 till 702 körfält8-10 m3000Ingen2040 | B12: Hastighetssänkning 90 till 70 | C12: 2 körfält | D12: 8-10 m | G12: 3000 | H12: Ingen | I12: 2040 | L12: 1.0074 | M12: 0.0876 | N12: 1.095 | O12: 11.27356853 | P12: 1.05889167 | Q12: 12.3324602 | R12: 0.9963360537 | S12: 0.4931267641 | T12: 1.489462818 | U12: 45.06996441 | V12: 16.78016211 | W12: 28.2898023 | X12: 0.003491702536 | Y12: 0.04059085104 | Z12: 0.234387138 | AA12: 0.274977989 | AB12: 188.2587681 | AC12: 12.53295923 | AD12: 105556.213 | AE12: 0.4765657421 | AF12: 2.388724077 | AG12: 0.02205012033 | AH12: 0.1954224936 | AI12: 0.007322331081 | AJ12: 0.03240401668 | AK12: 0.2352516413 | AL12: 3.36334435
A13: Hastighetssänkning 90 till 702 körfält8-10 m3000Ingen2060 | B13: Hastighetssänkning 90 till 70 | C13: 2 körfält | D13: 8-10 m | G13: 3000 | H13: Ingen | I13: 2060 | L13: 1.0074 | M13: 0.0876 | N13: 1.095 | O13: 11.27356853 | P13: 1.05889167 | Q13: 12.3324602 | R13: 0.9963360537 | S13: 0.4931267641 | T13: 1.489462818 | U13: 45.06996441 | V13: 16.78016211 | W13: 28.2898023 | X13: 0.002331088448 | Y13: 0.03319953867 | Z13: 0.234387138 | AA13: 0.2675866767 | AB13: 188.2587681 | AC13: 12.53295923 | AD13: 105556.213 | AE13: 0.4765657421 | AF13: 2.388724077 | AG13: 0.02205012033 | AH13: 0.1954224936 | AI13: 0.00668166348 | AJ13: 0.03066264153 | AK13: 0.2302423717 | AL13: 3.500465201
A14: =CONCATENATE(B14,C14,D14,E14,F14,G14,H14,I14) -> Hastighetssänkning 90 till 702 körfält6,7-7,9 m6000Hög2014 | B14: Hastighetssänkning 90 till 70 | C14: 2 körfält | D14: 6,7-7,9 m | G14: 6000 | H14: Hög | I14: 2014 | L14: 2.0148 | M14: 0.1752 | N14: =SUM(L14:M14) -> 2.19 | O14: 23.30549204 | P14: 2.16653403 | Q14: =SUM(O14:P14) -> 25.47202607 | R14: 1.973158066 | S14: 0.9828902294 | T14: =SUM(R14:S14) -> 2.956048295 | U14: 148.9625875 | V14: 62.41021067 | W14: 86.55237685 | X14: 0.009537036892 | Y14: 0.09929070527 | Z14: 0.5010116897 | AA14: =SUM(Y14:Z14) -> 0.600302395 | AB14: 2917.149559 | AC14: 232.1035253 | AD14: 347141.3282 | AE14: 1.599211622 | AF14: 60.09729543 | AG14: 0.04523739583 | AH14: 0.2905640773 | AI14: 0.01820370079 | AJ14: 0.07953300492 | AK14: 0.5025656893 | AL14: 5.430791233
A15: Hastighetssänkning 90 till 702 körfält6,7-7,9 m6000Hög2040 | B15: Hastighetssänkning 90 till 70 | C15: 2 körfält | D15: 6,7-7,9 m | G15: 6000 | H15: Hög | I15: 2040 | L15: 2.92146 | M15: 0.30514 | N15: 3.2266 | O15: 34.55026975 | P15: 3.810516848 | Q15: 38.3607866 | R15: 2.86062579 | S15: 1.712337421 | T15: 4.572963211 | U15: 137.4537455 | V15: 46.88613219 | W15: 90.56761335 | X15: 0.008260067037 | Y15: 0.1122863019 | Z15: 0.7251174616 | AA15: 0.8374037635 | AB15: 376.4947967 | AC15: 25.06749604 | AD15: 323032.5341 | AE15: 1.438868738 | AF15: 4.776966295 | AG15: 0.07945543274 | AH15: 0.3875192277 | AI15: 0.02405662717 | AJ15: 0.1102473528 | AK15: 0.7030997835 | AL15: 7.85041299
A16: Hastighetssänkning 90 till 702 körfält6,7-7,9 m6000Hög2060 | B16: Hastighetssänkning 90 till 70 | C16: 2 körfält | D16: 6,7-7,9 m | G16: 6000 | H16: Hög | I16: 2060 | L16: 3.26383 | M16: 0.40661 | N16: 3.67044 | O16: 39.02357741 | P16: 5.100714145 | Q16: 44.12429156 | R16: 3.195444167 | S16: 2.281961328 | T16: 5.477405495 | U16: 166.3338824 | V16: 52.0025553 | W16: 114.3313271 | X16: 0.006327487453 | Y16: 0.1054608458 | Z16: 0.8292860218 | AA16: 0.9347468676 | AB16: 376.4947967 | AC16: 25.06749604 | AD16: 392106.7575 | AE16: 1.724937551 | AF16: 4.776966295 | AG16: 0.106291659 | AH16: 0.4279265718 | AI16: 0.02556311207 | AJ16: 0.1212336129 | AK16: 0.7879501426 | AL16: 9.200918441
A17: =CONCATENATE(B17,C17,D17,E17,F17,G17,H17,I17) -> Hastighetssänkning 90 till 702 körfält6,7-7,9 m6000Riket2014 | B17: Hastighetssänkning 90 till 70 | C17: 2 körfält | D17: 6,7-7,9 m | G17: 6000 | H17: Riket | I17: 2014 | L17: 2.0148 | M17: 0.1752 | N17: 2.19 | O17: 23.30549204 | P17: 2.16653403 | Q17: 25.47202607 | R17: 1.973158066 | S17: 0.9828902294 | T17: 2.956048295 | U17: 148.9625875 | V17: 62.41021067 | W17: 86.55237685 | X17: 0.009537036892 | Y17: 0.09929070527 | Z17: 0.5010116897 | AA17: 0.600302395 | AB17: 2917.149559 | AC17: 232.1035253 | AD17: 347141.3282 | AE17: 1.599211622 | AF17: 60.09729543 | AG17: 0.04523739583 | AH17: 0.2905640773 | AI17: 0.01820370079 | AJ17: 0.07953300492 | AK17: 0.5025656893 | AL17: 5.430791233
A18: Hastighetssänkning 90 till 702 körfält6,7-7,9 m6000Riket2040 | B18: Hastighetssänkning 90 till 70 | C18: 2 körfält | D18: 6,7-7,9 m | G18: 6000 | H18: Riket | I18: 2040 | L18: 2.61924 | M18: 0.26134 | N18: 2.88058 | O18: 30.74706453 | P18: 3.252042519 | Q18: 33.99910705 | R18: 2.564934439 | S18: 1.46644447 | T18: 4.031378909 | U18: 121.1389203 | V18: 42.24378806 | W18: 78.89513228 | X18: 0.00738464298 | Y18: 0.1003145614 | Z18: 0.6502340449 | AA18: 0.7505486063 | AB18: 376.4947967 | AC18: 25.06749604 | AD18: 284453.6161 | AE18: 1.271227022 | AF18: 4.776966295 | AG18: 0.06784363054 | AH18: 0.3581261059 | AI18: 0.02140655195 | AJ18: 0.09810251733 | AK18: 0.631039537 | AL18: 7.138672528
A19: Hastighetssänkning 90 till 702 körfält6,7-7,9 m6000Riket2060 | B19: Hastighetssänkning 90 till 70 | C19: 2 körfält | D19: 6,7-7,9 m | G19: 6000 | H19: Riket | I19: 2060 | L19: 2.840795 | M19: 0.32923 | N19: 3.170025 | O19: 33.58804429 | P19: 4.109015794 | Q19: 37.69706009 | R19: 2.781648872 | S19: 1.847500958 | T19: 4.62914983 | U19: 140.4072695 | V19: 45.59898784 | W19: 94.80828169 | X19: 0.00546263755 | Y19: 0.09097106096 | Z19: 0.7184741216 | AA19: 0.8094451826 | AB19: 376.4947967 | AC19: 25.06749604 | AD19: 330551.1147 | AE19: 1.461865127 | AF19: 4.776966295 | AG19: 0.08568629076 | AH19: 0.3849240418 | AI19: 0.02194969633 | AJ19: 0.1040969105 | AK19: 0.6833985758 | AL19: 8.104751155
A20: =CONCATENATE(B20,C20,D20,E20,F20,G20,H20,I20) -> Hastighetssänkning 90 till 702 körfält6,7-7,9 m6000Ingen2014 | B20: Hastighetssänkning 90 till 70 | C20: 2 körfält | D20: 6,7-7,9 m | G20: 6000 | H20: Ingen | I20: 2014 | L20: 2.0148 | M20: 0.1752 | N20: 2.19 | O20: 23.30549204 | P20: 2.16653403 | Q20: 25.47202607 | R20: 1.973158066 | S20: 0.9828902294 | T20: 2.956048295 | U20: 148.9625875 | V20: 62.41021067 | W20: 86.55237685 | X20: 0.009537036892 | Y20: 0.09929070527 | Z20: 0.5010116897 | AA20: 0.600302395 | AB20: 2917.149559 | AC20: 232.1035253 | AD20: 347141.3282 | AE20: 1.599211622 | AF20: 60.09729543 | AG20: 0.04523739583 | AH20: 0.2905640773 | AI20: 0.01820370079 | AJ20: 0.07953300492 | AK20: 0.5025656893 | AL20: 5.430791233
A21: Hastighetssänkning 90 till 702 körfält6,7-7,9 m6000Ingen2040 | B21: Hastighetssänkning 90 till 70 | C21: 2 körfält | D21: 6,7-7,9 m | G21: 6000 | H21: Ingen | I21: 2040 | L21: 2.0148 | M21: 0.1752 | N21: 2.19 | O21: 23.30549204 | P21: 2.16653403 | Q21: 25.47202607 | R21: 1.973396174 | S21: 0.9829725947 | T21: 2.956368768 | U21: 88.46940546 | V21: 32.81648477 | W21: 55.6529207 | X21: 0.005640160083 | Y21: 0.07645812704 | Z21: 0.5010116897 | AA21: 0.5774698167 | AB21: 376.4947967 | AC21: 25.06749604 | AD21: 207239.7969 | AE21: 0.9351265311 | AF21: 4.776966295 | AG21: 0.04523739583 | AH21: 0.2905640773 | AI21: 0.01612567022 | AJ21: 0.07390115167 | AK21: 0.4874429949 | AL21: 5.720366676
A22: Hastighetssänkning 90 till 702 körfält6,7-7,9 m6000Ingen2060 | B22: Hastighetssänkning 90 till 70 | C22: 2 körfält | D22: 6,7-7,9 m | G22: 6000 | H22: Ingen | I22: 2060 | L22: 2.0148 | M22: 0.1752 | N22: 2.19 | O22: 23.30549204 | P22: 2.16653403 | Q22: 25.47202607 | R22: 1.973396174 | S22: 0.9829725947 | T22: 2.956368768 | U22: 88.46940546 | V22: 32.81648477 | W22: 55.6529207 | X22: 0.003765415834 | Y22: 0.06253563254 | Z22: 0.5010116897 | AA22: 0.5635473222 | AB22: 376.4947967 | AC22: 25.06749604 | AD22: 207239.7969 | AE22: 0.9351265311 | AF22: 4.776966295 | AG22: 0.04523739583 | AH22: 0.2905640773 | AI22: 0.01485856105 | AJ22: 0.07046704777 | AK22: 0.4782217134 | AL22: 5.953581438
A23: =CONCATENATE(B23,C23,D23,E23,F23,G23,H23,I23) -> Hastighetssänkning 90 till 702 körfält6,7-7,9 m5500Hög2014 | B23: Hastighetssänkning 90 till 70 | C23: 2 körfält | D23: 6,7-7,9 m | G23: 5500 | H23: Hög | I23: 2014 | L23: 1.8469 | M23: 0.1606 | N23: 2.0075 | O23: 21.29183864 | P23: 1.982777978 | Q23: 23.27461662 | R23: 1.808807024 | S23: 0.9009552124 | T23: 2.709762237 | U23: 136.783395 | V23: 57.33209707 | W23: 79.45129792 | X23: 0.008786419134 | Y23: 0.09140717825 | Z23: 0.4630396456 | AA23: 0.5544468238 | AB23: 2674.073318 | AC23: 212.7611123 | AD23: 318751.0869 | AE23: 1.468529355 | AF23: 55.09217315 | AG23: 0.04140986282 | AH23: 0.2751125473 | AI23: 0.01668672572 | AJ23: 0.07290525451 | AK23: 0.4648548436 | AL23: 5.088150317
A24: Hastighetssänkning 90 till 702 körfält6,7-7,9 m5500Hög2040 | B24: Hastighetssänkning 90 till 70 | C24: 2 körfält | D24: 6,7-7,9 m | G24: 5500 | H24: Hög | I24: 2040 | L24: 2.678005 | M24: 0.27959 | N24: 2.957595 | O24: 31.49780373 | P24: 3.481890727 | Q24: 34.97969446 | R24: 2.622417837 | S24: 1.568874227 | T24: 4.191292064 | U24: 126.307629 | V24: 43.13596882 | W24: 83.17166022 | X24: 0.007597299107 | Y24: 0.1032227108 | Z24: 0.6684245633 | AA24: 0.7716472741 | AB24: 345.1309443 | AC24: 22.97779474 | AD24: 296820.984 | AE24: 1.322336616 | AF24: 4.379112805 | AG24: 0.07263067783 | AH24: 0.3652954271 | AI24: 0.02205030251 | AJ24: 0.1010527146 | AK24: 0.648544257 | AL24: 7.311566988
A25: Hastighetssänkning 90 till 702 körfält6,7-7,9 m5500Hög2060 | B25: Hastighetssänkning 90 till 70 | C25: 2 körfält | D25: 6,7-7,9 m | G25: 5500 | H25: Hög | I25: 2060 | L25: 2.991905 | M25: 0.3723 | N25: 3.364205 | O25: 35.54913934 | P25: 4.655765871 | Q25: 40.20490521 | R25: 2.929437063 | S25: 2.089274968 | T25: 5.018712031 | U25: 152.8276172 | V25: 47.86800947 | W25: 104.9596077 | X25: 0.005816474903 | Y25: 0.09689928861 | Z25: 0.7638107624 | AA25: 0.860710051 | AB25: 345.1309443 | AC25: 22.97779474 | AD25: 360239.8657 | AE25: 1.585126729 | AF25: 4.379112805 | AG25: 0.09706129184 | AH25: 0.4025895765 | AI25: 0.02342805859 | AJ25: 0.1111080756 | AK25: 0.7261739169 | AL25: 8.55322774
A26: =CONCATENATE(B26,C26,D26,E26,F26,G26,H26,I26) -> Hastighetssänkning 90 till 702 körfält6,7-7,9 m5500Riket2014 | B26: Hastighetssänkning 90 till 70 | C26: 2 körfält | D26: 6,7-7,9 m | G26: 5500 | H26: Riket | I26: 2014 | L26: 1.8469 | M26: 0.1606 | N26: 2.0075 | O26: 21.29183864 | P26: 1.982777978 | Q26: 23.27461662 | R26: 1.808807024 | S26: 0.9009552124 | T26: 2.709762237 | U26: 136.783395 | V26: 57.33209707 | W26: 79.45129792 | X26: 0.008786419134 | Y26: 0.09140717825 | Z26: 0.4630396456 | AA26: 0.5544468238 | AB26: 2674.073318 | AC26: 212.7611123 | AD26: 318751.0869 | AE26: 1.468529355 | AF26: 55.09217315 | AG26: 0.04140986282 | AH26: 0.2751125473 | AI26: 0.01668672572 | AJ26: 0.07290525451 | AK26: 0.4648548436 | AL26: 5.088150317
A27: Hastighetssänkning 90 till 702 körfält6,7-7,9 m5500Riket2040 | B27: Hastighetssänkning 90 till 70 | C27: 2 körfält | D27: 6,7-7,9 m | G27: 5500 | H27: Riket | I27: 2040 | L27: 2.40097 | M27: 0.23944 | N27: 2.64041 | O27: 28.0521441 | P27: 2.972800632 | Q27: 31.02494473 | R27: 2.351329185 | S27: 1.343498818 | T27: 3.694828003 | U27: 111.2721132 | V27: 38.84539039 | W27: 72.42672276 | X27: 0.006794827055 | Y27: 0.09224861537 | Z27: 0.5997814313 | AA27: 0.6920300467 | AB27: 345.1309443 | AC27: 22.97779474 | AD27: 261271.408 | AE27: 1.167807899 | AF27: 4.379112805 | AG27: 0.06203769501 | AH27: 0.3302116012 | AI27: 0.01962106689 | AJ27: 0.08991994879 | AK27: 0.582489031 | AL27: 6.659138232
A28: Hastighetssänkning 90 till 702 körfält6,7-7,9 m5500Riket2060 | B28: Hastighetssänkning 90 till 70 | C28: 2 körfält | D28: 6,7-7,9 m | G28: 5500 | H28: Riket | I28: 2060 | L28: 2.604275 | M28: 0.30222 | N28: 2.906495 | O28: 30.62426149 | P28: 3.761768265 | Q28: 34.38602975 | R28: 2.550224821 | S28: 1.695841533 | T28: 4.246066354 | U28: 129.1303591 | V28: 41.95415375 | W28: 87.17620537 | X28: 0.005026404631 | Y28: 0.08366236946 | Z28: 0.6625802626 | AA28: 0.7462426321 | AB28: 345.1309443 | AC28: 22.97779474 | AD28: 303994.2266 | AE28: 1.34447953 | AF28: 4.379112805 | AG28: 0.07847446847 | AH28: 0.3629941728 | AI28: 0.02012707845 | AJ28: 0.09545310572 | AK28: 0.6306624479 | AL28: 7.551841046
A29: =CONCATENATE(B29,C29,D29,E29,F29,G29,H29,I29) -> Hastighetssänkning 90 till 702 körfält6,7-7,9 m5500Ingen2014 | B29: Hastighetssänkning 90 till 70 | C29: 2 körfält | D29: 6,7-7,9 m | G29: 5500 | H29: Ingen | I29: 2014 | L29: 1.8469 | M29: 0.1606 | N29: 2.0075 | O29: 21.29183864 | P29: 1.982777978 | Q29: 23.27461662 | R29: 1.808807024 | S29: 0.9009552124 | T29: 2.709762237 | U29: 136.783395 | V29: 57.33209707 | W29: 79.45129792 | X29: 0.008786419134 | Y29: 0.09140717825 | Z29: 0.4630396456 | AA29: 0.5544468238 | AB29: 2674.073318 | AC29: 212.7611123 | AD29: 318751.0869 | AE29: 1.468529355 | AF29: 55.09217315 | AG29: 0.04140986282 | AH29: 0.2751125473 | AI29: 0.01668672572 | AJ29: 0.07290525451 | AK29: 0.4648548436 | AL29: 5.088150317
A30: Hastighetssänkning 90 till 702 körfält6,7-7,9 m5500Ingen2040 | B30: Hastighetssänkning 90 till 70 | C30: 2 körfält | D30: 6,7-7,9 m | G30: 5500 | H30: Ingen | I30: 2040 | L30: 1.8469 | M30: 0.1606 | N30: 2.0075 | O30: 21.29183864 | P30: 1.982777978 | Q30: 23.27461662 | R30: 1.809025288 | S30: 0.9010307639 | T30: 2.710056052 | U30: 81.23317597 | V30: 30.14938685 | W30: 51.08378912 | X30: 0.005196248168 | Y30: 0.07038747109 | Z30: 0.4630396456 | AA30: 0.5334271166 | AB30: 345.1309443 | AC30: 22.97779474 | AD30: 190283.3176 | AE30: 0.8586868514 | AF30: 4.379112805 | AG30: 0.04140986282 | AH30: 0.2751125473 | AI30: 0.01478186437 | AJ30: 0.06774272236 | AK30: 0.4509025299 | AL30: 5.359455791
A31: Hastighetssänkning 90 till 702 körfält6,7-7,9 m5500Ingen2060 | B31: Hastighetssänkning 90 till 70 | C31: 2 körfält | D31: 6,7-7,9 m | G31: 5500 | H31: Ingen | I31: 2060 | L31: 1.8469 | M31: 0.1606 | N31: 2.0075 | O31: 21.29183864 | P31: 1.982777978 | Q31: 23.27461662 | R31: 1.809025288 | S31: 0.9010307639 | T31: 2.710056052 | U31: 81.23317597 | V31: 30.14938685 | W31: 51.08378912 | X31: 0.0034690567 | Y31: 0.05757040092 | Z31: 0.4630396456 | AA31: 0.5206100465 | AB31: 345.1309443 | AC31: 22.97779474 | AD31: 190283.3176 | AE31: 0.8586868514 | AF31: 4.379112805 | AG31: 0.04140986282 | AH31: 0.2751125473 | AI31: 0.01362034763 | AJ31: 0.06459479379 | AK31: 0.4423949051 | AL31: 5.577956505
A32: =CONCATENATE(B32,C32,D32,E32,F32,G32,H32,I32) -> Hastighetssänkning 90 till 702 körfält8-10 m6000Hög2014 | B32: Hastighetssänkning 90 till 70 | C32: 2 körfält | D32: 8-10 m | G32: 6000 | H32: Hög | I32: 2014 | L32: 2.0148 | M32: 0.1752 | N32: 2.19 | O32: 22.85816855 | P32: 2.131077968 | Q32: 24.98924652 | R32: 1.973664318 | S32: 0.982656174 | T32: 2.956320492 | U32: 150.5595598 | V32: 63.19017722 | W32: 87.36938258 | X32: 0.01127872753 | Y32: 0.1007364937 | Z32: 0.423427116 | AA32: 0.5241636097 | AB32: 2917.149559 | AC32: 232.1035253 | AD32: 350827.0943 | AE32: 1.616670128 | AF32: 60.09729543 | AG32: 0.04434290556 | AH32: 0.2905640773 | AI32: 0.01674602311 | AJ32: 0.07051966563 | AK32: 0.4368979209 | AL32: 5.067071142
A33: Hastighetssänkning 90 till 702 körfält8-10 m6000Hög2040 | B33: Hastighetssänkning 90 till 70 | C33: 2 körfält | D33: 8-10 m | G33: 6000 | H33: Hög | I33: 2040 | L33: 2.92146 | M33: 0.30514 | N33: 3.2266 | O33: 33.88718499 | P33: 3.747032212 | Q33: 37.6342172 | R33: 2.861321733 | S33: 1.711764382 | T33: 4.573086115 | U33: 138.7502753 | V33: 47.49538987 | W33: 91.25488546 | X33: 0.009796685153 | Y33: 0.1139471762 | Z33: 0.6093750993 | AA33: 0.7233222755 | AB33: 376.4947967 | AC33: 25.06749604 | AD33: 326023.2279 | AE33: 1.452892945 | AF33: 4.776966295 | AG33: 0.07787515892 | AH33: 0.3875192277 | AI33: 0.021847227 | AJ33: 0.09668204022 | AK33: 0.6047930083 | AL33: 7.278875117
A34: Hastighetssänkning 90 till 702 körfält8-10 m6000Hög2060 | B34: Hastighetssänkning 90 till 70 | C34: 2 körfält | D34: 8-10 m | G34: 6000 | H34: Hög | I34: 2060 | L34: 3.26383 | M34: 0.40661 | N34: 3.67044 | O34: 38.2611734 | P34: 5.013297577 | Q34: 43.27447097 | R34: 3.196214938 | S34: 2.281158508 | T34: 5.477373446 | U34: 167.8841807 | V34: 52.68816015 | W34: 115.1960205 | X34: 0.007510549358 | Y34: 0.1070274549 | Z34: 0.6958072047 | AA34: 0.8028346597 | AB34: 376.4947967 | AC34: 25.06749604 | AD34: 395690.6385 | AE34: 1.741532675 | AF34: 4.776966295 | AG34: 0.1041402823 | AH34: 0.4279265718 | AI34: 0.0229906667 | AJ34: 0.105505848 | AK34: 0.674338145 | AL34: 8.514925809
A35: =CONCATENATE(B35,C35,D35,E35,F35,G35,H35,I35) -> Hastighetssänkning 90 till 702 körfält8-10 m6000Riket2014 | B35: Hastighetssänkning 90 till 70 | C35: 2 körfält | D35: 8-10 m | G35: 6000 | H35: Riket | I35: 2014 | L35: 2.0148 | M35: 0.1752 | N35: 2.19 | O35: 22.85816855 | P35: 2.131077968 | Q35: 24.98924652 | R35: 1.973664318 | S35: 0.982656174 | T35: 2.956320492 | U35: 150.5595598 | V35: 63.19017722 | W35: 87.36938258 | X35: 0.01127872753 | Y35: 0.1007364937 | Z35: 0.423427116 | AA35: 0.5241636097 | AB35: 2917.149559 | AC35: 232.1035253 | AD35: 350827.0943 | AE35: 1.616670128 | AF35: 60.09729543 | AG35: 0.04434290556 | AH35: 0.2905640773 | AI35: 0.01674602311 | AJ35: 0.07051966563 | AK35: 0.4368979209 | AL35: 5.067071142
A36: Hastighetssänkning 90 till 702 körfält8-10 m6000Riket2040 | B36: Hastighetssänkning 90 till 70 | C36: 2 körfält | D36: 8-10 m | G36: 6000 | H36: Riket | I36: 2040 | L36: 2.61924 | M36: 0.26134 | N36: 2.88058 | O36: 30.16543663 | P36: 3.199005818 | Q36: 33.36444245 | R36: 2.565560355 | S36: 1.465972257 | T36: 4.031532611 | U36: 122.2707709 | V36: 42.78604055 | W36: 79.48473033 | X36: 0.008751987425 | Y36: 0.1017924739 | Z36: 0.5472418477 | AA36: 0.6490343217 | AB36: 376.4947967 | AC36: 25.06749604 | AD36: 287062.5667 | AE36: 1.28351216 | AF36: 4.776966295 | AG36: 0.06651169298 | AH36: 0.3581261059 | AI36: 0.01944053903 | AJ36: 0.08603155801 | AK36: 0.5435622246 | AL36: 6.6300952
A37: Hastighetssänkning 90 till 702 körfält8-10 m6000Riket2060 | B37: Hastighetssänkning 90 till 70 | C37: 2 körfält | D37: 8-10 m | G37: 6000 | H37: Riket | I37: 2060 | L37: 2.840795 | M37: 0.32923 | N37: 3.170025 | O37: 32.94481557 | P37: 4.04071733 | Q37: 36.9855329 | R37: 2.782324499 | S37: 1.846885866 | T37: 4.629210366 | U37: 141.6996829 | V37: 46.19026681 | W37: 95.5094161 | X37: 0.006478470422 | Y37: 0.0923162256 | Z37: 0.6038629001 | AA37: 0.6961791257 | AB37: 376.4947967 | AC37: 25.06749604 | AD37: 333535.2631 | AE37: 1.475779943 | AF37: 4.776966295 | AG37: 0.08398427701 | AH37: 0.3849240418 | AI37: 0.01974087314 | AJ37: 0.0905923081 | AK37: 0.5858459445 | AL37: 7.515725455
A38: =CONCATENATE(B38,C38,D38,E38,F38,G38,H38,I38) -> Hastighetssänkning 90 till 702 körfält8-10 m6000Ingen2014 | B38: Hastighetssänkning 90 till 70 | C38: 2 körfält | D38: 8-10 m | G38: 6000 | H38: Ingen | I38: 2014 | L38: 2.0148 | M38: 0.1752 | N38: 2.19 | O38: 22.85816855 | P38: 2.131077968 | Q38: 24.98924652 | R38: 1.973664318 | S38: 0.982656174 | T38: 2.956320492 | U38: 150.5595598 | V38: 63.19017722 | W38: 87.36938258 | X38: 0.01127872753 | Y38: 0.1007364937 | Z38: 0.423427116 | AA38: 0.5241636097 | AB38: 2917.149559 | AC38: 232.1035253 | AD38: 350827.0943 | AE38: 1.616670128 | AF38: 60.09729543 | AG38: 0.04434290556 | AH38: 0.2905640773 | AI38: 0.01674602311 | AJ38: 0.07051966563 | AK38: 0.4368979209 | AL38: 5.067071142
A39: Hastighetssänkning 90 till 702 körfält8-10 m6000Ingen2040 | B39: Hastighetssänkning 90 till 70 | C39: 2 körfält | D39: 8-10 m | G39: 6000 | H39: Ingen | I39: 2040 | L39: 2.0148 | M39: 0.1752 | N39: 2.19 | O39: 22.85816855 | P39: 2.131077968 | Q39: 24.98924652 | R39: 1.973902416 | S39: 0.9827388575 | T39: 2.956641273 | U39: 89.41313215 | V39: 33.24612495 | W39: 56.1670072 | X39: 0.006670187976 | Y39: 0.07757144647 | Z39: 0.423427116 | AA39: 0.5009985625 | AB39: 376.4947967 | AC39: 25.06749604 | AD39: 209424.6093 | AE39: 0.9453255631 | AF39: 4.776966295 | AG39: 0.04434290556 | AH39: 0.2905640773 | AI39: 0.01464466216 | AJ39: 0.06480803337 | AK39: 0.4215458669 | AL39: 5.337252652
A40: Hastighetssänkning 90 till 702 körfält8-10 m6000Ingen2060 | B40: Hastighetssänkning 90 till 70 | C40: 2 körfält | D40: 8-10 m | G40: 6000 | H40: Ingen | I40: 2060 | L40: 2.0148 | M40: 0.1752 | N40: 2.19 | O40: 22.85816855 | P40: 2.131077968 | Q40: 24.98924652 | R40: 1.973902416 | S40: 0.9827388575 | T40: 2.956641273 | U40: 89.41313215 | V40: 33.24612495 | W40: 56.1670072 | X40: 0.004453070666 | Y40: 0.06344622423 | Z40: 0.423427116 | AA40: 0.4868733402 | AB40: 376.4947967 | AC40: 25.06749604 | AD40: 209424.6093 | AE40: 0.9453255631 | AF40: 4.776966295 | AG40: 0.04434290556 | AH40: 0.2905640773 | AI40: 0.01336332696 | AJ40: 0.06132528307 | AK40: 0.4121847302 | AL40: 5.554848162
A41: =CONCATENATE(B41,C41,D41,E41,F41,G41,H41,I41) -> Hastighetssänkning 90 till 702 körfält8-10 m5500Hög2014 | B41: Hastighetssänkning 90 till 70 | C41: 2 körfält | D41: 8-10 m | G41: 5500 | H41: Hög | I41: 2014 | L41: 1.8469 | M41: 0.1606 | N41: 2.0075 | O41: 20.88118511 | P41: 1.950242688 | Q41: 22.8314278 | R41: 1.809277087 | S41: 0.9007617171 | T41: 2.710038804 | U41: 138.2861242 | V41: 58.05301215 | W41: 80.23311207 | X41: 0.01038296889 | Y41: 0.09273248426 | Z41: 0.391920453 | AA41: 0.4846529373 | AB41: 2674.073318 | AC41: 212.7611123 | AD41: 322223.4764 | AE41: 1.484920078 | AF41: 55.09217315 | AG41: 0.0405885037 | AH41: 0.2751125473 | AI41: 0.01535052118 | AJ41: 0.06464302683 | AK41: 0.4046593893 | AL41: 4.754740234
A42: Hastighetssänkning 90 till 702 körfält8-10 m5500Hög2040 | B42: Hastighetssänkning 90 till 70 | C42: 2 körfält | D42: 8-10 m | G42: 5500 | H42: Hög | I42: 2040 | L42: 2.678005 | M42: 0.27959 | N42: 2.957595 | O42: 30.90000559 | P42: 3.424815245 | Q42: 34.32482084 | R42: 2.623056977 | S42: 1.568364499 | T42: 4.191421476 | U42: 127.481772 | V42: 43.69117911 | W42: 83.79059291 | X42: 0.009005763148 | Y42: 0.104745068 | Z42: 0.5623351234 | AA42: 0.6670801915 | AB42: 345.1309443 | AC42: 22.97779474 | AD42: 299528.7552 | AE42: 1.335051201 | AF42: 4.379112805 | AG42: 0.07120028826 | AH42: 0.3652954271 | AI42: 0.02002516649 | AJ42: 0.08861875022 | AK42: 0.5584362748 | AL42: 6.787695421
A43: Hastighetssänkning 90 till 702 körfält8-10 m5500Hög2060 | B43: Hastighetssänkning 90 till 70 | C43: 2 körfält | D43: 8-10 m | G43: 5500 | H43: Hög | I43: 2060 | L43: 2.991905 | M43: 0.3723 | N43: 3.364205 | O43: 34.86303194 | P43: 4.577407702 | Q43: 39.44043965 | R43: 2.930145736 | S43: 2.088563902 | T43: 5.018709637 | U43: 154.2284885 | V43: 48.49262455 | W43: 105.7358639 | X43: 0.006900726443 | Y43: 0.09833505317 | Z43: 0.6414802129 | AA43: 0.7398152661 | AB43: 345.1309443 | AC43: 22.97779474 | AD43: 363477.4082 | AE43: 1.600143201 | AF43: 4.379112805 | AG43: 0.0951184191 | AH43: 0.4025895765 | AI43: 0.02107046611 | AJ43: 0.0966939073 | AK43: 0.6220508927 | AL43: 7.924529811
A44: =CONCATENATE(B44,C44,D44,E44,F44,G44,H44,I44) -> Hastighetssänkning 90 till 702 körfält8-10 m5500Riket2014 | B44: Hastighetssänkning 90 till 70 | C44: 2 körfält | D44: 8-10 m | G44: 5500 | H44: Riket | I44: 2014 | L44: 1.8469 | M44: 0.1606 | N44: 2.0075 | O44: 20.88118511 | P44: 1.950242688 | Q44: 22.8314278 | R44: 1.809277087 | S44: 0.9007617171 | T44: 2.710038804 | U44: 138.2861242 | V44: 58.05301215 | W44: 80.23311207 | X44: 0.01038296889 | Y44: 0.09273248426 | Z44: 0.391920453 | AA44: 0.4846529373 | AB44: 2674.073318 | AC44: 212.7611123 | AD44: 322223.4764 | AE44: 1.484920078 | AF44: 55.09217315 | AG44: 0.0405885037 | AH44: 0.2751125473 | AI44: 0.01535052118 | AJ44: 0.06464302683 | AK44: 0.4046593893 | AL44: 4.754740234
A45: Hastighetssänkning 90 till 702 körfält8-10 m5500Riket2040 | B45: Hastighetssänkning 90 till 70 | C45: 2 körfält | D45: 8-10 m | G45: 5500 | H45: Riket | I45: 2040 | L45: 2.40097 | M45: 0.23944 | N45: 2.64041 | O45: 27.52117881 | P45: 2.924470385 | Q45: 30.4456492 | R45: 2.351909851 | S45: 1.343102071 | T45: 3.695011922 | U45: 112.3439776 | V45: 39.34510899 | W45: 72.99886857 | X45: 0.008048123563 | Y45: 0.09360325767 | Z45: 0.5053796428 | AA45: 0.5989829005 | AB45: 345.1309443 | AC45: 22.97779474 | AD45: 263746.7829 | AE45: 1.179404976 | AF45: 4.379112805 | AG45: 0.06082048112 | AH45: 0.3302116012 | AI45: 0.01781903586 | AJ45: 0.0788558082 | AK45: 0.5023080564 | AL45: 6.192980497
A46: Hastighetssänkning 90 till 702 körfält8-10 m5500Riket2060 | B46: Hastighetssänkning 90 till 70 | C46: 2 körfält | D46: 8-10 m | G46: 5500 | H46: Riket | I46: 2060 | L46: 2.604275 | M46: 0.30222 | N46: =SUM(L46:M46) -> 2.906495 | O46: 30.04420221 | P46: 3.7002336 | Q46: =SUM(O46:P46) -> 33.74443581 | R46: 2.550845395 | S46: 1.695293131 | T46: =SUM(R46:S46) -> 4.246138526 | U46: 130.301082 | V46: 42.49309171 | W46: 87.80799029 | X46: 0.005957886671 | Y46: 0.08489583684 | Z46: 0.5574859136 | AA46: =SUM(Y46:Z46) -> 0.6423817504 | AB46: 345.1309443 | AC46: 22.97779474 | AD46: 306696.8064 | AE46: 1.357097843 | AF46: 4.379112805 | AG46: 0.07693074817 | AH46: 0.3629941728 | AI46: 0.0181016674 | AJ46: 0.08306987327 | AK46: 0.5412102097 | AL46: 7.011725762
A47: =CONCATENATE(B47,C47,D47,E47,F47,G47,H47,I47) -> Hastighetssänkning 90 till 702 körfält8-10 m5500Ingen2014 | B47: Hastighetssänkning 90 till 70 | C47: 2 körfält | D47: 8-10 m | G47: 5500 | H47: Ingen | I47: 2014 | L47: 1.8469 | M47: 0.1606 | N47: 2.0075 | O47: 20.88118511 | P47: 1.950242688 | Q47: 22.8314278 | R47: 1.809277087 | S47: 0.9007617171 | T47: 2.710038804 | U47: 138.2861242 | V47: 58.05301215 | W47: 80.23311207 | X47: 0.01038296889 | Y47: 0.09273248426 | Z47: 0.391920453 | AA47: 0.4846529373 | AB47: 2674.073318 | AC47: 212.7611123 | AD47: 322223.4764 | AE47: 1.484920078 | AF47: 55.09217315 | AG47: 0.0405885037 | AH47: 0.2751125473 | AI47: 0.01535052118 | AJ47: 0.06464302683 | AK47: 0.4046593893 | AL47: 4.754740234
A48: Hastighetssänkning 90 till 702 körfält8-10 m5500Ingen2040 | B48: Hastighetssänkning 90 till 70 | C48: 2 körfält | D48: 8-10 m | G48: 5500 | H48: Ingen | I48: 2040 | L48: 1.8469 | M48: 0.1606 | N48: 2.0075 | O48: 20.88118511 | P48: 1.950242688 | Q48: 22.8314278 | R48: 1.809495342 | S48: 0.9008375605 | T48: 2.710332902 | U48: 82.12498063 | V48: 30.54649886 | W48: 51.57848177 | X48: 0.006140440403 | Y48: 0.0714080139 | Z48: 0.391920453 | AA48: 0.4633284669 | AB48: 345.1309443 | AC48: 22.97779474 | AD48: 192350.8141 | AE48: 0.8682997356 | AF48: 4.379112805 | AG48: 0.0405885037 | AH48: 0.2751125473 | AI48: 0.01342427365 | AJ48: 0.05940736392 | AK48: 0.3904968293 | AL48: 5.008267935
A49: Hastighetssänkning 90 till 702 körfält8-10 m5500Ingen2060 | B49: Hastighetssänkning 90 till 70 | C49: 2 körfält | D49: 8-10 m | G49: 5500 | H49: Ingen | I49: 2060 | L49: 1.8469 | M49: 0.1606 | N49: 2.0075 | O49: 20.88118511 | P49: 1.950242688 | Q49: 22.8314278 | R49: 1.809495342 | S49: 0.9008375605 | T49: 2.710332902 | U49: 82.12498063 | V49: 30.54649886 | W49: 51.57848177 | X49: 0.004099406963 | Y49: 0.05840510997 | Z49: 0.391920453 | AA49: 0.450325563 | AB49: 345.1309443 | AC49: 22.97779474 | AD49: 192350.8141 | AE49: 0.8682997356 | AF49: 4.379112805 | AG49: 0.0405885037 | AH49: 0.2751125473 | AI49: 0.01224971638 | AJ49: 0.05621484281 | AK49: 0.3818610038 | AL49: 5.212451002
A50: =CONCATENATE(B50,C50,D50,E50,F50,G50,H50,I50) -> Hastighetssänkning 90 till 702 körfält10,1-11,5 m6000Hög2014 | B50: Hastighetssänkning 90 till 70 | C50: 2 körfält | D50: 10,1-11,5 m | G50: 6000 | H50: Hög | I50: 2014 | L50: 2.0148 | M50: 0.1752 | N50: 2.19 | O50: 22.78555277 | P50: 2.156986348 | Q50: 24.94253912 | R50: 1.973749639 | S50: 0.982800997 | T50: 2.956550636 | U50: 150.4223024 | V50: 63.31968146 | W50: 87.10262098 | X50: 0.01212138851 | Y50: 0.08348644926 | Z50: 0.4201785331 | AA50: 0.5036649823 | AB50: 2617.914956 | AC50: 210.0006487 | AD50: 350467.6797 | AE50: 1.615907609 | AF50: 64.8880423 | AG50: 0.04492793602 | AH50: 0.2905640773 | AI50: 0.01506685195 | AJ50: 0.06567819114 | AK50: 0.4229199392 | AL50: 4.919124923
A51: Hastighetssänkning 90 till 702 körfält10,1-11,5 m6000Hög2040 | B51: Hastighetssänkning 90 till 70 | C51: 2 körfält | D51: 10,1-11,5 m | G51: 6000 | H51: Hög | I51: 2040 | L51: 2.92146 | M51: 0.30514 | N51: 3.2266 | O51: 33.37635003 | P51: 3.766416977 | Q51: 37.14276701 | R51: 2.861890452 | S51: 1.711937004 | T51: 4.573827456 | U51: 139.4524264 | V51: 47.98126556 | W51: 91.47116085 | X51: 0.01054012839 | Y51: 0.09413089115 | Z51: 0.6045287923 | AA51: 0.6986596835 | AB51: 341.0172353 | AC51: 23.90068987 | AD51: 327614.0961 | AE51: 1.461117354 | AF51: 5.462878177 | AG51: 0.07841801844 | AH51: 0.3875192277 | AI51: 0.01989533367 | AJ51: 0.09098235212 | AK51: 0.5877819977 | AL51: 7.046397259
A52: Hastighetssänkning 90 till 702 körfält10,1-11,5 m6000Hög2060 | B52: Hastighetssänkning 90 till 70 | C52: 2 körfält | D52: 10,1-11,5 m | G52: 6000 | H52: Hög | I52: 2060 | L52: 3.26383 | M52: 0.40661 | N52: 3.67044 | O52: 37.53345149 | P52: 5.026188852 | Q52: 42.55964035 | R52: 3.197001902 | S52: 2.281279938 | T52: 5.47828184 | U52: 168.9830401 | V52: 53.36855768 | W52: 115.6144824 | X52: 0.0080829358 | Y52: 0.08833586954 | Z52: 0.6902182456 | AA52: 0.7785541152 | AB52: 341.0172353 | AC52: 23.90068987 | AD52: 398194.857 | AE52: 1.754078808 | AF52: 5.462878177 | AG52: 0.1046219419 | AH52: 0.4279265718 | AI52: 0.02112862818 | AJ52: 0.1000036669 | AK52: 0.6574218201 | AL52: 8.23589251
A53: =CONCATENATE(B53,C53,D53,E53,F53,G53,H53,I53) -> Hastighetssänkning 90 till 702 körfält10,1-11,5 m6000Riket2014 | B53: Hastighetssänkning 90 till 70 | C53: 2 körfält | D53: 10,1-11,5 m | G53: 6000 | H53: Riket | I53: 2014 | L53: 2.0148 | M53: 0.1752 | N53: 2.19 | O53: 22.78555277 | P53: 2.156986348 | Q53: 24.94253912 | R53: 1.973749639 | S53: 0.982800997 | T53: 2.956550636 | U53: 150.4223024 | V53: 63.31968146 | W53: 87.10262098 | X53: 0.01212138851 | Y53: 0.08348644926 | Z53: 0.4201785331 | AA53: 0.5036649823 | AB53: 2617.914956 | AC53: 210.0006487 | AD53: 350467.6797 | AE53: 1.615907609 | AF53: 64.8880423 | AG53: 0.04492793602 | AH53: 0.2905640773 | AI53: 0.01506685195 | AJ53: 0.06567819114 | AK53: 0.4229199392 | AL53: 4.919124923
A54: Hastighetssänkning 90 till 702 körfält10,1-11,5 m6000Riket2040 | B54: Hastighetssänkning 90 till 70 | C54: 2 körfält | D54: 10,1-11,5 m | G54: 6000 | H54: Riket | I54: 2040 | L54: 2.61924 | M54: 0.26134 | N54: 2.88058 | O54: 29.82280356 | P54: 3.222768853 | Q54: 33.04557241 | R54: 2.565948608 | S54: 1.466178809 | T54: 4.032127417 | U54: 122.671739 | V54: 43.11537775 | W54: 79.55636122 | X54: 0.009413533045 | Y54: 0.08415914856 | Z54: 0.5429294093 | AA54: 0.6270885579 | AB54: 341.0172353 | AC54: 23.90068987 | AD54: 287961.5883 | AE54: 1.288419212 | AF54: 5.462878177 | AG54: 0.06710933186 | AH54: 0.3581261059 | AI54: 0.01770366604 | AJ54: 0.08095974688 | AK54: 0.5284251449 | AL54: 6.423227076
A55: Hastighetssänkning 90 till 702 körfält10,1-11,5 m6000Riket2060 | B55: Hastighetssänkning 90 till 70 | C55: 2 körfält | D55: 10,1-11,5 m | G55: 6000 | H55: Riket | I55: 2060 | L55: 2.840795 | M55: 0.32923 | N55: 3.170025 | O55: 32.46692489 | P55: 4.063055455 | Q55: 36.52998034 | R55: 2.782856387 | S55: 1.847083879 | T55: 4.629940266 | U55: 142.3342189 | V55: 46.64473043 | W55: 95.68948843 | X55: 0.006969948476 | Y55: 0.07626674687 | Z55: 0.5990639556 | AA55: 0.6753307025 | AB55: 341.0172353 | AC55: 23.90068987 | AD55: 334970.1077 | AE55: 1.483274525 | AF55: 5.462878177 | AG55: 0.08459654563 | AH55: 0.3849240418 | AI55: 0.01814203886 | AJ55: 0.08586787534 | AK55: 0.5713207883 | AL55: 7.276134276
A56: =CONCATENATE(B56,C56,D56,E56,F56,G56,H56,I56) -> Hastighetssänkning 90 till 702 körfält10,1-11,5 m6000Ingen2014 | B56: Hastighetssänkning 90 till 70 | C56: 2 körfält | D56: 10,1-11,5 m | G56: 6000 | H56: Ingen | I56: 2014 | L56: 2.0148 | M56: 0.1752 | N56: 2.19 | O56: 22.78555277 | P56: 2.156986348 | Q56: 24.94253912 | R56: 1.973749639 | S56: 0.982800997 | T56: 2.956550636 | U56: 150.4223024 | V56: 63.31968146 | W56: 87.10262098 | X56: 0.01212138851 | Y56: 0.08348644926 | Z56: 0.4201785331 | AA56: 0.5036649823 | AB56: 2617.914956 | AC56: 210.0006487 | AD56: 350467.6797 | AE56: 1.615907609 | AF56: 64.8880423 | AG56: 0.04492793602 | AH56: 0.2905640773 | AI56: 0.01506685195 | AJ56: 0.06567819114 | AK56: 0.4229199392 | AL56: 4.919124923
A57: Hastighetssänkning 90 till 702 körfält10,1-11,5 m6000Ingen2040 | B57: Hastighetssänkning 90 till 70 | C57: 2 körfält | D57: 10,1-11,5 m | G57: 6000 | H57: Ingen | I57: 2040 | L57: 2.0148 | M57: 0.1752 | N57: 2.19 | O57: 22.78555277 | P57: 2.156986348 | Q57: 24.94253912 | R57: 1.973987736 | S57: 0.9828833855 | T57: 2.956871121 | U57: 89.27597342 | V57: 33.31746163 | W57: 55.95851179 | X57: 0.007168533834 | Y57: 0.06428816802 | Z57: 0.4201785331 | AA57: 0.4844667011 | AB57: 341.0172353 | AC57: 23.90068987 | AD57: 209078.0842 | AE57: 0.9443458291 | AF57: 5.462878177 | AG57: 0.04492793602 | AH57: 0.2905640773 | AI57: 0.01333626644 | AJ57: 0.06098741088 | AK57: 0.4101430238 | AL57: 5.181417786
A58: Hastighetssänkning 90 till 702 körfält10,1-11,5 m6000Ingen2060 | B58: Hastighetssänkning 90 till 70 | C58: 2 körfält | D58: 10,1-11,5 m | G58: 6000 | H58: Ingen | I58: 2060 | L58: 2.0148 | M58: 0.1752 | N58: 2.19 | O58: 22.78555277 | P58: 2.156986348 | Q58: 24.94253912 | R58: 1.973987736 | S58: 0.9828833855 | T58: 2.956871121 | U58: 89.27597342 | V58: 33.31746163 | W58: 55.95851179 | X58: 0.004785770334 | Y58: 0.05258173863 | Z58: 0.4201785331 | AA58: 0.4727602717 | AB58: 341.0172353 | AC58: 23.90068987 | AD58: 209078.0842 | AE58: 0.9443458291 | AF58: 5.462878177 | AG58: 0.04492793602 | AH58: 0.2905640773 | AI58: 0.01228101692 | AJ58: 0.05812713984 | AK58: 0.4023521149 | AL58: 5.392660034
A59: =CONCATENATE(B59,C59,D59,E59,F59,G59,H59,I59) -> Hastighetssänkning 90 till 702 körfält10,1-11,5 m5500Hög2014 | B59: Hastighetssänkning 90 till 70 | C59: 2 körfält | D59: 10,1-11,5 m | G59: 5500 | H59: Hög | I59: 2014 | L59: 1.8469 | M59: 0.1606 | N59: 2.0075 | O59: 20.87782285 | P59: 1.976931955 | Q59: 22.85475481 | R59: 1.809281062 | S59: 0.9008983418 | T59: 2.710179404 | U59: 137.9163541 | V59: 58.05903175 | W59: 79.85732233 | X59: 0.01115540812 | Y59: 0.07691994357 | Z59: 0.3889425853 | AA59: 0.4658625289 | AB59: 2399.654771 | AC59: 192.4805086 | AD59: 321329.0756 | AE59: 1.481573994 | AF59: 59.48092841 | AG59: 0.04117858655 | AH59: 0.2751125473 | AI59: 0.01381128095 | AJ59: 0.06020500854 | AK59: 0.3918462394 | AL59: 4.619122866
A60: Hastighetssänkning 90 till 702 körfält10,1-11,5 m5500Hög2040 | B60: Hastighetssänkning 90 till 70 | C60: 2 körfält | D60: 10,1-11,5 m | G60: 5500 | H60: Hög | I60: 2040 | L60: 2.678005 | M60: 0.27959 | N60: 2.957595 | O60: 30.52265805 | P60: 3.44851777 | Q60: 33.97117582 | R60: 2.62348251 | S60: 1.568571494 | T60: 4.192054003 | U60: 127.940678 | V60: 44.05284071 | W60: 83.88783728 | X60: 0.009687203161 | Y60: 0.0865814628 | Z60: 0.5578929988 | AA60: 0.6444744616 | AB60: 312.5791828 | AC60: 21.90803682 | AD60: 300560.457 | AE60: 1.340605328 | AF60: 5.007830083 | AG60: 0.07180785643 | AH60: 0.3652954271 | AI60: 0.01823606122 | AJ60: 0.08339441657 | AK60: 0.5428439838 | AL60: 6.574606235
A61: Hastighetssänkning 90 till 702 körfält10,1-11,5 m5500Hög2060 | B61: Hastighetssänkning 90 till 70 | C61: 2 körfält | D61: 10,1-11,5 m | G61: 5500 | H61: Hög | I61: 2060 | L61: 2.991905 | M61: 0.3723 | N61: 3.364205 | O61: 34.28811408 | P61: 4.59694982 | Q61: 38.8850639 | R61: 2.930777536 | S61: 2.088740272 | T61: 5.019517808 | U61: 155.0412396 | V61: 49.03526436 | W61: 106.0059752 | X61: 0.007425306668 | Y61: 0.08120460534 | Z61: 0.6363580486 | AA61: 0.7175626539 | AB61: 312.5791828 | AC61: 21.90803682 | AD61: 365322.4197 | AE61: 1.609582476 | AF61: 5.007830083 | AG61: 0.09570464325 | AH61: 0.4025895765 | AI61: 0.01936394668 | AJ61: 0.09165127318 | AK61: 0.6065474341 | AL61: 7.668801618
A62: =CONCATENATE(B62,C62,D62,E62,F62,G62,H62,I62) -> Hastighetssänkning 90 till 702 körfält10,1-11,5 m5500Riket2014 | B62: Hastighetssänkning 90 till 70 | C62: 2 körfält | D62: 10,1-11,5 m | G62: 5500 | H62: Riket | I62: 2014 | L62: 1.8469 | M62: 0.1606 | N62: 2.0075 | O62: 20.87782285 | P62: 1.976931955 | Q62: 22.85475481 | R62: 1.809281062 | S62: 0.9008983418 | T62: 2.710179404 | U62: 137.9163541 | V62: 58.05903175 | W62: 79.85732233 | X62: 0.01115540812 | Y62: 0.07691994357 | Z62: 0.3889425853 | AA62: 0.4658625289 | AB62: 2399.654771 | AC62: 192.4805086 | AD62: 321329.0756 | AE62: 1.481573994 | AF62: 59.48092841 | AG62: 0.04117858655 | AH62: 0.2751125473 | AI62: 0.01381128095 | AJ62: 0.06020500854 | AK62: 0.3918462394 | AL62: 4.619122866
A63: Hastighetssänkning 90 till 702 körfält10,1-11,5 m5500Riket2040 | B63: Hastighetssänkning 90 till 70 | C63: 2 körfält | D63: 10,1-11,5 m | G63: 5500 | H63: Riket | I63: 2040 | L63: 2.40097 | M63: 0.23944 | N63: 2.64041 | O63: 27.27994393 | P63: 2.95076882 | Q63: 30.23071275 | R63: 2.352186345 | S63: 1.343298286 | T63: 3.695484632 | U63: 112.5308939 | V63: 39.57857415 | W63: 72.95231975 | X63: 0.008654490759 | Y63: 0.07744069876 | Z63: 0.5014268977 | AA63: 0.5788675965 | AB63: 312.5791828 | AC63: 21.90803682 | AD63: 264149.106 | AE63: 1.181997617 | AF63: 5.007830083 | AG63: 0.06145191132 | AH63: 0.3302116012 | AI63: 0.01622703257 | AJ63: 0.07420702844 | AK63: 0.4884335355 | AL63: 6.0033669
A64: Hastighetssänkning 90 till 702 körfält10,1-11,5 m5500Riket2060 | B64: Hastighetssänkning 90 till 70 | C64: 2 körfält | D64: 10,1-11,5 m | G64: 5500 | H64: Riket | I64: 2060 | L64: 2.604275 | M64: 0.30222 | N64: 2.906495 | O64: 29.69426021 | P64: 3.727053623 | Q64: 33.42131383 | R64: 2.551239868 | S64: 1.695526609 | T64: 4.246766478 | U64: 130.6983383 | V64: 42.82840871 | W64: 87.86992957 | X64: 0.006408554289 | Y64: 0.07017904473 | Z64: 0.5530854549 | AA64: 0.6232644996 | AB64: 312.5791828 | AC64: 21.90803682 | AD64: 307585.8346 | AE64: 1.361995875 | AF64: 5.007830083 | AG64: 0.07760974555 | AH64: 0.3629941728 | AI64: 0.01663559413 | AJ64: 0.07873773914 | AK64: 0.5278911664 | AL64: 6.792029307
A65: =CONCATENATE(B65,C65,D65,E65,F65,G65,H65,I65) -> Hastighetssänkning 90 till 702 körfält10,1-11,5 m5500Ingen2014 | B65: Hastighetssänkning 90 till 70 | C65: 2 körfält | D65: 10,1-11,5 m | G65: 5500 | H65: Ingen | I65: 2014 | L65: 1.8469 | M65: 0.1606 | N65: 2.0075 | O65: 20.87782285 | P65: 1.976931955 | Q65: 22.85475481 | R65: 1.809281062 | S65: 0.9008983418 | T65: 2.710179404 | U65: 137.9163541 | V65: 58.05903175 | W65: 79.85732233 | X65: 0.01115540812 | Y65: 0.07691994357 | Z65: 0.3889425853 | AA65: 0.4658625289 | AB65: 2399.654771 | AC65: 192.4805086 | AD65: 321329.0756 | AE65: 1.481573994 | AF65: 59.48092841 | AG65: 0.04117858655 | AH65: 0.2751125473 | AI65: 0.01381128095 | AJ65: 0.06020500854 | AK65: 0.3918462394 | AL65: 4.619122866
A66: Hastighetssänkning 90 till 702 körfält10,1-11,5 m5500Ingen2040 | B66: Hastighetssänkning 90 till 70 | C66: 2 körfält | D66: 10,1-11,5 m | G66: 5500 | H66: Ingen | I66: 2040 | L66: 1.8469 | M66: 0.1606 | N66: 2.0075 | O66: 20.87782285 | P66: 1.976931955 | Q66: 22.85475481 | R66: 1.809499317 | S66: 0.9009738695 | T66: 2.710473187 | U66: 81.8531141 | V66: 30.54981472 | W66: 51.30329938 | X66: 0.006597257439 | Y66: 0.05923167532 | Z66: 0.3889425853 | AA66: 0.4481742606 | AB66: 312.5791828 | AC66: 21.90803682 | AD66: 191693.5019 | AE66: 0.8658357574 | AF66: 5.007830083 | AG66: 0.04117858655 | AH66: 0.2751125473 | AI66: 0.0122249109 | AJ66: 0.05590512664 | AK66: 0.3800442231 | AL66: 4.865419308
A67: Hastighetssänkning 90 till 702 körfält10,1-11,5 m5500Ingen2060 | B67: Hastighetssänkning 90 till 70 | C67: 2 körfält | D67: 10,1-11,5 m | G67: 5500 | H67: Ingen | I67: 2060 | L67: 1.8469 | M67: 0.1606 | N67: 2.0075 | O67: 20.87782285 | P67: 1.976931955 | Q67: 22.85475481 | R67: 1.809499317 | S67: 0.9009738695 | T67: 2.710473187 | U67: 81.8531141 | V67: 30.54981472 | W67: 51.30329938 | X67: 0.004404381658 | Y67: 0.04844599817 | Z67: 0.3889425853 | AA67: 0.4373885835 | AB67: 312.5791828 | AC67: 21.90803682 | AD67: 191693.5019 | AE67: 0.8658357574 | AF67: 5.007830083 | AG67: 0.04117858655 | AH67: 0.2751125473 | AI67: 0.01125759884 | AJ67: 0.05328321152 | AK67: 0.3728477731 | AL67: 5.063778551
A68: =CONCATENATE(B68,C68,D68,E68,F68,G68,H68,I68) -> Hastighetssänkning 90 till 802 körfält6,7-7,9 m6000Hög2014 | B68: Hastighetssänkning 90 till 80 | C68: 2 körfält | D68: 6,7-7,9 m | G68: 6000 | H68: Hög | I68: 2014 | L68: 2.0148 | M68: 0.1752 | N68: 2.19 | O68: 23.30549204 | P68: 2.16653403 | Q68: 25.47202607 | R68: 1.973158066 | S68: 0.9828902294 | T68: 2.956048295 | U68: 148.0861221 | V68: 61.85803744 | W68: 86.22808464 | X68: 0.009537036892 | Y68: 0.09929070527 | Z68: 0.5010116897 | AA68: 0.600302395 | AB68: 2917.149559 | AC68: 232.1035253 | AD68: 345145.3534 | AE68: 1.589163559 | AF68: 60.09729543 | AG68: 0.04523739583 | AH68: 0.2905640773 | AI68: 0.01820370079 | AJ68: 0.07953300492 | AK68: 0.5025656893 | AL68: 5.430791233
A69: Hastighetssänkning 90 till 802 körfält6,7-7,9 m6000Hög2040 | B69: Hastighetssänkning 90 till 80 | C69: 2 körfält | D69: 6,7-7,9 m | G69: 6000 | H69: Hög | I69: 2040 | L69: 2.92146 | M69: 0.30514 | N69: 3.2266 | O69: 34.55026975 | P69: 3.810516848 | Q69: 38.3607866 | R69: 2.86062579 | S69: 1.712337421 | T69: 4.572963211 | U69: 136.7568056 | V69: 46.44706 | W69: 90.30974556 | X69: 0.008260067037 | Y69: 0.1122863019 | Z69: 0.7251174616 | AA69: 0.8374037635 | AB69: 376.4947967 | AC69: 25.06749604 | AD69: 321445.3927 | AE69: 1.430878809 | AF69: 4.776966295 | AG69: 0.07945543274 | AH69: 0.3875192277 | AI69: 0.02405662717 | AJ69: 0.1102473528 | AK69: 0.7030997835 | AL69: 7.85041299
A70: Hastighetssänkning 90 till 802 körfält6,7-7,9 m6000Hög2060 | B70: Hastighetssänkning 90 till 80 | C70: 2 körfält | D70: 6,7-7,9 m | G70: 6000 | H70: Hög | I70: 2060 | L70: 3.26383 | M70: 0.40661 | N70: 3.67044 | O70: 39.02357741 | P70: 5.100714145 | Q70: 44.12429156 | R70: 3.195444167 | S70: 2.281961328 | T70: 5.477405495 | U70: 165.555267 | V70: 51.51202763 | W70: 114.0432394 | X70: 0.006327487453 | Y70: 0.1054608458 | Z70: 0.8292860218 | AA70: 0.9347468676 | AB70: 376.4947967 | AC70: 25.06749604 | AD70: 390333.6167 | AE70: 1.716011271 | AF70: 4.776966295 | AG70: 0.106291659 | AH70: 0.4279265718 | AI70: 0.02556311207 | AJ70: 0.1212336129 | AK70: 0.7879501426 | AL70: 9.200918441
A71: =CONCATENATE(B71,C71,D71,E71,F71,G71,H71,I71) -> Hastighetssänkning 90 till 802 körfält6,7-7,9 m6000Riket2014 | B71: Hastighetssänkning 90 till 80 | C71: 2 körfält | D71: 6,7-7,9 m | G71: 6000 | H71: Riket | I71: 2014 | L71: 2.0148 | M71: 0.1752 | N71: 2.19 | O71: 23.30549204 | P71: 2.16653403 | Q71: 25.47202607 | R71: 1.973158066 | S71: 0.9828902294 | T71: 2.956048295 | U71: 148.0861221 | V71: 61.85803744 | W71: 86.22808464 | X71: 0.009537036892 | Y71: 0.09929070527 | Z71: 0.5010116897 | AA71: 0.600302395 | AB71: 2917.149559 | AC71: 232.1035253 | AD71: 345145.3534 | AE71: 1.589163559 | AF71: 60.09729543 | AG71: 0.04523739583 | AH71: 0.2905640773 | AI71: 0.01820370079 | AJ71: 0.07953300492 | AK71: 0.5025656893 | AL71: 5.430791233
A72: Hastighetssänkning 90 till 802 körfält6,7-7,9 m6000Riket2040 | B72: Hastighetssänkning 90 till 80 | C72: 2 körfält | D72: 6,7-7,9 m | G72: 6000 | H72: Riket | I72: 2040 | L72: 2.61924 | M72: 0.26134 | N72: 2.88058 | O72: 30.74706453 | P72: 3.252042519 | Q72: 33.99910705 | R72: 2.564934439 | S72: 1.46644447 | T72: 4.031378909 | U72: 120.5140776 | V72: 41.85013713 | W72: 78.66394047 | X72: 0.00738464298 | Y72: 0.1003145614 | Z72: 0.6502340449 | AA72: 0.7505486063 | AB72: 376.4947967 | AC72: 25.06749604 | AD72: 283030.6617 | AE72: 1.264063637 | AF72: 4.776966295 | AG72: 0.06784363054 | AH72: 0.3581261059 | AI72: 0.02140655195 | AJ72: 0.09810251733 | AK72: 0.631039537 | AL72: 7.138672528
A73: Hastighetssänkning 90 till 802 körfält6,7-7,9 m6000Riket2060 | B73: Hastighetssänkning 90 till 80 | C73: 2 körfält | D73: 6,7-7,9 m | G73: 6000 | H73: Riket | I73: 2060 | L73: 2.840795 | M73: 0.32923 | N73: 3.170025 | O73: 33.58804429 | P73: 4.109015794 | Q73: 37.69706009 | R73: 2.781648872 | S73: 1.847500958 | T73: 4.62914983 | U73: 139.7295729 | V73: 45.17203896 | W73: 94.55753394 | X73: 0.00546263755 | Y73: 0.09097106096 | Z73: 0.7184741216 | AA73: 0.8094451826 | AB73: 376.4947967 | AC73: 25.06749604 | AD73: 329007.7961 | AE73: 1.45409581 | AF73: 4.776966295 | AG73: 0.08568629076 | AH73: 0.3849240418 | AI73: 0.02194969633 | AJ73: 0.1040969105 | AK73: 0.6833985758 | AL73: 8.104751155
A74: =CONCATENATE(B74,C74,D74,E74,F74,G74,H74,I74) -> Hastighetssänkning 90 till 802 körfält6,7-7,9 m6000Ingen2014 | B74: Hastighetssänkning 90 till 80 | C74: 2 körfält | D74: 6,7-7,9 m | G74: 6000 | H74: Ingen | I74: 2014 | L74: 2.0148 | M74: 0.1752 | N74: 2.19 | O74: 23.30549204 | P74: 2.16653403 | Q74: 25.47202607 | R74: 1.973158066 | S74: 0.9828902294 | T74: 2.956048295 | U74: 148.0861221 | V74: 61.85803744 | W74: 86.22808464 | X74: 0.009537036892 | Y74: 0.09929070527 | Z74: 0.5010116897 | AA74: 0.600302395 | AB74: 2917.149559 | AC74: 232.1035253 | AD74: 345145.3534 | AE74: 1.589163559 | AF74: 60.09729543 | AG74: 0.04523739583 | AH74: 0.2905640773 | AI74: 0.01820370079 | AJ74: 0.07953300492 | AK74: 0.5025656893 | AL74: 5.430791233
A75: Hastighetssänkning 90 till 802 körfält6,7-7,9 m6000Ingen2040 | B75: Hastighetssänkning 90 till 80 | C75: 2 körfält | D75: 6,7-7,9 m | G75: 6000 | H75: Ingen | I75: 2040 | L75: 2.0148 | M75: 0.1752 | N75: 2.19 | O75: 23.30549204 | P75: 2.16653403 | Q75: 25.47202607 | R75: 1.973396174 | S75: 0.9829725947 | T75: 2.956368768 | U75: 87.9887572 | V75: 32.51367636 | W75: 55.47508084 | X75: 0.005640160083 | Y75: 0.07645812704 | Z75: 0.5010116897 | AA75: 0.5774698167 | AB75: 376.4947967 | AC75: 25.06749604 | AD75: 206145.2166 | AE75: 0.9296162352 | AF75: 4.776966295 | AG75: 0.04523739583 | AH75: 0.2905640773 | AI75: 0.01612567022 | AJ75: 0.07390115167 | AK75: 0.4874429949 | AL75: 5.720366676
A76: Hastighetssänkning 90 till 802 körfält6,7-7,9 m6000Ingen2060 | B76: Hastighetssänkning 90 till 80 | C76: 2 körfält | D76: 6,7-7,9 m | G76: 6000 | H76: Ingen | I76: 2060 | L76: 2.0148 | M76: 0.1752 | N76: 2.19 | O76: 23.30549204 | P76: 2.16653403 | Q76: 25.47202607 | R76: 1.973396174 | S76: 0.9829725947 | T76: 2.956368768 | U76: 87.9887572 | V76: 32.51367636 | W76: 55.47508084 | X76: 0.003765415834 | Y76: 0.06253563254 | Z76: 0.5010116897 | AA76: 0.5635473222 | AB76: 376.4947967 | AC76: 25.06749604 | AD76: 206145.2166 | AE76: 0.9296162352 | AF76: 4.776966295 | AG76: 0.04523739583 | AH76: 0.2905640773 | AI76: 0.01485856105 | AJ76: 0.07046704777 | AK76: 0.4782217134 | AL76: 5.953581438
A77: =CONCATENATE(B77,C77,D77,E77,F77,G77,H77,I77) -> Hastighetssänkning 90 till 802 körfält6,7-7,9 m5500Hög2014 | B77: Hastighetssänkning 90 till 80 | C77: 2 körfält | D77: 6,7-7,9 m | G77: 5500 | H77: Hög | I77: 2014 | L77: 1.8469 | M77: 0.1606 | N77: 2.0075 | O77: 21.29183864 | P77: 1.982777978 | Q77: 23.27461662 | R77: 1.808807024 | S77: 0.9009552124 | T77: 2.709762237 | U77: 135.9799683 | V77: 56.82593828 | W77: 79.15403006 | X77: 0.008786419134 | Y77: 0.09140717825 | Z77: 0.4630396456 | AA77: 0.5544468238 | AB77: 2674.073318 | AC77: 212.7611123 | AD77: 316921.4434 | AE77: 1.45931863 | AF77: 55.09217315 | AG77: 0.04140986282 | AH77: 0.2751125473 | AI77: 0.01668672572 | AJ77: 0.07290525451 | AK77: 0.4648548436 | AL77: 5.088150317
A78: Hastighetssänkning 90 till 802 körfält6,7-7,9 m5500Hög2040 | B78: Hastighetssänkning 90 till 80 | C78: 2 körfält | D78: 6,7-7,9 m | G78: 5500 | H78: Hög | I78: 2040 | L78: 2.678005 | M78: 0.27959 | N78: =SUM(L78:M78) -> 2.957595 | O78: 31.49780373 | P78: 3.481890727 | Q78: =SUM(O78:P78) -> 34.97969446 | R78: 2.622417837 | S78: 1.568874227 | T78: =SUM(R78:S78) -> 4.191292064 | U78: 125.6687674 | V78: 42.73348598 | W78: 82.93528141 | X78: 0.007597299107 | Y78: 0.1032227108 | Z78: 0.6684245633 | AA78: =SUM(Y78:Z78) -> 0.7716472741 | AB78: 345.1309443 | AC78: 22.97779474 | AD78: 295366.1043 | AE78: 1.315012514 | AF78: 4.379112805 | AG78: 0.07263067783 | AH78: 0.3652954271 | AI78: 0.02205030251 | AJ78: 0.1010527146 | AK78: 0.648544257 | AL78: 7.311566988
A79: Hastighetssänkning 90 till 802 körfält6,7-7,9 m5500Hög2060 | B79: Hastighetssänkning 90 till 80 | C79: 2 körfält | D79: 6,7-7,9 m | G79: 5500 | H79: Hög | I79: 2060 | L79: 2.991905 | M79: 0.3723 | N79: 3.364205 | O79: 35.54913934 | P79: 4.655765871 | Q79: 40.20490521 | R79: 2.929437063 | S79: 2.089274968 | T79: 5.018712031 | U79: 152.1138719 | V79: 47.41834996 | W79: 104.6955219 | X79: 0.005816474903 | Y79: 0.09689928861 | Z79: 0.7638107624 | AA79: 0.860710051 | AB79: 345.1309443 | AC79: 22.97779474 | AD79: 358614.4536 | AE79: 1.576944139 | AF79: 4.379112805 | AG79: 0.09706129184 | AH79: 0.4025895765 | AI79: 0.02342805859 | AJ79: 0.1111080756 | AK79: 0.7261739169 | AL79: 8.55322774
A80: =CONCATENATE(B80,C80,D80,E80,F80,G80,H80,I80) -> Hastighetssänkning 90 till 802 körfält6,7-7,9 m5500Riket2014 | B80: Hastighetssänkning 90 till 80 | C80: 2 körfält | D80: 6,7-7,9 m | G80: 5500 | H80: Riket | I80: 2014 | L80: 1.8469 | M80: 0.1606 | N80: 2.0075 | O80: 21.29183864 | P80: 1.982777978 | Q80: 23.27461662 | R80: 1.808807024 | S80: 0.9009552124 | T80: 2.709762237 | U80: 135.9799683 | V80: 56.82593828 | W80: 79.15403006 | X80: 0.008786419134 | Y80: 0.09140717825 | Z80: 0.4630396456 | AA80: 0.5544468238 | AB80: 2674.073318 | AC80: 212.7611123 | AD80: 316921.4434 | AE80: 1.45931863 | AF80: 55.09217315 | AG80: 0.04140986282 | AH80: 0.2751125473 | AI80: 0.01668672572 | AJ80: 0.07290525451 | AK80: 0.4648548436 | AL80: 5.088150317
A81: Hastighetssänkning 90 till 802 körfält6,7-7,9 m5500Riket2040 | B81: Hastighetssänkning 90 till 80 | C81: 2 körfält | D81: 6,7-7,9 m | G81: 5500 | H81: Riket | I81: 2040 | L81: 2.40097 | M81: 0.23944 | N81: 2.64041 | O81: 28.0521441 | P81: 2.972800632 | Q81: 31.02494473 | R81: 2.351329185 | S81: 1.343498818 | T81: 3.694828003 | U81: 110.6993406 | V81: 38.48454371 | W81: 72.21479693 | X81: 0.006794827055 | Y81: 0.09224861537 | Z81: 0.5997814313 | AA81: 0.6920300467 | AB81: 345.1309443 | AC81: 22.97779474 | AD81: 259967.0332 | AE81: 1.161241463 | AF81: 4.379112805 | AG81: 0.06203769501 | AH81: 0.3302116012 | AI81: 0.01962106689 | AJ81: 0.08991994879 | AK81: 0.582489031 | AL81: 6.659138232
A82: Hastighetssänkning 90 till 802 körfält6,7-7,9 m5500Riket2060 | B82: Hastighetssänkning 90 till 80 | C82: 2 körfält | D82: 6,7-7,9 m | G82: 5500 | H82: Riket | I82: 2060 | L82: 2.604275 | M82: 0.30222 | N82: 2.906495 | O82: 30.62426149 | P82: 3.761768265 | Q82: 34.38602975 | R82: 2.550224821 | S82: 1.695841533 | T82: 4.246066354 | U82: 128.5090864 | V82: 41.56275195 | W82: 86.94633447 | X82: 0.005026404631 | Y82: 0.08366236946 | Z82: 0.6625802626 | AA82: 0.7462426321 | AB82: 345.1309443 | AC82: 22.97779474 | AD82: 302579.4023 | AE82: 1.337357073 | AF82: 4.379112805 | AG82: 0.07847446847 | AH82: 0.3629941728 | AI82: 0.02012707845 | AJ82: 0.09545310572 | AK82: 0.6306624479 | AL82: 7.551841046
A83: =CONCATENATE(B83,C83,D83,E83,F83,G83,H83,I83) -> Hastighetssänkning 90 till 802 körfält6,7-7,9 m5500Ingen2014 | B83: Hastighetssänkning 90 till 80 | C83: 2 körfält | D83: 6,7-7,9 m | G83: 5500 | H83: Ingen | I83: 2014 | L83: 1.8469 | M83: 0.1606 | N83: 2.0075 | O83: 21.29183864 | P83: 1.982777978 | Q83: 23.27461662 | R83: 1.808807024 | S83: 0.9009552124 | T83: 2.709762237 | U83: 135.9799683 | V83: 56.82593828 | W83: 79.15403006 | X83: 0.008786419134 | Y83: 0.09140717825 | Z83: 0.4630396456 | AA83: 0.5544468238 | AB83: 2674.073318 | AC83: 212.7611123 | AD83: 316921.4434 | AE83: 1.45931863 | AF83: 55.09217315 | AG83: 0.04140986282 | AH83: 0.2751125473 | AI83: 0.01668672572 | AJ83: 0.07290525451 | AK83: 0.4648548436 | AL83: 5.088150317
A84: Hastighetssänkning 90 till 802 körfält6,7-7,9 m5500Ingen2040 | B84: Hastighetssänkning 90 till 80 | C84: 2 körfält | D84: 6,7-7,9 m | G84: 5500 | H84: Ingen | I84: 2040 | L84: 1.8469 | M84: 0.1606 | N84: 2.0075 | O84: 21.29183864 | P84: 1.982777978 | Q84: 23.27461662 | R84: 1.809025288 | S84: 0.9010307639 | T84: 2.710056052 | U84: 80.79258173 | V84: 29.87181248 | W84: 50.92076925 | X84: 0.005196248168 | Y84: 0.07038747109 | Z84: 0.4630396456 | AA84: 0.5334271166 | AB84: 345.1309443 | AC84: 22.97779474 | AD84: 189279.9523 | AE84: 0.8536357469 | AF84: 4.379112805 | AG84: 0.04140986282 | AH84: 0.2751125473 | AI84: 0.01478186437 | AJ84: 0.06774272236 | AK84: 0.4509025299 | AL84: 5.359455791
A85: Hastighetssänkning 90 till 802 körfält6,7-7,9 m5500Ingen2060 | B85: Hastighetssänkning 90 till 80 | C85: 2 körfält | D85: 6,7-7,9 m | G85: 5500 | H85: Ingen | I85: 2060 | L85: 1.8469 | M85: 0.1606 | N85: 2.0075 | O85: 21.29183864 | P85: 1.982777978 | Q85: 23.27461662 | R85: 1.809025288 | S85: 0.9010307639 | T85: 2.710056052 | U85: 80.79258173 | V85: 29.87181248 | W85: 50.92076925 | X85: 0.0034690567 | Y85: 0.05757040092 | Z85: 0.4630396456 | AA85: 0.5206100465 | AB85: 345.1309443 | AC85: 22.97779474 | AD85: 189279.9523 | AE85: 0.8536357469 | AF85: 4.379112805 | AG85: 0.04140986282 | AH85: 0.2751125473 | AI85: 0.01362034763 | AJ85: 0.06459479379 | AK85: 0.4423949051 | AL85: 5.577956505
A86: =CONCATENATE(B86,C86,D86,E86,F86,G86,H86,I86) -> Hastighetssänkning 90 till 802 körfält8-10 m6000Hög2014 | B86: Hastighetssänkning 90 till 80 | C86: 2 körfält | D86: 8-10 m | G86: 6000 | H86: Hög | I86: 2014 | L86: 2.0148 | M86: 0.1752 | N86: 2.19 | O86: 22.85816855 | P86: 2.131077968 | Q86: 24.98924652 | R86: 1.973664318 | S86: 0.982656174 | T86: 2.956320492 | U86: 149.6830944 | V86: 62.63800399 | W86: 87.04509037 | X86: 0.01127872753 | Y86: 0.1007364937 | Z86: 0.423427116 | AA86: 0.5241636097 | AB86: 2917.149559 | AC86: 232.1035253 | AD86: 348831.1196 | AE86: 1.606622065 | AF86: 60.09729543 | AG86: 0.04434290556 | AH86: 0.2905640773 | AI86: 0.01674602311 | AJ86: 0.07051966563 | AK86: 0.4368979209 | AL86: 5.067071142
A87: Hastighetssänkning 90 till 802 körfält8-10 m6000Hög2040 | B87: Hastighetssänkning 90 till 80 | C87: 2 körfält | D87: 8-10 m | G87: 6000 | H87: Hög | I87: 2040 | L87: 2.92146 | M87: 0.30514 | N87: 3.2266 | O87: 33.88718499 | P87: 3.747032212 | Q87: 37.6342172 | R87: 2.861321733 | S87: 1.711764382 | T87: 4.573086115 | U87: 138.0533354 | V87: 47.05631769 | W87: 90.99701767 | X87: 0.009796685153 | Y87: 0.1139471762 | Z87: 0.6093750993 | AA87: 0.7233222755 | AB87: 376.4947967 | AC87: 25.06749604 | AD87: 324436.0865 | AE87: 1.444903016 | AF87: 4.776966295 | AG87: 0.07787515892 | AH87: 0.3875192277 | AI87: 0.021847227 | AJ87: 0.09668204022 | AK87: 0.6047930083 | AL87: 7.278875117
A88: Hastighetssänkning 90 till 802 körfält8-10 m6000Hög2060 | B88: Hastighetssänkning 90 till 80 | C88: 2 körfält | D88: 8-10 m | G88: 6000 | H88: Hög | I88: 2060 | L88: 3.26383 | M88: 0.40661 | N88: 3.67044 | O88: 38.2611734 | P88: 5.013297577 | Q88: 43.27447097 | R88: 3.196214938 | S88: 2.281158508 | T88: 5.477373446 | U88: 167.1055653 | V88: 52.19763247 | W88: 114.9079328 | X88: 0.007510549358 | Y88: 0.1070274549 | Z88: 0.6958072047 | AA88: 0.8028346597 | AB88: 376.4947967 | AC88: 25.06749604 | AD88: 393917.4977 | AE88: 1.732606396 | AF88: 4.776966295 | AG88: 0.1041402823 | AH88: 0.4279265718 | AI88: 0.0229906667 | AJ88: 0.105505848 | AK88: 0.674338145 | AL88: 8.514925809
A89: =CONCATENATE(B89,C89,D89,E89,F89,G89,H89,I89) -> Hastighetssänkning 90 till 802 körfält8-10 m6000Riket2014 | B89: Hastighetssänkning 90 till 80 | C89: 2 körfält | D89: 8-10 m | G89: 6000 | H89: Riket | I89: 2014 | L89: 2.0148 | M89: 0.1752 | N89: =SUM(L89:M89) -> 2.19 | O89: 22.85816855 | P89: 2.131077968 | Q89: =SUM(O89:P89) -> 24.98924652 | R89: 1.973664318 | S89: 0.982656174 | T89: =SUM(R89:S89) -> 2.956320492 | U89: 149.6830944 | V89: 62.63800399 | W89: 87.04509037 | X89: 0.01127872753 | Y89: 0.1007364937 | Z89: 0.423427116 | AA89: =SUM(Y89:Z89) -> 0.5241636097 | AB89: 2917.149559 | AC89: 232.1035253 | AD89: 348831.1196 | AE89: 1.606622065 | AF89: 60.09729543 | AG89: 0.04434290556 | AH89: 0.2905640773 | AI89: 0.01674602311 | AJ89: 0.07051966563 | AK89: 0.4368979209 | AL89: 5.067071142
A90: Hastighetssänkning 90 till 802 körfält8-10 m6000Riket2040 | B90: Hastighetssänkning 90 till 80 | C90: 2 körfält | D90: 8-10 m | G90: 6000 | H90: Riket | I90: 2040 | L90: 2.61924 | M90: 0.26134 | N90: 2.88058 | O90: 30.16543663 | P90: 3.199005818 | Q90: 33.36444245 | R90: 2.565560355 | S90: 1.465972257 | T90: 4.031532611 | U90: 121.6459281 | V90: 42.39238962 | W90: 79.25353852 | X90: 0.008751987425 | Y90: 0.1017924739 | Z90: 0.5472418477 | AA90: 0.6490343217 | AB90: 376.4947967 | AC90: 25.06749604 | AD90: 285639.6124 | AE90: 1.276348775 | AF90: 4.776966295 | AG90: 0.06651169298 | AH90: 0.3581261059 | AI90: 0.01944053903 | AJ90: 0.08603155801 | AK90: 0.5435622246 | AL90: 6.6300952
A91: Hastighetssänkning 90 till 802 körfält8-10 m6000Riket2060 | B91: Hastighetssänkning 90 till 80 | C91: 2 körfält | D91: 8-10 m | G91: 6000 | H91: Riket | I91: 2060 | L91: 2.840795 | M91: 0.32923 | N91: 3.170025 | O91: 32.94481557 | P91: 4.04071733 | Q91: 36.9855329 | R91: 2.782324499 | S91: 1.846885866 | T91: 4.629210366 | U91: 141.0219863 | V91: 45.76331793 | W91: 95.25866835 | X91: 0.006478470422 | Y91: 0.0923162256 | Z91: 0.6038629001 | AA91: 0.6961791257 | AB91: 376.4947967 | AC91: 25.06749604 | AD91: 331991.9446 | AE91: 1.468010625 | AF91: 4.776966295 | AG91: 0.08398427701 | AH91: 0.3849240418 | AI91: 0.01974087314 | AJ91: 0.0905923081 | AK91: 0.5858459445 | AL91: 7.515725455
A92: =CONCATENATE(B92,C92,D92,E92,F92,G92,H92,I92) -> Hastighetssänkning 90 till 802 körfält8-10 m6000Ingen2014 | B92: Hastighetssänkning 90 till 80 | C92: 2 körfält | D92: 8-10 m | G92: 6000 | H92: Ingen | I92: 2014 | L92: 2.0148 | M92: 0.1752 | N92: 2.19 | O92: 22.85816855 | P92: 2.131077968 | Q92: 24.98924652 | R92: 1.973664318 | S92: 0.982656174 | T92: 2.956320492 | U92: 149.6830944 | V92: 62.63800399 | W92: 87.04509037 | X92: 0.01127872753 | Y92: 0.1007364937 | Z92: 0.423427116 | AA92: 0.5241636097 | AB92: 2917.149559 | AC92: 232.1035253 | AD92: 348831.1196 | AE92: 1.606622065 | AF92: 60.09729543 | AG92: 0.04434290556 | AH92: 0.2905640773 | AI92: 0.01674602311 | AJ92: 0.07051966563 | AK92: 0.4368979209 | AL92: 5.067071142
A93: Hastighetssänkning 90 till 802 körfält8-10 m6000Ingen2040 | B93: Hastighetssänkning 90 till 80 | C93: 2 körfält | D93: 8-10 m | G93: 6000 | H93: Ingen | I93: 2040 | L93: 2.0148 | M93: 0.1752 | N93: 2.19 | O93: 22.85816855 | P93: 2.131077968 | Q93: 24.98924652 | R93: 1.973902416 | S93: 0.9827388575 | T93: 2.956641273 | U93: 88.93248389 | V93: 32.94331655 | W93: 55.98916735 | X93: 0.006670187976 | Y93: 0.07757144647 | Z93: 0.423427116 | AA93: 0.5009985625 | AB93: 376.4947967 | AC93: 25.06749604 | AD93: 208330.029 | AE93: 0.9398152672 | AF93: 4.776966295 | AG93: 0.04434290556 | AH93: 0.2905640773 | AI93: 0.01464466216 | AJ93: 0.06480803337 | AK93: 0.4215458669 | AL93: 5.337252652
A94: Hastighetssänkning 90 till 802 körfält8-10 m6000Ingen2060 | B94: Hastighetssänkning 90 till 80 | C94: 2 körfält | D94: 8-10 m | G94: 6000 | H94: Ingen | I94: 2060 | L94: 2.0148 | M94: 0.1752 | N94: 2.19 | O94: 22.85816855 | P94: 2.131077968 | Q94: 24.98924652 | R94: 1.973902416 | S94: 0.9827388575 | T94: 2.956641273 | U94: 88.93248389 | V94: 32.94331655 | W94: 55.98916735 | X94: 0.004453070666 | Y94: 0.06344622423 | Z94: 0.423427116 | AA94: 0.4868733402 | AB94: 376.4947967 | AC94: 25.06749604 | AD94: 208330.029 | AE94: 0.9398152672 | AF94: 4.776966295 | AG94: 0.04434290556 | AH94: 0.2905640773 | AI94: 0.01336332696 | AJ94: 0.06132528307 | AK94: 0.4121847302 | AL94: 5.554848162
A95: =CONCATENATE(B95,C95,D95,E95,F95,G95,H95,I95) -> Hastighetssänkning 90 till 802 körfält8-10 m5500Hög2014 | B95: Hastighetssänkning 90 till 80 | C95: 2 körfält | D95: 8-10 m | G95: 5500 | H95: Hög | I95: 2014 | L95: 1.8469 | M95: 0.1606 | N95: =SUM(L95:M95) -> 2.0075 | O95: 20.88118511 | P95: 1.950242688 | Q95: =SUM(O95:P95) -> 22.8314278 | R95: 1.809277087 | S95: 0.9007617171 | T95: =SUM(R95:S95) -> 2.710038804 | U95: 137.4826976 | V95: 57.54685336 | W95: 79.9358442 | X95: 0.01038296889 | Y95: 0.09273248426 | Z95: 0.391920453 | AA95: =SUM(Y95:Z95) -> 0.4846529373 | AB95: 2674.073318 | AC95: 212.7611123 | AD95: 320393.8329 | AE95: 1.475709354 | AF95: 55.09217315 | AG95: 0.0405885037 | AH95: 0.2751125473 | AI95: 0.01535052118 | AJ95: 0.06464302683 | AK95: 0.4046593893 | AL95: 4.754740234
A96: Hastighetssänkning 90 till 802 körfält8-10 m5500Hög2040 | B96: Hastighetssänkning 90 till 80 | C96: 2 körfält | D96: 8-10 m | G96: 5500 | H96: Hög | I96: 2040 | L96: 2.678005 | M96: 0.27959 | N96: 2.957595 | O96: 30.90000559 | P96: 3.424815245 | Q96: 34.32482084 | R96: 2.623056977 | S96: 1.568364499 | T96: 4.191421476 | U96: 126.8429104 | V96: 43.28869627 | W96: 83.5542141 | X96: 0.009005763148 | Y96: 0.104745068 | Z96: 0.5623351234 | AA96: 0.6670801915 | AB96: 345.1309443 | AC96: 22.97779474 | AD96: 298073.8755 | AE96: 1.3277271 | AF96: 4.379112805 | AG96: 0.07120028826 | AH96: 0.3652954271 | AI96: 0.02002516649 | AJ96: 0.08861875022 | AK96: 0.5584362748 | AL96: 6.787695421
A97: Hastighetssänkning 90 till 802 körfält8-10 m5500Hög2060 | B97: Hastighetssänkning 90 till 80 | C97: 2 körfält | D97: 8-10 m | G97: 5500 | H97: Hög | I97: 2060 | L97: 2.991905 | M97: 0.3723 | N97: 3.364205 | O97: 34.86303194 | P97: 4.577407702 | Q97: 39.44043965 | R97: 2.930145736 | S97: 2.088563902 | T97: 5.018709637 | U97: 153.5147432 | V97: 48.04296504 | W97: 105.4717782 | X97: 0.006900726443 | Y97: 0.09833505317 | Z97: 0.6414802129 | AA97: 0.7398152661 | AB97: 345.1309443 | AC97: 22.97779474 | AD97: 361851.9962 | AE97: 1.591960611 | AF97: 4.379112805 | AG97: 0.0951184191 | AH97: 0.4025895765 | AI97: 0.02107046611 | AJ97: 0.0966939073 | AK97: 0.6220508927 | AL97: 7.924529811
A98: =CONCATENATE(B98,C98,D98,E98,F98,G98,H98,I98) -> Hastighetssänkning 90 till 802 körfält8-10 m5500Riket2014 | B98: Hastighetssänkning 90 till 80 | C98: 2 körfält | D98: 8-10 m | G98: 5500 | H98: Riket | I98: 2014 | L98: 1.8469 | M98: 0.1606 | N98: 2.0075 | O98: 20.88118511 | P98: 1.950242688 | Q98: 22.8314278 | R98: 1.809277087 | S98: 0.9007617171 | T98: 2.710038804 | U98: 137.4826976 | V98: 57.54685336 | W98: 79.9358442 | X98: 0.01038296889 | Y98: 0.09273248426 | Z98: 0.391920453 | AA98: 0.4846529373 | AB98: 2674.073318 | AC98: 212.7611123 | AD98: 320393.8329 | AE98: 1.475709354 | AF98: 55.09217315 | AG98: 0.0405885037 | AH98: 0.2751125473 | AI98: 0.01535052118 | AJ98: 0.06464302683 | AK98: 0.4046593893 | AL98: 4.754740234
A99: Hastighetssänkning 90 till 802 körfält8-10 m5500Riket2040 | B99: Hastighetssänkning 90 till 80 | C99: 2 körfält | D99: 8-10 m | G99: 5500 | H99: Riket | I99: 2040 | L99: 2.40097 | M99: 0.23944 | N99: 2.64041 | O99: 27.52117881 | P99: 2.924470385 | Q99: 30.4456492 | R99: 2.351909851 | S99: 1.343102071 | T99: 3.695011922 | U99: 111.7712051 | V99: 38.98426231 | W99: 72.78694275 | X99: 0.008048123563 | Y99: 0.09360325767 | Z99: 0.5053796428 | AA99: 0.5989829005 | AB99: 345.1309443 | AC99: 22.97779474 | AD99: 262442.4081 | AE99: 1.17283854 | AF99: 4.379112805 | AG99: 0.06082048112 | AH99: 0.3302116012 | AI99: 0.01781903586 | AJ99: 0.0788558082 | AK99: 0.5023080564 | AL99: 6.192980497
A100: Hastighetssänkning 90 till 802 körfält8-10 m5500Riket2060 | B100: Hastighetssänkning 90 till 80 | C100: 2 körfält | D100: 8-10 m | G100: 5500 | H100: Riket | I100: 2060 | L100: 2.604275 | M100: 0.30222 | N100: 2.906495 | O100: 30.04420221 | P100: 3.7002336 | Q100: 33.74443581 | R100: 2.550845395 | S100: 1.695293131 | T100: 4.246138526 | U100: 129.6798093 | V100: 42.10168991 | W100: 87.57811939 | X100: 0.005957886671 | Y100: 0.08489583684 | Z100: 0.5574859136 | AA100: 0.6423817504 | AB100: 345.1309443 | AC100: 22.97779474 | AD100: 305281.982 | AE100: 1.349975387 | AF100: 4.379112805 | AG100: 0.07693074817 | AH100: 0.3629941728 | AI100: 0.0181016674 | AJ100: 0.08306987327 | AK100: 0.5412102097 | AL100: 7.011725762
A101: =CONCATENATE(B101,C101,D101,E101,F101,G101,H101,I101) -> Hastighetssänkning 90 till 802 körfält8-10 m5500Ingen2014 | B101: Hastighetssänkning 90 till 80 | C101: 2 körfält | D101: 8-10 m | G101: 5500 | H101: Ingen | I101: 2014 | L101: 1.8469 | M101: 0.1606 | N101: 2.0075 | O101: 20.88118511 | P101: 1.950242688 | Q101: 22.8314278 | R101: 1.809277087 | S101: 0.9007617171 | T101: 2.710038804 | U101: 137.4826976 | V101: 57.54685336 | W101: 79.9358442 | X101: 0.01038296889 | Y101: 0.09273248426 | Z101: 0.391920453 | AA101: 0.4846529373 | AB101: 2674.073318 | AC101: 212.7611123 | AD101: 320393.8329 | AE101: 1.475709354 | AF101: 55.09217315 | AG101: 0.0405885037 | AH101: 0.2751125473 | AI101: 0.01535052118 | AJ101: 0.06464302683 | AK101: 0.4046593893 | AL101: 4.754740234
A102: Hastighetssänkning 90 till 802 körfält8-10 m5500Ingen2040 | B102: Hastighetssänkning 90 till 80 | C102: 2 körfält | D102: 8-10 m | G102: 5500 | H102: Ingen | I102: 2040 | L102: 1.8469 | M102: 0.1606 | N102: 2.0075 | O102: 20.88118511 | P102: 1.950242688 | Q102: 22.8314278 | R102: 1.809495342 | S102: 0.9008375605 | T102: 2.710332902 | U102: 81.68438639 | V102: 30.26892449 | W102: 51.4154619 | X102: 0.006140440403 | Y102: 0.0714080139 | Z102: 0.391920453 | AA102: 0.4633284669 | AB102: 345.1309443 | AC102: 22.97779474 | AD102: 191347.4488 | AE102: 0.8632486311 | AF102: 4.379112805 | AG102: 0.0405885037 | AH102: 0.2751125473 | AI102: 0.01342427365 | AJ102: 0.05940736392 | AK102: 0.3904968293 | AL102: 5.008267935
A103: Hastighetssänkning 90 till 802 körfält8-10 m5500Ingen2060 | B103: Hastighetssänkning 90 till 80 | C103: 2 körfält | D103: 8-10 m | G103: 5500 | H103: Ingen | I103: 2060 | L103: 1.8469 | M103: 0.1606 | N103: 2.0075 | O103: 20.88118511 | P103: 1.950242688 | Q103: 22.8314278 | R103: 1.809495342 | S103: 0.9008375605 | T103: 2.710332902 | U103: 81.68438639 | V103: 30.26892449 | W103: 51.4154619 | X103: 0.004099406963 | Y103: 0.05840510997 | Z103: 0.391920453 | AA103: 0.450325563 | AB103: 345.1309443 | AC103: 22.97779474 | AD103: 191347.4488 | AE103: 0.8632486311 | AF103: 4.379112805 | AG103: 0.0405885037 | AH103: 0.2751125473 | AI103: 0.01224971638 | AJ103: 0.05621484281 | AK103: 0.3818610038 | AL103: 5.212451002
A104: =CONCATENATE(B104,C104,D104,E104,F104,G104,H104,I104) -> Hastighetssänkning 90 till 802 körfält10,1-11,5 m6000Hög2014 | B104: Hastighetssänkning 90 till 80 | C104: 2 körfält | D104: 10,1-11,5 m | G104: 6000 | H104: Hög | I104: 2014 | L104: 2.0148 | M104: 0.1752 | N104: 2.19 | O104: 22.78555277 | P104: 2.156986348 | Q104: 24.94253912 | R104: 1.973749639 | S104: 0.982800997 | T104: 2.956550636 | U104: 149.545837 | V104: 62.76750823 | W104: 86.77832876 | X104: 0.01212138851 | Y104: 0.08348644926 | Z104: 0.4201785331 | AA104: 0.5036649823 | AB104: 2617.914956 | AC104: 210.0006487 | AD104: 348471.705 | AE104: 1.605859546 | AF104: 64.8880423 | AG104: 0.04492793602 | AH104: 0.2905640773 | AI104: 0.01506685195 | AJ104: 0.06567819114 | AK104: 0.4229199392 | AL104: 4.919124923
A105: Hastighetssänkning 90 till 802 körfält10,1-11,5 m6000Hög2040 | B105: Hastighetssänkning 90 till 80 | C105: 2 körfält | D105: 10,1-11,5 m | G105: 6000 | H105: Hög | I105: 2040 | L105: 2.92146 | M105: 0.30514 | N105: 3.2266 | O105: 33.37635003 | P105: 3.766416977 | Q105: 37.14276701 | R105: 2.861890452 | S105: 1.711937004 | T105: 4.573827456 | U105: 138.7554864 | V105: 47.54219338 | W105: 91.21329306 | X105: 0.01054012839 | Y105: 0.09413089115 | Z105: 0.6045287923 | AA105: 0.6986596835 | AB105: 341.0172353 | AC105: 23.90068987 | AD105: 326026.9547 | AE105: 1.453127425 | AF105: 5.462878177 | AG105: 0.07841801844 | AH105: 0.3875192277 | AI105: 0.01989533367 | AJ105: 0.09098235212 | AK105: 0.5877819977 | AL105: 7.046397259
A106: Hastighetssänkning 90 till 802 körfält10,1-11,5 m6000Hög2060 | B106: Hastighetssänkning 90 till 80 | C106: 2 körfält | D106: 10,1-11,5 m | G106: 6000 | H106: Hög | I106: 2060 | L106: 3.26383 | M106: 0.40661 | N106: 3.67044 | O106: 37.53345149 | P106: 5.026188852 | Q106: 42.55964035 | R106: 3.197001902 | S106: 2.281279938 | T106: 5.47828184 | U106: 168.2044247 | V106: 52.87803001 | W106: 115.3263947 | X106: 0.0080829358 | Y106: 0.08833586954 | Z106: 0.6902182456 | AA106: 0.7785541152 | AB106: 341.0172353 | AC106: 23.90068987 | AD106: 396421.7162 | AE106: 1.745152528 | AF106: 5.462878177 | AG106: 0.1046219419 | AH106: 0.4279265718 | AI106: 0.02112862818 | AJ106: 0.1000036669 | AK106: 0.6574218201 | AL106: 8.23589251
A107: =CONCATENATE(B107,C107,D107,E107,F107,G107,H107,I107) -> Hastighetssänkning 90 till 802 körfält10,1-11,5 m6000Riket2014 | B107: Hastighetssänkning 90 till 80 | C107: 2 körfält | D107: 10,1-11,5 m | G107: 6000 | H107: Riket | I107: 2014 | L107: 2.0148 | M107: 0.1752 | N107: 2.19 | O107: 22.78555277 | P107: 2.156986348 | Q107: 24.94253912 | R107: 1.973749639 | S107: 0.982800997 | T107: 2.956550636 | U107: 149.545837 | V107: 62.76750823 | W107: 86.77832876 | X107: 0.01212138851 | Y107: 0.08348644926 | Z107: 0.4201785331 | AA107: 0.5036649823 | AB107: 2617.914956 | AC107: 210.0006487 | AD107: 348471.705 | AE107: 1.605859546 | AF107: 64.8880423 | AG107: 0.04492793602 | AH107: 0.2905640773 | AI107: 0.01506685195 | AJ107: 0.06567819114 | AK107: 0.4229199392 | AL107: 4.919124923
A108: Hastighetssänkning 90 till 802 körfält10,1-11,5 m6000Riket2040 | B108: Hastighetssänkning 90 till 80 | C108: 2 körfält | D108: 10,1-11,5 m | G108: 6000 | H108: Riket | I108: 2040 | L108: 2.61924 | M108: 0.26134 | N108: 2.88058 | O108: 29.82280356 | P108: 3.222768853 | Q108: 33.04557241 | R108: 2.565948608 | S108: 1.466178809 | T108: 4.032127417 | U108: 122.0468962 | V108: 42.72172683 | W108: 79.32516941 | X108: 0.009413533045 | Y108: 0.08415914856 | Z108: 0.5429294093 | AA108: 0.6270885579 | AB108: 341.0172353 | AC108: 23.90068987 | AD108: 286538.6339 | AE108: 1.281255827 | AF108: 5.462878177 | AG108: 0.06710933186 | AH108: 0.3581261059 | AI108: 0.01770366604 | AJ108: 0.08095974688 | AK108: 0.5284251449 | AL108: 6.423227076
A109: Hastighetssänkning 90 till 802 körfält10,1-11,5 m6000Riket2060 | B109: Hastighetssänkning 90 till 80 | C109: 2 körfält | D109: 10,1-11,5 m | G109: 6000 | H109: Riket | I109: 2060 | L109: 2.840795 | M109: 0.32923 | N109: 3.170025 | O109: 32.46692489 | P109: 4.063055455 | Q109: 36.52998034 | R109: 2.782856387 | S109: 1.847083879 | T109: 4.629940266 | U109: 141.6565222 | V109: 46.21778155 | W109: 95.43874068 | X109: 0.006969948476 | Y109: 0.07626674687 | Z109: 0.5990639556 | AA109: 0.6753307025 | AB109: 341.0172353 | AC109: 23.90068987 | AD109: 333426.7891 | AE109: 1.475505208 | AF109: 5.462878177 | AG109: 0.08459654563 | AH109: 0.3849240418 | AI109: 0.01814203886 | AJ109: 0.08586787534 | AK109: 0.5713207883 | AL109: 7.276134276
A110: =CONCATENATE(B110,C110,D110,E110,F110,G110,H110,I110) -> Hastighetssänkning 90 till 802 körfält10,1-11,5 m6000Ingen2014 | B110: Hastighetssänkning 90 till 80 | C110: 2 körfält | D110: 10,1-11,5 m | G110: 6000 | H110: Ingen | I110: 2014 | L110: 2.0148 | M110: 0.1752 | N110: 2.19 | O110: 22.78555277 | P110: 2.156986348 | Q110: 24.94253912 | R110: 1.973749639 | S110: 0.982800997 | T110: 2.956550636 | U110: 149.545837 | V110: 62.76750823 | W110: 86.77832876 | X110: 0.01212138851 | Y110: 0.08348644926 | Z110: 0.4201785331 | AA110: 0.5036649823 | AB110: 2617.914956 | AC110: 210.0006487 | AD110: 348471.705 | AE110: 1.605859546 | AF110: 64.8880423 | AG110: 0.04492793602 | AH110: 0.2905640773 | AI110: 0.01506685195 | AJ110: 0.06567819114 | AK110: 0.4229199392 | AL110: 4.919124923
A111: Hastighetssänkning 90 till 802 körfält10,1-11,5 m6000Ingen2040 | B111: Hastighetssänkning 90 till 80 | C111: 2 körfält | D111: 10,1-11,5 m | G111: 6000 | H111: Ingen | I111: 2040 | L111: 2.0148 | M111: 0.1752 | N111: 2.19 | O111: 22.78555277 | P111: 2.156986348 | Q111: 24.94253912 | R111: 1.973987736 | S111: 0.9828833855 | T111: 2.956871121 | U111: 88.79532516 | V111: 33.01465323 | W111: 55.78067194 | X111: 0.007168533834 | Y111: 0.06428816802 | Z111: 0.4201785331 | AA111: 0.4844667011 | AB111: 341.0172353 | AC111: 23.90068987 | AD111: 207983.5039 | AE111: 0.9388355332 | AF111: 5.462878177 | AG111: 0.04492793602 | AH111: 0.2905640773 | AI111: 0.01333626644 | AJ111: 0.06098741088 | AK111: 0.4101430238 | AL111: 5.181417786
A112: Hastighetssänkning 90 till 802 körfält10,1-11,5 m6000Ingen2060 | B112: Hastighetssänkning 90 till 80 | C112: 2 körfält | D112: 10,1-11,5 m | G112: 6000 | H112: Ingen | I112: 2060 | L112: 2.0148 | M112: 0.1752 | N112: 2.19 | O112: 22.78555277 | P112: 2.156986348 | Q112: 24.94253912 | R112: 1.973987736 | S112: 0.9828833855 | T112: 2.956871121 | U112: 88.79532516 | V112: 33.01465323 | W112: 55.78067194 | X112: 0.004785770334 | Y112: 0.05258173863 | Z112: 0.4201785331 | AA112: 0.4727602717 | AB112: 341.0172353 | AC112: 23.90068987 | AD112: 207983.5039 | AE112: 0.9388355332 | AF112: 5.462878177 | AG112: 0.04492793602 | AH112: 0.2905640773 | AI112: 0.01228101692 | AJ112: 0.05812713984 | AK112: 0.4023521149 | AL112: 5.392660034
A113: =CONCATENATE(B113,C113,D113,E113,F113,G113,H113,I113) -> Hastighetssänkning 90 till 802 körfält10,1-11,5 m5500Hög2014 | B113: Hastighetssänkning 90 till 80 | C113: 2 körfält | D113: 10,1-11,5 m | G113: 5500 | H113: Hög | I113: 2014 | L113: 1.8469 | M113: 0.1606 | N113: 2.0075 | O113: 20.87782285 | P113: 1.976931955 | Q113: 22.85475481 | R113: 1.809281062 | S113: 0.9008983418 | T113: 2.710179404 | U113: 137.1129274 | V113: 57.55287295 | W113: 79.56005447 | X113: 0.01115540812 | Y113: 0.07691994357 | Z113: 0.3889425853 | AA113: 0.4658625289 | AB113: 2399.654771 | AC113: 192.4805086 | AD113: 319499.4321 | AE113: 1.47236327 | AF113: 59.48092841 | AG113: 0.04117858655 | AH113: 0.2751125473 | AI113: 0.01381128095 | AJ113: 0.06020500854 | AK113: 0.3918462394 | AL113: 4.619122866
A114: Hastighetssänkning 90 till 802 körfält10,1-11,5 m5500Hög2040 | B114: Hastighetssänkning 90 till 80 | C114: 2 körfält | D114: 10,1-11,5 m | G114: 5500 | H114: Hög | I114: 2040 | L114: 2.678005 | M114: 0.27959 | N114: 2.957595 | O114: 30.52265805 | P114: 3.44851777 | Q114: 33.97117582 | R114: 2.62348251 | S114: 1.568571494 | T114: 4.192054003 | U114: 127.3018163 | V114: 43.65035787 | W114: 83.65145847 | X114: 0.009687203161 | Y114: 0.0865814628 | Z114: 0.5578929988 | AA114: 0.6444744616 | AB114: 312.5791828 | AC114: 21.90803682 | AD114: 299105.5774 | AE114: 1.333281227 | AF114: 5.007830083 | AG114: 0.07180785643 | AH114: 0.3652954271 | AI114: 0.01823606122 | AJ114: 0.08339441657 | AK114: 0.5428439838 | AL114: 6.574606235
A115: Hastighetssänkning 90 till 802 körfält10,1-11,5 m5500Hög2060 | B115: Hastighetssänkning 90 till 80 | C115: 2 körfält | D115: 10,1-11,5 m | G115: 5500 | H115: Hög | I115: 2060 | L115: 2.991905 | M115: 0.3723 | N115: 3.364205 | O115: 34.28811408 | P115: 4.59694982 | Q115: 38.8850639 | R115: 2.930777536 | S115: 2.088740272 | T115: 5.019517808 | U115: 154.3274943 | V115: 48.58560486 | W115: 105.7418895 | X115: 0.007425306668 | Y115: 0.08120460534 | Z115: 0.6363580486 | AA115: 0.7175626539 | AB115: 312.5791828 | AC115: 21.90803682 | AD115: 363697.0076 | AE115: 1.601399887 | AF115: 5.007830083 | AG115: 0.09570464325 | AH115: 0.4025895765 | AI115: 0.01936394668 | AJ115: 0.09165127318 | AK115: 0.6065474341 | AL115: 7.668801618
A116: =CONCATENATE(B116,C116,D116,E116,F116,G116,H116,I116) -> Hastighetssänkning 90 till 802 körfält10,1-11,5 m5500Riket2014 | B116: Hastighetssänkning 90 till 80 | C116: 2 körfält | D116: 10,1-11,5 m | G116: 5500 | H116: Riket | I116: 2014 | L116: 2.0148 | M116: 0.1752 | N116: =SUM(L116:M116) -> 2.19 | O116: 22.78555277 | P116: 2.156986348 | Q116: =SUM(O116:P116) -> 24.94253912 | R116: 1.973749639 | S116: 0.982800997 | T116: =SUM(R116:S116) -> 2.956550636 | U116: 149.545837 | V116: 62.76750823 | W116: 86.77832876 | X116: 0.01212138851 | Y116: 0.08348644926 | Z116: 0.4201785331 | AA116: =SUM(Y116:Z116) -> 0.5036649823 | AB116: 2617.914956 | AC116: 210.0006487 | AD116: 348471.705 | AE116: 1.605859546 | AF116: 64.8880423 | AG116: 0.04492793602 | AH116: 0.2905640773 | AI116: 0.01506685195 | AJ116: 0.06567819114 | AK116: 0.4229199392 | AL116: 4.919124923
A117: Hastighetssänkning 90 till 802 körfält10,1-11,5 m5500Riket2040 | B117: Hastighetssänkning 90 till 80 | C117: 2 körfält | D117: 10,1-11,5 m | G117: 5500 | H117: Riket | I117: 2040 | L117: 2.61924 | M117: 0.26134 | N117: 2.88058 | O117: 29.82280356 | P117: 3.222768853 | Q117: 33.04557241 | R117: 2.565948608 | S117: 1.466178809 | T117: 4.032127417 | U117: 122.0468962 | V117: 42.72172683 | W117: 79.32516941 | X117: 0.009413533045 | Y117: 0.08415914856 | Z117: 0.5429294093 | AA117: 0.6270885579 | AB117: 341.0172353 | AC117: 23.90068987 | AD117: 286538.6339 | AE117: 1.281255827 | AF117: 5.462878177 | AG117: 0.06710933186 | AH117: 0.3581261059 | AI117: 0.01770366604 | AJ117: 0.08095974688 | AK117: 0.5284251449 | AL117: 6.423227076
A118: Hastighetssänkning 90 till 802 körfält10,1-11,5 m5500Riket2060 | B118: Hastighetssänkning 90 till 80 | C118: 2 körfält | D118: 10,1-11,5 m | G118: 5500 | H118: Riket | I118: 2060 | L118: 2.840795 | M118: 0.32923 | N118: 3.170025 | O118: 32.46692489 | P118: 4.063055455 | Q118: 36.52998034 | R118: 2.782856387 | S118: 1.847083879 | T118: 4.629940266 | U118: 141.6565222 | V118: 46.21778155 | W118: 95.43874068 | X118: 0.006969948476 | Y118: 0.07626674687 | Z118: 0.5990639556 | AA118: 0.6753307025 | AB118: 341.0172353 | AC118: 23.90068987 | AD118: 333426.7891 | AE118: 1.475505208 | AF118: 5.462878177 | AG118: 0.08459654563 | AH118: 0.3849240418 | AI118: 0.01814203886 | AJ118: 0.08586787534 | AK118: 0.5713207883 | AL118: 7.276134276
A119: =CONCATENATE(B119,C119,D119,E119,F119,G119,H119,I119) -> Hastighetssänkning 90 till 802 körfält10,1-11,5 m5500Ingen2014 | B119: Hastighetssänkning 90 till 80 | C119: 2 körfält | D119: 10,1-11,5 m | G119: 5500 | H119: Ingen | I119: 2014 | L119: 1.8469 | M119: 0.1606 | N119: 2.0075 | O119: 20.87782285 | P119: 1.976931955 | Q119: 22.85475481 | R119: 1.809281062 | S119: 0.9008983418 | T119: 2.710179404 | U119: 137.1129274 | V119: 57.55287295 | W119: 79.56005447 | X119: 0.01115540812 | Y119: 0.07691994357 | Z119: 0.3889425853 | AA119: 0.4658625289 | AB119: 2399.654771 | AC119: 192.4805086 | AD119: 319499.4321 | AE119: 1.47236327 | AF119: 59.48092841 | AG119: 0.04117858655 | AH119: 0.2751125473 | AI119: 0.01381128095 | AJ119: 0.06020500854 | AK119: 0.3918462394 | AL119: 4.619122866
A120: Hastighetssänkning 90 till 802 körfält10,1-11,5 m5500Ingen2040 | B120: Hastighetssänkning 90 till 80 | C120: 2 körfält | D120: 10,1-11,5 m | G120: 5500 | H120: Ingen | I120: 2040 | L120: 1.8469 | M120: 0.1606 | N120: 2.0075 | O120: 20.87782285 | P120: 1.976931955 | Q120: 22.85475481 | R120: 1.809499317 | S120: 0.9009738695 | T120: 2.710473187 | U120: 81.41251987 | V120: 30.27224035 | W120: 51.14027952 | X120: 0.006597257439 | Y120: 0.05923167532 | Z120: 0.3889425853 | AA120: 0.4481742606 | AB120: 312.5791828 | AC120: 21.90803682 | AD120: 190690.1366 | AE120: 0.8607846529 | AF120: 5.007830083 | AG120: 0.04117858655 | AH120: 0.2751125473 | AI120: 0.0122249109 | AJ120: 0.05590512664 | AK120: 0.3800442231 | AL120: 4.865419308
A121: Hastighetssänkning 90 till 802 körfält10,1-11,5 m5500Ingen2060 | B121: Hastighetssänkning 90 till 80 | C121: 2 körfält | D121: 10,1-11,5 m | G121: 5500 | H121: Ingen | I121: 2060 | L121: 1.8469 | M121: 0.1606 | N121: 2.0075 | O121: 20.87782285 | P121: 1.976931955 | Q121: 22.85475481 | R121: 1.809499317 | S121: 0.9009738695 | T121: 2.710473187 | U121: 81.41251987 | V121: 30.27224035 | W121: 51.14027952 | X121: 0.004404381658 | Y121: 0.04844599817 | Z121: 0.3889425853 | AA121: 0.4373885835 | AB121: 312.5791828 | AC121: 21.90803682 | AD121: 190690.1366 | AE121: 0.8607846529 | AF121: 5.007830083 | AG121: 0.04117858655 | AH121: 0.2751125473 | AI121: 0.01125759884 | AJ121: 0.05328321152 | AK121: 0.3728477731 | AL121: 5.063778551
A122: =CONCATENATE(B122,C122,D122,E122,F122,G122,H122,I122) -> ATK2 körfält>11,5 m1006000Hög2014 | B122: ATK | C122: 2 körfält | D122: >11,5 m | E122: 100 | G122: 6000 | H122: Hög | I122: 2014 | L122: 2.0148 | M122: 0.1752 | N122: =SUM(L122:M122) -> 2.19 | O122: 21.11178492 | P122: 2.048248726 | Q122: =SUM(O122:P122) -> 23.16003365 | R122: 1.976876934 | S122: 0.9823853747 | T122: =SUM(R122:S122) -> 2.959262309 | U122: 157.3110076 | V122: 66.28667571 | W122: 91.0243319 | X122: 0.008971392314 | Y122: 0.1502338238 | Z122: 0.4487938082 | AA122: =SUM(Y122:Z122) -> 0.599027632 | AB122: 2741.52745 | AC122: 221.8243701 | AD122: 366437.6465 | AE122: 1.689591923 | AF122: 71.5483008 | AG122: 0.04326607369 | AH122: 0.3299748171 | AI122: 0.02220973612 | AJ122: 0.08837978103 | AK122: 0.4884381148 | AL122: 6.151383664
A123: ATK2 körfält>11,5 m1006000Hög2040 | B123: ATK | C123: 2 körfält | D123: >11,5 m | E123: 100 | G123: 6000 | H123: Hög | I123: 2040 | L123: 2.92146 | M123: 0.30514 | N123: 3.2266 | O123: 30.98990658 | P123: 3.579408992 | Q123: 34.56931557 | R123: 2.865983329 | S123: 1.711141791 | T123: 4.57712512 | U123: 145.5587567 | V123: 50.15056069 | W123: 95.40819603 | X123: 0.007801386249 | Y123: 0.1714124764 | Z123: 0.6549033407 | AA123: 0.8263158171 | AB123: 377.1013135 | AC123: 24.42178809 | AD123: 341862.0315 | AE123: 1.52463164 | AF123: 5.615006495 | AG123: 0.07555341419 | AH123: 0.4406546154 | AI123: 0.02839860407 | AJ123: 0.1188442125 | AK123: 0.6790730006 | AL123: 8.799748431
A124: ATK2 körfält>11,5 m1006000Hög2060 | B124: ATK | C124: 2 körfält | D124: >11,5 m | E124: 100 | G124: 6000 | H124: Hög | I124: 2060 | L124: 3.26383 | M124: 0.40661 | N124: 3.67044 | O124: 34.84333983 | P124: 4.77881631 | Q124: 39.62215614 | R124: 3.201374737 | S124: 2.280164638 | T124: 5.481539375 | U124: 176.2431229 | V124: 55.76122048 | W124: 120.4819024 | X124: 0.005982739221 | Y124: 0.1613852598 | Z124: 0.7507069118 | AA124: 0.9120921716 | AB124: 377.1013135 | AC124: 24.42178809 | AD124: 415170.6478 | AE124: 1.828852825 | AF124: 5.615006495 | AG124: 0.1008275326 | AH124: 0.4874256872 | AI124: 0.02942119878 | AJ124: 0.1279124473 | AK124: 0.7547585255 | AL124: 10.28102858
A125: ATK2 körfält>11,5 m1006000Riket2014 | B125: ATK | C125: 2 körfält | D125: >11,5 m | E125: 100 | G125: 6000 | H125: Riket | I125: 2014 | L125: 2.0148 | M125: 0.1752 | N125: 2.19 | O125: 21.11178492 | P125: 2.048248726 | Q125: 23.16003365 | R125: 1.976876934 | S125: 0.9823853747 | T125: 2.959262309 | U125: 157.3110076 | V125: 66.28667571 | W125: 91.0243319 | X125: 0.008971392314 | Y125: 0.1502338238 | Z125: 0.4487938082 | AA125: 0.599027632 | AB125: 2741.52745 | AC125: 221.8243701 | AD125: 366437.6465 | AE125: 1.689591923 | AF125: 71.5483008 | AG125: 0.04326607369 | AH125: 0.3299748171 | AI125: 0.02220973612 | AJ125: 0.08837978103 | AK125: 0.4884381148 | AL125: 6.151383664
A126: ATK2 körfält>11,5 m1006000Riket2040 | B126: ATK | C126: 2 körfält | D126: >11,5 m | E126: 100 | G126: 6000 | H126: Riket | I126: 2040 | L126: 2.61924 | M126: 0.26134 | N126: 2.88058 | O126: 27.66215191 | P126: 3.061855316 | Q126: 30.72400723 | R126: 2.569768559 | S126: 1.465520944 | T126: 4.035289503 | U126: 128.1554772 | V126: 45.11073757 | W126: 83.04473963 | X126: 0.0069674498 | Y126: 0.1527920299 | Z126: 0.5860332448 | AA126: 0.7388252747 | AB126: 377.1013135 | AC126: 24.42178809 | AD126: 300748.1154 | AE126: 1.34564846 | AF126: 5.615006495 | AG126: 0.06464654268 | AH126: 0.4066812411 | AI126: 0.02527021718 | AJ126: 0.105752348 | AK126: 0.6078027095 | AL126: 8.024413748
A127: ATK2 körfält>11,5 m1006000Riket2060 | B127: ATK | C127: 2 körfält | D127: >11,5 m | E127: 100 | G127: 6000 | H127: Riket | I127: 2060 | L127: 2.840795 | M127: 0.32923 | N127: 3.170025 | O127: 30.109125 | P127: 3.861105733 | Q127: 33.97023073 | R127: 2.786904696 | S127: 1.846231331 | T127: 4.633136027 | U127: 148.6310212 | V127: 48.79625909 | W127: 99.83476214 | X127: 0.0051588758 | Y127: 0.1388483309 | Z127: 0.6487934772 | AA127: 0.7876418081 | AB127: 377.1013135 | AC127: 24.42178809 | AD127: 349680.1038 | AE127: 1.548441355 | AF127: 5.615006495 | AG127: 0.08150356562 | AH127: 0.4376532896 | AI127: 0.02526243194 | AJ127: 0.1098316734 | AK127: 0.6525477027 | AL127: 9.086918419
A128: ATK2 körfält>11,5 m1006000Ingen2014 | B128: ATK | C128: 2 körfält | D128: >11,5 m | E128: 100 | G128: 6000 | H128: Ingen | I128: 2014 | L128: 2.0148 | M128: 0.1752 | N128: 2.19 | O128: 21.11178492 | P128: 2.048248726 | Q128: 23.16003365 | R128: 1.976876934 | S128: 0.9823853747 | T128: 2.959262309 | U128: 157.3110076 | V128: 66.28667571 | W128: 91.0243319 | X128: 0.008971392314 | Y128: 0.1502338238 | Z128: 0.4487938082 | AA128: 0.599027632 | AB128: 2741.52745 | AC128: 221.8243701 | AD128: 366437.6465 | AE128: 1.689591923 | AF128: 71.5483008 | AG128: 0.04326607369 | AH128: 0.3299748171 | AI128: 0.02220973612 | AJ128: 0.08837978103 | AK128: 0.4884381148 | AL128: 6.151383664
A129: ATK2 körfält>11,5 m1006000Ingen2040 | B129: ATK | C129: 2 körfält | D129: >11,5 m | E129: 100 | G129: 6000 | H129: Ingen | I129: 2040 | L129: 2.0148 | M129: 0.1752 | N129: 2.19 | O129: 21.11178492 | P129: 2.048248726 | Q129: 23.16003365 | R129: 1.97711543 | S129: 0.982469857 | T129: 2.959585287 | U129: 93.39193133 | V129: 34.90579835 | W129: 58.48613298 | X129: 0.005305640462 | Y129: 0.1156865263 | Z129: 0.4487938082 | AA129: 0.5644803344 | AB129: 377.1013135 | AC129: 24.42178809 | AD129: 218657.8604 | AE129: 0.9876602455 | AF129: 5.615006495 | AG129: 0.04326607369 | AH129: 0.3299748171 | AI129: 0.01903618993 | AJ129: 0.07966381006 | AK129: 0.4657803344 | AL129: 6.479381847
A130: ATK2 körfält>11,5 m1006000Ingen2060 | B130: ATK | C130: 2 körfält | D130: >11,5 m | E130: 100 | G130: 6000 | H130: Ingen | I130: 2060 | L130: 2.0148 | M130: 0.1752 | N130: 2.19 | O130: 21.11178492 | P130: 2.048248726 | Q130: 23.16003365 | R130: 1.97711543 | S130: 0.982469857 | T130: 2.959585287 | U130: 93.39193133 | V130: 34.90579835 | W130: 58.48613298 | X130: 0.003542087868 | Y130: 0.09462081243 | Z130: 0.4487938082 | AA130: 0.5434146206 | AB130: 377.1013135 | AC130: 24.42178809 | AD130: 218657.8604 | AE130: 0.9876602455 | AF130: 5.615006495 | AG130: 0.04326607369 | AH130: 0.3299748171 | AI130: 0.01710107428 | AJ130: 0.07434912082 | AK130: 0.4519644255 | AL130: 6.743541048
A131: ATK2 körfält>11,5 m1005500Hög2014 | B131: ATK | C131: 2 körfält | D131: >11,5 m | E131: 100 | G131: 5500 | H131: Hög | I131: 2014 | L131: 1.8469 | M131: 0.1606 | N131: 2.0075 | O131: 19.33485109 | P131: 1.877179946 | Q131: 21.21203103 | R131: 1.812176771 | S131: 0.9005197563 | T131: 2.712696527 | U131: 144.2756459 | V131: 60.80374963 | W131: 83.47189624 | X131: 0.008256347414 | Y131: 0.1379720484 | Z131: 0.4138710116 | AA131: 0.55184306 | AB131: 2512.998135 | AC131: 203.3217264 | AD131: 336070.6547 | AE131: 1.549618702 | AF131: 65.58818079 | AG131: 0.03965426275 | AH131: 0.3121919034 | AI131: 0.02035892478 | AJ131: 0.08101479928 | AK131: 0.450469336 | AL131: 5.778127681
A132: ATK2 körfält>11,5 m1005500Hög2040 | B132: ATK | C132: 2 körfält | D132: >11,5 m | E132: 100 | G132: 5500 | H132: Hög | I132: 2040 | L132: 2.678005 | M132: 0.27959 | N132: 2.957595 | O132: 28.30941536 | P132: 3.276538759 | Q132: 31.58595411 | R132: 2.627365166 | S132: 1.567862315 | T132: 4.195227481 | U132: 133.6448462 | V132: 46.09034796 | W132: 87.55449827 | X132: 0.007170027847 | Y132: 0.1573152687 | Z132: 0.6027630202 | AA132: 0.7600782889 | AB132: 345.6706585 | AC132: 22.38626424 | AD132: 313868.5376 | AE132: 1.399986164 | AF132: 5.147320237 | AG132: 0.06917523532 | AH132: 0.4149636585 | AI132: 0.02603015819 | AJ132: 0.1089325955 | AK132: 0.6251155352 | AL132: 8.21275638
A133: ATK2 körfält>11,5 m1005500Hög2060 | B133: ATK | C133: 2 körfält | D133: >11,5 m | E133: 100 | G133: 5500 | H133: Hög | I133: 2060 | L133: 2.991905 | M133: 0.3723 | N133: 3.364205 | O133: 31.78801736 | P133: 4.369173876 | Q133: 36.15719123 | R133: 2.934980444 | S133: 2.087758108 | T133: 5.022738552 | U133: 161.8641169 | V133: 51.29839886 | W133: 110.565718 | X133: 0.005495944291 | Y133: 0.1480688988 | Z133: 0.6904894753 | AA133: 0.8385583741 | AB133: 345.6706585 | AC133: 22.38626424 | AD133: 381274.5655 | AE133: 1.679923946 | AF133: 5.147320237 | AG133: 0.09221443969 | AH133: 0.4580897493 | AI133: 0.02696391453 | AJ133: 0.1172290879 | AK133: 0.6943653717 | AL133: 9.575466519
A134: ATK2 körfält>11,5 m1005500Riket2014 | B134: ATK | C134: 2 körfält | D134: >11,5 m | E134: 100 | G134: 5500 | H134: Riket | I134: 2014 | L134: 1.8469 | M134: 0.1606 | N134: 2.0075 | O134: 19.33485109 | P134: 1.877179946 | Q134: 21.21203103 | R134: 1.812176771 | S134: 0.9005197563 | T134: 2.712696527 | U134: 144.2756459 | V134: 60.80374963 | W134: 83.47189624 | X134: 0.008256347414 | Y134: 0.1379720484 | Z134: 0.4138710116 | AA134: 0.55184306 | AB134: 2512.998135 | AC134: 203.3217264 | AD134: 336070.6547 | AE134: 1.549618702 | AF134: 65.58818079 | AG134: 0.03965426275 | AH134: 0.3121919034 | AI134: 0.02035892478 | AJ134: 0.08101479928 | AK134: 0.450469336 | AL134: 5.778127681
A135: ATK2 körfält>11,5 m1005500Riket2040 | B135: ATK | C135: 2 körfält | D135: >11,5 m | E135: 100 | G135: 5500 | H135: Riket | I135: 2040 | L135: 2.40097 | M135: 0.23944 | N135: 2.64041 | O135: 25.27784572 | P135: 2.802863569 | Q135: 28.08070929 | R135: 2.355795772 | S135: 1.342710555 | T135: 3.698506327 | U135: 117.6442075 | V135: 41.44841028 | W135: 76.19579725 | X135: 0.006405586101 | Y135: 0.140246526 | Z135: 0.539632099 | AA135: 0.679878625 | AB135: 345.6706585 | AC135: 22.38626424 | AD135: 276070.5965 | AE135: 1.235401909 | AF135: 5.147320237 | AG135: 0.05918953395 | AH135: 0.3756777738 | AI135: 0.0231624702 | AJ135: 0.09693171973 | AK135: 0.5597844351 | AL135: 7.50203292
A136: ATK2 körfält>11,5 m1005500Riket2060 | B136: ATK | C136: 2 körfält | D136: >11,5 m | E136: 100 | G136: 5500 | H136: Riket | I136: 2060 | L136: 2.604275 | M136: 0.30222 | N136: 2.906495 | O136: 27.50955449 | P136: 3.541009502 | Q136: 31.05056399 | R136: 2.555074242 | S136: 1.694764566 | T136: 4.249838808 | U136: 136.5783285 | V136: 44.84634579 | W136: 91.73198275 | X136: 0.004743316589 | Y136: 0.1274806355 | Z136: 0.5973880312 | AA136: 0.7248686667 | AB136: 345.6706585 | AC136: 22.38626424 | AD136: 321321.1254 | AE136: 1.422890255 | AF136: 5.147320237 | AG136: 0.07476222076 | AH136: 0.4123048198 | AI136: 0.02316473732 | AJ136: 0.1007116761 | AK136: 0.6009922533 | AL136: 8.484605628
A137: ATK2 körfält>11,5 m1005500Ingen2014 | B137: ATK | C137: 2 körfält | D137: >11,5 m | E137: 100 | G137: 5500 | H137: Ingen | I137: 2014 | L137: 1.8469 | M137: 0.1606 | N137: 2.0075 | O137: 19.33485109 | P137: 1.877179946 | Q137: 21.21203103 | R137: 1.812176771 | S137: 0.9005197563 | T137: 2.712696527 | U137: 144.2756459 | V137: 60.80374963 | W137: 83.47189624 | X137: 0.008256347414 | Y137: 0.1379720484 | Z137: 0.4138710116 | AA137: 0.55184306 | AB137: 2512.998135 | AC137: 203.3217264 | AD137: 336070.6547 | AE137: 1.549618702 | AF137: 65.58818079 | AG137: 0.03965426275 | AH137: 0.3121919034 | AI137: 0.02035892478 | AJ137: 0.08101479928 | AK137: 0.450469336 | AL137: 5.778127681
A138: ATK2 körfält>11,5 m1005500Ingen2040 | B138: ATK | C138: 2 körfält | D138: >11,5 m | E138: 100 | G138: 5500 | H138: Ingen | I138: 2040 | L138: 1.8469 | M138: 0.1606 | N138: 2.0075 | O138: 19.33485109 | P138: 1.877179946 | Q138: 21.21203103 | R138: 1.812395398 | S138: 0.9005972058 | T138: 2.712992604 | U138: 85.65047309 | V138: 32.01885159 | W138: 53.6316215 | X138: 0.004882766172 | Y138: 0.1062444302 | Z138: 0.4138710116 | AA138: 0.5201154418 | AB138: 345.6706585 | AC138: 22.38626424 | AD138: 200531.0892 | AE138: 0.9058122309 | AF138: 5.147320237 | AG138: 0.03965426275 | AH138: 0.3121919034 | AI138: 0.01744984077 | AJ138: 0.07302515923 | AK138: 0.4296404418 | AL138: 6.086223466
A139: ATK2 körfält>11,5 m1005500Ingen2060 | B139: ATK | C139: 2 körfält | D139: >11,5 m | E139: 100 | G139: 5500 | H139: Ingen | I139: 2060 | L139: 1.8469 | M139: 0.1606 | N139: 2.0075 | O139: 19.33485109 | P139: 1.877179946 | Q139: 21.21203103 | R139: 1.812395398 | S139: 0.9005972058 | T139: 2.712992604 | U139: 85.65047309 | V139: 32.01885159 | W139: 53.6316215 | X139: 0.00325977362 | Y139: 0.08689805652 | Z139: 0.4138710116 | AA139: 0.5007690682 | AB139: 345.6706585 | AC139: 22.38626424 | AD139: 200531.0892 | AE139: 0.9058122309 | AF139: 5.147320237 | AG139: 0.03965426275 | AH139: 0.3121919034 | AI139: 0.01567598476 | AJ139: 0.06815336076 | AK139: 0.4169397226 | AL139: 6.334353916
A140: ATK2 körfält>11,5 m1005000Hög2014 | B140: ATK | C140: 2 körfält | D140: >11,5 m | E140: 100 | G140: 5000 | H140: Hög | I140: 2014 | L140: 1.679 | M140: 0.146 | N140: 1.825 | O140: 17.56274571 | P140: 1.706215226 | Q140: 19.26896094 | R140: 1.647465835 | S140: 0.8186541965 | T140: 2.466120032 | U140: 131.2201393 | V140: 55.30965511 | W140: 75.91048417 | X140: 0.007541302513 | Y140: 0.125710273 | Z140: 0.3789482151 | AA140: 0.5046584881 | AB140: 2284.543759 | AC140: 184.8379331 | AD140: 305657.4579 | AE140: 1.409420264 | AF140: 59.6256189 | AG140: 0.03604415207 | AH140: 0.2942714249 | AI140: 0.01850811344 | AJ140: 0.07364981753 | AK140: 0.4125005571 | AL140: 5.404871698
A141: ATK2 körfält>11,5 m1005000Hög2040 | B141: ATK | C141: 2 körfält | D141: >11,5 m | E141: 100 | G141: 5000 | H141: Hög | I141: 2040 | L141: 2.43455 | M141: 0.25404 | N141: 2.68859 | O141: 25.64647621 | P141: 2.974254382 | Q141: 28.62073059 | R141: 2.388710545 | S141: 1.424583412 | T141: 3.813293958 | U141: 121.6885041 | V141: 42.00957664 | W141: 79.67892747 | X141: 0.006538669444 | Y141: 0.1432180609 | Z141: 0.5506226997 | AA141: 0.6938407607 | AB141: 314.2460532 | AC141: 20.3511493 | AD141: 285777.0789 | AE141: 1.274877453 | AF141: 4.679382034 | AG141: 0.06280663289 | AH141: 0.3890829366 | AI141: 0.0236617123 | AJ141: 0.09902097856 | AK141: 0.5711580698 | AL141: 7.625764328
A142: ATK2 körfält>11,5 m1005000Hög2060 | B142: ATK | C142: 2 körfält | D142: >11,5 m | E142: 100 | G142: 5000 | H142: Hög | I142: 2060 | L142: 2.71998 | M142: 0.33872 | N142: 3.0587 | O142: 28.78540858 | P142: 3.970745136 | Q142: 32.75615372 | R142: 2.668475816 | S142: 1.89944756 | T142: 4.567923376 | U142: 147.4999208 | V142: 46.77348761 | W142: 100.7264332 | X142: 0.005011173402 | Y142: 0.1348079058 | Z142: 0.6305224163 | AA142: 0.7653303221 | AB142: 314.2460532 | AC142: 20.3511493 | AD142: 347430.9826 | AE142: 1.530925272 | AF142: 4.679382034 | AG142: 0.08382566226 | AH142: 0.4286638058 | AI142: 0.0245168474 | AJ142: 0.1065901486 | AK142: 0.6342233261 | AL142: 8.872838112
A143: ATK2 körfält>11,5 m1005000Riket2014 | B143: ATK | C143: 2 körfält | D143: >11,5 m | E143: 100 | G143: 5000 | H143: Riket | I143: 2014 | L143: 1.679 | M143: 0.146 | N143: 1.825 | O143: 17.56274571 | P143: 1.706215226 | Q143: 19.26896094 | R143: 1.647465835 | S143: 0.8186541965 | T143: 2.466120032 | U143: 131.2201393 | V143: 55.30965511 | W143: 75.91048417 | X143: 0.007541302513 | Y143: 0.125710273 | Z143: 0.3789482151 | AA143: 0.5046584881 | AB143: 2284.543759 | AC143: 184.8379331 | AD143: 305657.4579 | AE143: 1.409420264 | AF143: 59.6256189 | AG143: 0.03604415207 | AH143: 0.2942714249 | AI143: 0.01850811344 | AJ143: 0.07364981753 | AK143: 0.4125005571 | AL143: 5.404871698
A144: ATK2 körfält>11,5 m1005000Riket2040 | B144: ATK | C144: 2 körfält | D144: >11,5 m | E144: 100 | G144: 5000 | H144: Riket | I144: 2040 | L144: 2.1827 | M144: 0.21754 | N144: 2.40024 | O144: 22.90899964 | P144: 2.544329509 | Q144: 25.45332915 | R144: 2.141790184 | S144: 1.219900568 | T144: 3.361690752 | U144: 107.0960572 | V144: 37.76769102 | W144: 69.3283662 | X144: 0.005843722403 | Y144: 0.1277010221 | Z144: 0.4932309531 | AA144: 0.6209319753 | AB144: 314.2460532 | AC144: 20.3511493 | AD144: 251308.0427 | AE144: 1.124750765 | AF144: 4.679382034 | AG144: 0.05373999474 | AH144: 0.3524249217 | AI144: 0.02105472323 | AJ144: 0.08811109148 | AK144: 0.5117661606 | AL144: 6.979652092
A145: ATK2 körfält>11,5 m1005000Riket2060 | B145: ATK | C145: 2 körfält | D145: >11,5 m | E145: 100 | G145: 5000 | H145: Riket | I145: 2060 | L145: 2.36739 | M145: 0.27448 | N145: 2.64187 | O145: 24.92166067 | P145: 3.212953692 | Q145: 28.13461436 | R145: 2.322853449 | S145: 1.539204736 | T145: 3.862058185 | U145: 124.3189154 | V145: 40.87196646 | W145: 83.44694898 | X145: 0.004325207612 | Y145: 0.1160431909 | Z145: 0.5456671744 | AA145: 0.6617103653 | AB145: 314.2460532 | AC145: 20.3511493 | AD145: 292465.1704 | AE145: 1.295337897 | AF145: 4.679382034 | AG145: 0.06785001692 | AH145: 0.3786890057 | AI145: 0.02105417177 | AJ145: 0.09153572082 | AK145: 0.5491204727 | AL145: 7.878597198
A146: ATK2 körfält>11,5 m1005000Ingen2014 | B146: ATK | C146: 2 körfält | D146: >11,5 m | E146: 100 | G146: 5000 | H146: Ingen | I146: 2014 | L146: 1.679 | M146: 0.146 | N146: 1.825 | O146: 17.56274571 | P146: 1.706215226 | Q146: 19.26896094 | R146: 1.647465835 | S146: 0.8186541965 | T146: 2.466120032 | U146: 131.2201393 | V146: 55.30965511 | W146: 75.91048417 | X146: 0.007541302513 | Y146: 0.125710273 | Z146: 0.3789482151 | AA146: 0.5046584881 | AB146: 2284.543759 | AC146: 184.8379331 | AD146: 305657.4579 | AE146: 1.409420264 | AF146: 59.6256189 | AG146: 0.03604415207 | AH146: 0.2942714249 | AI146: 0.01850811344 | AJ146: 0.07364981753 | AK146: 0.4125005571 | AL146: 5.404871698
A147: ATK2 körfält>11,5 m1005000Ingen2040 | B147: ATK | C147: 2 körfält | D147: >11,5 m | E147: 100 | G147: 5000 | H147: Ingen | I147: 2040 | L147: 1.679 | M147: 0.146 | N147: 1.825 | O147: 17.56274571 | P147: 1.706215226 | Q147: 19.26896094 | R147: 1.647664592 | S147: 0.8187246111 | T147: 2.466389203 | U147: 77.8977815 | V147: 29.12594218 | W147: 48.77183931 | X147: 0.004459891882 | Y147: 0.09680233405 | Z147: 0.3789482151 | AA147: 0.4757505492 | AB147: 314.2460532 | AC147: 20.3511493 | AD147: 182378.4955 | AE147: 0.8238396268 | AF147: 4.679382034 | AG147: 0.03604415207 | AH147: 0.2942714249 | AI147: 0.01586349161 | AJ147: 0.06638650839 | AK147: 0.3935005492 | AL147: 5.693065086
A148: ATK2 körfält>11,5 m1005000Ingen2060 | B148: ATK | C148: 2 körfält | D148: >11,5 m | E148: 100 | G148: 5000 | H148: Ingen | I148: 2060 | L148: 1.679 | M148: 0.146 | N148: 1.825 | O148: 17.56274571 | P148: 1.706215226 | Q148: 19.26896094 | R148: 1.647664592 | S148: 0.8187246111 | T148: 2.466389203 | U148: 77.8977815 | V148: 29.12594218 | W148: 48.77183931 | X148: 0.002977459373 | Y148: 0.0791753006 | Z148: 0.3789482151 | AA148: 0.4581235157 | AB148: 314.2460532 | AC148: 20.3511493 | AD148: 182378.4955 | AE148: 0.8238396268 | AF148: 4.679382034 | AG148: 0.03604415207 | AH148: 0.2942714249 | AI148: 0.01425089523 | AJ148: 0.06195760069 | AK148: 0.3819150198 | AL148: 5.925166783
A149: ATK2 körfält>11,5 m1004500Hög2014 | B149: ATK | C149: 2 körfält | D149: >11,5 m | E149: 100 | G149: 4500 | H149: Hög | I149: 2014 | L149: 1.5111 | M149: 0.1314 | N149: 1.6425 | O149: 15.79698453 | P149: 1.535390845 | Q149: 17.33237538 | R149: 1.482740654 | S149: 0.7367887107 | T149: 2.219529365 | U149: 118.1379647 | V149: 49.80081593 | W149: 68.33714877 | X149: 0.006826257613 | Y149: 0.1134484975 | Z149: 0.3440254186 | AA149: 0.4574739162 | AB149: 2056.089383 | AC149: 166.3541398 | AD149: 275183.0858 | AE149: 1.26892383 | AF149: 53.66305701 | AG149: 0.03243633472 | AH149: 0.2761966535 | AI149: 0.01665730209 | AJ149: 0.06628483578 | AK149: 0.3745317783 | AL149: 5.031615716
A150: ATK2 körfält>11,5 m1004500Hög2040 | B150: ATK | C150: 2 körfält | D150: >11,5 m | E150: 100 | G150: 4500 | H150: Hög | I150: 2040 | L150: 2.191095 | M150: 0.22849 | N150: 2.419585 | O150: 23.00204529 | P150: 2.67256092 | Q150: 25.67460621 | R150: 2.150016818 | S150: 1.281305035 | T150: 3.431321853 | U150: 109.6874006 | V150: 37.90685376 | W150: 71.78054687 | X150: 0.005907311042 | Y150: 0.1291208532 | Z150: 0.4984823792 | AA150: 0.6276032324 | AB150: 282.8214479 | AC150: 18.31603437 | AD150: 257582.3341 | AE150: 1.149279081 | AF150: 4.21144383 | AG150: 0.05644768796 | AH150: 0.3550658518 | AI150: 0.02129326642 | AJ150: 0.0891093616 | AK150: 0.5172006044 | AL150: 7.038772277
A151: ATK2 körfält>11,5 m1004500Hög2060 | B151: ATK | C151: 2 körfält | D151: >11,5 m | E151: 100 | G151: 4500 | H151: Hög | I151: 2060 | L151: 2.448055 | M151: 0.30514 | N151: 2.753195 | O151: 25.80623978 | P151: 3.573203181 | Q151: 29.37944296 | R151: 2.401922591 | S151: 1.711137925 | T151: 4.113060516 | U151: 133.0773874 | V151: 42.22115906 | W151: 90.85622834 | X151: 0.004526402514 | Y151: 0.1215469128 | Z151: 0.5705553573 | AA151: 0.6921022702 | AB151: 282.8214479 | AC151: 18.31603437 | AD151: 313452.5306 | AE151: 1.381292918 | AF151: 4.21144383 | AG151: 0.07545133655 | AH151: 0.3990006142 | AI151: 0.02206978027 | AJ151: 0.09595120942 | AK151: 0.5740812805 | AL151: 8.170209704
A152: ATK2 körfält>11,5 m1004500Riket2014 | B152: ATK | C152: 2 körfält | D152: >11,5 m | E152: 100 | G152: 4500 | H152: Riket | I152: 2014 | L152: 1.5111 | M152: 0.1314 | N152: 1.6425 | O152: 15.79698453 | P152: 1.535390845 | Q152: 17.33237538 | R152: 1.482740654 | S152: 0.7367887107 | T152: 2.219529365 | U152: 118.1379647 | V152: 49.80081593 | W152: 68.33714877 | X152: 0.006826257613 | Y152: 0.1134484975 | Z152: 0.3440254186 | AA152: 0.4574739162 | AB152: 2056.089383 | AC152: 166.3541398 | AD152: 275183.0858 | AE152: 1.26892383 | AF152: 53.66305701 | AG152: 0.03243633472 | AH152: 0.2761966535 | AI152: 0.01665730209 | AJ152: 0.06628483578 | AK152: 0.3745317783 | AL152: 5.031615716
A153: ATK2 körfält>11,5 m1004500Riket2040 | B153: ATK | C153: 2 körfält | D153: >11,5 m | E153: 100 | G153: 4500 | H153: Riket | I153: 2040 | L153: 1.96443 | M153: 0.19564 | N153: 2.16007 | O153: 20.57990991 | P153: 2.287110738 | Q153: 22.86702065 | R153: 1.927696703 | S153: 1.097091296 | T153: 3.024788 | U153: 96.44821001 | V153: 34.03821477 | W153: 62.40999524 | X153: 0.005281858705 | Y153: 0.1151555183 | Z153: 0.4468298073 | AA153: 0.5619853256 | AB153: 282.8214479 | AC153: 18.31603437 | AD153: 226315.4054 | AE153: 1.013009467 | AF153: 4.21144383 | AG153: 0.04831212472 | AH153: 0.3289781391 | AI153: 0.01894697625 | AJ153: 0.07929046322 | AK153: 0.4637478861 | AL153: 6.457271264
A154: ATK2 körfält>11,5 m1004500Riket2060 | B154: ATK | C154: 2 körfält | D154: >11,5 m | E154: 100 | G154: 4500 | H154: Riket | I154: 2060 | L154: 2.130505 | M154: 0.24674 | N154: =SUM(L154:M154) -> 2.377245 | O154: 22.352161 | P154: 2.885534029 | Q154: =SUM(O154:P154) -> 25.23769503 | R154: 2.090593614 | S154: 1.383645463 | T154: =SUM(R154:S154) -> 3.474239077 | U154: 112.0140719 | V154: 36.87569793 | W154: 75.13837399 | X154: 0.003907098634 | Y154: 0.1046057462 | Z154: 0.4939463177 | AA154: =SUM(Y154:Z154) -> 0.5985520639 | AB154: 282.8214479 | AC154: 18.31603437 | AD154: 263504.3017 | AE154: 1.167290035 | AF154: 4.21144383 | AG154: 0.0609481966 | AH154: 0.352784822 | AI154: 0.01894360623 | AJ154: 0.08235976555 | AK154: 0.4972486921 | AL154: 7.272588769
A155: ATK2 körfält>11,5 m1004500Ingen2014 | B155: ATK | C155: 2 körfält | D155: >11,5 m | E155: 100 | G155: 4500 | H155: Ingen | I155: 2014 | L155: 1.5111 | M155: 0.1314 | N155: 1.6425 | O155: 15.79698453 | P155: 1.535390845 | Q155: 17.33237538 | R155: 1.482740654 | S155: 0.7367887107 | T155: 2.219529365 | U155: 118.1379647 | V155: 49.80081593 | W155: 68.33714877 | X155: 0.006826257613 | Y155: 0.1134484975 | Z155: 0.3440254186 | AA155: 0.4574739162 | AB155: 2056.089383 | AC155: 166.3541398 | AD155: 275183.0858 | AE155: 1.26892383 | AF155: 53.66305701 | AG155: 0.03243633472 | AH155: 0.2761966535 | AI155: 0.01665730209 | AJ155: 0.06628483578 | AK155: 0.3745317783 | AL155: 5.031615716
A156: ATK2 körfält>11,5 m1004500Ingen2040 | B156: ATK | C156: 2 körfält | D156: >11,5 m | E156: 100 | G156: 4500 | H156: Ingen | I156: 2040 | L156: 1.5111 | M156: 0.1314 | N156: 1.6425 | O156: 15.79698453 | P156: 1.535390845 | Q156: 17.33237538 | R156: 1.482919539 | S156: 0.7368520878 | T156: 2.219771626 | U156: 70.13020642 | V156: 26.22516085 | W156: 43.90504557 | X156: 0.004037017591 | Y156: 0.08736023794 | Z156: 0.3440254186 | AA156: 0.4313856566 | AB156: 282.8214479 | AC156: 18.31603437 | AD156: 164191.6826 | AE156: 0.7417020555 | AF156: 4.21144383 | AG156: 0.03243633472 | AH156: 0.2761966535 | AI156: 0.01427714245 | AJ156: 0.05974785755 | AK156: 0.3573606566 | AL156: 5.299906705
A157: ATK2 körfält>11,5 m1004500Ingen2060 | B157: ATK | C157: 2 körfält | D157: >11,5 m | E157: 100 | G157: 4500 | H157: Ingen | I157: 2060 | L157: 1.5111 | M157: 0.1314 | N157: 1.6425 | O157: 15.79698453 | P157: 1.535390845 | Q157: 17.33237538 | R157: 1.482919539 | S157: 0.7368520878 | T157: 2.219771626 | U157: 70.13020642 | V157: 26.22516085 | W157: 43.90504557 | X157: 0.002695145126 | Y157: 0.07145254468 | Z157: 0.3440254186 | AA157: 0.4154779633 | AB157: 282.8214479 | AC157: 18.31603437 | AD157: 164191.6826 | AE157: 0.7417020555 | AF157: 4.21144383 | AG157: 0.03243633472 | AH157: 0.2761966535 | AI157: 0.01282580571 | AJ157: 0.05576184062 | AK157: 0.346890317 | AL157: 5.515979651
A158: ATK2 körfält>11,5 m1004000Hög2014 | B158: ATK | C158: 2 körfält | D158: >11,5 m | E158: 100 | G158: 4000 | H158: Hög | I158: 2014 | L158: 1.3432 | M158: 0.1168 | N158: 1.46 | O158: 14.03658918 | P158: 1.364681781 | Q158: 15.40127096 | R158: 1.318003383 | S158: 0.6549232687 | T158: 1.972926651 | U158: 105.0332614 | V158: 44.27947333 | W158: 60.75378804 | X158: 0.006111212712 | Y158: 0.1011867221 | Z158: 0.3091026221 | AA158: 0.4102893442 | AB158: 1827.635008 | AC158: 147.8703465 | AD158: 244657.0416 | AE158: 1.128175458 | AF158: 47.70049512 | AG158: 0.02883043832 | AH158: 0.2579467037 | AI158: 0.01480649075 | AJ158: 0.05891985402 | AK158: 0.3365629995 | AL158: 4.658359733
A159: ATK2 körfält>11,5 m1004000Hög2040 | B159: ATK | C159: 2 körfält | D159: >11,5 m | E159: 100 | G159: 4000 | H159: Hög | I159: 2040 | L159: 1.94764 | M159: 0.20294 | N159: 2.15058 | O159: 20.40269888 | P159: 2.37241684 | Q159: 22.77511572 | R159: 1.911223615 | S159: 1.138027524 | T159: 3.049251139 | U159: 97.57239847 | V159: 33.74892066 | W159: 63.82347782 | X159: 0.005275952639 | Y159: 0.1150236454 | Z159: 0.4463420588 | AA159: 0.5613657042 | AB159: 251.3968425 | AC159: 16.28091944 | AD159: 229124.6244 | AE159: 1.022437117 | AF159: 3.743505627 | AG159: 0.05011425659 | AH159: 0.3287305588 | AI159: 0.01892482054 | AJ159: 0.07919774463 | AK159: 0.463243139 | AL159: 6.451780225
A160: ATK2 körfält>11,5 m1004000Hög2060 | B160: ATK | C160: 2 körfält | D160: >11,5 m | E160: 100 | G160: 4000 | H160: Hög | I160: 2060 | L160: 2.17613 | M160: 0.27083 | N160: 2.44696 | O160: 22.84972096 | P160: 3.167989691 | Q160: 26.01771065 | R160: 2.135321713 | S160: 1.518735453 | T160: 3.654057166 | U160: 118.4396064 | V160: 37.64205116 | W160: 80.7975552 | X160: 0.004039607584 | Y160: 0.1082305518 | Z160: 0.5103379208 | AA160: 0.6185684726 | AB160: 251.3968425 | AC160: 16.28091944 | AD160: 278957.0224 | AE160: 1.22957306 | AF160: 3.743505627 | AG160: 0.06691084293 | AH160: 0.3610190346 | AI160: 0.01961249601 | AJ160: 0.08526784995 | AK160: 0.5136881267 | AL160: 7.464647646
A161: ATK2 körfält>11,5 m1004000Riket2014 | B161: ATK | C161: 2 körfält | D161: >11,5 m | E161: 100 | G161: 4000 | H161: Riket | I161: 2014 | L161: 1.3432 | M161: 0.1168 | N161: 1.46 | O161: 14.03658918 | P161: 1.364681781 | Q161: 15.40127096 | R161: 1.318003383 | S161: 0.6549232687 | T161: 1.972926651 | U161: 105.0332614 | V161: 44.27947333 | W161: 60.75378804 | X161: 0.006111212712 | Y161: 0.1011867221 | Z161: 0.3091026221 | AA161: 0.4102893442 | AB161: 1827.635008 | AC161: 147.8703465 | AD161: 244657.0416 | AE161: 1.128175458 | AF161: 47.70049512 | AG161: 0.02883043832 | AH161: 0.2579467037 | AI161: 0.01480649075 | AJ161: 0.05891985402 | AK161: 0.3365629995 | AL161: 4.658359733
A162: ATK2 körfält>11,5 m1004000Riket2040 | B162: ATK | C162: 2 körfält | D162: >11,5 m | E162: 100 | G162: 4000 | H162: Riket | I162: 2040 | L162: 1.74616 | M162: 0.17374 | N162: 1.9199 | O162: 18.27157781 | P162: 2.030552069 | Q162: 20.30212988 | R162: 1.713556928 | S162: 0.9742823438 | T162: 2.687839272 | U162: 85.74847336 | V162: 30.28311472 | W162: 55.46535864 | X162: 0.004719995006 | Y162: 0.1026100144 | Z162: 0.4004286615 | AA162: 0.5030386759 | AB162: 251.3968425 | AC162: 16.28091944 | AD162: 201203.0695 | AE162: 0.9006998441 | AF162: 3.743505627 | AG162: 0.04289513771 | AH162: 0.3053111427 | AI162: 0.01683922927 | AJ162: 0.07046983496 | AK162: 0.4157296116 | AL162: 5.934890436
A163: ATK2 körfält>11,5 m1004000Riket2060 | B163: ATK | C163: 2 körfält | D163: >11,5 m | E163: 100 | G163: 4000 | H163: Riket | I163: 2060 | L163: 1.893985 | M163: 0.21973 | N163: 2.113715 | O163: 19.83615826 | P163: 2.568567307 | Q163: 22.40472557 | R163: 1.858581887 | S163: 1.232180825 | T163: 3.090762712 | U163: 99.7481295 | V163: 32.82473143 | W163: 66.92339807 | X163: 0.003491539423 | Y163: 0.09323805083 | Z163: 0.4425408717 | AA163: 0.5357789225 | AB163: 251.3968425 | AC163: 16.28091944 | AD163: 234652.4818 | AE163: 1.039419313 | AF163: 3.743505627 | AG163: 0.05425827412 | AH163: 0.3268002479 | AI163: 0.0168459116 | AJ163: 0.07323976825 | AK163: 0.4456932427 | AL163: 6.670275978
A164: ATK2 körfält>11,5 m1004000Ingen2014 | B164: ATK | C164: 2 körfält | D164: >11,5 m | E164: 100 | G164: 4000 | H164: Ingen | I164: 2014 | L164: 1.3432 | M164: 0.1168 | N164: 1.46 | O164: 14.03658918 | P164: 1.364681781 | Q164: 15.40127096 | R164: 1.318003383 | S164: 0.6549232687 | T164: 1.972926651 | U164: 105.0332614 | V164: 44.27947333 | W164: 60.75378804 | X164: 0.006111212712 | Y164: 0.1011867221 | Z164: 0.3091026221 | AA164: 0.4102893442 | AB164: 1827.635008 | AC164: 147.8703465 | AD164: 244657.0416 | AE164: 1.128175458 | AF164: 47.70049512 | AG164: 0.02883043832 | AH164: 0.2579467037 | AI164: 0.01480649075 | AJ164: 0.05891985402 | AK164: 0.3365629995 | AL164: 4.658359733
A165: ATK2 körfält>11,5 m1004000Ingen2040 | B165: ATK | C165: 2 körfält | D165: >11,5 m | E165: 100 | G165: 4000 | H165: Ingen | I165: 2040 | L165: 1.3432 | M165: 0.1168 | N165: 1.46 | O165: 14.03658918 | P165: 1.364681781 | Q165: 15.40127096 | R165: 1.318162393 | S165: 0.6549796059 | T165: 1.973141999 | U165: 62.35007293 | V165: 23.31770414 | W165: 39.03236879 | X165: 0.003614143301 | Y165: 0.07791814182 | Z165: 0.3091026221 | AA165: 0.3870207639 | AB165: 251.3968425 | AC165: 16.28091944 | AD165: 145976.0017 | AE165: 0.6594251494 | AF165: 3.743505627 | AG165: 0.02883043832 | AH165: 0.2579467037 | AI165: 0.01269079329 | AJ165: 0.05310920671 | AK165: 0.3212207639 | AL165: 4.906748324
A166: ATK2 körfält>11,5 m1004000Ingen2060 | B166: ATK | C166: 2 körfält | D166: >11,5 m | E166: 100 | G166: 4000 | H166: Ingen | I166: 2060 | L166: 1.3432 | M166: 0.1168 | N166: 1.46 | O166: 14.03658918 | P166: 1.364681781 | Q166: 15.40127096 | R166: 1.318162393 | S166: 0.6549796059 | T166: 1.973141999 | U166: 62.35007293 | V166: 23.31770414 | W166: 39.03236879 | X166: 0.002412830879 | Y166: 0.06372978876 | Z166: 0.3091026221 | AA166: 0.3728324109 | AB166: 251.3968425 | AC166: 16.28091944 | AD166: 145976.0017 | AE166: 0.6594251494 | AF166: 3.743505627 | AG166: 0.02883043832 | AH166: 0.2579467037 | AI166: 0.01140071619 | AJ166: 0.04956608055 | AK166: 0.3118656141 | AL166: 5.106792518
A167: ATK2 körfält>11,5 m1003500Hög2014 | B167: ATK | C167: 2 körfält | D167: >11,5 m | E167: 100 | G167: 3500 | H167: Hög | I167: 2014 | L167: 1.1753 | M167: 0.1022 | N167: 1.2775 | O167: 12.28022648 | P167: 1.194063984 | Q167: 13.47429047 | R167: 1.158624213 | S167: 0.5740905411 | T167: 1.732714754 | U167: 91.92502355 | V167: 38.75187572 | W167: 53.17314782 | X167: 0.005396167811 | Y167: 0.08892494671 | Z167: 0.2741798256 | AA167: 0.3631047723 | AB167: 1599.180632 | AC167: 129.3865532 | AD167: 214123.934 | AE167: 0.987372415 | AF167: 41.73793323 | AG167: 0.0252260791 | AH167: 0.2394948337 | AI167: 0.0129556794 | AJ167: 0.05155487227 | AK167: 0.2985942206 | AL167: 4.28510375
A168: ATK2 körfält>11,5 m1003500Hög2040 | B168: ATK | C168: 2 körfält | D168: >11,5 m | E168: 100 | G168: 3500 | H168: Hög | I168: 2040 | L168: 1.704185 | M168: 0.17812 | N168: 1.882305 | O168: 17.82895061 | P168: 2.081653309 | Q168: 19.91060392 | R168: 1.680155765 | S168: 1.000643914 | T168: 2.680799679 | U168: 85.56578117 | V168: 29.56180031 | W168: 56.00398086 | X168: 0.004647626017 | Y168: 0.1009941324 | Z168: 0.3944521159 | AA168: 0.4954462483 | AB168: 219.9722372 | AC168: 14.24580451 | AD168: 200938.3022 | AE168: 0.8965015317 | AF168: 3.275567424 | AG168: 0.04397504949 | AH168: 0.3022451519 | AI168: 0.01656774792 | AJ168: 0.06933372321 | AK168: 0.4095447771 | AL168: 5.867606907
A169: ATK2 körfält>11,5 m1003500Hög2060 | B169: ATK | C169: 2 körfält | D169: >11,5 m | E169: 100 | G169: 3500 | H169: Hög | I169: 2060 | L169: 1.90384 | M169: 0.23725 | N169: 2.14109 | O169: 19.94146029 | P169: 2.773435151 | Q169: 22.71489544 | R169: 1.876942137 | S169: 1.332825182 | T169: 3.209767319 | U169: 103.831651 | V169: 32.99562428 | W169: 70.83602675 | X169: 0.00355431097 | Y169: 0.09495517757 | Z169: 0.4503058287 | AA169: 0.5452610062 | AB169: 219.9722372 | AC169: 14.24580451 | AD169: 244551.5883 | AE169: 1.077902079 | AF169: 3.275567424 | AG169: 0.05858559192 | AH169: 0.3307418605 | AI169: 0.01716277508 | AJ169: 0.07461737301 | AK169: 0.4534808582 | AL169: 6.761257251
A170: ATK2 körfält>11,5 m1003500Riket2014 | B170: ATK | C170: 2 körfält | D170: >11,5 m | E170: 100 | G170: 3500 | H170: Riket | I170: 2014 | L170: 1.1753 | M170: 0.1022 | N170: 1.2775 | O170: 12.28022648 | P170: 1.194063984 | Q170: 13.47429047 | R170: 1.158624213 | S170: 0.5740905411 | T170: 1.732714754 | U170: 91.92502355 | V170: 38.75187572 | W170: 53.17314782 | X170: 0.005396167811 | Y170: 0.08892494671 | Z170: 0.2741798256 | AA170: 0.3631047723 | AB170: 1599.180632 | AC170: 129.3865532 | AD170: 214123.934 | AE170: 0.987372415 | AF170: 41.73793323 | AG170: 0.0252260791 | AH170: 0.2394948337 | AI170: 0.0129556794 | AJ170: 0.05155487227 | AK170: 0.2985942206 | AL170: 4.28510375
A171: ATK2 körfält>11,5 m1003500Riket2040 | B171: ATK | C171: 2 körfält | D171: >11,5 m | E171: 100 | G171: 3500 | H171: Riket | I171: 2040 | L171: 1.52789 | M171: 0.15257 | N171: 1.68046 | O171: 15.97391482 | P171: 1.782794853 | Q171: 17.75670967 | R171: 1.506370613 | S171: 0.8571088469 | T171: 2.36347946 | U171: 75.19418239 | V171: 26.51695689 | W171: 48.6772255 | X171: 0.004161163088 | Y171: 0.09013220526 | Z171: 0.3542778932 | AA171: 0.4444100985 | AB171: 219.9722372 | AC171: 14.24580451 | AD171: 176447.631 | AE171: 0.7897016992 | AF171: 3.275567424 | AG171: 0.03766278681 | AH171: 0.2815200994 | AI171: 0.01474285557 | AJ171: 0.06169680225 | AK171: 0.3679704407 | AL171: 5.415328341
A172: ATK2 körfält>11,5 m1003500Riket2060 | B172: ATK | C172: 2 körfält | D172: >11,5 m | E172: 100 | G172: 3500 | H172: Riket | I172: 2060 | L172: 1.6571 | M172: 0.19199 | N172: 1.84909 | O172: 17.33395797 | P172: 2.243681928 | Q172: 19.5776399 | R172: 1.633740074 | S172: 1.078562886 | T172: 2.71230296 | U172: 87.28423901 | V172: 28.7480173 | W172: 58.53622171 | X172: 0.003073430446 | Y172: 0.08180060617 | Z172: 0.3908200149 | AA172: 0.4726206211 | AB172: 219.9722372 | AC172: 14.24580451 | AD172: 205325.2953 | AE172: 0.9096236962 | AF172: 3.275567424 | AG172: 0.04739820952 | AH172: 0.3003797847 | AI172: 0.01473534606 | AJ172: 0.06406381298 | AK172: 0.3938214621 | AL172: 6.064267549
A173: ATK2 körfält>11,5 m1003500Ingen2014 | B173: ATK | C173: 2 körfält | D173: >11,5 m | E173: 100 | G173: 3500 | H173: Ingen | I173: 2014 | L173: 1.1753 | M173: 0.1022 | N173: 1.2775 | O173: 12.28022648 | P173: 1.194063984 | Q173: 13.47429047 | R173: 1.158624213 | S173: 0.5740905411 | T173: 1.732714754 | U173: 91.92502355 | V173: 38.75187572 | W173: 53.17314782 | X173: 0.005396167811 | Y173: 0.08892494671 | Z173: 0.2741798256 | AA173: 0.3631047723 | AB173: 1599.180632 | AC173: 129.3865532 | AD173: 214123.934 | AE173: 0.987372415 | AF173: 41.73793323 | AG173: 0.0252260791 | AH173: 0.2394948337 | AI173: 0.0129556794 | AJ173: 0.05155487227 | AK173: 0.2985942206 | AL173: 4.28510375
A174: ATK2 körfält>11,5 m1003500Ingen2040 | B174: ATK | C174: 2 körfält | D174: >11,5 m | E174: 100 | G174: 3500 | H174: Ingen | I174: 2040 | L174: 1.1753 | M174: 0.1022 | N174: 1.2775 | O174: 12.28022648 | P174: 1.194063984 | Q174: 13.47429047 | R174: 1.158763358 | S174: 0.5741398623 | T174: 1.73290322 | U174: 54.5692561 | V174: 20.40688434 | W174: 34.16237176 | X174: 0.003191269011 | Y174: 0.0684760457 | Z174: 0.2741798256 | AA174: 0.3426558713 | AB174: 219.9722372 | AC174: 14.24580451 | AD174: 127759.4828 | AE174: 0.5771301122 | AF174: 3.275567424 | AG174: 0.0252260791 | AH174: 0.2394948337 | AI174: 0.01110444412 | AJ174: 0.04647055587 | AK174: 0.2850808713 | AL174: 4.513589944
A175: ATK2 körfält>11,5 m1003500Ingen2060 | B175: ATK | C175: 2 körfält | D175: >11,5 m | E175: 100 | G175: 3500 | H175: Ingen | I175: 2060 | L175: 1.1753 | M175: 0.1022 | N175: 1.2775 | O175: 12.28022648 | P175: 1.194063984 | Q175: 13.47429047 | R175: 1.158763358 | S175: 0.5741398623 | T175: 1.73290322 | U175: 54.5692561 | V175: 20.40688434 | W175: 34.16237176 | X175: 0.002130516632 | Y175: 0.05600703284 | Z175: 0.2741798256 | AA175: 0.3301868584 | AB175: 219.9722372 | AC175: 14.24580451 | AD175: 127759.4828 | AE175: 0.5771301122 | AF175: 3.275567424 | AG175: 0.0252260791 | AH175: 0.2394948337 | AI175: 0.009975626663 | AJ175: 0.04337032048 | AK175: 0.2768409113 | AL175: 4.697605386
A176: ATK2 körfält>11,5 m1003000Hög2014 | B176: ATK | C176: 2 körfält | D176: >11,5 m | E176: 100 | G176: 3000 | H176: Hög | I176: 2014 | L176: 1.0074 | M176: 0.0876 | N176: 1.095 | O176: 10.52540225 | P176: 1.023474128 | Q176: 11.54887638 | R176: 0.9931076137 | S176: 0.4920776049 | T176: 1.485185219 | U176: 78.79497055 | V176: 33.21707611 | W176: 45.57789444 | X176: 0.004681122911 | Y176: 0.07666317129 | Z176: 0.2392570291 | AA176: 0.3159202004 | AB176: 1370.726256 | AC176: 110.9027599 | AD176: 183539.5973 | AE176: 0.8463427015 | AF176: 35.77537134 | AG176: 0.02162219524 | AH176: 0.2208056991 | AI176: 0.01110486806 | AJ176: 0.04418989052 | AK176: 0.2606254418 | AL176: 3.911847767
A177: ATK2 körfält>11,5 m1003000Hög2040 | B177: ATK | C177: 2 körfält | D177: >11,5 m | E177: 100 | G177: 3000 | H177: Hög | I177: 2040 | L177: 1.46073 | M177: 0.15257 | N177: 1.6133 | O177: 15.26869125 | P177: 1.7827142 | Q177: 17.05140545 | R177: 1.440163466 | S177: 0.8571088265 | T177: 2.297272292 | U177: 73.3515067 | V177: 25.3552062 | W177: 47.9963005 | X177: 0.004016267615 | Y177: 0.08689692465 | Z177: 0.3423117954 | AA177: 0.42920872 | AB177: 188.5476319 | AC177: 12.21068958 | AD177: 172251.4943 | AE177: 0.7685734734 | AF177: 2.80762922 | AG177: 0.0376614267 | AH177: 0.2753054269 | AI177: 0.01419930204 | AJ177: 0.05942210625 | AK177: 0.3555873117 | AL177: 5.280614855
A178: ATK2 körfält>11,5 m1003000Hög2060 | B178: ATK | C178: 2 körfält | D178: >11,5 m | E178: 100 | G178: 3000 | H178: Hög | I178: 2060 | L178: 1.631915 | M178: 0.20294 | N178: 1.834855 | O178: 17.06937757 | P178: 2.371614354 | Q178: 19.44099193 | R178: 1.608912664 | S178: 1.140077869 | T178: 2.748990533 | U178: 88.96915681 | V178: 28.31251046 | W178: 60.65664635 | X178: 0.003067516041 | Y178: 0.08163881659 | Z178: 0.3900883921 | AA178: 0.4717272087 | AB178: 188.5476319 | AC178: 12.21068958 | AD178: 209536.1778 | AE178: 0.9237469551 | AF178: 2.80762922 | AG178: 0.05010095671 | AH178: 0.3000038463 | AI178: 0.01470549083 | AJ178: 0.06393401354 | AK178: 0.3930877043 | AL178: 6.055695193
A179: ATK2 körfält>11,5 m1003000Riket2014 | B179: ATK | C179: 2 körfält | D179: >11,5 m | E179: 100 | G179: 3000 | H179: Riket | I179: 2014 | L179: 1.0074 | M179: 0.0876 | N179: 1.095 | O179: 10.52540225 | P179: 1.023474128 | Q179: 11.54887638 | R179: 0.9931076137 | S179: 0.4920776049 | T179: 1.485185219 | U179: 78.79497055 | V179: 33.21707611 | W179: 45.57789444 | X179: 0.004681122911 | Y179: 0.07666317129 | Z179: 0.2392570291 | AA179: 0.3159202004 | AB179: 1370.726256 | AC179: 110.9027599 | AD179: 183539.5973 | AE179: 0.8463427015 | AF179: 35.77537134 | AG179: 0.02162219524 | AH179: 0.2208056991 | AI179: 0.01110486806 | AJ179: 0.04418989052 | AK179: 0.2606254418 | AL179: 3.911847767
A180: ATK2 körfält>11,5 m1003000Riket2040 | B180: ATK | C180: 2 körfält | D180: >11,5 m | E180: 100 | G180: 3000 | H180: Riket | I180: 2040 | L180: 1.30962 | M180: 0.13067 | N180: 1.44029 | O180: 13.68536677 | P180: 1.526731345 | Q180: 15.21209811 | R180: 1.291189641 | S180: 0.7340788304 | T180: 2.025268472 | U180: 64.44523114 | V180: 22.73699713 | W180: 41.70823401 | X180: 0.00359929939 | Y180: 0.07758670139 | Z180: 0.3078767474 | AA180: 0.3854634488 | AB180: 188.5476319 | AC180: 12.21068958 | AD180: 151221.8704 | AE180: 0.6768508077 | AF180: 2.80762922 | AG180: 0.03225394409 | AH180: 0.2573025957 | AI180: 0.01263510859 | AJ180: 0.05287617399 | AK180: 0.3199521662 | AL180: 4.892947513
A181: ATK2 körfält>11,5 m1003000Riket2060 | B181: ATK | C181: 2 körfält | D181: >11,5 m | E181: 100 | G181: 3000 | H181: Riket | I181: 2060 | L181: 1.42058 | M181: 0.16498 | N181: 1.58556 | O181: 14.84756088 | P181: 1.927677318 | Q181: 16.7752382 | R181: 1.400582043 | S181: 0.926825802 | T181: 2.327407845 | U181: 74.94164027 | V181: 24.66009536 | W181: 50.2815449 | X181: 0.002657871234 | Y181: 0.0704329108 | Z181: 0.3394145689 | AA181: 0.4098474797 | AB181: 188.5476319 | AC181: 12.21068958 | AD181: 176296.4306 | AE181: 0.7809165963 | AF181: 2.80762922 | AG181: 0.04072408184 | AH181: 0.2737976639 | AI181: 0.01263765143 | AJ181: 0.05494381569 | AK181: 0.3422660126 | AL181: 5.461954758
A182: ATK2 körfält>11,5 m1003000Ingen2014 | B182: ATK | C182: 2 körfält | D182: >11,5 m | E182: 100 | G182: 3000 | H182: Ingen | I182: 2014 | L182: 1.0074 | M182: 0.0876 | N182: 1.095 | O182: 10.52540225 | P182: 1.023474128 | Q182: 11.54887638 | R182: 0.9931076137 | S182: 0.4920776049 | T182: 1.485185219 | U182: 78.79497055 | V182: 33.21707611 | W182: 45.57789444 | X182: 0.004681122911 | Y182: 0.07666317129 | Z182: 0.2392570291 | AA182: 0.3159202004 | AB182: 1370.726256 | AC182: 110.9027599 | AD182: 183539.5973 | AE182: 0.8463427015 | AF182: 35.77537134 | AG182: 0.02162219524 | AH182: 0.2208056991 | AI182: 0.01110486806 | AJ182: 0.04418989052 | AK182: 0.2606254418 | AL182: 3.911847767
A183: ATK2 körfält>11,5 m1003000Ingen2040 | B183: ATK | C183: 2 körfält | D183: >11,5 m | E183: 100 | G183: 3000 | H183: Ingen | I183: 2040 | L183: 1.0074 | M183: 0.0876 | N183: 1.095 | O183: 10.52540225 | P183: 1.023474128 | Q183: 11.54887638 | R183: 0.9932268805 | S183: 0.4921198804 | T183: 1.485346761 | U183: 46.77480836 | V183: 17.49224654 | W183: 29.28256182 | X183: 0.002768394721 | Y183: 0.05903394959 | Z183: 0.2392570291 | AA183: 0.2982909787 | AB183: 188.5476319 | AC183: 12.21068958 | AD183: 109510.7922 | AE183: 0.4946958828 | AF183: 2.80762922 | AG183: 0.02162219524 | AH183: 0.2208056991 | AI183: 0.009518094964 | AJ183: 0.03983190503 | AK183: 0.2489409787 | AL183: 4.120431563
A184: ATK2 körfält>11,5 m1003000Ingen2060 | B184: ATK | C184: 2 körfält | D184: >11,5 m | E184: 100 | G184: 3000 | H184: Ingen | I184: 2060 | L184: 1.0074 | M184: 0.0876 | N184: 1.095 | O184: 10.52540225 | P184: 1.023474128 | Q184: 11.54887638 | R184: 0.9932268805 | S184: 0.4921198804 | T184: 1.485346761 | U184: 46.77480836 | V184: 17.49224654 | W184: 29.28256182 | X184: 0.001848202385 | Y184: 0.04828427692 | Z184: 0.2392570291 | AA184: 0.287541306 | AB184: 188.5476319 | AC184: 12.21068958 | AD184: 109510.7922 | AE184: 0.4946958828 | AF184: 2.80762922 | AG184: 0.02162219524 | AH184: 0.2208056991 | AI184: 0.00855053714 | AJ184: 0.03717456041 | AK184: 0.2418162084 | AL184: 4.288418253
A185: ATK2 körfält>11,5 m1002500Hög2014 | B185: ATK | C185: 2 körfält | D185: >11,5 m | E185: 100 | G185: 2500 | H185: Hög | I185: 2014 | L185: 0.8395 | M185: 0.073 | N185: =SUM(L185:M185) -> 0.9125 | O185: 8.771168546 | P185: 0.8528951067 | Q185: =SUM(O185:P185) -> 9.624063652 | R185: 0.8275896781 | S185: 0.4100646707 | T185: =SUM(R185:S185) -> 1.237654349 | U185: 65.66247546 | V185: 27.68089675 | W185: 37.9815787 | X185: 0.00396607801 | Y185: 0.06440139587 | Z185: 0.2043342326 | AA185: =SUM(Y185:Z185) -> 0.2687356284 | AB185: 1142.27188 | AC185: 92.41896655 | AD185: 152949.6644 | AE185: 0.7052855846 | AF185: 29.81280945 | AG185: 0.01801849603 | AH185: 0.201830618 | AI185: 0.009254056718 | AJ185: 0.03682490876 | AK185: 0.222656663 | AL185: 3.538591784
A186: =CONCATENATE(B186,C186,D186,E186,F186,G186,H186,I186) -> ATK2 körfält>11,5 m1002500Hög2040 | B186: ATK | C186: 2 körfält | D186: >11,5 m | E186: 100 | G186: 2500 | H186: Hög | I186: 2040 | L186: 1.217275 | M186: 0.12702 | N186: 1.344295 | O186: 12.71937492 | P186: 1.484063431 | Q186: 14.20343835 | R186: 1.200146476 | S186: 0.7135738311 | T186: 1.913720307 | U186: 61.11070436 | V186: 21.13499202 | W186: 39.97571234 | X186: 0.003384909212 | Y186: 0.0727997169 | Z186: 0.2901714749 | AA186: 0.3629711918 | AB186: 157.1230266 | AC186: 10.17557465 | AD186: 143503.6018 | AE186: 0.6403528868 | AF186: 2.339691017 | AG186: 0.03135262517 | AH186: 0.2479712827 | AI186: 0.01183085615 | AJ186: 0.04951048928 | AK186: 0.3016298463 | AL186: 4.693622804
A187: ATK2 körfält>11,5 m1002500Hög2060 | B187: ATK | C187: 2 körfält | D187: >11,5 m | E187: 100 | G187: 2500 | H187: Hög | I187: 2060 | L187: 1.35999 | M187: 0.16936 | N187: 1.52935 | O187: 14.21255692 | P187: 1.978801795 | Q187: 16.19135871 | R187: 1.340848904 | S187: 0.9514317842 | T187: 2.292280689 | U187: 74.22686086 | V187: 23.61046218 | W187: 50.61639868 | X187: 0.002582745152 | Y187: 0.06837782361 | Z187: 0.3301213332 | AA187: 0.3984991568 | AB187: 157.1230266 | AC187: 10.17557465 | AD187: 174818.3047 | AE187: 0.7706429465 | AF187: 2.339691017 | AG187: 0.04180436017 | AH187: 0.2689529862 | AI187: 0.0122584237 | AJ187: 0.05329507432 | AK187: 0.3329456587 | AL187: 5.353066785
A188: ATK2 körfält>11,5 m1002500Riket2014 | B188: ATK | C188: 2 körfält | D188: >11,5 m | E188: 100 | G188: 2500 | H188: Riket | I188: 2014 | L188: 0.8395 | M188: 0.073 | N188: 0.9125 | O188: 8.771168546 | P188: 0.8528951067 | Q188: 9.624063652 | R188: 0.8275896781 | S188: 0.4100646707 | T188: 1.237654349 | U188: 65.66247546 | V188: 27.68089675 | W188: 37.9815787 | X188: 0.00396607801 | Y188: 0.06440139587 | Z188: 0.2043342326 | AA188: 0.2687356284 | AB188: 1142.27188 | AC188: 92.41896655 | AD188: 152949.6644 | AE188: 0.7052855846 | AF188: 29.81280945 | AG188: 0.01801849603 | AH188: 0.201830618 | AI188: 0.009254056718 | AJ188: 0.03682490876 | AK188: 0.222656663 | AL188: 3.538591784
A189: ATK2 körfält>11,5 m1002500Riket2040 | B189: ATK | C189: 2 körfält | D189: >11,5 m | E189: 100 | G189: 2500 | H189: Riket | I189: 2040 | L189: 1.09135 | M189: 0.10877 | N189: 1.20012 | O189: 11.40251911 | P189: 1.270813709 | Q189: 12.67333282 | R189: 1.075995787 | S189: 0.6110488515 | T189: 1.687044639 | U189: 53.68252085 | V189: 18.94993375 | W189: 34.73258711 | X189: 0.003037435692 | Y189: 0.06504119752 | Z189: 0.2614756016 | AA189: 0.3265167991 | AB189: 157.1230266 | AC189: 10.17557465 | AD189: 125964.4352 | AE189: 0.5638480376 | AF189: 2.339691017 | AG189: 0.02684755908 | AH189: 0.2327257613 | AI189: 0.01052736161 | AJ189: 0.04405554574 | AK189: 0.2719338917 | AL189: 4.370566686
A190: ATK2 körfält>11,5 m1002500Riket2060 | B190: ATK | C190: 2 körfält | D190: >11,5 m | E190: 100 | G190: 2500 | H190: Riket | I190: 2060 | L190: 1.183695 | M190: 0.13724 | N190: 1.320935 | O190: 12.36820335 | P190: 1.603463716 | Q190: 13.97166706 | R190: 1.167039648 | S190: 0.7709878162 | T190: 1.938027464 | U190: 62.40367346 | V190: 20.5523223 | W190: 41.85135117 | X190: 0.002239762257 | Y190: 0.05899546614 | Z190: 0.2876937122 | AA190: 0.3466891783 | AB190: 157.1230266 | AC190: 10.17557465 | AD190: 146796.9863 | AE190: 0.6503288063 | AF190: 2.339691017 | AG190: 0.03387512897 | AH190: 0.2466610262 | AI190: 0.01052708589 | AJ190: 0.04576786041 | AK190: 0.2903942321 | AL190: 4.855946328
A191: ATK2 körfält>11,5 m1002500Ingen2014 | B191: ATK | C191: 2 körfält | D191: >11,5 m | E191: 100 | G191: 2500 | H191: Ingen | I191: 2014 | L191: 0.8395 | M191: 0.073 | N191: 0.9125 | O191: 8.771168546 | P191: 0.8528951067 | Q191: 9.624063652 | R191: 0.8275896781 | S191: 0.4100646707 | T191: 1.237654349 | U191: 65.66247546 | V191: 27.68089675 | W191: 37.9815787 | X191: 0.00396607801 | Y191: 0.06440139587 | Z191: 0.2043342326 | AA191: 0.2687356284 | AB191: 1142.27188 | AC191: 92.41896655 | AD191: 152949.6644 | AE191: 0.7052855846 | AF191: 29.81280945 | AG191: 0.01801849603 | AH191: 0.201830618 | AI191: 0.009254056718 | AJ191: 0.03682490876 | AK191: 0.222656663 | AL191: 3.538591784
A192: ATK2 körfält>11,5 m1002500Ingen2040 | B192: ATK | C192: 2 körfält | D192: >11,5 m | E192: 100 | G192: 2500 | H192: Ingen | I192: 2040 | L192: 0.8395 | M192: 0.073 | N192: 0.9125 | O192: 8.771168546 | P192: 0.8528951067 | Q192: 9.624063652 | R192: 0.8276890671 | S192: 0.4100999003 | T192: 1.237788967 | U192: 38.97900697 | V192: 14.57687211 | W192: 24.40213485 | X192: 0.002345520431 | Y192: 0.04959185347 | Z192: 0.2043342326 | AA192: 0.253926086 | AB192: 157.1230266 | AC192: 10.17557465 | AD192: 91258.99353 | AE192: 0.412246569 | AF192: 2.339691017 | AG192: 0.01801849603 | AH192: 0.201830618 | AI192: 0.007931745803 | AJ192: 0.03319325419 | AK192: 0.212801086 | AL192: 3.727273183
A193: ATK2 körfält>11,5 m1002500Ingen2060 | B193: ATK | C193: 2 körfält | D193: >11,5 m | E193: 100 | G193: 2500 | H193: Ingen | I193: 2060 | L193: 0.8395 | M193: 0.073 | N193: 0.9125 | O193: 8.771168546 | P193: 0.8528951067 | Q193: 9.624063652 | R193: 0.8276890671 | S193: 0.4100999003 | T193: 1.237788967 | U193: 38.97900697 | V193: 14.57687211 | W193: 24.40213485 | X193: 0.001565888138 | Y193: 0.040561521 | Z193: 0.2043342326 | AA193: 0.2448957536 | AB193: 157.1230266 | AC193: 10.17557465 | AD193: 91258.99353 | AE193: 0.412246569 | AF193: 2.339691017 | AG193: 0.01801849603 | AH193: 0.201830618 | AI193: 0.007125447616 | AJ193: 0.03097880034 | AK193: 0.2067915056 | AL193: 3.879231121
A194: ATK2 körfält>11,5 m1002000Hög2014 | B194: ATK | C194: 2 körfält | D194: >11,5 m | E194: 100 | G194: 2000 | H194: Hög | I194: 2014 | L194: 0.6716 | M194: 0.0584 | N194: 0.73 | O194: 7.016934836 | P194: 0.6823160854 | Q194: 7.699250922 | R194: 0.6620717425 | S194: 0.3280517366 | T194: 0.990123479 | U194: 52.52998037 | V194: 22.1447174 | W194: 30.38526296 | X194: 0.00325103311 | Y194: 0.05213962045 | Z194: 0.1694114361 | AA194: 0.2215510565 | AB194: 913.8175038 | AC194: 73.93517324 | AD194: 122359.7315 | AE194: 0.5642284677 | AF194: 23.85024756 | AG194: 0.01441479682 | AH194: 0.1824986772 | AI194: 0.007403245374 | AJ194: 0.02945992701 | AK194: 0.1846878841 | AL194: 3.165335801
A195: ATK2 körfält>11,5 m1002000Hög2040 | B195: ATK | C195: 2 körfält | D195: >11,5 m | E195: 100 | G195: 2000 | H195: Hög | I195: 2040 | L195: 0.97382 | M195: 0.10147 | N195: 1.07529 | O195: 10.17455551 | P195: 1.185524198 | Q195: 11.36007971 | R195: 0.9601193178 | S195: 0.5700388615 | T195: 1.530158179 | U195: 48.85910447 | V195: 16.90917165 | W195: 31.94993281 | X195: 0.00275355081 | Y195: 0.05870250916 | Z195: 0.2380311544 | AA195: 0.2967336635 | AB195: 125.6984213 | AC195: 8.140459722 | AD195: 114730.8589 | AE195: 0.5120129911 | AF195: 1.871752813 | AG195: 0.02504570948 | AH195: 0.2201448069 | AI195: 0.009462410268 | AJ195: 0.03959887232 | AK195: 0.2476723809 | AL195: 4.106630752
A196: ATK2 körfält>11,5 m1002000Hög2060 | B196: ATK | C196: 2 körfält | D196: >11,5 m | E196: 100 | G196: 2000 | H196: Hög | I196: 2060 | L196: 1.088065 | M196: 0.13578 | N196: 1.223845 | O196: 11.36819715 | P196: 1.586384899 | Q196: 12.95458204 | R196: 1.072757004 | S196: 0.7627858146 | T196: 1.835542818 | U196: 59.45319372 | V196: 18.89289381 | W196: 40.56029991 | X196: 0.002097974263 | Y196: 0.05511683062 | Z196: 0.2701542742 | AA196: 0.3252711048 | AB196: 125.6984213 | AC196: 8.140459722 | AD196: 140028.0659 | AE196: 0.6171951921 | AF196: 1.871752813 | AG196: 0.03351440262 | AH196: 0.2373534155 | AI196: 0.009811356567 | AJ196: 0.0426561351 | AK196: 0.2728036131 | AL196: 4.650438378
A197: ATK2 körfält>11,5 m1002000Riket2014 | B197: ATK | C197: 2 körfält | D197: >11,5 m | E197: 100 | G197: 2000 | H197: Riket | I197: 2014 | L197: 0.6716 | M197: 0.0584 | N197: 0.73 | O197: 7.016934836 | P197: 0.6823160854 | Q197: 7.699250922 | R197: 0.6620717425 | S197: 0.3280517366 | T197: 0.990123479 | U197: 52.52998037 | V197: 22.1447174 | W197: 30.38526296 | X197: 0.00325103311 | Y197: 0.05213962045 | Z197: 0.1694114361 | AA197: 0.2215510565 | AB197: 913.8175038 | AC197: 73.93517324 | AD197: 122359.7315 | AE197: 0.5642284677 | AF197: 23.85024756 | AG197: 0.01441479682 | AH197: 0.1824986772 | AI197: 0.007403245374 | AJ197: 0.02945992701 | AK197: 0.1846878841 | AL197: 3.165335801
A198: ATK2 körfält>11,5 m1002000Riket2040 | B198: ATK | C198: 2 körfält | D198: >11,5 m | E198: 100 | G198: 2000 | H198: Riket | I198: 2040 | L198: 0.87308 | M198: 0.08687 | N198: 0.95995 | O198: 9.122015287 | P198: 1.014945177 | Q198: 10.13696046 | R198: 0.8607966297 | S198: 0.4880188814 | T198: 1.348815511 | U198: 42.91433445 | V198: 15.159947 | W198: 27.75438745 | X198: 0.002475571993 | Y198: 0.05249569365 | Z198: 0.2150744557 | AA198: 0.2675701494 | AB198: 125.6984213 | AC198: 8.140459722 | AD198: 100694.414 | AE198: 0.4507844564 | AF198: 1.871752813 | AG198: 0.02144201028 | AH198: 0.2077003834 | AI198: 0.008419614637 | AJ198: 0.03523491748 | AK198: 0.2239156173 | AL198: 3.848185858
A199: ATK2 körfält>11,5 m1002000Riket2060 | B199: ATK | C199: 2 körfält | D199: >11,5 m | E199: 100 | G199: 2000 | H199: Riket | I199: 2060 | L199: 0.94681 | M199: 0.1095 | N199: 1.05631 | O199: 9.892352699 | P199: 1.27934266 | Q199: 11.17169536 | R199: 0.9334893217 | S199: 0.6151498505 | T199: 1.548639172 | U199: 49.85719055 | V199: 16.44017664 | W199: 33.41701392 | X199: 0.00182165328 | Y199: 0.04755802148 | Z199: 0.2359728555 | AA199: 0.283530877 | AB199: 125.6984213 | AC199: 8.140459722 | AD199: 117277.9315 | AE199: 0.5196470988 | AF199: 1.871752813 | AG199: 0.02702774404 | AH199: 0.2190343446 | AI199: 0.008416520341 | AJ199: 0.03659190514 | AK199: 0.2385224515 | AL199: 4.249937899
A200: ATK2 körfält>11,5 m1002000Ingen2014 | B200: ATK | C200: 2 körfält | D200: >11,5 m | E200: 100 | G200: 2000 | H200: Ingen | I200: 2014 | L200: 0.6716 | M200: 0.0584 | N200: 0.73 | O200: 7.016934836 | P200: 0.6823160854 | Q200: 7.699250922 | R200: 0.6620717425 | S200: 0.3280517366 | T200: 0.990123479 | U200: 52.52998037 | V200: 22.1447174 | W200: 30.38526296 | X200: 0.00325103311 | Y200: 0.05213962045 | Z200: 0.1694114361 | AA200: 0.2215510565 | AB200: 913.8175038 | AC200: 73.93517324 | AD200: 122359.7315 | AE200: 0.5642284677 | AF200: 23.85024756 | AG200: 0.01441479682 | AH200: 0.1824986772 | AI200: 0.007403245374 | AJ200: 0.02945992701 | AK200: 0.1846878841 | AL200: 3.165335801
A201: ATK2 körfält>11,5 m1002000Ingen2040 | B201: ATK | C201: 2 körfält | D201: >11,5 m | E201: 100 | G201: 2000 | H201: Ingen | I201: 2040 | L201: 0.6716 | M201: 0.0584 | N201: 0.73 | O201: 7.016934836 | P201: 0.6823160854 | Q201: 7.699250922 | R201: 0.6621512536 | S201: 0.3280799203 | T201: 0.9902311739 | U201: 31.18320557 | V201: 11.66149769 | W201: 19.52170788 | X201: 0.001922646141 | Y201: 0.04014975735 | Z201: 0.1694114361 | AA201: 0.2095611934 | AB201: 125.6984213 | AC201: 8.140459722 | AD201: 73007.19482 | AE201: 0.3297972552 | AF201: 1.871752813 | AG201: 0.01441479682 | AH201: 0.1824986772 | AI201: 0.006345396643 | AJ201: 0.02655460335 | AK201: 0.1766611934 | AL201: 3.334114802
A202: ATK2 körfält>11,5 m1002000Ingen2060 | B202: ATK | C202: 2 körfält | D202: >11,5 m | E202: 100 | G202: 2000 | H202: Ingen | I202: 2060 | L202: 0.6716 | M202: 0.0584 | N202: 0.73 | O202: 7.016934836 | P202: 0.6823160854 | Q202: 7.699250922 | R202: 0.6621512536 | S202: 0.3280799203 | T202: 0.9902311739 | U202: 31.18320557 | V202: 11.66149769 | W202: 19.52170788 | X202: 0.00128357389 | Y202: 0.03283876508 | Z202: 0.1694114361 | AA202: 0.2022502011 | AB202: 125.6984213 | AC202: 8.140459722 | AD202: 73007.19482 | AE202: 0.3297972552 | AF202: 1.871752813 | AG202: 0.01441479682 | AH202: 0.1824986772 | AI202: 0.005700358093 | AJ202: 0.02478304027 | AK202: 0.1717668028 | AL202: 3.470043988
A203: ATK2 körfält>11,5 m906000Hög2014 | B203: ATK | C203: 2 körfält | D203: >11,5 m | E203: 90 | G203: 6000 | H203: Hög | I203: 2014 | L203: 2.0148 | M203: 0.1752 | N203: =SUM(L203:M203) -> 2.19 | O203: 22.87694475 | P203: 2.15735997 | Q203: =SUM(O203:P203) -> 25.03430472 | R203: 1.973642402 | S203: 0.9828041944 | T203: =SUM(R203:S203) -> 2.956446596 | U203: 149.2833244 | V203: 62.60465197 | W203: 86.67867238 | X203: 0.01263326763 | Y203: 0.07994254632 | Z203: 0.4014703731 | AA203: =SUM(Y203:Z203) -> 0.4814129194 | AB203: 2617.914956 | AC203: 210.0006487 | AD203: 347873.4263 | AE203: 1.602860289 | AF203: 64.8880423 | AG203: 0.04493545026 | AH203: 0.3299748171 | AI203: 0.0149416863 | AJ203: 0.06533230328 | AK203: 0.4011389298 | AL203: 5.278384688
... 1841 more rows

Sheet Indata utredning (hidden)
L4: Effekter utredningsalternativ
L5: =COLUMN() -> 12 | M5: =COLUMN() -> 13 | N5: =COLUMN() -> 14 | O5: =COLUMN() -> 15 | P5: =COLUMN() -> 16 | Q5: =COLUMN() -> 17 | R5: =COLUMN() -> 18 | S5: =COLUMN() -> 19 | T5: =COLUMN() -> 20 | U5: =COLUMN() -> 21 | V5: =COLUMN() -> 22 | W5: =COLUMN() -> 23 | X5: =COLUMN() -> 24 | Y5: =COLUMN() -> 25 | Z5: =COLUMN() -> 26 | AA5: =COLUMN() -> 27 | AB5: =COLUMN() -> 28 | AC5: =COLUMN() -> 29 | AD5: =COLUMN() -> 30 | AE5: =COLUMN() -> 31 | AF5: =COLUMN() -> 32 | AG5: =COLUMN() -> 33 | AH5: =COLUMN() -> 34 | AI5: =COLUMN() -> 35 | AJ5: =COLUMN() -> 36 | AK5: =COLUMN() -> 37 | AL5: =COLUMN() -> 38
L6: Trafikarbete (Mfkm/år) | O6: Restid ktim/år | R6: Fordonskostnader Mkr/år | U6: Bränsleförbrukning | X6: Antal dödade och skadade | AI6: Från sjukvårdsrapporter (uppräknat för bortfall)
B7: Åtgärd | C7: Vägtyp | D7: Vägbredd | E7: Hastighet | F7: Trafikavskiljare | G7: ÅDT | H7: Traf.tillv. | I7: År | L7: P-bil | M7: L-bil | N7: Totalt | O7: P-bil | P7: L-bil | Q7: Totalt | R7: P-bil | S7: L-bil | T7: Totalt | U7: m3 | V7: Bensin | W7: Diesel | X7: Dödade | Y7: Svårt | Z7: Lindrigt | AA7: Totalt sk | AB7: Kväveoxid (kg) | AC7: Kolväten (kg) | AD7: Koldioxid (kg) | AE7: Svaveldioxid (kg) | AF7: Partiklar (kg) | AG7: Godskostnader (mkr) | AH7: D&U-kostnader (mkr) | AI7: MAS | AJ7: AS | AK7: EAS | AL7: EO
A8: =CONCATENATE(B8,C8,D8,E8,F8,G8,H8,I8) -> Hastighetssänkning 90 till 702 körfält10,1-11,5 m3000Ingen2014 | B8: Hastighetssänkning 90 till 70 | C8: 2 körfält | D8: 10,1-11,5 m | G8: 3000 | H8: Ingen | I8: 2014 | L8: 1.0074 | M8: 0.0876 | N8: =SUM(L8:M8) -> 1.095 | O8: 11.84188272 | P8: 1.085704048 | Q8: =SUM(O8:P8) -> 12.92758677 | R8: 0.9955753417 | S8: 0.4932389736 | T8: =SUM(R8:S8) -> 1.488814315 | U8: 74.00840819 | V8: 30.89180346 | W8: 43.11660473 | X8: 0.005527316499 | Y8: 0.04031898708 | Z8: 0.2235391021 | AA8: =SUM(Y8:Z8) -> 0.2638580892 | AB8: 1308.902602 | AC8: 104.9893683 | AD8: 172496.9403 | AE8: 0.7941253637 | AF8: 32.44414277 | AG8: 0.02271758769 | AH8: 0.1954224936 | AI8: 0.006998487279 | AJ8: 0.03076376024 | AK8: 0.2260958417 | AL8: 3.047112092
A9: Hastighetssänkning 90 till 702 körfält10,1-11,5 m3000Ingen2040 | B9: Hastighetssänkning 90 till 70 | C9: 2 körfält | D9: 10,1-11,5 m | G9: 3000 | H9: Ingen | I9: 2040 | L9: 1.0074 | M9: 0.0876 | N9: 1.095 | O9: 11.84188272 | P9: 1.085704048 | Q9: 12.92758677 | R9: 0.9956944163 | S9: 0.493280211 | T9: 1.488974627 | U9: 43.97854486 | V9: 16.23553353 | W9: 27.74301133 | X9: 0.003268829746 | Y9: 0.03104735965 | Z9: 0.2235391021 | AA9: 0.2545864618 | AB9: 170.497736 | AC9: 11.94983826 | AD9: 103038.8981 | AE9: 0.4645831008 | AF9: 2.731543682 | AG9: 0.02271758769 | AH9: 0.1954224936 | AI9: 0.006213786079 | AJ9: 0.0286410801 | AK9: 0.2197315956 | AL9: 3.209587282
A10: Hastighetssänkning 90 till 702 körfält10,1-11,5 m3000Ingen2060 | B10: Hastighetssänkning 90 till 70 | C10: 2 körfält | D10: 10,1-11,5 m | G10: 3000 | H10: Ingen | I10: 2060 | L10: 1.0074 | M10: 0.0876 | N10: 1.095 | O10: 11.84188272 | P10: 1.085704048 | Q10: 12.92758677 | R10: 0.9956944163 | S10: 0.493280211 | T10: 1.488974627 | U10: 43.97854486 | V10: 16.23553353 | W10: 27.74301133 | X10: 0.002182296797 | Y10: 0.02539385085 | Z10: 0.2235391021 | AA10: 0.248932953 | AB10: 170.497736 | AC10: 11.94983826 | AD10: 103038.8981 | AE10: 0.4645831008 | AF10: 2.731543682 | AG10: 0.02271758769 | AH10: 0.1954224936 | AI10: 0.005735303184 | AJ10: 0.02734674522 | AK10: 0.2158509046 | AL10: 3.340439581
A11: =CONCATENATE(B11,C11,D11,E11,F11,G11,H11,I11) -> Hastighetssänkning 90 till 702 körfält8-10 m3000Ingen2014 | B11: Hastighetssänkning 90 till 70 | C11: 2 körfält | D11: 8-10 m | G11: 3000 | H11: Ingen | I11: 2014 | L11: 1.0074 | M11: 0.0876 | N11: 1.095 | O11: 11.71342571 | P11: 1.066290617 | Q11: 12.77971632 | R11: 0.9957112474 | S11: 0.4930737303 | T11: 1.488784978 | U11: 74.54306719 | V11: 31.10689252 | W11: 43.43617468 | X11: 0.005220915599 | Y11: 0.04808855399 | Z11: 0.2250882218 | AA11: 0.2731767757 | AB11: 1458.595532 | AC11: 116.0512824 | AD11: 173736.6759 | AE11: 0.7997606681 | AF11: 30.05181611 | AG11: 0.02230168449 | AH11: 0.1954224936 | AI11: 0.007757012081 | AJ11: 0.03295562485 | AK11: 0.2324641388 | AL11: 3.118126277
A12: Hastighetssänkning 90 till 702 körfält8-10 m3000Ingen2040 | B12: Hastighetssänkning 90 till 70 | C12: 2 körfält | D12: 8-10 m | G12: 3000 | H12: Ingen | I12: 2040 | L12: 1.0074 | M12: 0.0876 | N12: 1.095 | O12: 11.71342571 | P12: 1.066290617 | Q12: 12.77971632 | R12: 0.9958303195 | S12: 0.4931152133 | T12: 1.488945533 | U12: 44.3076992 | V12: 16.35401412 | W12: 27.95368507 | X12: 0.003087625653 | Y12: 0.03703026139 | Z12: 0.2250882218 | AA12: 0.2621184831 | AB12: 188.2587681 | AC12: 12.53295923 | AD12: 103804.6235 | AE12: 0.4679955202 | AF12: 2.388724077 | AG12: 0.02230168449 | AH12: 0.1954224936 | AI12: 0.006805217918 | AJ12: 0.03037307519 | AK12: 0.22494019 | AL12: 3.284388017
A13: Hastighetssänkning 90 till 702 körfält8-10 m3000Ingen2060 | B13: Hastighetssänkning 90 till 70 | C13: 2 körfält | D13: 8-10 m | G13: 3000 | H13: Ingen | I13: 2060 | L13: 1.0074 | M13: 0.0876 | N13: 1.095 | O13: 11.71342571 | P13: 1.066290617 | Q13: 12.77971632 | R13: 0.9958303195 | S13: 0.4931152133 | T13: 1.488945533 | U13: 44.3076992 | V13: 16.35401412 | W13: 27.95368507 | X13: 0.002061323499 | Y13: 0.03028730769 | Z13: 0.2250882218 | AA13: 0.2553755294 | AB13: 188.2587681 | AC13: 12.53295923 | AD13: 103804.6235 | AE13: 0.4679955202 | AF13: 2.388724077 | AG13: 0.02230168449 | AH13: 0.1954224936 | AI13: 0.006224847675 | AJ13: 0.02879832822 | AK13: 0.2203523535 | AL13: 3.418289883
A14: =CONCATENATE(B14,C14,D14,E14,F14,G14,H14,I14) -> Hastighetssänkning 90 till 702 körfält6,7-7,9 m6000Hög2014 | B14: Hastighetssänkning 90 till 70 | C14: 2 körfält | D14: 6,7-7,9 m | G14: 6000 | H14: Hög | I14: 2014 | L14: 2.0148 | M14: 0.1752 | N14: =SUM(L14:M14) -> 2.19 | O14: 24.03189261 | P14: 2.179431428 | Q14: =SUM(O14:P14) -> 26.21132403 | R14: 1.972403198 | S14: 0.9830172413 | T14: =SUM(R14:S14) -> 2.955420439 | U14: 147.0437654 | V14: 61.20549682 | W14: 85.8382686 | X14: 0.008357957692 | Y14: 0.09024483255 | Z14: 0.4785837761 | AA14: =SUM(Y14:Z14) -> 0.5688286087 | AB14: 2917.149559 | AC14: 232.1035253 | AD14: 342770.3928 | AE14: 1.57722659 | AF14: 60.09729543 | AG14: 0.04567590739 | AH14: 0.2905640773 | AI14: 0.01691387635 | AJ14: 0.074516866 | AK14: 0.4773978663 | AL14: 5.266323593
A15: Hastighetssänkning 90 till 702 körfält6,7-7,9 m6000Hög2040 | B15: Hastighetssänkning 90 till 70 | C15: 2 körfält | D15: 6,7-7,9 m | G15: 6000 | H15: Hög | I15: 2040 | L15: 2.92146 | M15: 0.30514 | N15: 3.2266 | O15: 35.37045757 | P15: 3.82889524 | Q15: 39.19935281 | R15: 2.859827304 | S15: 1.712523443 | T15: 4.572350747 | U15: 136.3017955 | V15: 46.16412738 | W15: 90.13766808 | X15: 0.007219816593 | Y15: 0.1018947001 | Z15: 0.69165901 | AA15: 0.7935537102 | AB15: 376.4947967 | AC15: 25.06749604 | AD15: 320408.1183 | AE15: 1.425674047 | AF15: 4.776966295 | AG15: 0.0800802981 | AH15: 0.3875192277 | AI15: 0.02242103918 | AJ15: 0.1035616969 | AK15: 0.667570974 | AL15: 7.591973912
A16: Hastighetssänkning 90 till 702 körfält6,7-7,9 m6000Hög2060 | B16: Hastighetssänkning 90 till 70 | C16: 2 körfält | D16: 6,7-7,9 m | G16: 6000 | H16: Hög | I16: 2060 | L16: 3.26383 | M16: 0.40661 | N16: 3.67044 | O16: 39.8307289 | P16: 5.12278298 | Q16: 44.95351188 | R16: 3.194684586 | S16: 2.282187511 | T16: 5.476872097 | U16: 165.2200949 | V16: 51.3053129 | W16: 113.914782 | X16: 0.005526585356 | Y16: 0.09565903322 | Z16: 0.7907003696 | AA16: 0.8863594028 | AB16: 376.4947967 | AC16: 25.06749604 | AD16: 389569.0406 | AE16: 1.712182613 | AF16: 4.776966295 | AG16: 0.1070419994 | AH16: 0.4279265718 | AI16: 0.02387983045 | AJ16: 0.1140842688 | AK16: 0.7483953035 | AL16: 8.890724993
A17: =CONCATENATE(B17,C17,D17,E17,F17,G17,H17,I17) -> Hastighetssänkning 90 till 702 körfält6,7-7,9 m6000Riket2014 | B17: Hastighetssänkning 90 till 70 | C17: 2 körfält | D17: 6,7-7,9 m | G17: 6000 | H17: Riket | I17: 2014 | L17: 2.0148 | M17: 0.1752 | N17: 2.19 | O17: 24.03189261 | P17: 2.179431428 | Q17: 26.21132403 | R17: 1.972403198 | S17: 0.9830172413 | T17: 2.955420439 | U17: 147.0437654 | V17: 61.20549682 | W17: 85.8382686 | X17: 0.008357957692 | Y17: 0.09024483255 | Z17: 0.4785837761 | AA17: 0.5688286087 | AB17: 2917.149559 | AC17: 232.1035253 | AD17: 342770.3928 | AE17: 1.57722659 | AF17: 60.09729543 | AG17: 0.04567590739 | AH17: 0.2905640773 | AI17: 0.01691387635 | AJ17: 0.074516866 | AK17: 0.4773978663 | AL17: 5.266323593
A18: Hastighetssänkning 90 till 702 körfält6,7-7,9 m6000Riket2040 | B18: Hastighetssänkning 90 till 70 | C18: 2 körfält | D18: 6,7-7,9 m | G18: 6000 | H18: Riket | I18: 2040 | L18: 2.61924 | M18: 0.26134 | N18: 2.88058 | O18: 31.55429809 | P18: 3.269029952 | Q18: 34.82332804 | R18: 2.564131088 | S18: 1.46661473 | T18: 4.030745818 | U18: 119.9914306 | V18: 41.5243281 | W18: 78.46710254 | X18: 0.006458986403 | Y18: 0.09106769725 | Z18: 0.6204613725 | AA18: 0.7115290697 | AB18: 376.4947967 | AC18: 25.06749604 | AD18: 281839.4348 | AE18: 1.258082639 | AF18: 4.776966295 | AG18: 0.06842120326 | AH18: 0.3581261059 | AI18: 0.01995114013 | AJ18: 0.09215335255 | AK18: 0.599424577 | AL18: 6.908703069
A19: Hastighetssänkning 90 till 702 körfält6,7-7,9 m6000Riket2060 | B19: Hastighetssänkning 90 till 70 | C19: 2 körfält | D19: 6,7-7,9 m | G19: 6000 | H19: Riket | I19: 2060 | L19: 2.840795 | M19: 0.32923 | N19: 3.170025 | O19: 34.39784147 | P19: 4.129086095 | Q19: 38.52692756 | R19: 2.78086032 | S19: 1.847703783 | T19: 4.628564103 | U19: 139.2691428 | V19: 44.88603771 | W19: 94.38310506 | X19: 0.004774945152 | Y19: 0.08255476135 | Z19: 0.6853426568 | AA19: 0.7678974182 | AB19: 376.4947967 | AC19: 25.06749604 | AD19: 327958.0784 | AE19: 1.44882999 | AF19: 4.776966295 | AG19: 0.08636868099 | AH19: 0.3849240418 | AI19: 0.02050435117 | AJ19: 0.09795814571 | AK19: 0.6494349213 | AL19: 7.838404399
A20: =CONCATENATE(B20,C20,D20,E20,F20,G20,H20,I20) -> Hastighetssänkning 90 till 702 körfält6,7-7,9 m6000Ingen2014 | B20: Hastighetssänkning 90 till 70 | C20: 2 körfält | D20: 6,7-7,9 m | G20: 6000 | H20: Ingen | I20: 2014 | L20: 2.0148 | M20: 0.1752 | N20: 2.19 | O20: 24.03189261 | P20: 2.179431428 | Q20: 26.21132403 | R20: 1.972403198 | S20: 0.9830172413 | T20: 2.955420439 | U20: 147.0437654 | V20: 61.20549682 | W20: 85.8382686 | X20: 0.008357957692 | Y20: 0.09024483255 | Z20: 0.4785837761 | AA20: 0.5688286087 | AB20: 2917.149559 | AC20: 232.1035253 | AD20: 342770.3928 | AE20: 1.57722659 | AF20: 60.09729543 | AG20: 0.04567590739 | AH20: 0.2905640773 | AI20: 0.01691387635 | AJ20: 0.074516866 | AK20: 0.4773978663 | AL20: 5.266323593
A21: Hastighetssänkning 90 till 702 körfält6,7-7,9 m6000Ingen2040 | B21: Hastighetssänkning 90 till 70 | C21: 2 körfält | D21: 6,7-7,9 m | G21: 6000 | H21: Ingen | I21: 2040 | L21: 2.0148 | M21: 0.1752 | N21: 2.19 | O21: 24.03189261 | P21: 2.179431428 | Q21: 26.21132403 | R21: 1.97264132 | S21: 0.9830995941 | T21: 2.955740914 | U21: 87.41185292 | V21: 32.15287493 | W21: 55.25897799 | X21: 0.004942858027 | Y21: 0.06949241475 | Z21: 0.4785837761 | AA21: 0.5480761909 | AB21: 376.4947967 | AC21: 25.06749604 | AD21: 204830.6645 | AE21: 0.9230106885 | AF21: 4.776966295 | AG21: 0.04567590739 | AH21: 0.2905640773 | AI21: 0.0150293007 | AJ21: 0.06941961398 | AK21: 0.4636272762 | AL21: 5.547129451
A22: Hastighetssänkning 90 till 702 körfält6,7-7,9 m6000Ingen2060 | B22: Hastighetssänkning 90 till 70 | C22: 2 körfält | D22: 6,7-7,9 m | G22: 6000 | H22: Ingen | I22: 2060 | L22: 2.0148 | M22: 0.1752 | N22: 2.19 | O22: 24.03189261 | P22: 2.179431428 | Q22: 26.21132403 | R22: 1.97264132 | S22: 0.9830995941 | T22: 2.955740914 | U22: 87.41185292 | V22: 32.15287493 | W22: 55.25897799 | X22: 0.003299891422 | Y22: 0.05683832814 | Z22: 0.4785837761 | AA22: 0.5354221042 | AB22: 376.4947967 | AC22: 25.06749604 | AD22: 204830.6645 | AE22: 0.9230106885 | AF22: 4.776966295 | AG22: 0.04567590739 | AH22: 0.2905640773 | AI22: 0.01388015347 | AJ22: 0.06631149091 | AK22: 0.4552304599 | AL22: 5.77328147
A23: =CONCATENATE(B23,C23,D23,E23,F23,G23,H23,I23) -> Hastighetssänkning 90 till 702 körfält6,7-7,9 m5500Hög2014 | B23: Hastighetssänkning 90 till 70 | C23: 2 körfält | D23: 6,7-7,9 m | G23: 5500 | H23: Hög | I23: 2014 | L23: 1.8469 | M23: 0.1606 | N23: 2.0075 | O23: 21.98281643 | P23: 1.994959606 | Q23: 23.97777604 | R23: 1.808082145 | S23: 0.9010746191 | T23: 2.709156764 | U23: 134.9482098 | V23: 56.17985309 | W23: 78.76835669 | X23: 0.007705596534 | Y23: 0.08311512825 | Z23: 0.4424807248 | AA23: 0.525595853 | AB23: 2674.073318 | AC23: 212.7611123 | AD23: 314570.682 | AE23: 1.447502472 | AF23: 55.09217315 | AG23: 0.04182403818 | AH23: 0.2751125473 | AI23: 0.01550438666 | AJ23: 0.06830712716 | AK23: 0.4417843392 | AL23: 4.937388314
A24: Hastighetssänkning 90 till 702 körfält6,7-7,9 m5500Hög2040 | B24: Hastighetssänkning 90 till 70 | C24: 2 körfält | D24: 6,7-7,9 m | G24: 5500 | H24: Hög | I24: 2040 | L24: 2.678005 | M24: 0.27959 | N24: 2.957595 | O24: 32.30639308 | P24: 3.499760246 | Q24: 35.80615332 | R24: 2.621617826 | S24: 1.569053722 | T24: 4.190671548 | U24: 125.1617143 | V24: 42.41767679 | W24: 82.74403754 | X24: 0.006643805634 | Y24: 0.09369776948 | Z24: 0.6377565493 | AA24: 0.7314543188 | AB24: 345.1309443 | AC24: 22.97779474 | AD24: 294210.3385 | AE24: 1.309210837 | AF24: 4.379112805 | AG24: 0.07323824148 | AH24: 0.3652954271 | AI24: 0.02055112269 | AJ24: 0.09492464301 | AK24: 0.6159785531 | AL24: 7.074681751
A25: Hastighetssänkning 90 till 702 körfält6,7-7,9 m5500Hög2060 | B25: Hastighetssänkning 90 till 70 | C25: 2 körfält | D25: 6,7-7,9 m | G25: 5500 | H25: Hög | I25: 2060 | L25: 2.991905 | M25: 0.3723 | N25: 3.364205 | O25: 36.35817167 | P25: 4.677491987 | Q25: 41.03566366 | R25: 2.928661176 | S25: 2.089495736 | T25: 5.018156912 | U25: 151.699635 | V25: 47.16177427 | W25: 104.5378608 | X25: 0.005082464849 | Y25: 0.08791613197 | Z25: 0.7284478177 | AA25: 0.8163639496 | AB25: 345.1309443 | AC25: 22.97779474 | AD25: 357669.8379 | AE25: 1.572208903 | AF25: 4.379112805 | AG25: 0.0977999798 | AH25: 0.4025895765 | AI25: 0.02188536613 | AJ25: 0.1045558509 | AK25: 0.6899227326 | AL25: 8.26894192
A26: =CONCATENATE(B26,C26,D26,E26,F26,G26,H26,I26) -> Hastighetssänkning 90 till 702 körfält6,7-7,9 m5500Riket2014 | B26: Hastighetssänkning 90 till 70 | C26: 2 körfält | D26: 6,7-7,9 m | G26: 5500 | H26: Riket | I26: 2014 | L26: 1.8469 | M26: 0.1606 | N26: 2.0075 | O26: 21.98281643 | P26: 1.994959606 | Q26: 23.97777604 | R26: 1.808082145 | S26: 0.9010746191 | T26: 2.709156764 | U26: 134.9482098 | V26: 56.17985309 | W26: 78.76835669 | X26: 0.007705596534 | Y26: 0.08311512825 | Z26: 0.4424807248 | AA26: 0.525595853 | AB26: 2674.073318 | AC26: 212.7611123 | AD26: 314570.682 | AE26: 1.447502472 | AF26: 55.09217315 | AG26: 0.04182403818 | AH26: 0.2751125473 | AI26: 0.01550438666 | AJ26: 0.06830712716 | AK26: 0.4417843392 | AL26: 4.937388314
A27: Hastighetssänkning 90 till 702 körfält6,7-7,9 m5500Riket2040 | B27: Hastighetssänkning 90 till 70 | C27: 2 körfält | D27: 6,7-7,9 m | G27: 5500 | H27: Riket | I27: 2040 | L27: 2.40097 | M27: 0.23944 | N27: 2.64041 | O27: 28.83687819 | P27: 2.989106864 | Q27: 31.82598505 | R27: 2.350537475 | S27: 1.343661218 | T27: 3.694198693 | U27: 110.1480075 | V27: 38.14053392 | W27: 72.0074736 | X27: 0.00594637796 | Y27: 0.08377301685 | Z27: 0.5724920482 | AA27: 0.656265065 | AB27: 345.1309443 | AC27: 22.97779474 | AD27: 258710.5165 | AE27: 1.154931198 | AF27: 4.379112805 | AG27: 0.0625921069 | AH27: 0.3302116012 | AI27: 0.01828704856 | AJ27: 0.08446699399 | AK27: 0.5535110225 | AL27: 6.448350144
A28: Hastighetssänkning 90 till 702 körfält6,7-7,9 m5500Riket2060 | B28: Hastighetssänkning 90 till 70 | C28: 2 körfält | D28: 6,7-7,9 m | G28: 5500 | H28: Riket | I28: 2060 | L28: 2.604275 | M28: 0.30222 | N28: 2.906495 | O28: 31.42184537 | P28: 3.781298668 | Q28: 35.20314404 | R28: 2.549435626 | S28: 1.696037429 | T28: 4.245473055 | U28: 127.9993641 | V28: 41.24560172 | W28: 86.7537624 | X28: 0.00439581555 | Y28: 0.07594492681 | Z28: 0.6321999065 | AA28: 0.7081448333 | AB28: 345.1309443 | AC28: 22.97779474 | AD28: 301417.459 | AE28: 1.331525857 | AF28: 4.379112805 | AG28: 0.07913850214 | AH28: 0.3629941728 | AI28: 0.01880174916 | AJ28: 0.08982408023 | AK28: 0.5995190039 | AL28: 7.307610694
A29: =CONCATENATE(B29,C29,D29,E29,F29,G29,H29,I29) -> Hastighetssänkning 90 till 702 körfält6,7-7,9 m5500Ingen2014 | B29: Hastighetssänkning 90 till 70 | C29: 2 körfält | D29: 6,7-7,9 m | G29: 5500 | H29: Ingen | I29: 2014 | L29: 1.8469 | M29: 0.1606 | N29: 2.0075 | O29: 21.98281643 | P29: 1.994959606 | Q29: 23.97777604 | R29: 1.808082145 | S29: 0.9010746191 | T29: 2.709156764 | U29: 134.9482098 | V29: 56.17985309 | W29: 78.76835669 | X29: 0.007705596534 | Y29: 0.08311512825 | Z29: 0.4424807248 | AA29: 0.525595853 | AB29: 2674.073318 | AC29: 212.7611123 | AD29: 314570.682 | AE29: 1.447502472 | AF29: 55.09217315 | AG29: 0.04182403818 | AH29: 0.2751125473 | AI29: 0.01550438666 | AJ29: 0.06830712716 | AK29: 0.4417843392 | AL29: 4.937388314
A30: Hastighetssänkning 90 till 702 körfält6,7-7,9 m5500Ingen2040 | B30: Hastighetssänkning 90 till 70 | C30: 2 körfält | D30: 6,7-7,9 m | G30: 5500 | H30: Ingen | I30: 2040 | L30: 1.8469 | M30: 0.1606 | N30: 2.0075 | O30: 21.98281643 | P30: 1.994959606 | Q30: 23.97777604 | R30: 1.808300423 | S30: 0.9011501587 | T30: 2.709450581 | U30: 80.22172533 | V30: 29.51467974 | W30: 50.70704559 | X30: 0.004557054616 | Y30: 0.06400223482 | Z30: 0.4424807248 | AA30: 0.5064829596 | AB30: 345.1309443 | AC30: 22.97779474 | AD30: 187979.2141 | AE30: 0.8470990938 | AF30: 4.379112805 | AG30: 0.04182403818 | AH30: 0.2751125473 | AI30: 0.01377685898 | AJ30: 0.06363464615 | AK30: 0.4290714545 | AL30: 5.200655001
A31: Hastighetssänkning 90 till 702 körfält6,7-7,9 m5500Ingen2060 | B31: Hastighetssänkning 90 till 70 | C31: 2 körfält | D31: 6,7-7,9 m | G31: 5500 | H31: Ingen | I31: 2060 | L31: 1.8469 | M31: 0.1606 | N31: 2.0075 | O31: 21.98281643 | P31: 1.994959606 | Q31: 23.97777604 | R31: 1.808300423 | S31: 0.9011501587 | T31: 2.709450581 | U31: 80.22172533 | V31: 29.51467974 | W31: 50.70704559 | X31: 0.003042325989 | Y31: 0.05234787188 | Z31: 0.4424807248 | AA31: 0.4948285966 | AB31: 345.1309443 | AC31: 22.97779474 | AD31: 187979.2141 | AE31: 0.8470990938 | AF31: 4.379112805 | AG31: 0.04182403818 | AH31: 0.2751125473 | AI31: 0.01272347401 | AJ31: 0.06078553333 | AK31: 0.4213195893 | AL31: 5.412681534
A32: =CONCATENATE(B32,C32,D32,E32,F32,G32,H32,I32) -> Hastighetssänkning 90 till 702 körfält8-10 m6000Hög2014 | B32: Hastighetssänkning 90 till 70 | C32: 2 körfält | D32: 8-10 m | G32: 6000 | H32: Hög | I32: 2014 | L32: 2.0148 | M32: 0.1752 | N32: 2.19 | O32: 23.61799155 | P32: 2.144319196 | Q32: 25.76231074 | R32: 1.972823449 | S32: 0.9827013282 | T32: 2.955524777 | U32: 148.3681658 | V32: 61.88285688 | W32: 86.48530893 | X32: 0.0099122074 | Y32: 0.09148872703 | Z32: 0.4048292835 | AA32: 0.4963180105 | AB32: 2917.149559 | AC32: 232.1035253 | AD32: 345815.388 | AE32: 1.591775743 | AF32: 60.09729543 | AG32: 0.04479310732 | AH32: 0.2905640773 | AI32: 0.01551402416 | AJ32: 0.06591124971 | AK32: 0.4148927367 | AL32: 4.917152306
A33: Hastighetssänkning 90 till 702 körfält8-10 m6000Hög2040 | B33: Hastighetssänkning 90 till 70 | C33: 2 körfält | D33: 8-10 m | G33: 6000 | H33: Hög | I33: 2040 | L33: 2.92146 | M33: 0.30514 | N33: 3.2266 | O33: 34.74739141 | P33: 3.766011756 | Q33: 38.51340317 | R33: 2.860427745 | S33: 1.711939405 | T33: 4.572367151 | U33: 137.4964526 | V33: 46.70949604 | W33: 90.78695657 | X33: 0.008591063705 | Y33: 0.1033236453 | Z33: 0.5816304465 | AA33: 0.6849540917 | AB33: 376.4947967 | AC33: 25.06749604 | AD33: 323166.7332 | AE33: 1.438531262 | AF33: 4.776966295 | AG33: 0.07852046343 | AH33: 0.3875192277 | AI33: 0.02030434557 | AJ33: 0.09062243444 | AK33: 0.5740273117 | AL33: 7.043297554
A34: Hastighetssänkning 90 till 702 körfält8-10 m6000Hög2060 | B34: Hastighetssänkning 90 till 70 | C34: 2 körfält | D34: 8-10 m | G34: 6000 | H34: Hög | I34: 2060 | L34: 3.26383 | M34: 0.40661 | N34: 3.67044 | O34: 39.11423039 | P34: 5.036375134 | Q34: 44.15060553 | R34: 3.195356027 | S34: 2.281374128 | T34: 5.476730155 | U34: 166.6616383 | V34: 51.92281198 | W34: 114.7388263 | X34: 0.006582326014 | Y34: 0.09700687669 | Z34: 0.6638109384 | AA34: 0.7608178151 | AB34: 376.4947967 | AC34: 25.06749604 | AD34: 392905.1352 | AE34: 1.727532216 | AF34: 4.776966295 | AG34: 0.1049249192 | AH34: 0.4279265718 | AI34: 0.02141882759 | AJ34: 0.09909100743 | AK34: 0.6403079801 | AL34: 8.232172066
A35: =CONCATENATE(B35,C35,D35,E35,F35,G35,H35,I35) -> Hastighetssänkning 90 till 702 körfält8-10 m6000Riket2014 | B35: Hastighetssänkning 90 till 70 | C35: 2 körfält | D35: 8-10 m | G35: 6000 | H35: Riket | I35: 2014 | L35: 2.0148 | M35: 0.1752 | N35: 2.19 | O35: 23.61799155 | P35: 2.144319196 | Q35: 25.76231074 | R35: 1.972823449 | S35: 0.9827013282 | T35: 2.955524777 | U35: 148.3681658 | V35: 61.88285688 | W35: 86.48530893 | X35: 0.0099122074 | Y35: 0.09148872703 | Z35: 0.4048292835 | AA35: 0.4963180105 | AB35: 2917.149559 | AC35: 232.1035253 | AD35: 345815.388 | AE35: 1.591775743 | AF35: 60.09729543 | AG35: 0.04479310732 | AH35: 0.2905640773 | AI35: 0.01551402416 | AJ35: 0.06591124971 | AK35: 0.4148927367 | AL35: 4.917152306
A36: Hastighetssänkning 90 till 702 körfält8-10 m6000Riket2040 | B36: Hastighetssänkning 90 till 70 | C36: 2 körfält | D36: 8-10 m | G36: 6000 | H36: Riket | I36: 2040 | L36: 2.61924 | M36: 0.26134 | N36: 2.88058 | O36: 31.00832359 | P36: 3.21641461 | Q36: 34.2247382 | R36: 2.564666348 | S36: 1.46613114 | T36: 4.030797487 | U36: 121.0280687 | V36: 42.0068368 | W36: 79.02123191 | X36: 0.007679177094 | Y36: 0.09233922998 | Z36: 0.5225535425 | AA36: 0.6148927725 | AB36: 376.4947967 | AC36: 25.06749604 | AD36: 284231.4885 | AE36: 1.269276981 | AF36: 4.776966295 | AG36: 0.06710359192 | AH36: 0.3581261059 | AI36: 0.01806762124 | AJ36: 0.0806394777 | AK36: 0.5161856736 | AL36: 6.420468834
A37: Hastighetssänkning 90 till 702 körfält8-10 m6000Riket2060 | B37: Hastighetssänkning 90 till 70 | C37: 2 körfält | D37: 8-10 m | G37: 6000 | H37: Riket | I37: 2060 | L37: 2.840795 | M37: 0.32923 | N37: 3.170025 | O37: 33.79368314 | P37: 4.061425119 | Q37: 37.85510826 | R37: 2.781442242 | S37: 1.847076497 | T37: 4.628518739 | U37: 140.4616756 | V37: 45.4147055 | W37: 95.04697008 | X37: 0.005681453984 | Y37: 0.08371208347 | Z37: 0.5763893935 | AA37: 0.6601014769 | AB37: 376.4947967 | AC37: 25.06749604 | AD37: 330714.6779 | AE37: 1.461600722 | AF37: 4.776966295 | AG37: 0.08468834183 | AH37: 0.3849240418 | AI37: 0.01839121779 | AJ37: 0.08508422277 | AK37: 0.5566260364 | AL37: 7.272939727
A38: =CONCATENATE(B38,C38,D38,E38,F38,G38,H38,I38) -> Hastighetssänkning 90 till 702 körfält8-10 m6000Ingen2014 | B38: Hastighetssänkning 90 till 70 | C38: 2 körfält | D38: 8-10 m | G38: 6000 | H38: Ingen | I38: 2014 | L38: 2.0148 | M38: 0.1752 | N38: 2.19 | O38: 23.61799155 | P38: 2.144319196 | Q38: 25.76231074 | R38: 1.972823449 | S38: 0.9827013282 | T38: 2.955524777 | U38: 148.3681658 | V38: 61.88285688 | W38: 86.48530893 | X38: 0.0099122074 | Y38: 0.09148872703 | Z38: 0.4048292835 | AA38: 0.4963180105 | AB38: 2917.149559 | AC38: 232.1035253 | AD38: 345815.388 | AE38: 1.591775743 | AF38: 60.09729543 | AG38: 0.04479310732 | AH38: 0.2905640773 | AI38: 0.01551402416 | AJ38: 0.06591124971 | AK38: 0.4148927367 | AL38: 4.917152306
A39: Hastighetssänkning 90 till 702 körfält8-10 m6000Ingen2040 | B39: Hastighetssänkning 90 till 70 | C39: 2 körfält | D39: 8-10 m | G39: 6000 | H39: Ingen | I39: 2040 | L39: 2.0148 | M39: 0.1752 | N39: 2.19 | O39: 23.61799155 | P39: 2.144319196 | Q39: 25.76231074 | R39: 1.973061563 | S39: 0.982784001 | T39: 2.955845564 | U39: 88.18557983 | V39: 32.5259949 | W39: 55.65958493 | X39: 0.005862034209 | Y39: 0.07045026717 | Z39: 0.4048292835 | AA39: 0.4752795507 | AB39: 376.4947967 | AC39: 25.06749604 | AD39: 206613.6683 | AE39: 0.9314184963 | AF39: 4.776966295 | AG39: 0.04479310732 | AH39: 0.2905640773 | AI39: 0.01361043584 | AJ39: 0.06074615039 | AK39: 0.4009229645 | AL39: 5.179339988
A40: Hastighetssänkning 90 till 702 körfält8-10 m6000Ingen2060 | B40: Hastighetssänkning 90 till 70 | C40: 2 körfält | D40: 8-10 m | G40: 6000 | H40: Ingen | I40: 2060 | L40: 2.0148 | M40: 0.1752 | N40: 2.19 | O40: 23.61799155 | P40: 2.144319196 | Q40: 25.76231074 | R40: 1.973061563 | S40: 0.982784001 | T40: 2.955845564 | U40: 88.18557983 | V40: 32.5259949 | W40: 55.65958493 | X40: 0.003913540769 | Y40: 0.05762176227 | Z40: 0.4048292835 | AA40: 0.4624510458 | AB40: 376.4947967 | AC40: 25.06749604 | AD40: 206613.6683 | AE40: 0.9314184963 | AF40: 4.776966295 | AG40: 0.04479310732 | AH40: 0.2905640773 | AI40: 0.01244969535 | AJ40: 0.05759665645 | AK40: 0.392404694 | AL40: 5.390497525
A41: =CONCATENATE(B41,C41,D41,E41,F41,G41,H41,I41) -> Hastighetssänkning 90 till 702 körfält8-10 m5500Hög2014 | B41: Hastighetssänkning 90 till 70 | C41: 2 körfält | D41: 8-10 m | G41: 5500 | H41: Hög | I41: 2014 | L41: 1.8469 | M41: 0.1606 | N41: 2.0075 | O41: 21.60444221 | P41: 1.962760504 | Q41: 23.56720271 | R41: 1.808469162 | S41: 0.9007866588 | T41: 2.709255821 | U41: 136.1643982 | V41: 56.80168358 | W41: 79.36271458 | X41: 0.009130325433 | Y41: 0.08425536486 | Z41: 0.3748724399 | AA41: 0.4591278047 | AB41: 2674.073318 | AC41: 212.7611123 | AD41: 317366.9156 | AE41: 1.460862118 | AF41: 55.09217315 | AG41: 0.04101410947 | AH41: 0.2751125473 | AI41: 0.01422118882 | AJ41: 0.06041864556 | AK41: 0.3844879704 | AL41: 4.617314635
A42: Hastighetssänkning 90 till 702 körfält8-10 m5500Hög2040 | B42: Hastighetssänkning 90 till 70 | C42: 2 körfält | D42: 8-10 m | G42: 5500 | H42: Hög | I42: 2040 | L42: 2.678005 | M42: 0.27959 | N42: 2.957595 | O42: 31.74512923 | P42: 3.443159454 | Q42: 35.18828868 | R42: 2.622165472 | S42: 1.568532305 | T42: 4.190697778 | U42: 126.2394001 | V42: 42.91237834 | W42: 83.32702177 | X42: 0.007900690627 | Y42: 0.0950075405 | Z42: 0.5369043769 | AA42: 0.6319119174 | AB42: 345.1309443 | AC42: 22.97779474 | AD42: 296698.3725 | AE42: 1.320820417 | AF42: 4.379112805 | AG42: 0.07182399137 | AH42: 0.3652954271 | AI42: 0.0186109615 | AJ42: 0.08306451605 | AK42: 0.5302364398 | AL42: 6.571765046
A43: Hastighetssänkning 90 till 702 körfält8-10 m5500Hög2060 | B43: Hastighetssänkning 90 till 70 | C43: 2 körfält | D43: 8-10 m | G43: 5500 | H43: Hög | I43: 2060 | L43: 2.991905 | M43: 0.3723 | N43: 3.364205 | O43: 35.71367391 | P43: 4.599937434 | Q43: 40.31361135 | R43: 2.929274156 | S43: 2.088772502 | T43: 5.018046658 | U43: 152.997389 | V43: 47.721789 | W43: 105.2756 | X43: 0.006050029124 | Y43: 0.08915140239 | Z43: 0.6121563028 | AA43: 0.7013077051 | AB43: 345.1309443 | AC43: 22.97779474 | AD43: 360672.4459 | AE43: 1.586044339 | AF43: 4.379112805 | AG43: 0.09588442997 | AH43: 0.4025895765 | AI43: 0.01962990838 | AJ43: 0.09081483982 | AK43: 0.5908629569 | AL43: 7.665391909
A44: =CONCATENATE(B44,C44,D44,E44,F44,G44,H44,I44) -> Hastighetssänkning 90 till 702 körfält8-10 m5500Riket2014 | B44: Hastighetssänkning 90 till 70 | C44: 2 körfält | D44: 8-10 m | G44: 5500 | H44: Riket | I44: 2014 | L44: 1.8469 | M44: 0.1606 | N44: 2.0075 | O44: 21.60444221 | P44: 1.962760504 | Q44: 23.56720271 | R44: 1.808469162 | S44: 0.9007866588 | T44: 2.709255821 | U44: 136.1643982 | V44: 56.80168358 | W44: 79.36271458 | X44: 0.009130325433 | Y44: 0.08425536486 | Z44: 0.3748724399 | AA44: 0.4591278047 | AB44: 2674.073318 | AC44: 212.7611123 | AD44: 317366.9156 | AE44: 1.460862118 | AF44: 55.09217315 | AG44: 0.04101410947 | AH44: 0.2751125473 | AI44: 0.01422118882 | AJ44: 0.06041864556 | AK44: 0.3844879704 | AL44: 4.617314635
A45: Hastighetssänkning 90 till 702 körfält8-10 m5500Riket2040 | B45: Hastighetssänkning 90 till 70 | C45: 2 körfält | D45: 8-10 m | G45: 5500 | H45: Riket | I45: 2040 | L45: 2.40097 | M45: 0.23944 | N45: 2.64041 | O45: 28.34041773 | P45: 2.941168445 | Q45: 31.28158617 | R45: 2.3510294 | S45: 1.343223946 | T45: 3.694253347 | U45: 111.0947776 | V45: 38.58192408 | W45: 72.51285347 | X45: 0.007064794566 | Y45: 0.08493849314 | Z45: 0.4827505483 | AA45: 0.5676890414 | AB45: 345.1309443 | AC45: 22.97779474 | AD45: 260895.0745 | AE45: 1.165158014 | AF45: 4.379112805 | AG45: 0.06138821515 | AH45: 0.3302116012 | AI45: 0.01656063087 | AJ45: 0.07391347237 | AK45: 0.4772149382 | AL45: 6.000838719
A46: Hastighetssänkning 90 till 702 körfält8-10 m5500Riket2060 | B46: Hastighetssänkning 90 till 70 | C46: 2 körfält | D46: 8-10 m | G46: 5500 | H46: Riket | I46: 2060 | L46: 2.604275 | M46: 0.30222 | N46: =SUM(L46:M46) -> 2.906495 | O46: 30.87752995 | P46: 3.720269059 | Q46: =SUM(O46:P46) -> 34.59779901 | R46: 2.549966392 | S46: 1.695476119 | T46: =SUM(R46:S46) -> 4.245442511 | U46: 129.0754368 | V46: 41.72519058 | W46: 87.3502462 | X46: 0.005227051395 | Y46: 0.07700614938 | Z46: 0.5322937006 | AA46: =SUM(Y46:Z46) -> 0.60929985 | AB46: 345.1309443 | AC46: 22.97779474 | AD46: 303904.4105 | AE46: 1.343059947 | AF46: 4.379112805 | AG46: 0.07761195376 | AH46: 0.3629941728 | AI46: 0.01686408221 | AJ46: 0.07801915805 | AK46: 0.5144166098 | AL46: 6.789100021
A47: =CONCATENATE(B47,C47,D47,E47,F47,G47,H47,I47) -> Hastighetssänkning 90 till 702 körfält8-10 m5500Ingen2014 | B47: Hastighetssänkning 90 till 70 | C47: 2 körfält | D47: 8-10 m | G47: 5500 | H47: Ingen | I47: 2014 | L47: 1.8469 | M47: 0.1606 | N47: 2.0075 | O47: 21.60444221 | P47: 1.962760504 | Q47: 23.56720271 | R47: 1.808469162 | S47: 0.9007866588 | T47: 2.709255821 | U47: 136.1643982 | V47: 56.80168358 | W47: 79.36271458 | X47: 0.009130325433 | Y47: 0.08425536486 | Z47: 0.3748724399 | AA47: 0.4591278047 | AB47: 2674.073318 | AC47: 212.7611123 | AD47: 317366.9156 | AE47: 1.460862118 | AF47: 55.09217315 | AG47: 0.04101410947 | AH47: 0.2751125473 | AI47: 0.01422118882 | AJ47: 0.06041864556 | AK47: 0.3844879704 | AL47: 4.617314635
A48: Hastighetssänkning 90 till 702 körfält8-10 m5500Ingen2040 | B48: Hastighetssänkning 90 till 70 | C48: 2 körfält | D48: 8-10 m | G48: 5500 | H48: Ingen | I48: 2040 | L48: 1.8469 | M48: 0.1606 | N48: 2.0075 | O48: 21.60444221 | P48: 1.962760504 | Q48: 23.56720271 | R48: 1.808687432 | S48: 0.9008624926 | T48: 2.709549925 | U48: 80.93228598 | V48: 29.85721156 | W48: 51.07507442 | X48: 0.005399632783 | Y48: 0.06488026621 | Z48: 0.3748724399 | AA48: 0.4397527061 | AB48: 345.1309443 | AC48: 22.97779474 | AD48: 189616.6785 | AE48: 0.8548199824 | AF48: 4.379112805 | AG48: 0.04101410947 | AH48: 0.2751125473 | AI48: 0.01247623285 | AJ48: 0.05568397119 | AK48: 0.371592502 | AL48: 4.863514659
A49: Hastighetssänkning 90 till 702 körfält8-10 m5500Ingen2060 | B49: Hastighetssänkning 90 till 70 | C49: 2 körfält | D49: 8-10 m | G49: 5500 | H49: Ingen | I49: 2060 | L49: 1.8469 | M49: 0.1606 | N49: 2.0075 | O49: 21.60444221 | P49: 1.962760504 | Q49: 23.56720271 | R49: 1.808687432 | S49: 0.9008624926 | T49: 2.709549925 | U49: 80.93228598 | V49: 29.85721156 | W49: 51.07507442 | X49: 0.00360483789 | Y49: 0.05306601984 | Z49: 0.3748724399 | AA49: 0.4279384597 | AB49: 345.1309443 | AC49: 22.97779474 | AD49: 189616.6785 | AE49: 0.8548199824 | AF49: 4.379112805 | AG49: 0.04101410947 | AH49: 0.2751125473 | AI49: 0.01141222074 | AJ49: 0.05279693508 | AK49: 0.3637293039 | AL49: 5.061796252
A50: =CONCATENATE(B50,C50,D50,E50,F50,G50,H50,I50) -> Hastighetssänkning 90 till 702 körfält10,1-11,5 m6000Hög2014 | B50: Hastighetssänkning 90 till 70 | C50: 2 körfält | D50: 10,1-11,5 m | G50: 6000 | H50: Hög | I50: 2014 | L50: 2.0148 | M50: 0.1752 | N50: 2.19 | O50: 23.67181075 | P50: 2.172223965 | Q50: 25.84403472 | R50: 1.972767348 | S50: 0.9829465895 | T50: 2.955713938 | U50: 147.9918167 | V50: 61.79344055 | W50: 86.19837611 | X50: 0.0105250092 | Y50: 0.07594959322 | Z50: 0.4017310442 | AA50: 0.4776806375 | AB50: 2617.914956 | AC50: 210.0006487 | AD50: 344931.2946 | AE50: 1.588059272 | AF50: 64.8880423 | AG50: 0.04544601499 | AH50: 0.2905640773 | AI50: 0.01399697456 | AJ50: 0.06152752047 | AK50: 0.4021561424 | AL50: 4.775123936
A51: Hastighetssänkning 90 till 702 körfält10,1-11,5 m6000Hög2040 | B51: Hastighetssänkning 90 till 70 | C51: 2 körfält | D51: 10,1-11,5 m | G51: 6000 | H51: Hög | I51: 2040 | L51: 2.92146 | M51: 0.30514 | N51: 3.2266 | O51: 34.51685497 | P51: 3.790966221 | Q51: 38.30782119 | R51: 2.860659755 | S51: 1.712173006 | T51: 4.572832762 | U51: 137.753873 | V51: 46.91627439 | W51: 90.83759864 | X51: 0.009131712157 | Y51: 0.0854727982 | Z51: 0.5770084254 | AA51: 0.6624812236 | AB51: 341.0172353 | AC51: 23.90068987 | AD51: 323744.5022 | AE51: 1.441660522 | AF51: 5.462878177 | AG51: 0.07925269274 | AH51: 0.3875192277 | AI51: 0.01853972368 | AJ51: 0.0854547782 | AK51: 0.5584867217 | AL51: 6.820118811
A52: Hastighetssänkning 90 till 702 körfält10,1-11,5 m6000Hög2060 | B52: Hastighetssänkning 90 till 70 | C52: 2 körfält | D52: 10,1-11,5 m | G52: 6000 | H52: Hög | I52: 2060 | L52: 3.26383 | M52: 0.40661 | N52: 3.67044 | O52: 38.72465011 | P52: 5.057437404 | Q52: 43.78208751 | R52: 3.195740028 | S52: 2.281581401 | T52: 5.477321429 | U52: 167.2260841 | V52: 52.26815346 | W52: 114.9579306 | X52: 0.006998578159 | Y52: 0.08016917818 | Z52: 0.6584806351 | AA52: 0.7386498133 | AB52: 341.0172353 | AC52: 23.90068987 | AD52: 394191.8625 | AE52: 1.733956735 | AF52: 5.462878177 | AG52: 0.1056843927 | AH52: 0.4279265718 | AI52: 0.01973437368 | AJ52: 0.09409631396 | AK52: 0.6248191256 | AL52: 7.964300099
A53: =CONCATENATE(B53,C53,D53,E53,F53,G53,H53,I53) -> Hastighetssänkning 90 till 702 körfält10,1-11,5 m6000Riket2014 | B53: Hastighetssänkning 90 till 70 | C53: 2 körfält | D53: 10,1-11,5 m | G53: 6000 | H53: Riket | I53: 2014 | L53: 2.0148 | M53: 0.1752 | N53: 2.19 | O53: 23.67181075 | P53: 2.172223965 | Q53: 25.84403472 | R53: 1.972767348 | S53: 0.9829465895 | T53: 2.955713938 | U53: 147.9918167 | V53: 61.79344055 | W53: 86.19837611 | X53: 0.0105250092 | Y53: 0.07594959322 | Z53: 0.4017310442 | AA53: 0.4776806375 | AB53: 2617.914956 | AC53: 210.0006487 | AD53: 344931.2946 | AE53: 1.588059272 | AF53: 64.8880423 | AG53: 0.04544601499 | AH53: 0.2905640773 | AI53: 0.01399697456 | AJ53: 0.06152752047 | AK53: 0.4021561424 | AL53: 4.775123936
A54: Hastighetssänkning 90 till 702 körfält10,1-11,5 m6000Riket2040 | B54: Hastighetssänkning 90 till 70 | C54: 2 körfält | D54: 10,1-11,5 m | G54: 6000 | H54: Riket | I54: 2040 | L54: 2.61924 | M54: 0.26134 | N54: 2.88058 | O54: 30.8910346 | P54: 3.244400441 | Q54: 34.13543504 | R54: 2.564785726 | S54: 1.466386291 | T54: 4.031172017 | U54: 121.0730775 | V54: 42.11271733 | W54: 78.96036019 | X54: 0.008160267776 | Y54: 0.07645483012 | Z54: 0.5184406828 | AA54: 0.5948955129 | AB54: 341.0172353 | AC54: 23.90068987 | AD54: 284319.6526 | AE54: 1.270105696 | AF54: 5.462878177 | AG54: 0.06784480585 | AH54: 0.3581261059 | AI54: 0.0164973899 | AJ54: 0.07604108986 | AK54: 0.5023570332 | AL54: 6.221875435
A55: Hastighetssänkning 90 till 702 körfält10,1-11,5 m6000Riket2060 | B55: Hastighetssänkning 90 till 70 | C55: 2 körfält | D55: 10,1-11,5 m | G55: 6000 | H55: Riket | I55: 2060 | L55: 2.840795 | M55: 0.32923 | N55: 3.170025 | O55: 33.58531861 | P55: 4.089684933 | Q55: 37.67500354 | R55: 2.78165164 | S55: 1.847339771 | T55: 4.628991411 | U55: 140.6694327 | V55: 45.6014456 | W55: 95.06798706 | X55: 0.006038867751 | Y55: 0.06925443965 | Z55: 0.5718125431 | AA55: 0.6410669827 | AB55: 341.0172353 | AC55: 23.90068987 | AD55: 331177.2862 | AE55: 1.46420616 | AF55: 5.462878177 | AG55: 0.08550194787 | AH55: 0.3849240418 | AI55: 0.01694486603 | AJ55: 0.08079554287 | AK55: 0.5433265738 | AL55: 7.042932194
A56: =CONCATENATE(B56,C56,D56,E56,F56,G56,H56,I56) -> Hastighetssänkning 90 till 702 körfält10,1-11,5 m6000Ingen2014 | B56: Hastighetssänkning 90 till 70 | C56: 2 körfält | D56: 10,1-11,5 m | G56: 6000 | H56: Ingen | I56: 2014 | L56: 2.0148 | M56: 0.1752 | N56: 2.19 | O56: 23.67181075 | P56: 2.172223965 | Q56: 25.84403472 | R56: 1.972767348 | S56: 0.9829465895 | T56: 2.955713938 | U56: 147.9918167 | V56: 61.79344055 | W56: 86.19837611 | X56: 0.0105250092 | Y56: 0.07594959322 | Z56: 0.4017310442 | AA56: 0.4776806375 | AB56: 2617.914956 | AC56: 210.0006487 | AD56: 344931.2946 | AE56: 1.588059272 | AF56: 64.8880423 | AG56: 0.04544601499 | AH56: 0.2905640773 | AI56: 0.01399697456 | AJ56: 0.06152752047 | AK56: 0.4021561424 | AL56: 4.775123936
A57: Hastighetssänkning 90 till 702 körfält10,1-11,5 m6000Ingen2040 | B57: Hastighetssänkning 90 till 70 | C57: 2 körfält | D57: 10,1-11,5 m | G57: 6000 | H57: Ingen | I57: 2040 | L57: 2.0148 | M57: 0.1752 | N57: 2.19 | O57: 23.67181075 | P57: 2.172223965 | Q57: 25.84403472 | R57: 1.973005463 | S57: 0.983028963 | T57: 2.956034426 | U57: 87.93645887 | V57: 32.47674042 | W57: 55.45971845 | X57: 0.006224442396 | Y57: 0.05848446368 | Z57: 0.4017310442 | AA57: 0.4602155079 | AB57: 341.0172353 | AC57: 23.90068987 | AD57: 206026.6876 | AE57: 0.9289991255 | AF57: 5.462878177 | AG57: 0.04544601499 | AH57: 0.2905640773 | AI57: 0.01242757216 | AJ57: 0.05728216021 | AK57: 0.3905057756 | AL57: 5.029738516
A58: Hastighetssänkning 90 till 702 körfält10,1-11,5 m6000Ingen2060 | B58: Hastighetssänkning 90 till 70 | C58: 2 körfält | D58: 10,1-11,5 m | G58: 6000 | H58: Ingen | I58: 2060 | L58: 2.0148 | M58: 0.1752 | N58: 2.19 | O58: 23.67181075 | P58: 2.172223965 | Q58: 25.84403472 | R58: 1.973005463 | S58: 0.983028963 | T58: 2.956034426 | U58: 87.93645887 | V58: 32.47674042 | W58: 55.45971845 | X58: 0.004155487363 | Y58: 0.04783484859 | Z58: 0.4017310442 | AA58: 0.4495658928 | AB58: 341.0172353 | AC58: 23.90068987 | AD58: 206026.6876 | AE58: 0.9289991255 | AF58: 5.462878177 | AG58: 0.04544601499 | AH58: 0.2905640773 | AI58: 0.01147060637 | AJ58: 0.05469349044 | AK58: 0.383401796 | AL58: 5.234796922
A59: =CONCATENATE(B59,C59,D59,E59,F59,G59,H59,I59) -> Hastighetssänkning 90 till 702 körfält10,1-11,5 m5500Hög2014 | B59: Hastighetssänkning 90 till 70 | C59: 2 körfält | D59: 10,1-11,5 m | G59: 5500 | H59: Hög | I59: 2014 | L59: 1.8469 | M59: 0.1606 | N59: 2.0075 | O59: 21.69703565 | P59: 1.990964145 | Q59: 23.6879998 | R59: 1.808372275 | S59: 0.9010323662 | T59: 2.709404641 | U59: 135.6685824 | V59: 56.64750869 | W59: 79.02107368 | X59: 0.009692060416 | Y59: 0.07001115886 | Z59: 0.3720323872 | AA59: 0.4420435461 | AB59: 2399.654771 | AC59: 192.4805086 | AD59: 316208.8989 | AE59: 1.455819124 | AF59: 59.48092841 | AG59: 0.04165568101 | AH59: 0.2751125473 | AI59: 0.01283056001 | AJ59: 0.0564002271 | AK59: 0.372812759 | AL59: 4.487121962
A60: Hastighetssänkning 90 till 702 körfält10,1-11,5 m5500Hög2040 | B60: Hastighetssänkning 90 till 70 | C60: 2 körfält | D60: 10,1-11,5 m | G60: 5500 | H60: Hög | I60: 2040 | L60: 2.678005 | M60: 0.27959 | N60: 2.957595 | O60: 31.60486428 | P60: 3.47151998 | Q60: 35.07638426 | R60: 2.622307748 | S60: 1.56879223 | T60: 4.191099978 | U60: 126.3234274 | V60: 43.03875298 | W60: 83.28467445 | X60: 0.008396248954 | Y60: 0.07864545551 | Z60: 0.5326678327 | AA60: 0.6113132882 | AB60: 312.5791828 | AC60: 21.90803682 | AD60: 296876.1061 | AE60: 1.322079587 | AF60: 5.007830083 | AG60: 0.07258993155 | AH60: 0.3652954271 | AI60: 0.01699350923 | AJ60: 0.07832784277 | AK60: 0.5159919363 | AL60: 6.367199428
A61: Hastighetssänkning 90 till 702 körfält10,1-11,5 m5500Hög2060 | B61: Hastighetssänkning 90 till 70 | C61: 2 körfält | D61: 10,1-11,5 m | G61: 5500 | H61: Hög | I61: 2060 | L61: 2.991905 | M61: 0.3723 | N61: 3.364205 | O61: 35.436949 | P61: 4.626587043 | Q61: 40.06353605 | R61: 2.92954968 | S61: 2.089025421 | T61: 5.018575101 | U61: 153.3381835 | V61: 47.96849063 | W61: 105.3696928 | X61: 0.006431515526 | Y61: 0.07372000318 | Z61: 0.607271191 | AA61: 0.6809911942 | AB61: 312.5791828 | AC61: 21.90803682 | AD61: 361442.266 | AE61: 1.59007731 | AF61: 5.007830083 | AG61: 0.09671230884 | AH61: 0.4025895765 | AI61: 0.01808614153 | AJ61: 0.08623730752 | AK61: 0.5766677451 | AL61: 7.419892843
A62: =CONCATENATE(B62,C62,D62,E62,F62,G62,H62,I62) -> Hastighetssänkning 90 till 702 körfält10,1-11,5 m5500Riket2014 | B62: Hastighetssänkning 90 till 70 | C62: 2 körfält | D62: 10,1-11,5 m | G62: 5500 | H62: Riket | I62: 2014 | L62: 1.8469 | M62: 0.1606 | N62: 2.0075 | O62: 21.69703565 | P62: 1.990964145 | Q62: 23.6879998 | R62: 1.808372275 | S62: 0.9010323662 | T62: 2.709404641 | U62: 135.6685824 | V62: 56.64750869 | W62: 79.02107368 | X62: 0.009692060416 | Y62: 0.07001115886 | Z62: 0.3720323872 | AA62: 0.4420435461 | AB62: 2399.654771 | AC62: 192.4805086 | AD62: 316208.8989 | AE62: 1.455819124 | AF62: 59.48092841 | AG62: 0.04165568101 | AH62: 0.2751125473 | AI62: 0.01283056001 | AJ62: 0.0564002271 | AK62: 0.372812759 | AL62: 4.487121962
A63: Hastighetssänkning 90 till 702 körfält10,1-11,5 m5500Riket2040 | B63: Hastighetssänkning 90 till 70 | C63: 2 körfält | D63: 10,1-11,5 m | G63: 5500 | H63: Riket | I63: 2040 | L63: 2.40097 | M63: 0.23944 | N63: 2.64041 | O63: 28.28973858 | P63: 2.970990248 | Q63: 31.26072883 | R63: 2.351081336 | S63: 1.343491936 | T63: 3.694573272 | U63: 111.0151362 | V63: 38.62785304 | W63: 72.38728321 | X63: 0.007505758271 | Y63: 0.07037898476 | Z63: 0.4789807353 | AA63: 0.5493597201 | AB63: 312.5791828 | AC63: 21.90803682 | AD63: 260696.0513 | AE63: 1.164633631 | AF63: 5.007830083 | AG63: 0.06213943987 | AH63: 0.3302116012 | AI63: 0.01512136992 | AJ63: 0.06969862846 | AK63: 0.4645397217 | AL63: 5.818809666
A64: Hastighetssänkning 90 till 702 körfält10,1-11,5 m5500Riket2060 | B64: Hastighetssänkning 90 till 70 | C64: 2 körfält | D64: 10,1-11,5 m | G64: 5500 | H64: Riket | I64: 2060 | L64: 2.604275 | M64: 0.30222 | N64: 2.906495 | O64: 30.75429756 | P64: 3.752035065 | Q64: 34.50633263 | R64: 2.550091206 | S64: 1.695766247 | T64: 4.245857453 | U64: 129.1150441 | V64: 41.83612574 | W64: 87.27891839 | X64: 0.005554786906 | Y64: 0.06374901238 | Z64: 0.5280968942 | AA64: 0.5918459066 | AB64: 312.5791828 | AC64: 21.90803682 | AD64: 303978.693 | AE64: 1.343860706 | AF64: 5.007830083 | AG64: 0.0784591146 | AH64: 0.3629941728 | AI64: 0.01553782991 | AJ64: 0.07408659353 | AK64: 0.5022214831 | AL64: 6.578191425
A65: =CONCATENATE(B65,C65,D65,E65,F65,G65,H65,I65) -> Hastighetssänkning 90 till 702 körfält10,1-11,5 m5500Ingen2014 | B65: Hastighetssänkning 90 till 70 | C65: 2 körfält | D65: 10,1-11,5 m | G65: 5500 | H65: Ingen | I65: 2014 | L65: 1.8469 | M65: 0.1606 | N65: 2.0075 | O65: 21.69703565 | P65: 1.990964145 | Q65: 23.6879998 | R65: 1.808372275 | S65: 0.9010323662 | T65: 2.709404641 | U65: 135.6685824 | V65: 56.64750869 | W65: 79.02107368 | X65: 0.009692060416 | Y65: 0.07001115886 | Z65: 0.3720323872 | AA65: 0.4420435461 | AB65: 2399.654771 | AC65: 192.4805086 | AD65: 316208.8989 | AE65: 1.455819124 | AF65: 59.48092841 | AG65: 0.04165568101 | AH65: 0.2751125473 | AI65: 0.01283056001 | AJ65: 0.0564002271 | AK65: 0.372812759 | AL65: 4.487121962
A66: Hastighetssänkning 90 till 702 körfält10,1-11,5 m5500Ingen2040 | B66: Hastighetssänkning 90 till 70 | C66: 2 körfält | D66: 10,1-11,5 m | G66: 5500 | H66: Ingen | I66: 2040 | L66: 1.8469 | M66: 0.1606 | N66: 2.0075 | O66: 21.69703565 | P66: 1.990964145 | Q66: 23.6879998 | R66: 1.808590547 | S66: 0.9011078801 | T66: 2.709698427 | U66: 80.61430145 | V66: 29.77228519 | W66: 50.84201626 | X66: 0.005731840288 | Y66: 0.05391161301 | Z66: 0.3720323872 | AA66: 0.4259440002 | AB66: 312.5791828 | AC66: 21.90803682 | AD66: 188871.5063 | AE66: 0.8516427495 | AF66: 5.007830083 | AG66: 0.04165568101 | AH66: 0.2751125473 | AI66: 0.01139194114 | AJ66: 0.05250864686 | AK66: 0.3620434122 | AL66: 4.726379977
A67: Hastighetssänkning 90 till 702 körfält10,1-11,5 m5500Ingen2060 | B67: Hastighetssänkning 90 till 70 | C67: 2 körfält | D67: 10,1-11,5 m | G67: 5500 | H67: Ingen | I67: 2060 | L67: 1.8469 | M67: 0.1606 | N67: 2.0075 | O67: 21.69703565 | P67: 1.990964145 | Q67: 23.6879998 | R67: 1.808590547 | S67: 0.9011078801 | T67: 2.709698427 | U67: 80.61430145 | V67: 29.77228519 | W67: 50.84201626 | X67: 0.003826622269 | Y67: 0.0440946823 | Z67: 0.3720323872 | AA67: 0.4161270695 | AB67: 312.5791828 | AC67: 21.90803682 | AD67: 188871.5063 | AE67: 0.8516427495 | AF67: 5.007830083 | AG67: 0.04165568101 | AH67: 0.2751125473 | AI67: 0.0105147225 | AJ67: 0.05013569957 | AK67: 0.3554766474 | AL67: 4.919070699
A68: =CONCATENATE(B68,C68,D68,E68,F68,G68,H68,I68) -> Hastighetssänkning 90 till 802 körfält6,7-7,9 m6000Hög2014 | B68: Hastighetssänkning 90 till 80 | C68: 2 körfält | D68: 6,7-7,9 m | G68: 6000 | H68: Hög | I68: 2014 | L68: 2.0148 | M68: 0.1752 | N68: 2.19 | O68: 24.00985018 | P68: 2.198293369 | Q68: 26.20814355 | R68: 1.972424939 | S68: 0.983171932 | T68: 2.955596871 | U68: 145.8237674 | V68: 60.68880787 | W68: 85.13495953 | X68: 0.008357957692 | Y68: 0.08843565801 | Z68: 0.4785837761 | AA68: 0.5670194341 | AB68: 2917.149559 | AC68: 232.1035253 | AD68: 339947.0693 | AE68: 1.564269883 | AF68: 60.09729543 | AG68: 0.04577593723 | AH68: 0.2905640773 | AI68: 0.01674562312 | AJ68: 0.07405190814 | AK68: 0.4762219029 | AL68: 5.266323593
A69: Hastighetssänkning 90 till 802 körfält6,7-7,9 m6000Hög2040 | B69: Hastighetssänkning 90 till 80 | C69: 2 körfält | D69: 6,7-7,9 m | G69: 6000 | H69: Hög | I69: 2040 | L69: 2.92146 | M69: 0.30514 | N69: 3.2266 | O69: 35.34567128 | P69: 3.855913411 | Q69: 39.20158469 | R69: 2.859850466 | S69: 1.712756269 | T69: 4.572606735 | U69: 135.2275958 | V69: 45.74638335 | W69: 89.48121245 | X69: 0.007219816593 | Y69: 0.09981637977 | Z69: 0.69165901 | AA69: 0.7914753898 | AB69: 376.4947967 | AC69: 25.06749604 | AD69: 317915.5486 | AE69: 1.414417758 | AF69: 4.776966295 | AG69: 0.08022387533 | AH69: 0.3875192277 | AI69: 0.02222775538 | AJ69: 0.1030275686 | AK69: 0.6662200658 | AL69: 7.591973912
A70: Hastighetssänkning 90 till 802 körfält6,7-7,9 m6000Hög2060 | B70: Hastighetssänkning 90 till 80 | C70: 2 körfält | D70: 6,7-7,9 m | G70: 6000 | H70: Hög | I70: 2060 | L70: 3.26383 | M70: 0.40661 | N70: 3.67044 | O70: 39.80637427 | P70: 5.155277811 | Q70: 44.96165208 | R70: 3.194706689 | S70: 2.282474108 | T70: 5.477180797 | U70: 163.984497 | V70: 50.83540979 | W70: 113.1490872 | X70: 0.005526585356 | Y70: 0.09369867069 | Z70: 0.7907003696 | AA70: 0.8843990403 | AB70: 376.4947967 | AC70: 25.06749604 | AD70: 386700.067 | AE70: 1.699278426 | AF70: 4.776966295 | AG70: 0.1072147947 | AH70: 0.4279265718 | AI70: 0.02369751674 | AJ70: 0.1135804557 | AK70: 0.7471210679 | AL70: 8.890724993
A71: =CONCATENATE(B71,C71,D71,E71,F71,G71,H71,I71) -> Hastighetssänkning 90 till 802 körfält6,7-7,9 m6000Riket2014 | B71: Hastighetssänkning 90 till 80 | C71: 2 körfält | D71: 6,7-7,9 m | G71: 6000 | H71: Riket | I71: 2014 | L71: 2.0148 | M71: 0.1752 | N71: 2.19 | O71: 24.00985018 | P71: 2.198293369 | Q71: 26.20814355 | R71: 1.972424939 | S71: 0.983171932 | T71: 2.955596871 | U71: 145.8237674 | V71: 60.68880787 | W71: 85.13495953 | X71: 0.008357957692 | Y71: 0.08843565801 | Z71: 0.4785837761 | AA71: 0.5670194341 | AB71: 2917.149559 | AC71: 232.1035253 | AD71: 339947.0693 | AE71: 1.564269883 | AF71: 60.09729543 | AG71: 0.04577593723 | AH71: 0.2905640773 | AI71: 0.01674562312 | AJ71: 0.07405190814 | AK71: 0.4762219029 | AL71: 5.266323593
A72: Hastighetssänkning 90 till 802 körfält6,7-7,9 m6000Riket2040 | B72: Hastighetssänkning 90 till 80 | C72: 2 körfält | D72: 6,7-7,9 m | G72: 6000 | H72: Riket | I72: 2040 | L72: 2.61924 | M72: 0.26134 | N72: 2.88058 | O72: 31.52987095 | P72: 3.293961763 | Q72: 34.82383272 | R72: 2.564154331 | S72: 1.466825618 | T72: 4.03097995 | U72: 119.018065 | V72: 41.15190773 | W72: 77.86615729 | X72: 0.006458986403 | Y72: 0.08921832442 | Z72: 0.6204613725 | AA72: 0.7096796969 | AB72: 376.4947967 | AC72: 25.06749604 | AD72: 279579.7478 | AE72: 1.247907943 | AF72: 4.776966295 | AG72: 0.06855360539 | AH72: 0.3581261059 | AI72: 0.01977914846 | AJ72: 0.09167806374 | AK72: 0.5982224847 | AL72: 6.908703069
A73: Hastighetssänkning 90 till 802 körfält6,7-7,9 m6000Riket2060 | B73: Hastighetssänkning 90 till 80 | C73: 2 körfält | D73: 6,7-7,9 m | G73: 6000 | H73: Riket | I73: 2060 | L73: 2.840795 | M73: 0.32923 | N73: 3.170025 | O73: 34.37336463 | P73: 4.158587221 | Q73: 38.53195185 | R73: 2.780883184 | S73: 1.847957254 | T73: 4.628840438 | U73: 138.1754361 | V73: 44.48014605 | W73: 93.69529006 | X73: 0.004774945152 | Y73: 0.08087150143 | Z73: 0.6853426568 | AA73: 0.7662141582 | AB73: 376.4947967 | AC73: 25.06749604 | AD73: 325416.7701 | AE73: 1.437448745 | AF73: 4.776966295 | AG73: 0.08652544264 | AH73: 0.3849240418 | AI73: 0.02034780799 | AJ73: 0.09752554791 | AK73: 0.6483408023 | AL73: 7.838404399
A74: =CONCATENATE(B74,C74,D74,E74,F74,G74,H74,I74) -> Hastighetssänkning 90 till 802 körfält6,7-7,9 m6000Ingen2014 | B74: Hastighetssänkning 90 till 80 | C74: 2 körfält | D74: 6,7-7,9 m | G74: 6000 | H74: Ingen | I74: 2014 | L74: 2.0148 | M74: 0.1752 | N74: 2.19 | O74: 24.00985018 | P74: 2.198293369 | Q74: 26.20814355 | R74: 1.972424939 | S74: 0.983171932 | T74: 2.955596871 | U74: 145.8237674 | V74: 60.68880787 | W74: 85.13495953 | X74: 0.008357957692 | Y74: 0.08843565801 | Z74: 0.4785837761 | AA74: 0.5670194341 | AB74: 2917.149559 | AC74: 232.1035253 | AD74: 339947.0693 | AE74: 1.564269883 | AF74: 60.09729543 | AG74: 0.04577593723 | AH74: 0.2905640773 | AI74: 0.01674562312 | AJ74: 0.07405190814 | AK74: 0.4762219029 | AL74: 5.266323593
A75: Hastighetssänkning 90 till 802 körfält6,7-7,9 m6000Ingen2040 | B75: Hastighetssänkning 90 till 80 | C75: 2 körfält | D75: 6,7-7,9 m | G75: 6000 | H75: Ingen | I75: 2040 | L75: 2.0148 | M75: 0.1752 | N75: 2.19 | O75: 24.00985018 | P75: 2.198293369 | Q75: 26.20814355 | R75: 1.972663061 | S75: 0.9832537845 | T75: 2.955916845 | U75: 86.6691941 | V75: 31.86961284 | W75: 54.79958127 | X75: 0.004942858027 | Y75: 0.0680992723 | Z75: 0.4785837761 | AA75: 0.5466830484 | AB75: 376.4947967 | AC75: 25.06749604 | AD75: 203106.4091 | AE75: 0.915251222 | AF75: 4.776966295 | AG75: 0.04577593723 | AH75: 0.2905640773 | AI75: 0.01489973845 | AJ75: 0.06906157637 | AK75: 0.4627217336 | AL75: 5.547129451
A76: Hastighetssänkning 90 till 802 körfält6,7-7,9 m6000Ingen2060 | B76: Hastighetssänkning 90 till 80 | C76: 2 körfält | D76: 6,7-7,9 m | G76: 6000 | H76: Ingen | I76: 2060 | L76: 2.0148 | M76: 0.1752 | N76: 2.19 | O76: 24.00985018 | P76: 2.198293369 | Q76: 26.20814355 | R76: 1.972663061 | S76: 0.9832537845 | T76: 2.955916845 | U76: 86.6691941 | V76: 31.86961284 | W76: 54.79958127 | X76: 0.003299891422 | Y76: 0.05569886726 | Z76: 0.4785837761 | AA76: 0.5342826434 | AB76: 376.4947967 | AC76: 25.06749604 | AD76: 203106.4091 | AE76: 0.915251222 | AF76: 4.776966295 | AG76: 0.04577593723 | AH76: 0.2905640773 | AI76: 0.01377418361 | AJ76: 0.06601864946 | AK76: 0.4544898103 | AL76: 5.77328147
A77: =CONCATENATE(B77,C77,D77,E77,F77,G77,H77,I77) -> Hastighetssänkning 90 till 802 körfält6,7-7,9 m5500Hög2014 | B77: Hastighetssänkning 90 till 80 | C77: 2 körfält | D77: 6,7-7,9 m | G77: 5500 | H77: Hög | I77: 2014 | L77: 1.8469 | M77: 0.1606 | N77: 2.0075 | O77: 21.96183094 | P77: 2.012755089 | Q77: 23.97458603 | R77: 1.808103 | S77: 0.9012192486 | T77: 2.709322248 | U77: 133.8200841 | V77: 55.70762119 | W77: 78.1124629 | X77: 0.007705596534 | Y77: 0.08145671825 | Z77: 0.4424807248 | AA77: 0.523937443 | AB77: 2674.073318 | AC77: 212.7611123 | AD77: 311958.9783 | AE77: 1.43554415 | AF77: 55.09217315 | AG77: 0.04191837193 | AH77: 0.2751125473 | AI77: 0.01535015453 | AJ77: 0.06788091579 | AK77: 0.4407063727 | AL77: 4.937388314
A78: Hastighetssänkning 90 till 802 körfält6,7-7,9 m5500Hög2040 | B78: Hastighetssänkning 90 till 80 | C78: 2 körfält | D78: 6,7-7,9 m | G78: 5500 | H78: Hög | I78: 2040 | L78: 2.678005 | M78: 0.27959 | N78: =SUM(L78:M78) -> 2.957595 | O78: 32.28193254 | P78: 3.525998277 | Q78: =SUM(O78:P78) -> 35.80793082 | R78: 2.621640986 | S78: 1.569276593 | T78: =SUM(R78:S78) -> 4.190917578 | U78: 124.1549324 | V78: 42.03639512 | W78: 82.11853727 | X78: 0.006643805634 | Y78: 0.09179278121 | Z78: 0.6377565493 | AA78: =SUM(Y78:Z78) -> 0.7295493305 | AB78: 345.1309443 | AC78: 22.97779474 | AD78: 291872.3735 | AE78: 1.298702877 | AF78: 4.379112805 | AG78: 0.07337760443 | AH78: 0.3652954271 | AI78: 0.02037395878 | AJ78: 0.09443506102 | AK78: 0.6147403107 | AL78: 7.074681751
A79: Hastighetssänkning 90 till 802 körfält6,7-7,9 m5500Hög2060 | B79: Hastighetssänkning 90 till 80 | C79: 2 körfält | D79: 6,7-7,9 m | G79: 5500 | H79: Hög | I79: 2060 | L79: 2.991905 | M79: 0.3723 | N79: 3.364205 | O79: 36.33373606 | P79: 4.709450192 | Q79: 41.04318625 | R79: 2.928683702 | S79: 2.089773153 | T79: 5.018456855 | U79: 150.5341902 | V79: 46.73298491 | W79: 103.8012052 | X79: 0.005082464849 | Y79: 0.08611950065 | Z79: 0.7284478177 | AA79: 0.8145673183 | AB79: 345.1309443 | AC79: 22.97779474 | AD79: 354961.1747 | AE79: 1.56009637 | AF79: 4.379112805 | AG79: 0.09796984992 | AH79: 0.4025895765 | AI79: 0.02171827941 | AJ79: 0.1040941167 | AK79: 0.6887549222 | AL79: 8.26894192
A80: =CONCATENATE(B80,C80,D80,E80,F80,G80,H80,I80) -> Hastighetssänkning 90 till 802 körfält6,7-7,9 m5500Riket2014 | B80: Hastighetssänkning 90 till 80 | C80: 2 körfält | D80: 6,7-7,9 m | G80: 5500 | H80: Riket | I80: 2014 | L80: 1.8469 | M80: 0.1606 | N80: 2.0075 | O80: 21.96183094 | P80: 2.012755089 | Q80: 23.97458603 | R80: 1.808103 | S80: 0.9012192486 | T80: 2.709322248 | U80: 133.8200841 | V80: 55.70762119 | W80: 78.1124629 | X80: 0.007705596534 | Y80: 0.08145671825 | Z80: 0.4424807248 | AA80: 0.523937443 | AB80: 2674.073318 | AC80: 212.7611123 | AD80: 311958.9783 | AE80: 1.43554415 | AF80: 55.09217315 | AG80: 0.04191837193 | AH80: 0.2751125473 | AI80: 0.01535015453 | AJ80: 0.06788091579 | AK80: 0.4407063727 | AL80: 4.937388314
A81: Hastighetssänkning 90 till 802 körfält6,7-7,9 m5500Riket2040 | B81: Hastighetssänkning 90 till 80 | C81: 2 körfält | D81: 6,7-7,9 m | G81: 5500 | H81: Riket | I81: 2040 | L81: 2.40097 | M81: 0.23944 | N81: 2.64041 | O81: 28.81311035 | P81: 3.01301107 | Q81: 31.82612142 | R81: 2.350560342 | S81: 1.343860975 | T81: 3.694421317 | U81: 109.2399981 | V81: 37.80047194 | W81: 71.43952611 | X81: 0.00594637796 | Y81: 0.08207789714 | Z81: 0.5724920482 | AA81: 0.6545699453 | AB81: 345.1309443 | AC81: 22.97779474 | AD81: 256601.2409 | AE81: 1.145469729 | AF81: 4.379112805 | AG81: 0.06271899435 | AH81: 0.3302116012 | AI81: 0.01812940243 | AJ81: 0.08403134823 | AK81: 0.5524091947 | AL81: 6.448350144
A82: Hastighetssänkning 90 till 802 körfält6,7-7,9 m5500Riket2060 | B82: Hastighetssänkning 90 till 80 | C82: 2 körfält | D82: 6,7-7,9 m | G82: 5500 | H82: Riket | I82: 2060 | L82: 2.604275 | M82: 0.30222 | N82: 2.906495 | O82: 31.39771364 | P82: 3.80996833 | Q82: 35.20768197 | R82: 2.549458462 | S82: 1.696280286 | T82: 4.245738749 | U82: 126.9720116 | V82: 40.87510979 | W82: 86.09690183 | X82: 0.00439581555 | Y82: 0.07440143829 | Z82: 0.6321999065 | AA82: 0.7066013448 | AB82: 345.1309443 | AC82: 22.97779474 | AD82: 299028.4036 | AE82: 1.320879143 | AF82: 4.379112805 | AG82: 0.07929076615 | AH82: 0.3629941728 | AI82: 0.01865820473 | AJ82: 0.08942740367 | AK82: 0.5985157364 | AL82: 7.307610694
A83: =CONCATENATE(B83,C83,D83,E83,F83,G83,H83,I83) -> Hastighetssänkning 90 till 802 körfält6,7-7,9 m5500Ingen2014 | B83: Hastighetssänkning 90 till 80 | C83: 2 körfält | D83: 6,7-7,9 m | G83: 5500 | H83: Ingen | I83: 2014 | L83: 1.8469 | M83: 0.1606 | N83: 2.0075 | O83: 21.96183094 | P83: 2.012755089 | Q83: 23.97458603 | R83: 1.808103 | S83: 0.9012192486 | T83: 2.709322248 | U83: 133.8200841 | V83: 55.70762119 | W83: 78.1124629 | X83: 0.007705596534 | Y83: 0.08145671825 | Z83: 0.4424807248 | AA83: 0.523937443 | AB83: 2674.073318 | AC83: 212.7611123 | AD83: 311958.9783 | AE83: 1.43554415 | AF83: 55.09217315 | AG83: 0.04191837193 | AH83: 0.2751125473 | AI83: 0.01535015453 | AJ83: 0.06788091579 | AK83: 0.4407063727 | AL83: 4.937388314
A84: Hastighetssänkning 90 till 802 körfält6,7-7,9 m5500Ingen2040 | B84: Hastighetssänkning 90 till 80 | C84: 2 körfält | D84: 6,7-7,9 m | G84: 5500 | H84: Ingen | I84: 2040 | L84: 1.8469 | M84: 0.1606 | N84: 2.0075 | O84: 21.96183094 | P84: 2.012755089 | Q84: 23.97458603 | R84: 1.808321277 | S84: 0.9012943146 | T84: 2.709615592 | U84: 79.53337271 | V84: 29.2557938 | W84: 50.2775789 | X84: 0.004557054616 | Y84: 0.06272518757 | Z84: 0.4424807248 | AA84: 0.5052059123 | AB84: 345.1309443 | AC84: 22.97779474 | AD84: 186380.3885 | AE84: 0.8399220025 | AF84: 4.379112805 | AG84: 0.04191837193 | AH84: 0.2751125473 | AI84: 0.01365809358 | AJ84: 0.063306445 | AK84: 0.4282413737 | AL84: 5.200655001
A85: Hastighetssänkning 90 till 802 körfält6,7-7,9 m5500Ingen2060 | B85: Hastighetssänkning 90 till 80 | C85: 2 körfält | D85: 6,7-7,9 m | G85: 5500 | H85: Ingen | I85: 2060 | L85: 1.8469 | M85: 0.1606 | N85: 2.0075 | O85: 21.96183094 | P85: 2.012755089 | Q85: 23.97458603 | R85: 1.808321277 | S85: 0.9012943146 | T85: 2.709615592 | U85: 79.53337271 | V85: 29.2557938 | W85: 50.2775789 | X85: 0.003042325989 | Y85: 0.05130336608 | Z85: 0.4424807248 | AA85: 0.4937840908 | AB85: 345.1309443 | AC85: 22.97779474 | AD85: 186380.3885 | AE85: 0.8399220025 | AF85: 4.379112805 | AG85: 0.04191837193 | AH85: 0.2751125473 | AI85: 0.01262633497 | AJ85: 0.06051709534 | AK85: 0.4206406605 | AL85: 5.412681534
A86: =CONCATENATE(B86,C86,D86,E86,F86,G86,H86,I86) -> Hastighetssänkning 90 till 802 körfält8-10 m6000Hög2014 | B86: Hastighetssänkning 90 till 80 | C86: 2 körfält | D86: 8-10 m | G86: 6000 | H86: Hög | I86: 2014 | L86: 2.0148 | M86: 0.1752 | N86: 2.19 | O86: 23.5948938 | P86: 2.16415253 | Q86: 25.75904633 | R86: 1.972847662 | S86: 0.9828556957 | T86: 2.955703358 | U86: 147.1240916 | V86: 61.36918382 | W86: 85.75490775 | X86: 0.009814598819 | Y86: 0.08963917371 | Z86: 0.4048292835 | AA86: 0.4944684572 | AB86: 2917.149559 | AC86: 232.1035253 | AD86: 342933.9859 | AE86: 1.578617348 | AF86: 60.09729543 | AG86: 0.0448990697 | AH86: 0.2905640773 | AI86: 0.0153420157 | AJ86: 0.0654359145 | AK86: 0.413690527 | AL86: 4.917152306
A87: Hastighetssänkning 90 till 802 körfält8-10 m6000Hög2040 | B87: Hastighetssänkning 90 till 80 | C87: 2 körfält | D87: 8-10 m | G87: 6000 | H87: Hög | I87: 2040 | L87: 2.92146 | M87: 0.30514 | N87: 3.2266 | O87: 34.72135735 | P87: 3.794567307 | Q87: 38.51592465 | R87: 2.860453675 | S87: 1.712172919 | T87: 4.572626593 | U87: 136.3926936 | V87: 46.29363743 | W87: 90.09905619 | X87: 0.008504947888 | Y87: 0.1011989391 | Z87: 0.5816304465 | AA87: 0.6828293856 | AB87: 376.4947967 | AC87: 25.06749604 | AD87: 320603.1823 | AE87: 1.427019921 | AF87: 4.776966295 | AG87: 0.0786732943 | AH87: 0.3875192277 | AI87: 0.02010674789 | AJ87: 0.09007638495 | AK87: 0.5726462527 | AL87: 7.043297554
A88: Hastighetssänkning 90 till 802 körfält8-10 m6000Hög2060 | B88: Hastighetssänkning 90 till 80 | C88: 2 körfält | D88: 8-10 m | G88: 6000 | H88: Hög | I88: 2060 | L88: 3.26383 | M88: 0.40661 | N88: 3.67044 | O88: 39.08844602 | P88: 5.071120537 | Q88: 44.15956656 | R88: 3.195381022 | S88: 2.281664435 | T88: 5.477045457 | U88: 165.3835555 | V88: 51.45492801 | W88: 113.9286275 | X88: 0.006516024347 | Y88: 0.09500276105 | Z88: 0.6638109384 | AA88: 0.7588136995 | AB88: 376.4947967 | AC88: 25.06749604 | AD88: 389934.2656 | AE88: 1.714258625 | AF88: 4.776966295 | AG88: 0.105110939 | AH88: 0.4279265718 | AI88: 0.02123244484 | AJ88: 0.0985759497 | AK88: 0.6390053049 | AL88: 8.232172066
A89: =CONCATENATE(B89,C89,D89,E89,F89,G89,H89,I89) -> Hastighetssänkning 90 till 802 körfält8-10 m6000Riket2014 | B89: Hastighetssänkning 90 till 80 | C89: 2 körfält | D89: 8-10 m | G89: 6000 | H89: Riket | I89: 2014 | L89: 2.0148 | M89: 0.1752 | N89: =SUM(L89:M89) -> 2.19 | O89: 23.5948938 | P89: 2.16415253 | Q89: =SUM(O89:P89) -> 25.75904633 | R89: 1.972847662 | S89: 0.9828556957 | T89: =SUM(R89:S89) -> 2.955703358 | U89: 147.1240916 | V89: 61.36918382 | W89: 85.75490775 | X89: 0.009814598819 | Y89: 0.08963917371 | Z89: 0.4048292835 | AA89: =SUM(Y89:Z89) -> 0.4944684572 | AB89: 2917.149559 | AC89: 232.1035253 | AD89: 342933.9859 | AE89: 1.578617348 | AF89: 60.09729543 | AG89: 0.0448990697 | AH89: 0.2905640773 | AI89: 0.0153420157 | AJ89: 0.0654359145 | AK89: 0.413690527 | AL89: 4.917152306
A90: Hastighetssänkning 90 till 802 körfält8-10 m6000Riket2040 | B90: Hastighetssänkning 90 till 80 | C90: 2 körfält | D90: 8-10 m | G90: 6000 | H90: Riket | I90: 2040 | L90: 2.61924 | M90: 0.26134 | N90: 2.88058 | O90: 30.9827825 | P90: 3.2425787 | Q90: 34.2253612 | R90: 2.564692209 | S90: 1.466341429 | T90: 4.031033638 | U90: 120.0305647 | V90: 41.63617436 | W90: 78.39439034 | X90: 0.007602547785 | Y90: 0.09044858119 | Z90: 0.5225535425 | AA90: 0.6130021237 | AB90: 376.4947967 | AC90: 25.06749604 | AD90: 281913.7987 | AE90: 1.258894899 | AF90: 4.776966295 | AG90: 0.06724356219 | AH90: 0.3581261059 | AI90: 0.0178917909 | AJ90: 0.08015358096 | AK90: 0.5149567519 | AL90: 6.420468834
A91: Hastighetssänkning 90 till 802 körfält8-10 m6000Riket2060 | B91: Hastighetssänkning 90 till 80 | C91: 2 körfält | D91: 8-10 m | G91: 6000 | H91: Riket | I91: 2060 | L91: 2.840795 | M91: 0.32923 | N91: 3.170025 | O91: 33.76798764 | P91: 4.09257864 | Q91: 37.86056628 | R91: 2.78146782 | S91: 1.847330529 | T91: 4.628798348 | U91: 139.3357841 | V91: 45.01066082 | W91: 94.32512332 | X91: 0.005624524238 | Y91: 0.08199125504 | Z91: 0.5763893935 | AA91: 0.6583806485 | AB91: 376.4947967 | AC91: 25.06749604 | AD91: 328096.1207 | AE91: 1.44994093 | AF91: 4.776966295 | AG91: 0.08485507088 | AH91: 0.3849240418 | AI91: 0.01823118074 | AJ91: 0.08464196987 | AK91: 0.5555074979 | AL91: 7.272939727
A92: =CONCATENATE(B92,C92,D92,E92,F92,G92,H92,I92) -> Hastighetssänkning 90 till 802 körfält8-10 m6000Ingen2014 | B92: Hastighetssänkning 90 till 80 | C92: 2 körfält | D92: 8-10 m | G92: 6000 | H92: Ingen | I92: 2014 | L92: 2.0148 | M92: 0.1752 | N92: 2.19 | O92: 23.5948938 | P92: 2.16415253 | Q92: 25.75904633 | R92: 1.972847662 | S92: 0.9828556957 | T92: 2.955703358 | U92: 147.1240916 | V92: 61.36918382 | W92: 85.75490775 | X92: 0.009814598819 | Y92: 0.08963917371 | Z92: 0.4048292835 | AA92: 0.4944684572 | AB92: 2917.149559 | AC92: 232.1035253 | AD92: 342933.9859 | AE92: 1.578617348 | AF92: 60.09729543 | AG92: 0.0448990697 | AH92: 0.2905640773 | AI92: 0.0153420157 | AJ92: 0.0654359145 | AK92: 0.413690527 | AL92: 4.917152306
A93: Hastighetssänkning 90 till 802 körfält8-10 m6000Ingen2040 | B93: Hastighetssänkning 90 till 80 | C93: 2 körfält | D93: 8-10 m | G93: 6000 | H93: Ingen | I93: 2040 | L93: 2.0148 | M93: 0.1752 | N93: 2.19 | O93: 23.5948938 | P93: 2.16415253 | Q93: 25.75904633 | R93: 1.973085776 | S93: 0.9829378321 | T93: 2.956023608 | U93: 87.42440542 | V93: 32.2443941 | W93: 55.18001132 | X93: 0.00580430894 | Y93: 0.06902603131 | Z93: 0.4048292835 | AA93: 0.4738553148 | AB93: 376.4947967 | AC93: 25.06749604 | AD93: 204844.8654 | AE93: 0.9235012311 | AF93: 4.776966295 | AG93: 0.0448990697 | AH93: 0.2905640773 | AI93: 0.0134779819 | AJ93: 0.06038012177 | AK93: 0.3999972111 | AL93: 5.179339988
A94: Hastighetssänkning 90 till 802 körfält8-10 m6000Ingen2060 | B94: Hastighetssänkning 90 till 80 | C94: 2 körfält | D94: 8-10 m | G94: 6000 | H94: Ingen | I94: 2060 | L94: 2.0148 | M94: 0.1752 | N94: 2.19 | O94: 23.5948938 | P94: 2.16415253 | Q94: 25.75904633 | R94: 1.973085776 | S94: 0.9829378321 | T94: 2.956023608 | U94: 87.42440542 | V94: 32.2443941 | W94: 55.18001132 | X94: 0.003875002919 | Y94: 0.05645686988 | Z94: 0.4048292835 | AA94: 0.4612861534 | AB94: 376.4947967 | AC94: 25.06749604 | AD94: 204844.8654 | AE94: 0.9235012311 | AF94: 4.776966295 | AG94: 0.0448990697 | AH94: 0.2905640773 | AI94: 0.01234136036 | AJ94: 0.0572972791 | AK94: 0.3916475139 | AL94: 5.390497525
A95: =CONCATENATE(B95,C95,D95,E95,F95,G95,H95,I95) -> Hastighetssänkning 90 till 802 körfält8-10 m5500Hög2014 | B95: Hastighetssänkning 90 till 80 | C95: 2 körfält | D95: 8-10 m | G95: 5500 | H95: Hög | I95: 2014 | L95: 1.8469 | M95: 0.1606 | N95: =SUM(L95:M95) -> 2.0075 | O95: 21.58243432 | P95: 1.981490158 | Q95: =SUM(O95:P95) -> 23.56392448 | R95: 1.808492401 | S95: 0.9009310414 | T95: =SUM(R95:S95) -> 2.709423443 | U95: 135.0131992 | V95: 56.33236411 | W95: 78.68083509 | X95: 0.009040850901 | Y95: 0.08255994098 | Z95: 0.3748724399 | AA95: =SUM(Y95:Z95) -> 0.4574323809 | AB95: 2674.073318 | AC95: 212.7611123 | AD95: 314699.5486 | AE95: 1.4487106 | AF95: 55.09217315 | AG95: 0.04111413336 | AH95: 0.2751125473 | AI95: 0.01406351439 | AJ95: 0.05998292163 | AK95: 0.3833859448 | AL95: 4.617314635
A96: Hastighetssänkning 90 till 802 körfält8-10 m5500Hög2040 | B96: Hastighetssänkning 90 till 80 | C96: 2 körfält | D96: 8-10 m | G96: 5500 | H96: Hög | I96: 2040 | L96: 2.678005 | M96: 0.27959 | N96: 2.957595 | O96: 31.71952781 | P96: 3.470737989 | Q96: 35.1902658 | R96: 2.622191276 | S96: 1.568754823 | T96: 4.190946099 | U96: 125.2063698 | V96: 42.53287826 | W96: 82.67349151 | X96: 0.007821756875 | Y96: 0.09306003499 | Z96: 0.5369043769 | AA96: 0.6299644118 | AB96: 345.1309443 | AC96: 22.97779474 | AD96: 294297.3577 | AE96: 1.310086411 | AF96: 4.379112805 | AG96: 0.07197154642 | AH96: 0.3652954271 | AI96: 0.01842984349 | AJ96: 0.08256400714 | AK96: 0.5289705612 | AL96: 6.571765046
A97: Hastighetssänkning 90 till 802 körfält8-10 m5500Hög2060 | B97: Hastighetssänkning 90 till 80 | C97: 2 körfält | D97: 8-10 m | G97: 5500 | H97: Hög | I97: 2060 | L97: 2.991905 | M97: 0.3723 | N97: 3.364205 | O97: 35.68794156 | P97: 4.633843961 | Q97: 40.32178552 | R97: 2.929299458 | S97: 2.089051624 | T97: 5.018351082 | U97: 151.7943261 | V97: 47.29490867 | W97: 104.4994175 | X97: 0.00598926503 | Y97: 0.08731467223 | Z97: 0.6121563028 | AA97: 0.699470975 | AB97: 345.1309443 | AC97: 22.97779474 | AD97: 357873.5378 | AE97: 1.573605215 | AF97: 4.379112805 | AG97: 0.09606592275 | AH97: 0.4025895765 | AI97: 0.01945909247 | AJ97: 0.09034280017 | AK97: 0.5896690823 | AL97: 7.665391909
A98: =CONCATENATE(B98,C98,D98,E98,F98,G98,H98,I98) -> Hastighetssänkning 90 till 802 körfält8-10 m5500Riket2014 | B98: Hastighetssänkning 90 till 80 | C98: 2 körfält | D98: 8-10 m | G98: 5500 | H98: Riket | I98: 2014 | L98: 1.8469 | M98: 0.1606 | N98: 2.0075 | O98: 21.58243432 | P98: 1.981490158 | Q98: 23.56392448 | R98: 1.808492401 | S98: 0.9009310414 | T98: 2.709423443 | U98: 135.0131992 | V98: 56.33236411 | W98: 78.68083509 | X98: 0.009040850901 | Y98: 0.08255994098 | Z98: 0.3748724399 | AA98: 0.4574323809 | AB98: 2674.073318 | AC98: 212.7611123 | AD98: 314699.5486 | AE98: 1.4487106 | AF98: 55.09217315 | AG98: 0.04111413336 | AH98: 0.2751125473 | AI98: 0.01406351439 | AJ98: 0.05998292163 | AK98: 0.3833859448 | AL98: 4.617314635
A99: Hastighetssänkning 90 till 802 körfält8-10 m5500Riket2040 | B99: Hastighetssänkning 90 till 80 | C99: 2 körfält | D99: 8-10 m | G99: 5500 | H99: Riket | I99: 2040 | L99: 2.40097 | M99: 0.23944 | N99: 2.64041 | O99: 28.31556843 | P99: 2.966238511 | Q99: 31.28180694 | R99: 2.351054825 | S99: 1.34342299 | T99: 3.694477815 | U99: 110.1639037 | V99: 38.24357701 | W99: 71.92032671 | X99: 0.006994556781 | Y99: 0.08320554023 | Z99: 0.4827505483 | AA99: 0.5659560885 | AB99: 345.1309443 | AC99: 22.97779474 | AD99: 258730.8486 | AE99: 1.155500309 | AF99: 4.379112805 | AG99: 0.06152227854 | AH99: 0.3302116012 | AI99: 0.01639946625 | AJ99: 0.07346810348 | AK99: 0.4760885188 | AL99: 6.000838719
A100: Hastighetssänkning 90 till 802 körfält8-10 m5500Riket2060 | B100: Hastighetssänkning 90 till 80 | C100: 2 körfält | D100: 8-10 m | G100: 5500 | H100: Riket | I100: 2060 | L100: 2.604275 | M100: 0.30222 | N100: 2.906495 | O100: 30.85228159 | P100: 3.750384523 | Q100: 34.60266611 | R100: 2.549991822 | S100: 1.695718464 | T100: 4.245710286 | U100: 128.0194001 | V100: 41.35644545 | W100: 86.66295462 | X100: 0.005174848875 | Y100: 0.07542821189 | Z100: 0.5322937006 | AA100: 0.6077219125 | AB100: 345.1309443 | AC100: 22.97779474 | AD100: 301446.4901 | AE100: 1.332165392 | AF100: 4.379112805 | AG100: 0.07777307052 | AH100: 0.3629941728 | AI100: 0.01671733402 | AJ100: 0.07761362811 | AK100: 0.5133909504 | AL100: 6.789100021
A101: =CONCATENATE(B101,C101,D101,E101,F101,G101,H101,I101) -> Hastighetssänkning 90 till 802 körfält8-10 m5500Ingen2014 | B101: Hastighetssänkning 90 till 80 | C101: 2 körfält | D101: 8-10 m | G101: 5500 | H101: Ingen | I101: 2014 | L101: 1.8469 | M101: 0.1606 | N101: 2.0075 | O101: 21.58243432 | P101: 1.981490158 | Q101: 23.56392448 | R101: 1.808492401 | S101: 0.9009310414 | T101: 2.709423443 | U101: 135.0131992 | V101: 56.33236411 | W101: 78.68083509 | X101: 0.009040850901 | Y101: 0.08255994098 | Z101: 0.3748724399 | AA101: 0.4574323809 | AB101: 2674.073318 | AC101: 212.7611123 | AD101: 314699.5486 | AE101: 1.4487106 | AF101: 55.09217315 | AG101: 0.04111413336 | AH101: 0.2751125473 | AI101: 0.01406351439 | AJ101: 0.05998292163 | AK101: 0.3833859448 | AL101: 4.617314635
A102: Hastighetssänkning 90 till 802 körfält8-10 m5500Ingen2040 | B102: Hastighetssänkning 90 till 80 | C102: 2 körfält | D102: 8-10 m | G102: 5500 | H102: Ingen | I102: 2040 | L102: 1.8469 | M102: 0.1606 | N102: 2.0075 | O102: 21.58243432 | P102: 1.981490158 | Q102: 23.56392448 | R102: 1.808710671 | S102: 0.9010063669 | T102: 2.709717038 | U102: 80.22618265 | V102: 29.59992993 | W102: 50.62625272 | X102: 0.005346717953 | Y102: 0.06357471667 | Z102: 0.3748724399 | AA102: 0.4384471566 | AB102: 345.1309443 | AC102: 22.97779474 | AD102: 187975.1436 | AE102: 0.8474916588 | AF102: 4.379112805 | AG102: 0.04111413336 | AH102: 0.2751125473 | AI102: 0.01235481674 | AJ102: 0.05534844496 | AK102: 0.3707438948 | AL102: 4.863514659
A103: Hastighetssänkning 90 till 802 körfält8-10 m5500Ingen2060 | B103: Hastighetssänkning 90 till 80 | C103: 2 körfält | D103: 8-10 m | G103: 5500 | H103: Ingen | I103: 2060 | L103: 1.8469 | M103: 0.1606 | N103: 2.0075 | O103: 21.58243432 | P103: 1.981490158 | Q103: 23.56392448 | R103: 1.808710671 | S103: 0.9010063669 | T103: 2.709717038 | U103: 80.22618265 | V103: 29.59992993 | W103: 50.62625272 | X103: 0.003569511528 | Y103: 0.05199820182 | Z103: 0.3748724399 | AA103: 0.4268706417 | AB103: 345.1309443 | AC103: 22.97779474 | AD103: 187975.1436 | AE103: 0.8474916588 | AF103: 4.379112805 | AG103: 0.04111413336 | AH103: 0.2751125473 | AI103: 0.01131291366 | AJ103: 0.05252250584 | AK103: 0.3630352222 | AL103: 5.061796252
A104: =CONCATENATE(B104,C104,D104,E104,F104,G104,H104,I104) -> Hastighetssänkning 90 till 802 körfält10,1-11,5 m6000Hög2014 | B104: Hastighetssänkning 90 till 80 | C104: 2 körfält | D104: 10,1-11,5 m | G104: 6000 | H104: Hög | I104: 2014 | L104: 2.0148 | M104: 0.1752 | N104: 2.19 | O104: 23.64475391 | P104: 2.19492045 | Q104: 25.83967436 | R104: 1.972795497 | S104: 0.9831345062 | T104: 2.955930003 | U104: 146.7072511 | V104: 61.28616924 | W104: 85.42108182 | X104: 0.0105250092 | Y104: 0.07444222201 | Z104: 0.4017310442 | AA104: 0.4761732662 | AB104: 2617.914956 | AC104: 210.0006487 | AD104: 341951.9782 | AE104: 1.574567114 | AF104: 64.8880423 | AG104: 0.04556701719 | AH104: 0.2905640773 | AI104: 0.01385678903 | AJ104: 0.06114012607 | AK104: 0.4011763511 | AL104: 4.775123936
A105: Hastighetssänkning 90 till 802 körfält10,1-11,5 m6000Hög2040 | B105: Hastighetssänkning 90 till 80 | C105: 2 körfält | D105: 10,1-11,5 m | G105: 6000 | H105: Hög | I105: 2040 | L105: 2.92146 | M105: 0.30514 | N105: 3.2266 | O105: 34.48211635 | P105: 3.827594245 | Q105: 38.30971059 | R105: 2.860695189 | S105: 1.712479127 | T105: 4.573174316 | U105: 136.5425779 | V105: 46.50860052 | W105: 90.03397736 | X105: 0.009131712157 | Y105: 0.08374117961 | Z105: 0.5770084254 | AA105: 0.660749605 | AB105: 341.0172353 | AC105: 23.90068987 | AD105: 320922.4867 | AE105: 1.429226724 | AF105: 5.462878177 | AG105: 0.07944810245 | AH105: 0.3875192277 | AI105: 0.01837868316 | AJ105: 0.08500975222 | AK105: 0.5573611696 | AL105: 6.820118811
A106: Hastighetssänkning 90 till 802 körfält10,1-11,5 m6000Hög2060 | B106: Hastighetssänkning 90 till 80 | C106: 2 körfält | D106: 10,1-11,5 m | G106: 6000 | H106: Hög | I106: 2060 | L106: 3.26383 | M106: 0.40661 | N106: 3.67044 | O106: 38.68839058 | P106: 5.104083232 | Q106: 43.79247381 | R106: 3.195776466 | S106: 2.281974008 | T106: 5.477750474 | U106: 165.7825177 | V106: 51.81012165 | W106: 113.972396 | X106: 0.006998578159 | Y106: 0.07853583991 | Z106: 0.6584806351 | AA106: 0.737016475 | AB106: 341.0172353 | AC106: 23.90068987 | AD106: 390823.7411 | AE106: 1.719252395 | AF106: 5.462878177 | AG106: 0.105933298 | AH106: 0.4279265718 | AI106: 0.01958247322 | AJ106: 0.09367654602 | AK106: 0.6237574557 | AL106: 7.964300099
A107: =CONCATENATE(B107,C107,D107,E107,F107,G107,H107,I107) -> Hastighetssänkning 90 till 802 körfält10,1-11,5 m6000Riket2014 | B107: Hastighetssänkning 90 till 80 | C107: 2 körfält | D107: 10,1-11,5 m | G107: 6000 | H107: Riket | I107: 2014 | L107: 2.0148 | M107: 0.1752 | N107: 2.19 | O107: 23.64475391 | P107: 2.19492045 | Q107: 25.83967436 | R107: 1.972795497 | S107: 0.9831345062 | T107: 2.955930003 | U107: 146.7072511 | V107: 61.28616924 | W107: 85.42108182 | X107: 0.0105250092 | Y107: 0.07444222201 | Z107: 0.4017310442 | AA107: 0.4761732662 | AB107: 2617.914956 | AC107: 210.0006487 | AD107: 341951.9782 | AE107: 1.574567114 | AF107: 64.8880423 | AG107: 0.04556701719 | AH107: 0.2905640773 | AI107: 0.01385678903 | AJ107: 0.06114012607 | AK107: 0.4011763511 | AL107: 4.775123936
A108: Hastighetssänkning 90 till 802 körfält10,1-11,5 m6000Riket2040 | B108: Hastighetssänkning 90 till 80 | C108: 2 körfält | D108: 10,1-11,5 m | G108: 6000 | H108: Riket | I108: 2040 | L108: 2.61924 | M108: 0.26134 | N108: 2.88058 | O108: 30.85847747 | P108: 3.276662915 | Q108: 34.13514039 | R108: 2.564819144 | S108: 1.466654696 | T108: 4.03147384 | U108: 119.9972836 | V108: 41.74859948 | W108: 78.24868409 | X108: 0.008160267776 | Y108: 0.07491396643 | Z108: 0.5184406828 | AA108: 0.5933546492 | AB108: 341.0172353 | AC108: 23.90068987 | AD108: 281813.6872 | AE108: 1.259054429 | AF108: 5.462878177 | AG108: 0.06801689788 | AH108: 0.3581261059 | AI108: 0.01635408958 | AJ108: 0.07564508789 | AK108: 0.5013554718 | AL108: 6.221875435
A109: Hastighetssänkning 90 till 802 körfält10,1-11,5 m6000Riket2060 | B109: Hastighetssänkning 90 till 80 | C109: 2 körfält | D109: 10,1-11,5 m | G109: 6000 | H109: Riket | I109: 2060 | L109: 2.840795 | M109: 0.32923 | N109: 3.170025 | O109: 33.55125074 | P109: 4.129414529 | Q109: 37.68066527 | R109: 2.781686312 | S109: 1.847671529 | T109: 4.629357841 | U109: 139.4283801 | V109: 45.20524959 | W109: 94.22313046 | X109: 0.006038867751 | Y109: 0.0678519782 | Z109: 0.5718125431 | AA109: 0.6396645213 | AB109: 341.0172353 | AC109: 23.90068987 | AD109: 328282.1014 | AE109: 1.451554757 | AF109: 5.462878177 | AG109: 0.08571389966 | AH109: 0.3849240418 | AI109: 0.01681443712 | AJ109: 0.08043511028 | AK109: 0.5424149739 | AL109: 7.042932194
A110: =CONCATENATE(B110,C110,D110,E110,F110,G110,H110,I110) -> Hastighetssänkning 90 till 802 körfält10,1-11,5 m6000Ingen2014 | B110: Hastighetssänkning 90 till 80 | C110: 2 körfält | D110: 10,1-11,5 m | G110: 6000 | H110: Ingen | I110: 2014 | L110: 2.0148 | M110: 0.1752 | N110: 2.19 | O110: 23.64475391 | P110: 2.19492045 | Q110: 25.83967436 | R110: 1.972795497 | S110: 0.9831345062 | T110: 2.955930003 | U110: 146.7072511 | V110: 61.28616924 | W110: 85.42108182 | X110: 0.0105250092 | Y110: 0.07444222201 | Z110: 0.4017310442 | AA110: 0.4761732662 | AB110: 2617.914956 | AC110: 210.0006487 | AD110: 341951.9782 | AE110: 1.574567114 | AF110: 64.8880423 | AG110: 0.04556701719 | AH110: 0.2905640773 | AI110: 0.01385678903 | AJ110: 0.06114012607 | AK110: 0.4011763511 | AL110: 4.775123936
A111: Hastighetssänkning 90 till 802 körfält10,1-11,5 m6000Ingen2040 | B111: Hastighetssänkning 90 till 80 | C111: 2 körfält | D111: 10,1-11,5 m | G111: 6000 | H111: Ingen | I111: 2040 | L111: 2.0148 | M111: 0.1752 | N111: 2.19 | O111: 23.64475391 | P111: 2.19492045 | Q111: 25.83967436 | R111: 1.973033612 | S111: 0.9832162799 | T111: 2.956249891 | U111: 87.14376075 | V111: 32.19866598 | W111: 54.94509477 | X111: 0.006224442396 | Y111: 0.05732372281 | Z111: 0.4017310442 | AA111: 0.459054767 | AB111: 341.0172353 | AC111: 23.90068987 | AD111: 204181.9155 | AE111: 0.9208160534 | AF111: 5.462878177 | AG111: 0.04556701719 | AH111: 0.2905640773 | AI111: 0.01231962326 | AJ111: 0.05698384981 | AK111: 0.389751294 | AL111: 5.029738516
A112: Hastighetssänkning 90 till 802 körfält10,1-11,5 m6000Ingen2060 | B112: Hastighetssänkning 90 till 80 | C112: 2 körfält | D112: 10,1-11,5 m | G112: 6000 | H112: Ingen | I112: 2060 | L112: 2.0148 | M112: 0.1752 | N112: 2.19 | O112: 23.64475391 | P112: 2.19492045 | Q112: 25.83967436 | R112: 1.973033612 | S112: 0.9832162799 | T112: 2.956249891 | U112: 87.14376075 | V112: 32.19866598 | W112: 54.94509477 | X112: 0.004155487363 | Y112: 0.04688547058 | Z112: 0.4017310442 | AA112: 0.4486165148 | AB112: 341.0172353 | AC112: 23.90068987 | AD112: 204181.9155 | AE112: 0.9208160534 | AF112: 5.462878177 | AG112: 0.04556701719 | AH112: 0.2905640773 | AI112: 0.01138231421 | AJ112: 0.0544495003 | AK112: 0.3827847003 | AL112: 5.234796922
A113: =CONCATENATE(B113,C113,D113,E113,F113,G113,H113,I113) -> Hastighetssänkning 90 till 802 körfält10,1-11,5 m5500Hög2014 | B113: Hastighetssänkning 90 till 80 | C113: 2 körfält | D113: 10,1-11,5 m | G113: 5500 | H113: Hög | I113: 2014 | L113: 1.8469 | M113: 0.1606 | N113: 2.0075 | O113: 21.67202111 | P113: 2.011861374 | Q113: 23.68388249 | R113: 1.808398308 | S113: 0.9012052555 | T113: 2.709603564 | U113: 134.4895612 | V113: 56.18287107 | W113: 78.30669011 | X113: 0.009692060416 | Y113: 0.06862940192 | Z113: 0.3720323872 | AA113: 0.4406617891 | AB113: 2399.654771 | AC113: 192.4805086 | AD113: 313474.203 | AE113: 1.44343943 | AF113: 59.48092841 | AG113: 0.04176708343 | AH113: 0.2751125473 | AI113: 0.01270205661 | AJ113: 0.05604511557 | AK113: 0.371914617 | AL113: 4.487121962
A114: Hastighetssänkning 90 till 802 körfält10,1-11,5 m5500Hög2040 | B114: Hastighetssänkning 90 till 80 | C114: 2 körfält | D114: 10,1-11,5 m | G114: 5500 | H114: Hög | I114: 2040 | L114: 2.678005 | M114: 0.27959 | N114: 2.957595 | O114: 31.57188662 | P114: 3.505830023 | Q114: 35.07771665 | R114: 2.62234152 | S114: 1.569077952 | T114: 4.191419472 | U114: 125.2027645 | V114: 42.66614508 | W114: 82.5366194 | X114: 0.008396248954 | Y114: 0.07705825405 | Z114: 0.5326678327 | AA114: 0.6097260868 | AB114: 312.5791828 | AC114: 21.90803682 | AD114: 294264.4253 | AE114: 1.310594767 | AF114: 5.007830083 | AG114: 0.07277295318 | AH114: 0.3652954271 | AI114: 0.01684589949 | AJ114: 0.07791993199 | AK114: 0.5149602553 | AL114: 6.367199428
A115: Hastighetssänkning 90 till 802 körfält10,1-11,5 m5500Hög2060 | B115: Hastighetssänkning 90 till 80 | C115: 2 körfält | D115: 10,1-11,5 m | G115: 5500 | H115: Hög | I115: 2060 | L115: 2.991905 | M115: 0.3723 | N115: 3.364205 | O115: 35.40196147 | P115: 4.670810912 | Q115: 40.07277238 | R115: 2.929585058 | S115: 2.089395634 | T115: 5.018980692 | U115: 151.9936241 | V115: 47.55029732 | W115: 104.4433268 | X115: 0.006431515526 | Y115: 0.07222308275 | Z115: 0.607271191 | AA115: 0.6794942737 | AB115: 312.5791828 | AC115: 21.90803682 | AD115: 358303.6415 | AE115: 1.576415902 | AF115: 5.007830083 | AG115: 0.09694825177 | AH115: 0.4025895765 | AI115: 0.01794692793 | AJ115: 0.08585259897 | AK115: 0.5756947469 | AL115: 7.419892843
A116: =CONCATENATE(B116,C116,D116,E116,F116,G116,H116,I116) -> Hastighetssänkning 90 till 802 körfält10,1-11,5 m5500Riket2014 | B116: Hastighetssänkning 90 till 80 | C116: 2 körfält | D116: 10,1-11,5 m | G116: 5500 | H116: Riket | I116: 2014 | L116: 2.0148 | M116: 0.1752 | N116: =SUM(L116:M116) -> 2.19 | O116: 23.64475391 | P116: 2.19492045 | Q116: =SUM(O116:P116) -> 25.83967436 | R116: 1.972795497 | S116: 0.9831345062 | T116: =SUM(R116:S116) -> 2.955930003 | U116: 146.7072511 | V116: 61.28616924 | W116: 85.42108182 | X116: 0.0105250092 | Y116: 0.07444222201 | Z116: 0.4017310442 | AA116: =SUM(Y116:Z116) -> 0.4761732662 | AB116: 2617.914956 | AC116: 210.0006487 | AD116: 341951.9782 | AE116: 1.574567114 | AF116: 64.8880423 | AG116: 0.04556701719 | AH116: 0.2905640773 | AI116: 0.01385678903 | AJ116: 0.06114012607 | AK116: 0.4011763511 | AL116: 4.775123936
A117: Hastighetssänkning 90 till 802 körfält10,1-11,5 m5500Riket2040 | B117: Hastighetssänkning 90 till 80 | C117: 2 körfält | D117: 10,1-11,5 m | G117: 5500 | H117: Riket | I117: 2040 | L117: 2.61924 | M117: 0.26134 | N117: 2.88058 | O117: 30.85847747 | P117: 3.276662915 | Q117: 34.13514039 | R117: 2.564819144 | S117: 1.466654696 | T117: 4.03147384 | U117: 119.9972836 | V117: 41.74859948 | W117: 78.24868409 | X117: 0.008160267776 | Y117: 0.07491396643 | Z117: 0.5184406828 | AA117: 0.5933546492 | AB117: 341.0172353 | AC117: 23.90068987 | AD117: 281813.6872 | AE117: 1.259054429 | AF117: 5.462878177 | AG117: 0.06801689788 | AH117: 0.3581261059 | AI117: 0.01635408958 | AJ117: 0.07564508789 | AK117: 0.5013554718 | AL117: 6.221875435
A118: Hastighetssänkning 90 till 802 körfält10,1-11,5 m5500Riket2060 | B118: Hastighetssänkning 90 till 80 | C118: 2 körfält | D118: 10,1-11,5 m | G118: 5500 | H118: Riket | I118: 2060 | L118: 2.840795 | M118: 0.32923 | N118: 3.170025 | O118: 33.55125074 | P118: 4.129414529 | Q118: 37.68066527 | R118: 2.781686312 | S118: 1.847671529 | T118: 4.629357841 | U118: 139.4283801 | V118: 45.20524959 | W118: 94.22313046 | X118: 0.006038867751 | Y118: 0.0678519782 | Z118: 0.5718125431 | AA118: 0.6396645213 | AB118: 341.0172353 | AC118: 23.90068987 | AD118: 328282.1014 | AE118: 1.451554757 | AF118: 5.462878177 | AG118: 0.08571389966 | AH118: 0.3849240418 | AI118: 0.01681443712 | AJ118: 0.08043511028 | AK118: 0.5424149739 | AL118: 7.042932194
A119: =CONCATENATE(B119,C119,D119,E119,F119,G119,H119,I119) -> Hastighetssänkning 90 till 802 körfält10,1-11,5 m5500Ingen2014 | B119: Hastighetssänkning 90 till 80 | C119: 2 körfält | D119: 10,1-11,5 m | G119: 5500 | H119: Ingen | I119: 2014 | L119: 1.8469 | M119: 0.1606 | N119: 2.0075 | O119: 21.67202111 | P119: 2.011861374 | Q119: 23.68388249 | R119: 1.808398308 | S119: 0.9012052555 | T119: 2.709603564 | U119: 134.4895612 | V119: 56.18287107 | W119: 78.30669011 | X119: 0.009692060416 | Y119: 0.06862940192 | Z119: 0.3720323872 | AA119: 0.4406617891 | AB119: 2399.654771 | AC119: 192.4805086 | AD119: 313474.203 | AE119: 1.44343943 | AF119: 59.48092841 | AG119: 0.04176708343 | AH119: 0.2751125473 | AI119: 0.01270205661 | AJ119: 0.05604511557 | AK119: 0.371914617 | AL119: 4.487121962
A120: Hastighetssänkning 90 till 802 körfält10,1-11,5 m5500Ingen2040 | B120: Hastighetssänkning 90 till 80 | C120: 2 körfält | D120: 10,1-11,5 m | G120: 5500 | H120: Ingen | I120: 2040 | L120: 1.8469 | M120: 0.1606 | N120: 2.0075 | O120: 21.67202111 | P120: 2.011861374 | Q120: 23.68388249 | R120: 1.80861658 | S120: 0.901280217 | T120: 2.709896797 | U120: 79.88645592 | V120: 29.51758253 | W120: 50.3688734 | X120: 0.005731840288 | Y120: 0.05284760055 | Z120: 0.3720323872 | AA120: 0.4248799878 | AB120: 312.5791828 | AC120: 21.90803682 | AD120: 187177.5485 | AE120: 0.8441316964 | AF120: 5.007830083 | AG120: 0.04176708343 | AH120: 0.2751125473 | AI120: 0.01129298799 | AJ120: 0.05223519566 | AK120: 0.3613518041 | AL120: 4.726379977
A121: Hastighetssänkning 90 till 802 körfält10,1-11,5 m5500Ingen2060 | B121: Hastighetssänkning 90 till 80 | C121: 2 körfält | D121: 10,1-11,5 m | G121: 5500 | H121: Ingen | I121: 2060 | L121: 1.8469 | M121: 0.1606 | N121: 2.0075 | O121: 21.67202111 | P121: 2.011861374 | Q121: 23.68388249 | R121: 1.80861658 | S121: 0.901280217 | T121: 2.709896797 | U121: 79.88645592 | V121: 29.51758253 | W121: 50.3688734 | X121: 0.003826622269 | Y121: 0.04322441912 | Z121: 0.3720323872 | AA121: 0.4152568063 | AB121: 312.5791828 | AC121: 21.90803682 | AD121: 187177.5485 | AE121: 0.8441316964 | AF121: 5.007830083 | AG121: 0.04176708343 | AH121: 0.2751125473 | AI121: 0.01043378803 | AJ121: 0.04991204194 | AK121: 0.3549109764 | AL121: 4.919070699
A122: =CONCATENATE(B122,C122,D122,E122,F122,G122,H122,I122) -> ATK2 körfält>11,5 m1006000Hög2014 | B122: ATK | C122: 2 körfält | D122: >11,5 m | E122: 100 | G122: 6000 | H122: Hög | I122: 2014 | L122: 2.0148 | M122: 0.1752 | N122: =SUM(L122:M122) -> 2.19 | O122: 21.43679747 | P122: 2.079534261 | Q122: =SUM(O122:P122) -> 23.51633174 | R122: 1.976162471 | S122: 0.9824067739 | T122: =SUM(R122:S122) -> 2.958569245 | U122: 155.4162427 | V122: 65.54314271 | W122: 89.87310001 | X122: 0.008419675605 | Y122: 0.142977664 | Z122: 0.4404846171 | AA122: =SUM(Y122:Z122) -> 0.5834622811 | AB122: 2741.52745 | AC122: 221.8243701 | AD122: 362023.9502 | AE122: 1.669550489 | AF122: 71.5483008 | AG122: 0.04380059267 | AH122: 0.3299748171 | AI122: 0.02136872944 | AJ122: 0.08551784504 | AK122: 0.4765757066 | AL122: 6.061802228
A123: ATK2 körfält>11,5 m1006000Hög2040 | B123: ATK | C123: 2 körfält | D123: >11,5 m | E123: 100 | G123: 6000 | H123: Hög | I123: 2040 | L123: 2.92146 | M123: 0.30514 | N123: 3.2266 | O123: 31.41019025 | P123: 3.629915584 | Q123: 35.04010584 | R123: 2.865087265 | S123: 1.711184284 | T123: 4.576271549 | U123: 143.9234293 | V123: 49.64877399 | W123: 94.27465532 | X123: 0.007314630524 | Y123: 0.1630768381 | Z123: 0.642507508 | AA123: 0.8055843461 | AB123: 377.1013135 | AC123: 24.42178809 | AD123: 338022.0084 | AE123: 1.507857093 | AF123: 5.615006495 | AG123: 0.07641552484 | AH123: 0.4406546154 | AI123: 0.02737547306 | AJ123: 0.1152144535 | AK123: 0.6629944195 | AL123: 8.658983088
A124: ATK2 körfält>11,5 m1006000Hög2060 | B124: ATK | C124: 2 körfält | D124: >11,5 m | E124: 100 | G124: 6000 | H124: Hög | I124: 2060 | L124: 3.26383 | M124: 0.40661 | N124: 3.67044 | O124: 35.28291539 | P124: 4.843148777 | Q124: 40.12606416 | R124: 3.200452511 | S124: 2.280225059 | T124: 5.48067757 | U124: 174.3551742 | V124: 55.24257343 | W124: 119.1126008 | X124: 0.005607979774 | Y124: 0.1535227217 | Z124: 0.7364115315 | AA124: 0.8899342532 | AB124: 377.1013135 | AC124: 24.42178809 | AD124: 410724.1012 | AE124: 1.809713256 | AF124: 5.615006495 | AG124: 0.1019253105 | AH124: 0.4874256872 | AI124: 0.02840407514 | AJ124: 0.1241763294 | AK124: 0.7373538486 | AL124: 10.11207392
A125: ATK2 körfält>11,5 m1006000Riket2014 | B125: ATK | C125: 2 körfält | D125: >11,5 m | E125: 100 | G125: 6000 | H125: Riket | I125: 2014 | L125: 2.0148 | M125: 0.1752 | N125: 2.19 | O125: 21.43679747 | P125: 2.079534261 | Q125: 23.51633174 | R125: 1.976162471 | S125: 0.9824067739 | T125: 2.958569245 | U125: 155.4162427 | V125: 65.54314271 | W125: 89.87310001 | X125: 0.008419675605 | Y125: 0.142977664 | Z125: 0.4404846171 | AA125: 0.5834622811 | AB125: 2741.52745 | AC125: 221.8243701 | AD125: 362023.9502 | AE125: 1.669550489 | AF125: 71.5483008 | AG125: 0.04380059267 | AH125: 0.3299748171 | AI125: 0.02136872944 | AJ125: 0.08551784504 | AK125: 0.4765757066 | AL125: 6.061802228
A126: ATK2 körfält>11,5 m1006000Riket2040 | B126: ATK | C126: 2 körfält | D126: >11,5 m | E126: 100 | G126: 6000 | H126: Riket | I126: 2040 | L126: 2.61924 | M126: 0.26134 | N126: 2.88058 | O126: 28.05527396 | P126: 3.106336535 | Q126: 31.16161049 | R126: 2.568921087 | S126: 1.46555555 | T126: 4.034476637 | U126: 126.6639193 | V126: 44.6375372 | W126: 82.02638207 | X126: 0.006534315028 | Y126: 0.1453746445 | Z126: 0.5750029355 | AA126: 0.7203775801 | AB126: 377.1013135 | AC126: 24.42178809 | AD126: 297249.1024 | AE126: 1.330290747 | AF126: 5.615006495 | AG126: 0.06540598049 | AH126: 0.4066812411 | AI126: 0.02435979416 | AJ126: 0.1025224428 | AK126: 0.5934953431 | AL126: 7.899155098
A127: ATK2 körfält>11,5 m1006000Riket2060 | B127: ATK | C127: 2 körfält | D127: >11,5 m | E127: 100 | G127: 6000 | H127: Riket | I127: 2060 | L127: 2.840795 | M127: 0.32923 | N127: 3.170025 | O127: 30.52118807 | P127: 3.915888307 | Q127: 34.43707637 | R127: 2.786024314 | S127: 1.846276776 | T127: 4.63230109 | U127: 146.9386601 | V127: 48.30352629 | W127: 98.63513384 | X127: 0.004837089625 | Y127: 0.1320971841 | Z127: 0.6365187879 | AA127: 0.768615972 | AB127: 377.1013135 | AC127: 24.42178809 | AD127: 345700.3355 | AE127: 1.531180957 | AF127: 5.615006495 | AG127: 0.08243869404 | AH127: 0.4376532896 | AI127: 0.0243890815 | AJ127: 0.1066236659 | AK127: 0.6376032245 | AL127: 8.94184596
A128: ATK2 körfält>11,5 m1006000Ingen2014 | B128: ATK | C128: 2 körfält | D128: >11,5 m | E128: 100 | G128: 6000 | H128: Ingen | I128: 2014 | L128: 2.0148 | M128: 0.1752 | N128: 2.19 | O128: 21.43679747 | P128: 2.079534261 | Q128: 23.51633174 | R128: 1.976162471 | S128: 0.9824067739 | T128: 2.958569245 | U128: 155.4162427 | V128: 65.54314271 | W128: 89.87310001 | X128: 0.008419675605 | Y128: 0.142977664 | Z128: 0.4404846171 | AA128: 0.5834622811 | AB128: 2741.52745 | AC128: 221.8243701 | AD128: 362023.9502 | AE128: 1.669550489 | AF128: 71.5483008 | AG128: 0.04380059267 | AH128: 0.3299748171 | AI128: 0.02136872944 | AJ128: 0.08551784504 | AK128: 0.4765757066 | AL128: 6.061802228
A129: ATK2 körfält>11,5 m1006000Ingen2040 | B129: ATK | C129: 2 körfält | D129: >11,5 m | E129: 100 | G129: 6000 | H129: Ingen | I129: 2040 | L129: 2.0148 | M129: 0.1752 | N129: 2.19 | O129: 21.43679747 | P129: 2.079534261 | Q129: 23.51633174 | R129: 1.976400859 | S129: 0.9824906812 | T129: 2.95889154 | U129: 92.23899895 | V129: 34.50883837 | W129: 57.73016057 | X129: 0.004979357719 | Y129: 0.1100989702 | Z129: 0.4404846171 | AA129: 0.5505835873 | AB129: 377.1013135 | AC129: 24.42178809 | AD129: 215960.066 | AE129: 0.9756727421 | AF129: 5.615006495 | AG129: 0.04380059267 | AH129: 0.3299748171 | AI129: 0.01835036339 | AJ129: 0.07723070522 | AK129: 0.4550025187 | AL129: 6.385023836
A130: ATK2 körfält>11,5 m1006000Ingen2060 | B130: ATK | C130: 2 körfält | D130: >11,5 m | E130: 100 | G130: 6000 | H130: Ingen | I130: 2060 | L130: 2.0148 | M130: 0.1752 | N130: 2.19 | O130: 21.43679747 | P130: 2.079534261 | Q130: 23.51633174 | R130: 1.976400859 | S130: 0.9824906812 | T130: 2.95889154 | U130: 92.23899895 | V130: 34.50883837 | W130: 57.73016057 | X130: 0.003324258907 | Y130: 0.09005071153 | Z130: 0.4404846171 | AA130: 0.5305353286 | AB130: 377.1013135 | AC130: 24.42178809 | AD130: 215960.066 | AE130: 0.9756727421 | AF130: 5.615006495 | AG130: 0.04380059267 | AH130: 0.3299748171 | AI130: 0.01650987107 | AJ130: 0.07217750197 | AK130: 0.4418479556 | AL130: 6.645336137
A131: ATK2 körfält>11,5 m1005500Hög2014 | B131: ATK | C131: 2 körfält | D131: >11,5 m | E131: 100 | G131: 5500 | H131: Hög | I131: 2014 | L131: 1.8469 | M131: 0.1606 | N131: 2.0075 | O131: 19.63516974 | P131: 1.905986048 | Q131: 21.54115579 | R131: 1.811515091 | S131: 0.9005391506 | T131: 2.712054242 | U131: 142.5250962 | V131: 60.11554963 | W131: 82.40954653 | X131: 0.007750607097 | Y131: 0.1313205686 | Z131: 0.4062542532 | AA131: 0.5375748218 | AB131: 2512.998135 | AC131: 203.3217264 | AD131: 331993.1722 | AE131: 1.531097973 | AF131: 65.58818079 | AG131: 0.04014645734 | AH131: 0.3121919034 | AI131: 0.01958800199 | AJ131: 0.07839135796 | AK131: 0.4395954618 | AL131: 5.696011365
A132: ATK2 körfält>11,5 m1005500Hög2040 | B132: ATK | C132: 2 körfält | D132: >11,5 m | E132: 100 | G132: 5500 | H132: Hög | I132: 2040 | L132: 2.678005 | M132: 0.27959 | N132: 2.957595 | O132: 28.70782363 | P132: 3.323844768 | Q132: 32.0316684 | R132: 2.626508328 | S132: 1.567899768 | T132: 4.194408096 | U132: 132.097879 | V132: 45.61162142 | W132: 86.48625762 | X132: 0.006723867588 | Y132: 0.1496748233 | Z132: 0.5914010009 | AA132: 0.7410758242 | AB132: 345.6706585 | AC132: 22.38626424 | AD132: 310236.8965 | AE132: 1.384102925 | AF132: 5.147320237 | AG132: 0.06998285241 | AH132: 0.4149636585 | AI132: 0.02509235638 | AJ132: 0.1056055587 | AK132: 0.6103779091 | AL132: 8.083730878
A133: ATK2 körfält>11,5 m1005500Hög2060 | B133: ATK | C133: 2 körfält | D133: >11,5 m | E133: 100 | G133: 5500 | H133: Hög | I133: 2060 | L133: 2.991905 | M133: 0.3723 | N133: 3.364205 | O133: 32.21149745 | P133: 4.430155697 | Q133: 36.64165315 | R133: 2.934081196 | S133: 2.087810803 | T133: 5.021891999 | U133: 160.0519656 | V133: 50.79429293 | W133: 109.2576727 | X133: 0.005152485081 | Y133: 0.1408630468 | Z133: 0.6773880576 | AA133: 0.8182511044 | AB133: 345.6706585 | AC133: 22.38626424 | AD133: 377007.9344 | AE133: 1.661529493 | AF133: 5.147320237 | AG133: 0.09325529598 | AH133: 0.4580897493 | AI133: 0.02603174194 | AJ133: 0.1138050138 | AK133: 0.6784143487 | AL133: 9.420623098
A134: ATK2 körfält>11,5 m1005500Riket2014 | B134: ATK | C134: 2 körfält | D134: >11,5 m | E134: 100 | G134: 5500 | H134: Riket | I134: 2014 | L134: 1.8469 | M134: 0.1606 | N134: 2.0075 | O134: 19.63516974 | P134: 1.905986048 | Q134: 21.54115579 | R134: 1.811515091 | S134: 0.9005391506 | T134: 2.712054242 | U134: 142.5250962 | V134: 60.11554963 | W134: 82.40954653 | X134: 0.007750607097 | Y134: 0.1313205686 | Z134: 0.4062542532 | AA134: 0.5375748218 | AB134: 2512.998135 | AC134: 203.3217264 | AD134: 331993.1722 | AE134: 1.531097973 | AF134: 65.58818079 | AG134: 0.04014645734 | AH134: 0.3121919034 | AI134: 0.01958800199 | AJ134: 0.07839135796 | AK134: 0.4395954618 | AL134: 5.696011365
A135: ATK2 körfält>11,5 m1005500Riket2040 | B135: ATK | C135: 2 körfält | D135: >11,5 m | E135: 100 | G135: 5500 | H135: Riket | I135: 2040 | L135: 2.40097 | M135: 0.23944 | N135: 2.64041 | O135: 25.64902011 | P135: 2.844423076 | Q135: 28.49344319 | R135: 2.354989328 | S135: 1.342741025 | T135: 3.697730353 | U135: 116.2380114 | V135: 40.99903602 | W135: 75.23897536 | X135: 0.006008578384 | Y135: 0.1334478125 | Z135: 0.5295218095 | AA135: 0.662969622 | AB135: 345.6706585 | AC135: 22.38626424 | AD135: 272772.5495 | AE135: 1.220910997 | AF135: 5.147320237 | AG135: 0.05989926177 | AH135: 0.3756777738 | AI135: 0.02232798406 | AJ135: 0.09397121563 | AK135: 0.5466704224 | AL135: 7.387221887
A136: ATK2 körfält>11,5 m1005500Riket2060 | B136: ATK | C136: 2 körfält | D136: >11,5 m | E136: 100 | G136: 5500 | H136: Riket | I136: 2060 | L136: 2.604275 | M136: 0.30222 | N136: 2.906495 | O136: 27.89969753 | P136: 3.592380874 | Q136: 31.49207841 | R136: 2.55423361 | S136: 1.694804687 | T136: 4.249038297 | U136: 134.9781317 | V136: 44.37690367 | W136: 90.60122803 | X136: 0.004448250293 | Y136: 0.1212900778 | Z136: 0.5861325846 | AA136: 0.7074226624 | AB136: 345.6706585 | AC136: 22.38626424 | AD136: 317558.8767 | AE136: 1.406556685 | AF136: 5.147320237 | AG136: 0.07563928176 | AH136: 0.4123048198 | AI136: 0.02236390652 | AJ136: 0.09777004918 | AK136: 0.5872887067 | AL136: 8.351579424
A137: ATK2 körfält>11,5 m1005500Ingen2014 | B137: ATK | C137: 2 körfält | D137: >11,5 m | E137: 100 | G137: 5500 | H137: Ingen | I137: 2014 | L137: 1.8469 | M137: 0.1606 | N137: 2.0075 | O137: 19.63516974 | P137: 1.905986048 | Q137: 21.54115579 | R137: 1.811515091 | S137: 0.9005391506 | T137: 2.712054242 | U137: 142.5250962 | V137: 60.11554963 | W137: 82.40954653 | X137: 0.007750607097 | Y137: 0.1313205686 | Z137: 0.4062542532 | AA137: 0.5375748218 | AB137: 2512.998135 | AC137: 203.3217264 | AD137: 331993.1722 | AE137: 1.531097973 | AF137: 65.58818079 | AG137: 0.04014645734 | AH137: 0.3121919034 | AI137: 0.01958800199 | AJ137: 0.07839135796 | AK137: 0.4395954618 | AL137: 5.696011365
A138: ATK2 körfält>11,5 m1005500Ingen2040 | B138: ATK | C138: 2 körfält | D138: >11,5 m | E138: 100 | G138: 5500 | H138: Ingen | I138: 2040 | L138: 1.8469 | M138: 0.1606 | N138: 2.0075 | O138: 19.63516974 | P138: 1.905986048 | Q138: 21.54115579 | R138: 1.811733618 | S138: 0.9006160705 | T138: 2.712349688 | U138: 84.58568853 | V138: 31.65143298 | W138: 52.93425555 | X138: 0.004583673657 | Y138: 0.1011225037 | Z138: 0.4062542532 | AA138: 0.5073767569 | AB138: 345.6706585 | AC138: 22.38626424 | AD138: 198039.733 | AE138: 0.8947382196 | AF138: 5.147320237 | AG138: 0.04014645734 | AH138: 0.3121919034 | AI138: 0.01682116644 | AJ138: 0.07079481312 | AK138: 0.4197607774 | AL138: 5.999728623
A139: ATK2 körfält>11,5 m1005500Ingen2060 | B139: ATK | C139: 2 körfält | D139: >11,5 m | E139: 100 | G139: 5500 | H139: Ingen | I139: 2060 | L139: 1.8469 | M139: 0.1606 | N139: 2.0075 | O139: 19.63516974 | P139: 1.905986048 | Q139: 21.54115579 | R139: 1.811733618 | S139: 0.9006160705 | T139: 2.712349688 | U139: 84.58568853 | V139: 31.65143298 | W139: 52.93425555 | X139: 0.003060097073 | Y139: 0.08270879735 | Z139: 0.4062542532 | AA139: 0.4889630505 | AB139: 345.6706585 | AC139: 22.38626424 | AD139: 198039.733 | AE139: 0.8947382196 | AF139: 5.147320237 | AG139: 0.04014645734 | AH139: 0.3121919034 | AI139: 0.01513404849 | AJ139: 0.06616271014 | AK139: 0.4076662919 | AL139: 6.244332747
A140: ATK2 körfält>11,5 m1005000Hög2014 | B140: ATK | C140: 2 körfält | D140: >11,5 m | E140: 100 | G140: 5000 | H140: Hög | I140: 2014 | L140: 1.679 | M140: 0.146 | N140: 1.825 | O140: 17.83768908 | P140: 1.732506613 | Q140: 19.5701957 | R140: 1.646858825 | S140: 0.8186716401 | T140: 2.465530465 | U140: 129.6176271 | V140: 54.67864731 | W140: 74.93897976 | X140: 0.007081538589 | Y140: 0.1196634731 | Z140: 0.3720238893 | AA140: 0.4916873624 | AB140: 2284.543759 | AC140: 184.8379331 | AD140: 301925.0135 | AE140: 1.392462004 | AF140: 59.6256189 | AG140: 0.03649341815 | AH140: 0.2942714249 | AI140: 0.01780727454 | AJ140: 0.07126487087 | AK140: 0.402615217 | AL140: 5.330220502
A141: ATK2 körfält>11,5 m1005000Hög2040 | B141: ATK | C141: 2 körfält | D141: >11,5 m | E141: 100 | G141: 5000 | H141: Hög | I141: 2040 | L141: 2.43455 | M141: 0.25404 | N141: 2.68859 | O141: 26.02078648 | P141: 3.018185911 | Q141: 29.0389724 | R141: 2.387898485 | S141: 1.424615997 | T141: 3.812514482 | U141: 120.2377363 | V141: 41.55689948 | W141: 78.68083687 | X141: 0.006133104653 | Y141: 0.1362728085 | Z141: 0.5402944939 | AA141: 0.6765673024 | AB141: 314.2460532 | AC141: 20.3511493 | AD141: 282372.0955 | AE141: 1.259968078 | AF141: 4.679382034 | AG141: 0.06355683022 | AH141: 0.3890829366 | AI141: 0.02280923971 | AJ141: 0.09599666398 | AK141: 0.5577613987 | AL141: 7.508478667
A142: ATK2 körfält>11,5 m1005000Hög2060 | B142: ATK | C142: 2 körfält | D142: >11,5 m | E142: 100 | G142: 5000 | H142: Hög | I142: 2060 | L142: 2.71998 | M142: 0.33872 | N142: 3.0587 | O142: 29.18574355 | P142: 4.027645347 | Q142: 33.21338889 | R142: 2.667617258 | S142: 1.899493541 | T142: 4.567110799 | U142: 145.7917888 | V142: 46.2934455 | W142: 99.49834329 | X142: 0.004698884286 | Y142: 0.1282560094 | Z142: 0.6186099969 | AA142: 0.7468660064 | AB142: 314.2460532 | AC142: 20.3511493 | AD142: 343410.342 | AE142: 1.513568601 | AF142: 4.679382034 | AG142: 0.08479700771 | AH142: 0.4286638058 | AI142: 0.02366927265 | AJ142: 0.1034768209 | AK142: 0.6197199128 | AL142: 8.732047259
A143: ATK2 körfält>11,5 m1005000Riket2014 | B143: ATK | C143: 2 körfält | D143: >11,5 m | E143: 100 | G143: 5000 | H143: Riket | I143: 2014 | L143: 1.679 | M143: 0.146 | N143: 1.825 | O143: 17.83768908 | P143: 1.732506613 | Q143: 19.5701957 | R143: 1.646858825 | S143: 0.8186716401 | T143: 2.465530465 | U143: 129.6176271 | V143: 54.67864731 | W143: 74.93897976 | X143: 0.007081538589 | Y143: 0.1196634731 | Z143: 0.3720238893 | AA143: 0.4916873624 | AB143: 2284.543759 | AC143: 184.8379331 | AD143: 301925.0135 | AE143: 1.392462004 | AF143: 59.6256189 | AG143: 0.03649341815 | AH143: 0.2942714249 | AI143: 0.01780727454 | AJ143: 0.07126487087 | AK143: 0.402615217 | AL143: 5.330220502
A144: ATK2 körfält>11,5 m1005000Riket2040 | B144: ATK | C144: 2 körfält | D144: >11,5 m | E144: 100 | G144: 5000 | H144: Riket | I144: 2040 | L144: 2.1827 | M144: 0.21754 | N144: 2.40024 | O144: 23.25598917 | P144: 2.582813118 | Q144: 25.83880229 | R144: 2.141030441 | S144: 1.219927052 | T144: 3.360957494 | U144: 105.7827892 | V144: 37.34518676 | W144: 68.43760241 | X144: 0.00548284174 | Y144: 0.1215209805 | Z144: 0.4840406835 | AA144: 0.605561664 | AB144: 314.2460532 | AC144: 20.3511493 | AD144: 248228.5681 | AE144: 1.111206942 | AF144: 4.679382034 | AG144: 0.05439739063 | AH144: 0.3524249217 | AI144: 0.02029617396 | AJ144: 0.08541998841 | AK144: 0.4998455016 | AL144: 6.875288675
A145: ATK2 körfält>11,5 m1005000Riket2060 | B145: ATK | C145: 2 körfält | D145: >11,5 m | E145: 100 | G145: 5000 | H145: Riket | I145: 2060 | L145: 2.36739 | M145: 0.27448 | N145: 2.64187 | O145: 25.2880119 | P145: 3.260623704 | Q145: 28.54863561 | R145: 2.322057273 | S145: 1.539239621 | T145: 3.861296894 | U145: 122.8199333 | V145: 40.42834436 | W145: 82.39158897 | X145: 0.004057025141 | Y145: 0.1104166619 | Z145: 0.5354372244 | AA145: 0.6458538863 | AB145: 314.2460532 | AC145: 20.3511493 | AD145: 288941.7436 | AE145: 1.280023031 | AF145: 4.679382034 | AG145: 0.06866410202 | AH145: 0.3786890057 | AI145: 0.02032630558 | AJ145: 0.08886210888 | AK145: 0.5366654718 | AL145: 7.757691164
A146: ATK2 körfält>11,5 m1005000Ingen2014 | B146: ATK | C146: 2 körfält | D146: >11,5 m | E146: 100 | G146: 5000 | H146: Ingen | I146: 2014 | L146: 1.679 | M146: 0.146 | N146: 1.825 | O146: 17.83768908 | P146: 1.732506613 | Q146: 19.5701957 | R146: 1.646858825 | S146: 0.8186716401 | T146: 2.465530465 | U146: 129.6176271 | V146: 54.67864731 | W146: 74.93897976 | X146: 0.007081538589 | Y146: 0.1196634731 | Z146: 0.3720238893 | AA146: 0.4916873624 | AB146: 2284.543759 | AC146: 184.8379331 | AD146: 301925.0135 | AE146: 1.392462004 | AF146: 59.6256189 | AG146: 0.03649341815 | AH146: 0.2942714249 | AI146: 0.01780727454 | AJ146: 0.07126487087 | AK146: 0.402615217 | AL146: 5.330220502
A147: ATK2 körfält>11,5 m1005000Ingen2040 | B147: ATK | C147: 2 körfält | D147: >11,5 m | E147: 100 | G147: 5000 | H147: Ingen | I147: 2040 | L147: 1.679 | M147: 0.146 | N147: 1.825 | O147: 17.83768908 | P147: 1.732506613 | Q147: 19.5701957 | R147: 1.64705749 | S147: 0.8187415712 | T147: 2.465799061 | U147: 76.92335781 | V147: 28.78905755 | W147: 48.13430026 | X147: 0.004187989596 | Y147: 0.0921460373 | Z147: 0.3720238893 | AA147: 0.4641699266 | AB147: 314.2460532 | AC147: 20.3511493 | AD147: 180098.7049 | AE147: 0.8137029748 | AF147: 4.679382034 | AG147: 0.03649341815 | AH147: 0.2942714249 | AI147: 0.01529196949 | AJ147: 0.06435892102 | AK147: 0.3845190361 | AL147: 5.61443341
A148: ATK2 körfält>11,5 m1005000Ingen2060 | B148: ATK | C148: 2 körfält | D148: >11,5 m | E148: 100 | G148: 5000 | H148: Ingen | I148: 2060 | L148: 1.679 | M148: 0.146 | N148: 1.825 | O148: 17.83768908 | P148: 1.732506613 | Q148: 19.5701957 | R148: 1.64705749 | S148: 0.8187415712 | T148: 2.465799061 | U148: 76.92335781 | V148: 28.78905755 | W148: 48.13430026 | X148: 0.00279593524 | Y148: 0.07536688318 | Z148: 0.3720238893 | AA148: 0.4473907724 | AB148: 314.2460532 | AC148: 20.3511493 | AD148: 180098.7049 | AE148: 0.8137029748 | AF148: 4.679382034 | AG148: 0.03649341815 | AH148: 0.2942714249 | AI148: 0.0137582259 | AJ148: 0.06014791831 | AK148: 0.3734846282 | AL148: 5.843329357
A149: ATK2 körfält>11,5 m1004500Hög2014 | B149: ATK | C149: 2 körfält | D149: >11,5 m | E149: 100 | G149: 4500 | H149: Hög | I149: 2014 | L149: 1.5111 | M149: 0.1314 | N149: 1.6425 | O149: 16.04569342 | P149: 1.559120619 | Q149: 17.60481404 | R149: 1.482190741 | S149: 0.7368042815 | T149: 2.218995023 | U149: 116.6884319 | V149: 49.22938188 | W149: 67.45905003 | X149: 0.006412470081 | Y149: 0.1080063777 | Z149: 0.3377935253 | AA149: 0.445799903 | AB149: 2056.089383 | AC149: 166.3541398 | AD149: 271807.0935 | AE149: 1.253581958 | AF149: 53.66305701 | AG149: 0.03284186631 | AH149: 0.2761966535 | AI149: 0.01602654708 | AJ149: 0.06413838378 | AK149: 0.3656349722 | AL149: 4.964429639
A150: ATK2 körfält>11,5 m1004500Hög2040 | B150: ATK | C150: 2 körfält | D150: >11,5 m | E150: 100 | G150: 4500 | H150: Hög | I150: 2040 | L150: 2.191095 | M150: 0.22849 | N150: 2.419585 | O150: 23.34971106 | P150: 2.712928062 | Q150: 26.06263912 | R150: 2.149256003 | S150: 1.281332945 | T150: 3.430588947 | U150: 108.3417147 | V150: 37.48369441 | W150: 70.85802028 | X150: 0.005542341717 | Y150: 0.1228707936 | Z150: 0.4891879869 | AA150: 0.6120587805 | AB150: 282.8214479 | AC150: 18.31603437 | AD150: 254424.6998 | AE150: 1.135437431 | AF150: 4.21144383 | AG150: 0.05713724337 | AH150: 0.3550658518 | AI150: 0.02052612303 | AJ150: 0.08638776921 | AK150: 0.5051448882 | AL150: 6.933226457
A151: ATK2 körfält>11,5 m1004500Hög2060 | B151: ATK | C151: 2 körfält | D151: >11,5 m | E151: 100 | G151: 4500 | H151: Hög | I151: 2060 | L151: 2.448055 | M151: 0.30514 | N151: 2.753195 | O151: 26.1802434 | P151: 3.625744206 | Q151: 29.80598761 | R151: 2.401112572 | S151: 1.711177417 | T151: 4.112289989 | U151: 131.4849151 | V151: 41.76942035 | W151: 89.7154947 | X151: 0.004245283491 | Y151: 0.1156489721 | Z151: 0.5598319363 | AA151: 0.6754809083 | AB151: 282.8214479 | AC151: 18.31603437 | AD151: 309705.0617 | AE151: 1.365095873 | AF151: 4.21144383 | AG151: 0.07634850145 | AH151: 0.3990006142 | AI151: 0.02130680335 | AJ151: 0.09314862812 | AK151: 0.5610254769 | AL151: 8.043471419
A152: ATK2 körfält>11,5 m1004500Riket2014 | B152: ATK | C152: 2 körfält | D152: >11,5 m | E152: 100 | G152: 4500 | H152: Riket | I152: 2014 | L152: 1.5111 | M152: 0.1314 | N152: 1.6425 | O152: 16.04569342 | P152: 1.559120619 | Q152: 17.60481404 | R152: 1.482190741 | S152: 0.7368042815 | T152: 2.218995023 | U152: 116.6884319 | V152: 49.22938188 | W152: 67.45905003 | X152: 0.006412470081 | Y152: 0.1080063777 | Z152: 0.3377935253 | AA152: 0.445799903 | AB152: 2056.089383 | AC152: 166.3541398 | AD152: 271807.0935 | AE152: 1.253581958 | AF152: 53.66305701 | AG152: 0.03284186631 | AH152: 0.2761966535 | AI152: 0.01602654708 | AJ152: 0.06413838378 | AK152: 0.3656349722 | AL152: 4.964429639
A153: ATK2 körfält>11,5 m1004500Riket2040 | B153: ATK | C153: 2 körfält | D153: >11,5 m | E153: 100 | G153: 4500 | H153: Riket | I153: 2040 | L153: 1.96443 | M153: 0.19564 | N153: 2.16007 | O153: 20.89735479 | P153: 2.322079927 | Q153: 23.21943472 | R153: 1.926998426 | S153: 1.097114492 | T153: 3.024112918 | U153: 95.24811577 | V153: 33.65035547 | W153: 61.5977603 | X153: 0.004957105095 | Y153: 0.1095941484 | Z153: 0.4385595575 | AA153: 0.548153706 | AB153: 282.8214479 | AC153: 18.31603437 | AD153: 223501.6993 | AE153: 1.000626228 | AF153: 4.21144383 | AG153: 0.04890958864 | AH153: 0.3289781391 | AI153: 0.01826436386 | AJ153: 0.07686876119 | AK153: 0.4530205809 | AL153: 6.363355464
A154: ATK2 körfält>11,5 m1004500Riket2060 | B154: ATK | C154: 2 körfält | D154: >11,5 m | E154: 100 | G154: 4500 | H154: Riket | I154: 2060 | L154: 2.130505 | M154: 0.24674 | N154: =SUM(L154:M154) -> 2.377245 | O154: 22.692062 | P154: 2.92928848 | Q154: =SUM(O154:P154) -> 25.62135048 | R154: 2.089848642 | S154: 1.383675321 | T154: =SUM(R154:S154) -> 3.473523963 | U154: 110.6258502 | V154: 36.46151552 | W154: 74.16433463 | X154: 0.00366579999 | Y154: 0.09954324601 | Z154: 0.4847418642 | AA154: =SUM(Y154:Z154) -> 0.5842851102 | AB154: 282.8214479 | AC154: 18.31603437 | AD154: 260241.9569 | AE154: 1.153094339 | AF154: 4.21144383 | AG154: 0.0616956624 | AH154: 0.352784822 | AI154: 0.01828870464 | AJ154: 0.07995416857 | AK154: 0.486042237 | AL154: 7.163802903
A155: ATK2 körfält>11,5 m1004500Ingen2014 | B155: ATK | C155: 2 körfält | D155: >11,5 m | E155: 100 | G155: 4500 | H155: Ingen | I155: 2014 | L155: 1.5111 | M155: 0.1314 | N155: 1.6425 | O155: 16.04569342 | P155: 1.559120619 | Q155: 17.60481404 | R155: 1.482190741 | S155: 0.7368042815 | T155: 2.218995023 | U155: 116.6884319 | V155: 49.22938188 | W155: 67.45905003 | X155: 0.006412470081 | Y155: 0.1080063777 | Z155: 0.3377935253 | AA155: 0.445799903 | AB155: 2056.089383 | AC155: 166.3541398 | AD155: 271807.0935 | AE155: 1.253581958 | AF155: 53.66305701 | AG155: 0.03284186631 | AH155: 0.2761966535 | AI155: 0.01602654708 | AJ155: 0.06413838378 | AK155: 0.3656349722 | AL155: 4.964429639
A156: ATK2 körfält>11,5 m1004500Ingen2040 | B156: ATK | C156: 2 körfält | D156: >11,5 m | E156: 100 | G156: 4500 | H156: Ingen | I156: 2040 | L156: 1.5111 | M156: 0.1314 | N156: 1.6425 | O156: 16.04569342 | P156: 1.559120619 | Q156: 17.60481404 | R156: 1.482369542 | S156: 0.7368672221 | T156: 2.219236764 | U156: 69.24901183 | V156: 25.92008165 | W156: 43.32893018 | X156: 0.003792305534 | Y156: 0.08316957086 | Z156: 0.3377935253 | AA156: 0.4209630962 | AB156: 282.8214479 | AC156: 18.31603437 | AD156: 162130.1064 | AE156: 0.7325336409 | AF156: 4.21144383 | AG156: 0.03284186631 | AH156: 0.2761966535 | AI156: 0.01376277254 | AJ156: 0.05792302892 | AK156: 0.3492772947 | AL156: 5.229138197
A157: ATK2 körfält>11,5 m1004500Ingen2060 | B157: ATK | C157: 2 körfält | D157: >11,5 m | E157: 100 | G157: 4500 | H157: Ingen | I157: 2060 | L157: 1.5111 | M157: 0.1314 | N157: 1.6425 | O157: 16.04569342 | P157: 1.559120619 | Q157: 17.60481404 | R157: 1.482369542 | S157: 0.7368672221 | T157: 2.219236764 | U157: 69.24901183 | V157: 25.92008165 | W157: 43.32893018 | X157: 0.002531773406 | Y157: 0.068024969 | Z157: 0.3377935253 | AA157: 0.4058184943 | AB157: 282.8214479 | AC157: 18.31603437 | AD157: 162130.1064 | AE157: 0.7325336409 | AF157: 4.21144383 | AG157: 0.03284186631 | AH157: 0.2761966535 | AI157: 0.01238240331 | AJ157: 0.05413312648 | AK157: 0.3393029646 | AL157: 5.442325967
A158: ATK2 körfält>11,5 m1004000Hög2014 | B158: ATK | C158: 2 körfält | D158: >11,5 m | E158: 100 | G158: 4000 | H158: Hög | I158: 2014 | L158: 1.3432 | M158: 0.1168 | N158: 1.46 | O158: 14.25834494 | P158: 1.385811462 | Q158: 15.6441564 | R158: 1.317512614 | S158: 0.6549370372 | T158: 1.972449651 | U158: 103.7408444 | V158: 43.76961837 | W158: 59.97122603 | X158: 0.005743401573 | Y158: 0.09634928227 | Z158: 0.3035631614 | AA158: 0.3999124437 | AB158: 1827.635008 | AC158: 147.8703465 | AD158: 241647.0533 | AE158: 1.114495154 | AF158: 47.70049512 | AG158: 0.02919156107 | AH158: 0.2579467037 | AI158: 0.01424581963 | AJ158: 0.0570118967 | AK158: 0.3286547274 | AL158: 4.598638775
A159: ATK2 körfält>11,5 m1004000Hög2040 | B159: ATK | C159: 2 körfält | D159: >11,5 m | E159: 100 | G159: 4000 | H159: Hög | I159: 2040 | L159: 1.94764 | M159: 0.20294 | N159: 2.15058 | O159: 20.71760975 | P159: 2.408702202 | Q159: 23.12631196 | R159: 1.9105308 | S159: 1.138051565 | T159: 3.048582365 | U159: 96.35513264 | V159: 33.36411156 | W159: 62.99102108 | X159: 0.004951578782 | Y159: 0.1094687788 | Z159: 0.4380814798 | AA159: 0.5475502586 | AB159: 251.3968425 | AC159: 16.28091944 | AD159: 226268.7727 | AE159: 1.009908808 | AF159: 3.743505627 | AG159: 0.05073421103 | AH159: 0.3287305588 | AI159: 0.01824300636 | AJ159: 0.07677887443 | AK159: 0.4525283778 | AL159: 6.357974246
A160: ATK2 körfält>11,5 m1004000Hög2060 | B160: ATK | C160: 2 körfält | D160: >11,5 m | E160: 100 | G160: 4000 | H160: Hög | I160: 2060 | L160: 2.17613 | M160: 0.27083 | N160: 2.44696 | O160: 23.19437955 | P160: 3.215772695 | Q160: 26.41015224 | R160: 2.134567873 | S160: 1.518768645 | T160: 3.653336518 | U160: 116.9762563 | V160: 37.22271465 | W160: 79.75354169 | X160: 0.003789788798 | Y160: 0.1029892972 | Z160: 0.5008084624 | AA160: 0.6037977595 | AB160: 251.3968425 | AC160: 16.28091944 | AD160: 275514.3398 | AE160: 1.214673571 | AF160: 3.743505627 | AG160: 0.06772705709 | AH160: 0.3610190346 | AI160: 0.01893447016 | AJ160: 0.08277731249 | AK160: 0.5020859769 | AL160: 7.352020602
A161: ATK2 körfält>11,5 m1004000Riket2014 | B161: ATK | C161: 2 körfält | D161: >11,5 m | E161: 100 | G161: 4000 | H161: Riket | I161: 2014 | L161: 1.3432 | M161: 0.1168 | N161: 1.46 | O161: 14.25834494 | P161: 1.385811462 | Q161: 15.6441564 | R161: 1.317512614 | S161: 0.6549370372 | T161: 1.972449651 | U161: 103.7408444 | V161: 43.76961837 | W161: 59.97122603 | X161: 0.005743401573 | Y161: 0.09634928227 | Z161: 0.3035631614 | AA161: 0.3999124437 | AB161: 1827.635008 | AC161: 147.8703465 | AD161: 241647.0533 | AE161: 1.114495154 | AF161: 47.70049512 | AG161: 0.02919156107 | AH161: 0.2579467037 | AI161: 0.01424581963 | AJ161: 0.0570118967 | AK161: 0.3286547274 | AL161: 4.598638775
A162: ATK2 körfält>11,5 m1004000Riket2040 | B162: ATK | C162: 2 körfält | D162: >11,5 m | E162: 100 | G162: 4000 | H162: Riket | I162: 2040 | L162: 1.74616 | M162: 0.17374 | N162: 1.9199 | O162: 18.55667385 | P162: 2.061786832 | Q162: 20.61846068 | R162: 1.712927951 | S162: 0.9743026226 | T162: 2.687230573 | U162: 84.67206133 | V162: 29.9340141 | W162: 54.73804724 | X162: 0.004431368451 | Y162: 0.09766731638 | Z162: 0.3930784315 | AA162: 0.4907457479 | AB162: 251.3968425 | AC162: 16.28091944 | AD162: 198679.6116 | AE162: 0.8895882942 | AF162: 3.743505627 | AG162: 0.04342885342 | AH162: 0.3053111427 | AI162: 0.01623255376 | AJ162: 0.06831753398 | AK162: 0.4061956602 | AL162: 5.851422253
A163: ATK2 körfält>11,5 m1004000Riket2060 | B163: ATK | C163: 2 körfält | D163: >11,5 m | E163: 100 | G163: 4000 | H163: Riket | I163: 2060 | L163: 1.893985 | M163: 0.21973 | N163: 2.113715 | O163: 20.14300174 | P163: 2.607897789 | Q163: 22.75089953 | R163: 1.857906441 | S163: 1.23220678 | T163: 3.090113221 | U163: 98.49530794 | V163: 32.44962391 | W163: 66.04568403 | X163: 0.003276960657 | Y163: 0.08873613975 | Z163: 0.4343556609 | AA163: 0.5230918006 | AB163: 251.3968425 | AC163: 16.28091944 | AD163: 231708.6205 | AE163: 1.026603263 | AF163: 3.743505627 | AG163: 0.05493026833 | AH163: 0.3268002479 | AI163: 0.01626352966 | AJ163: 0.07110055181 | AK163: 0.4357277192 | AL163: 6.573536368
A164: ATK2 körfält>11,5 m1004000Ingen2014 | B164: ATK | C164: 2 körfält | D164: >11,5 m | E164: 100 | G164: 4000 | H164: Ingen | I164: 2014 | L164: 1.3432 | M164: 0.1168 | N164: 1.46 | O164: 14.25834494 | P164: 1.385811462 | Q164: 15.6441564 | R164: 1.317512614 | S164: 0.6549370372 | T164: 1.972449651 | U164: 103.7408444 | V164: 43.76961837 | W164: 59.97122603 | X164: 0.005743401573 | Y164: 0.09634928227 | Z164: 0.3035631614 | AA164: 0.3999124437 | AB164: 1827.635008 | AC164: 147.8703465 | AD164: 241647.0533 | AE164: 1.114495154 | AF164: 47.70049512 | AG164: 0.02919156107 | AH164: 0.2579467037 | AI164: 0.01424581963 | AJ164: 0.0570118967 | AK164: 0.3286547274 | AL164: 4.598638775
A165: ATK2 körfält>11,5 m1004000Ingen2040 | B165: ATK | C165: 2 körfält | D165: >11,5 m | E165: 100 | G165: 4000 | H165: Ingen | I165: 2040 | L165: 1.3432 | M165: 0.1168 | N165: 1.46 | O165: 14.25834494 | P165: 1.385811462 | Q165: 15.6441564 | R165: 1.317671549 | S165: 0.6549929857 | T165: 1.972664535 | U165: 61.56450438 | V165: 23.04550101 | W165: 38.51900337 | X165: 0.003396621473 | Y165: 0.07419310442 | Z165: 0.3035631614 | AA165: 0.3777562658 | AB165: 251.3968425 | AC165: 16.28091944 | AD165: 144138.195 | AE165: 0.6512508118 | AF165: 3.743505627 | AG165: 0.02919156107 | AH165: 0.2579467037 | AI165: 0.01223357559 | AJ165: 0.05148713681 | AK165: 0.3140355534 | AL165: 4.843842983
A166: ATK2 körfält>11,5 m1004000Ingen2060 | B166: ATK | C166: 2 körfält | D166: >11,5 m | E166: 100 | G166: 4000 | H166: Ingen | I166: 2060 | L166: 1.3432 | M166: 0.1168 | N166: 1.46 | O166: 14.25834494 | P166: 1.385811462 | Q166: 15.6441564 | R166: 1.317671549 | S166: 0.6549929857 | T166: 1.972664535 | U166: 61.56450438 | V166: 23.04550101 | W166: 38.51900337 | X166: 0.002267611572 | Y166: 0.06068305482 | Z166: 0.3035631614 | AA166: 0.3642462162 | AB166: 251.3968425 | AC166: 16.28091944 | AD166: 144138.195 | AE166: 0.6512508118 | AF166: 3.743505627 | AG166: 0.02919156107 | AH166: 0.2579467037 | AI166: 0.01100658072 | AJ166: 0.04811833464 | AK166: 0.3051213009 | AL166: 5.041322577
A167: ATK2 körfält>11,5 m1003500Hög2014 | B167: ATK | C167: 2 körfält | D167: >11,5 m | E167: 100 | G167: 3500 | H167: Hög | I167: 2014 | L167: 1.1753 | M167: 0.1022 | N167: 1.2775 | O167: 12.47449803 | P167: 1.212563282 | Q167: 13.68706131 | R167: 1.158193831 | S167: 0.5741023602 | T167: 1.732296191 | U167: 90.79264909 | V167: 38.3050544 | W167: 52.4875947 | X167: 0.005074333065 | Y167: 0.08469218683 | Z167: 0.2693327975 | AA167: 0.3540249843 | AB167: 1599.180632 | AC167: 129.3865532 | AD167: 211486.7015 | AE167: 0.975385791 | AF167: 41.73793323 | AG167: 0.02554225557 | AH167: 0.2394948337 | AI167: 0.01246509217 | AJ167: 0.04988540961 | AK167: 0.2916744825 | AL167: 4.232847912
A168: ATK2 körfält>11,5 m1003500Hög2040 | B168: ATK | C168: 2 körfält | D168: >11,5 m | E168: 100 | G168: 3500 | H168: Hög | I168: 2040 | L168: 1.704185 | M168: 0.17812 | N168: 1.882305 | O168: 18.10764755 | P168: 2.113705182 | Q168: 20.22135273 | R168: 1.679540208 | S168: 1.000664292 | T168: 2.6802045 | U168: 84.48769689 | V168: 29.22038656 | W168: 55.26731033 | X168: 0.004363652687 | Y168: 0.09613112035 | Z168: 0.387220386 | AA168: 0.4833515064 | AB168: 219.9722372 | AC168: 14.24580451 | AD168: 198409.1207 | AE168: 0.8854034597 | AF168: 3.275567424 | AG168: 0.04452273825 | AH168: 0.3022451519 | AI168: 0.0159708532 | AJ168: 0.06721612153 | AK168: 0.4001645316 | AL168: 5.785484394
A169: ATK2 körfält>11,5 m1003500Hög2060 | B169: ATK | C169: 2 körfält | D169: >11,5 m | E169: 100 | G169: 3500 | H169: Hög | I169: 2060 | L169: 1.90384 | M169: 0.23725 | N169: 2.14109 | O169: 20.2496172 | P169: 2.815879812 | Q169: 23.06549701 | R169: 1.876263531 | S169: 1.332852772 | T169: 3.209116302 | U169: 102.5241013 | V169: 32.61895328 | W169: 69.90514799 | X169: 0.003335696082 | Y169: 0.0903685877 | Z169: 0.441966658 | AA169: 0.5323352457 | AB169: 219.9722372 | AC169: 14.24580451 | AD169: 241475.879 | AE169: 1.064581539 | AF169: 3.275567424 | AG169: 0.0593107882 | AH169: 0.3307418605 | AI169: 0.01656943881 | AJ169: 0.07243791893 | AK169: 0.443327888 | AL169: 6.662698015
A170: ATK2 körfält>11,5 m1003500Riket2014 | B170: ATK | C170: 2 körfält | D170: >11,5 m | E170: 100 | G170: 3500 | H170: Riket | I170: 2014 | L170: 1.1753 | M170: 0.1022 | N170: 1.2775 | O170: 12.47449803 | P170: 1.212563282 | Q170: 13.68706131 | R170: 1.158193831 | S170: 0.5741023602 | T170: 1.732296191 | U170: 90.79264909 | V170: 38.3050544 | W170: 52.4875947 | X170: 0.005074333065 | Y170: 0.08469218683 | Z170: 0.2693327975 | AA170: 0.3540249843 | AB170: 1599.180632 | AC170: 129.3865532 | AD170: 211486.7015 | AE170: 0.975385791 | AF170: 41.73793323 | AG170: 0.02554225557 | AH170: 0.2394948337 | AI170: 0.01246509217 | AJ170: 0.04988540961 | AK170: 0.2916744825 | AL170: 4.232847912
A171: ATK2 körfält>11,5 m1003500Riket2040 | B171: ATK | C171: 2 körfält | D171: >11,5 m | E171: 100 | G171: 3500 | H171: Riket | I171: 2040 | L171: 1.52789 | M171: 0.15257 | N171: 1.68046 | O171: 16.22520117 | P171: 1.810335964 | Q171: 18.03553714 | R171: 1.505814674 | S171: 0.8571261354 | T171: 2.362940809 | U171: 74.24412635 | V171: 26.20874117 | W171: 48.03538518 | X171: 0.003908468648 | Y171: 0.08580484075 | Z171: 0.3478427188 | AA171: 0.4336475595 | AB171: 219.9722372 | AC171: 14.24580451 | AD171: 174220.4133 | AE171: 0.7798941398 | AF171: 3.275567424 | AG171: 0.0381334447 | AH171: 0.2815200994 | AI171: 0.01421170718 | AJ171: 0.05981244864 | AK171: 0.3596234037 | AL171: 5.3422514
A172: ATK2 körfält>11,5 m1003500Riket2060 | B172: ATK | C172: 2 körfält | D172: >11,5 m | E172: 100 | G172: 3500 | H172: Riket | I172: 2060 | L172: 1.6571 | M172: 0.19199 | N172: 1.84909 | O172: 17.60527638 | P172: 2.278252135 | Q172: 19.88352851 | R172: 1.633140607 | S172: 1.078584808 | T172: 2.711725416 | U172: 86.17820948 | V172: 28.41555742 | W172: 57.76265207 | X172: 0.002885735506 | Y172: 0.07786272383 | Z172: 0.3836603007 | AA172: 0.4615230245 | AB172: 219.9722372 | AC172: 14.24580451 | AD172: 202726.6506 | AE172: 0.8983044339 | AF172: 3.275567424 | AG172: 0.04798894198 | AH172: 0.3003797847 | AI172: 0.01422592871 | AJ172: 0.06219261151 | AK172: 0.3851044843 | AL172: 5.979648107
A173: ATK2 körfält>11,5 m1003500Ingen2014 | B173: ATK | C173: 2 körfält | D173: >11,5 m | E173: 100 | G173: 3500 | H173: Ingen | I173: 2014 | L173: 1.1753 | M173: 0.1022 | N173: 1.2775 | O173: 12.47449803 | P173: 1.212563282 | Q173: 13.68706131 | R173: 1.158193831 | S173: 0.5741023602 | T173: 1.732296191 | U173: 90.79264909 | V173: 38.3050544 | W173: 52.4875947 | X173: 0.005074333065 | Y173: 0.08469218683 | Z173: 0.2693327975 | AA173: 0.3540249843 | AB173: 1599.180632 | AC173: 129.3865532 | AD173: 211486.7015 | AE173: 0.975385791 | AF173: 41.73793323 | AG173: 0.02554225557 | AH173: 0.2394948337 | AI173: 0.01246509217 | AJ173: 0.04988540961 | AK173: 0.2916744825 | AL173: 4.232847912
A174: ATK2 körfält>11,5 m1003500Ingen2040 | B174: ATK | C174: 2 körfält | D174: >11,5 m | E174: 100 | G174: 3500 | H174: Ingen | I174: 2040 | L174: 1.1753 | M174: 0.1022 | N174: 1.2775 | O174: 12.47449803 | P174: 1.212563282 | Q174: 13.68706131 | R174: 1.15833291 | S174: 0.5741513409 | T174: 1.732484251 | U174: 53.88099825 | V174: 20.16833382 | W174: 33.71266443 | X174: 0.003000937411 | Y174: 0.06521663797 | Z174: 0.2693327975 | AA174: 0.3345494355 | AB174: 219.9722372 | AC174: 14.24580451 | AD174: 126149.3455 | AE174: 0.5699681111 | AF174: 3.275567424 | AG174: 0.02554225557 | AH174: 0.2394948337 | AI174: 0.01070437864 | AJ174: 0.04505124471 | AK174: 0.2787938121 | AL174: 4.45854777
A175: ATK2 körfält>11,5 m1003500Ingen2060 | B175: ATK | C175: 2 körfält | D175: >11,5 m | E175: 100 | G175: 3500 | H175: Ingen | I175: 2060 | L175: 1.1753 | M175: 0.1022 | N175: 1.2775 | O175: 12.47449803 | P175: 1.212563282 | Q175: 13.68706131 | R175: 1.15833291 | S175: 0.5741513409 | T175: 1.732484251 | U175: 53.88099825 | V175: 20.16833382 | W175: 33.71266443 | X175: 0.002003449738 | Y175: 0.05334114065 | Z175: 0.2693327975 | AA175: 0.3226739381 | AB175: 219.9722372 | AC175: 14.24580451 | AD175: 126149.3455 | AE175: 0.5699681111 | AF175: 3.275567424 | AG175: 0.02554225557 | AH175: 0.2394948337 | AI175: 0.009630758127 | AJ175: 0.04210354281 | AK175: 0.2709396372 | AL175: 4.640319187
A176: ATK2 körfält>11,5 m1003000Hög2014 | B176: ATK | C176: 2 körfält | D176: >11,5 m | E176: 100 | G176: 3000 | H176: Hög | I176: 2014 | L176: 1.0074 | M176: 0.0876 | N176: 1.095 | O176: 10.69198637 | P176: 1.039333742 | Q176: 11.73132011 | R176: 0.9927385247 | S176: 0.4920877292 | T176: 1.484826254 | U176: 77.82399371 | V176: 32.8339012 | W176: 44.99009252 | X176: 0.004405264557 | Y176: 0.0730350914 | Z176: 0.2351024336 | AA176: 0.308137525 | AB176: 1370.726256 | AC176: 110.9027599 | AD176: 181278.2586 | AE176: 0.8360643871 | AF176: 35.77537134 | AG176: 0.02189325885 | AH176: 0.2208056991 | AI176: 0.01068436472 | AJ176: 0.04275892252 | AK176: 0.2546942377 | AL176: 3.867057049
A177: ATK2 körfält>11,5 m1003000Hög2040 | B177: ATK | C177: 2 körfält | D177: >11,5 m | E177: 100 | G177: 3000 | H177: Hög | I177: 2040 | L177: 1.46073 | M177: 0.15257 | N177: 1.6133 | O177: 15.50933748 | P177: 1.810282106 | Q177: 17.31961958 | R177: 1.439630799 | S177: 0.8571260617 | T177: 2.29675686 | U177: 72.42150506 | V177: 25.05993095 | W177: 47.36157411 | X177: 0.003772889752 | Y177: 0.08272910551 | Z177: 0.336113879 | AA177: 0.4188429845 | AB177: 188.5476319 | AC177: 12.21068958 | AD177: 170069.8789 | AE177: 0.7589969636 | AF177: 2.80762922 | AG177: 0.03813256048 | AH177: 0.2753054269 | AI177: 0.01368773653 | AJ177: 0.05760722676 | AK177: 0.3475480212 | AL177: 5.210232184
A178: ATK2 körfält>11,5 m1003000Hög2060 | B178: ATK | C178: 2 körfält | D178: >11,5 m | E178: 100 | G178: 3000 | H178: Hög | I178: 2060 | L178: 1.631915 | M178: 0.20294 | N178: 1.834855 | O178: 17.33672432 | P178: 2.408167668 | Q178: 19.74489199 | R178: 1.608321875 | S178: 1.14010102 | T178: 2.748422894 | U178: 87.83759725 | V178: 27.98487689 | W178: 59.85272036 | X178: 0.002880201389 | Y178: 0.07770891278 | Z178: 0.3829431841 | AA178: 0.4606520969 | AB178: 188.5476319 | AC178: 12.21068958 | AD178: 206874.8088 | AE178: 0.9122130954 | AF178: 2.80762922 | AG178: 0.05072558222 | AH178: 0.3000038463 | AI178: 0.01419710562 | AJ178: 0.0620666033 | AK178: 0.384388388 | AL178: 5.971247198
A179: ATK2 körfält>11,5 m1003000Riket2014 | B179: ATK | C179: 2 körfält | D179: >11,5 m | E179: 100 | G179: 3000 | H179: Riket | I179: 2014 | L179: 1.0074 | M179: 0.0876 | N179: 1.095 | O179: 10.69198637 | P179: 1.039333742 | Q179: 11.73132011 | R179: 0.9927385247 | S179: 0.4920877292 | T179: 1.484826254 | U179: 77.82399371 | V179: 32.8339012 | W179: 44.99009252 | X179: 0.004405264557 | Y179: 0.0730350914 | Z179: 0.2351024336 | AA179: 0.308137525 | AB179: 1370.726256 | AC179: 110.9027599 | AD179: 181278.2586 | AE179: 0.8360643871 | AF179: 35.77537134 | AG179: 0.02189325885 | AH179: 0.2208056991 | AI179: 0.01068436472 | AJ179: 0.04275892252 | AK179: 0.2546942377 | AL179: 3.867057049
A180: ATK2 körfält>11,5 m1003000Riket2040 | B180: ATK | C180: 2 körfält | D180: >11,5 m | E180: 100 | G180: 3000 | H180: Riket | I180: 2040 | L180: 1.30962 | M180: 0.13067 | N180: 1.44029 | O180: 13.90161944 | P180: 1.550372309 | Q180: 15.45199175 | R180: 1.290710637 | S180: 0.7340935308 | T180: 2.024804168 | U180: 63.62819149 | V180: 22.47151616 | W180: 41.15667533 | X180: 0.003382732004 | Y180: 0.07387800871 | Z180: 0.3023615928 | AA180: 0.3762396015 | AB180: 188.5476319 | AC180: 12.21068958 | AD180: 149306.574 | AE180: 0.6684148254 | AF180: 2.80762922 | AG180: 0.03265798833 | AH180: 0.2573025957 | AI180: 0.01217989708 | AJ180: 0.05126122142 | AK180: 0.312798483 | AL180: 4.830318189
A181: ATK2 körfält>11,5 m1003000Riket2060 | B181: ATK | C181: 2 körfält | D181: >11,5 m | E181: 100 | G181: 3000 | H181: Riket | I181: 2060 | L181: 1.42058 | M181: 0.16498 | N181: 1.58556 | O181: 15.08178319 | P181: 1.957501636 | Q181: 17.03928482 | R181: 1.400063469 | S181: 0.9268444109 | T181: 2.32690788 | U181: 73.98628962 | V181: 24.37265021 | W181: 49.61363941 | X181: 0.002496896173 | Y181: 0.06705561758 | Z181: 0.3332740974 | AA181: 0.400329715 | AB181: 188.5476319 | AC181: 12.21068958 | AD181: 174051.8693 | AE181: 0.7711383542 | AF181: 2.80762922 | AG181: 0.04123378721 | AH181: 0.2737976639 | AI181: 0.01220075373 | AJ181: 0.05333899474 | AK181: 0.3347899665 | AL181: 5.389381572
A182: ATK2 körfält>11,5 m1003000Ingen2014 | B182: ATK | C182: 2 körfält | D182: >11,5 m | E182: 100 | G182: 3000 | H182: Ingen | I182: 2014 | L182: 1.0074 | M182: 0.0876 | N182: 1.095 | O182: 10.69198637 | P182: 1.039333742 | Q182: 11.73132011 | R182: 0.9927385247 | S182: 0.4920877292 | T182: 1.484826254 | U182: 77.82399371 | V182: 32.8339012 | W182: 44.99009252 | X182: 0.004405264557 | Y182: 0.0730350914 | Z182: 0.2351024336 | AA182: 0.308137525 | AB182: 1370.726256 | AC182: 110.9027599 | AD182: 181278.2586 | AE182: 0.8360643871 | AF182: 35.77537134 | AG182: 0.02189325885 | AH182: 0.2208056991 | AI182: 0.01068436472 | AJ182: 0.04275892252 | AK182: 0.2546942377 | AL182: 3.867057049
A183: ATK2 körfält>11,5 m1003000Ingen2040 | B183: ATK | C183: 2 körfält | D183: >11,5 m | E183: 100 | G183: 3000 | H183: Ingen | I183: 2040 | L183: 1.0074 | M183: 0.0876 | N183: 1.095 | O183: 10.69198637 | P183: 1.039333742 | Q183: 11.73132011 | R183: 0.9928577355 | S183: 0.4921297128 | T183: 1.484987448 | U183: 46.18466037 | V183: 17.28767578 | W183: 28.89698459 | X183: 0.00260525335 | Y183: 0.05624017153 | Z183: 0.2351024336 | AA183: 0.2913426051 | AB183: 188.5476319 | AC183: 12.21068958 | AD183: 108130.1824 | AE183: 0.4885547168 | AF183: 2.80762922 | AG183: 0.02189325885 | AH183: 0.2208056991 | AI183: 0.009175181695 | AJ183: 0.03861535261 | AK183: 0.2435520708 | AL183: 4.073252557
A184: ATK2 körfält>11,5 m1003000Ingen2060 | B184: ATK | C184: 2 körfält | D184: >11,5 m | E184: 100 | G184: 3000 | H184: Ingen | I184: 2060 | L184: 1.0074 | M184: 0.0876 | N184: 1.095 | O184: 10.69198637 | P184: 1.039333742 | Q184: 11.73132011 | R184: 0.9928577355 | S184: 0.4921297128 | T184: 1.484987448 | U184: 46.18466037 | V184: 17.28767578 | W184: 28.89698459 | X184: 0.001739287905 | Y184: 0.04599922647 | Z184: 0.2351024336 | AA184: 0.28110166 | AB184: 188.5476319 | AC184: 12.21068958 | AD184: 108130.1824 | AE184: 0.4885547168 | AF184: 2.80762922 | AG184: 0.02189325885 | AH184: 0.2208056991 | AI184: 0.008254935537 | AJ184: 0.03608875098 | AK184: 0.2367579735 | AL184: 4.239315798
